Workbook

Sheet READ ME
D10: =Translate!$C$24 -> Select language | G10: English
D12: =Translate!$C$25 -> Read Me Sheet
D17: =Translate!C26 -> SAFEGUARD WATER – Water Requirement Tool
D19: =Translate!$C$27 -> Introduction
D20: =Translate!$C$28 -> This tool serves to calculate the water requirement for crops and livestock according to the geographic position, climatic data, and rainfall patterns at the Solar-Powered Irrigation System (SPIS) location. Complimentary tools are available under:
D23: http://www.fao.org/nr/water/aquastat/climateinfotool/index.stm
D24: http://www.fao.org/land-water/databases-and-software/cropwat/en
D26: =Translate!$C$29 -> Tips & Tricks
D27: =Translate!$C30 -> ● Make sure that macro is always enabled for the proper functioning of this tool
D28: =Translate!$C31 -> ● Only enter values into white cells
D29: =Translate!$C32 -> ● This tool comprises drop down lists and macros to simplify data entry and results review.
D30: =Translate!$C33 -> ● For the multilanguage option to work properly, do NOT delete sheets
D31: =Translate!$C34 -> ● Make sure that this file is always saved as ".xlsm"
D32: =Translate!$C$35 -> Overview
D33: =Translate!$C$36 -> This tool comprises the following sheet:
D35: =Translate!$C$9 -> 1 Geographic Data | G35: =Translate!$C$37 -> for adding basic site information and entering climatic data
D37: =Translate!$C$10 -> 2 Crop Water Requirement | G37: =Translate!$C$38 -> for selecting crops and planting periods; for automatic calculation of crop water requirements and irrigation water need
D40: =Translate!$C$11 -> 3 Livestock Water Requirement | G40: =Translate!$C$39 -> for adding the type and number of livestock; for automatic calculation of the water requirement for all livestock
D43: =Translate!$C$12 -> 4 Summary | G43: =Translate!$C$40 -> for the summary of crop and livestock water need
D45: =Translate!$C$13 -> 5 How this tool works | G45: =Translate!$C$41 -> for understanding the way this tool works and on which data it is based on
D47: =Translate!$C$14 -> Crop Information | G47: =Translate!$C$42 -> for adjusting and adding the necessary crops information
D50: =Translate!$C$43 -> This tool is based on the FAO Irrigation and Drainage Paper No. 56: Crop Evapotranspiration (guidelines for computing crop water requirements), available at:
D53: http://www.fao.org/3/x0490e/x0490e00.htm
D55: =Translate!$C$44 -> About
D56: =Translate!$C$45 -> Published by: | F56: =Translate!$C$51 -> GIZ & FAO
D57: =Translate!$C$46 -> Responsible: | F57: =Translate!$C$52 -> GIZ project "Water and Energy for Food (WE4F)"
D59: =Translate!$C$47 -> Contact: | F59: we4f@giz.de
D60: =Translate!$C$48 -> Download link: | F60: https://energypedia.info/wiki/Toolbox_on_SPIS
D61: =Translate!$C$49 -> About: | F61: =Translate!$C$53 -> Water and Energy for Food Grand Challenge at:
F63: https://we4f.org/
D64: =Translate!$C$50 -> Version: | F64: =Translate!$C$54 -> 3.0 (June 2021)
D66: =Translate!$C$55 -> The Toolbox on Solar Powered Irrigation Systems (SPIS) is a legacy project of the global initiative Powering Agriculture: An Energy Grand Challenge for Development (PAEGC). In 2012, the United States Agency for International Development (USAID), the Swedish International Development Cooperation Agency (Sida), the German Federal Ministry for Economic Cooperation and Development (BMZ), Duke Energy, and the Overseas Private Investment Corporation (OPIC) combined resources to support new and sustainable approaches to accelerate the development and deployment of clean energy solutions for increasing agriculture productivity. The Toolbox on SPIS has now been embraced for further development by PAEGC's successor program Water and Energy for Food (WE4F). WE4F is a joint international initiative of the European Union (EU), German Federal Ministry for Economic Cooperation and Development (BMZ), the Ministry of Foreign Affairs of the Kingdom of the Netherlands, Sweden through the Swedish International Development Cooperation Agency (Sida), and the U.S. Agency for International Development (USAID). WE4F aims to increase food production along the value chain through a more sustainable and efficient usage of water and/or energy.
D81: =Translate!$C$56 -> The designations employed and the presentation of material in this information product do not imply the expression of any opinion whatsoever on the part of Deutsche Gesellschaft für Internationale Zusammenarbeit (GIZ) GmbH, Food and Agriculture Organization of the United Nations (FAO) or any of the PAEGC Founding Partners concerning the legal or development status of any country, territory, city or area or of its authorities, or concerning the delimitation of its frontiers or boundaries. The mention of specific companies or products of manufacturers, whether or not these have been patented, does not imply that these have been endorsed or recommended by GIZ, FAO, or any of the PAEGC Founding Partners in preference to others of a similar nature that are not mentioned. The views expressed in this information product are those of the author and do not necessarily reflect the views or policies of GIZ, FAO, or any of the PAEGC Founding Partners.
D95: =Translate!$C$57 -> GIZ, FAO and the PAEGC Founding Partners encourage the use, reproduction and dissemination of material in this information product. Except where otherwise indicated, material may be copied, downloaded and printed for private study, research and teaching purposes, or for use in non-commercial products or services, provided that appropriate acknowledgement of GIZ and FAO as the source and copyright holder is given.
D103: =Translate!$C$58 -> © GIZ and FAO, 2021

Sheet 1 Geographic Data
A1: =Translate!$C$72 -> SAFEGUARD WATER – Water Requirement Tool
A2: =Translate!$C$73 -> Enter basic rainfall and climatic data for you location.
A4: =Translate!$C$74 -> 1 GENERAL GEOGRAPHIC INFORMATION
A7: =Translate!$C$75 -> Country | C7: Kenya | G7: =Translate!$C$77 -> Region | H7: Taita Taveta
A8: =Translate!$C$76 -> Farm code | C8: Mary Wanjiku's Farm | G8: =Translate!$C$78 -> Date
A10: =Translate!$C$79 -> Name of the farm
A11: =Translate!$C$80 -> Village
A12: =Translate!$C$81 -> Division
A13: =Translate!$C$82 -> District
A16: =Translate!$C$83 -> Select available climatic data:
A17: =Translate!$C$84 -> Option 1: | C17: =Translate!$C$85 -> Only mean temperature
A18: =Translate!$C$86 -> Option 2: | C18: =Translate!$C$87 -> Maximum and minimum temperature
A19: =Translate!$C$88 -> Option 3: | C19: =Translate!$C$89 -> Maximum and minimum temperature; humidity; wind speed; and sun hours
A20: =Translate!$C$90 -> Option 4: | C20: =Translate!$C$91 -> Reference evapotranspiration
C22: =TRANSPOSE(Translate!$C$60:$C$71) -> January | D22: February | E22: March | F22: April | G22: May | H22: June | I22: July | J22: August | K22: September | L22: October | M22: November | N22: December
A23: =Translate!$C$92 -> Mean daily temperature [°C] | C23: 25.5 | D23: 25 | E23: 24.6 | F23: 23.8 | G23: 23.9 | H23: 23.5 | I23: 23 | J23: 23 | K23: 23.6 | L23: 23.9 | M23: 23.6 | N23: 24
A24: =Translate!$C$93 -> Maximum daily temperature [°C]
A25: =Translate!$C$94 -> Minimum daily temperature [°C]
A26: =Translate!$C$95 -> Relative humidity [%]
A27: =Translate!$C$96 -> Wind speed [m/s]
A28: =Translate!$C$97 -> Sunshine [hours]
A29: =Translate!$C$98 -> Reference evapotranspiration [mm/day]
A30: =Translate!$C$99 -> Rainfall [mm/month] | C30: 45 | D30: 33 | E30: 69.3 | F30: 142.8 | G30: 109.8 | H30: 38.1 | I30: 27 | J30: 21.6 | K30: 18.3 | L30: 48.3 | M30: 97.2 | N30: 86.1
A31: =Translate!$C$100 -> Use the following links to obtain indicative monthly rainfall and climatic data for the site:
G32: http://www.worldclimate.com | J32: http://www.weatherbase.com
A34: =Translate!$C$101 -> Select geographic location:
C35: =Translate!$C$112 -> Altitude: | E35: =Translate!$C$113 -> meter
F36: =Translate!$C$105 -> Hemisphere:
C37: =Translate!$C$102 -> Latitude: | D37: 3.33 | E37: =Translate!$C$104 -> decimal degree | G37: North | J37: =Translate!$C$110 -> Notes:
C38: =Translate!$C$103 -> Longitude: | D38: 38.55 | E38: =Translate!$C$104 -> decimal degree | G38: East
A56: =Translate!$C$111 -> Use the link to identify the exact coordinates of the site: | D56: https://www.google.com/maps

Sheet 2 Crop Water Requirement
A1: =Translate!$C$115 -> SAFEGUARD WATER – Water Requirement Tool
A2: =Translate!$C$116 -> Select crop intended for planting at your location, for automatic indication of water requirements
A4: =Translate!$C$117 -> 2 CROP WATER REQUIREMENT
M6: =Translate!$C$118 -> Farm code/name: | P6: ='1 Geographic Data'!$C$8 -> Mary Wanjiku's Farm
B8: =Translate!$C$120 -> Area measurement unit: | C8: acre | D8: =Translate!$C$119 -> Conversion factor to 1 ha: | G8: =INDEX('Data Validation Sheet'!C1:$C$6,MATCH('2 Crop Water Requirement'!$C$8,'Data Validation Sheet'!$B$1:$B$6,0)) -> 2.47105
D11: ='General Calculation'!D123 -> May | E11: ='General Calculation'!E123 -> June | F11: ='General Calculation'!F123 -> July | G11: ='General Calculation'!G123 -> August | H11: ='General Calculation'!H123 -> September | I11: ='General Calculation'!I123 -> October | J11: ='General Calculation'!J123 -> November | K11: ='General Calculation'!K123 -> December | L11: ='General Calculation'!L123 -> January | M11: ='General Calculation'!M123 -> February | N11: ='General Calculation'!N123 -> March | O11: ='General Calculation'!O123 -> April
B12: ='1 Geographic Data'!A23 -> Mean daily temperature [°C] | D12: ='General Calculation'!D126 -> 23.9 | E12: ='General Calculation'!E126 -> 23.5 | F12: ='General Calculation'!F126 -> 23 | G12: ='General Calculation'!G126 -> 23 | H12: ='General Calculation'!H126 -> 23.6 | I12: ='General Calculation'!I126 -> 23.9 | J12: ='General Calculation'!J126 -> 23.6 | K12: ='General Calculation'!K126 -> 24 | L12: ='General Calculation'!L126 -> 25.5 | M12: ='General Calculation'!M126 -> 25 | N12: ='General Calculation'!N126 -> 24.6 | O12: ='General Calculation'!O126 -> 23.8 | P12: =Translate!$C$129 -> °C | Q12: =Translate!$C$132 -> Above average temperature
B13: ='1 Geographic Data'!A30 -> Rainfall [mm/month] | D13: ='General Calculation'!D127 -> 109.8 | E13: ='General Calculation'!E127 -> 38.1 | F13: ='General Calculation'!F127 -> 27 | G13: ='General Calculation'!G127 -> 21.6 | H13: ='General Calculation'!H127 -> 18.3 | I13: ='General Calculation'!I127 -> 48.3 | J13: ='General Calculation'!J127 -> 97.2 | K13: ='General Calculation'!K127 -> 86.1 | L13: ='General Calculation'!L127 -> 45 | M13: ='General Calculation'!M127 -> 33 | N13: ='General Calculation'!N127 -> 69.3 | O13: ='General Calculation'!O127 -> 142.8 | P13: =Translate!$C$130 -> mm/month | Q13: =Translate!$C$133 -> Above average rainfall
B14: =Translate!$C$127 -> First year: Irrigation water need [m³/day] | D14: ='General Calculation'!D186 -> 20.18450735 | E14: ='General Calculation'!E186 -> 53.40994419 | F14: ='General Calculation'!F186 -> 58.42175112 | G14: ='General Calculation'!G186 -> 52.42173255 | H14: ='General Calculation'!H186 -> 0 | I14: ='General Calculation'!I186 -> 0 | J14: ='General Calculation'!J186 -> 0 | K14: ='General Calculation'!K186 -> 0 | L14: ='General Calculation'!L186 -> 0 | M14: ='General Calculation'!M186 -> 0 | N14: ='General Calculation'!N186 -> 0 | O14: ='General Calculation'!O186 -> 0 | P14: =Translate!$C$131 -> m³/day
B15: =Translate!$C$128 -> Second year: Irrigation water need [m³/day] | D15: ='General Calculation'!P186 -> 0 | E15: ='General Calculation'!Q186 -> 0 | F15: ='General Calculation'!R186 -> 40.14151545 | G15: ='General Calculation'!S186 -> 56.56880584 | H15: ='General Calculation'!T186 -> 61.17913767 | I15: ='General Calculation'!U186 -> 29.10602162 | J15: ='General Calculation'!V186 -> 0 | K15: ='General Calculation'!W186 -> 0 | L15: ='General Calculation'!X186 -> 0 | M15: ='General Calculation'!Y186 -> 0 | N15: ='General Calculation'!Z186 -> 0 | O15: ='General Calculation'!AA186 -> 0 | P15: =Translate!$C$131 -> m³/day
B18: =Translate!$C$134 -> Total farm area: | D18: 5 | E18: =$C$8 -> acre
B20: =Translate!$C$135 -> Crop to be irrigated | D20: =Translate!$C$136 -> Area | F20: =Translate!$C$137 -> Season | G20: =Translate!$C$138 -> Planting Date | J20: =Translate!$C$139 -> Irrigation method | N20: =Translate!$C$140 -> Irrigation Efficiency | P20: =Translate!$C$141 -> Cropping density
B21: ¸ | D21: =$C$8 -> acre | H21: =TODAY() -> 2021-10-29
B22: Carrots (Oct/Jan - Arid climate ) | D22: 2.5 | E22: =IF(AND(F22='Data Validation Sheet'!$C$19,'Data Validation Sheet'!$E$19>'Data Validation Sheet'!$B$12),0,IF(AND(F22='Data Validation Sheet'!$C$20,'Data Validation Sheet'!$E$20>'Data Validation Sheet'!$B$12),0,1)) -> 1 | F22: Season 1 | H22: 2021-05-01 | J22: Microirrigation: Drip irrigation | N22: =IFERROR(IF(J22=0,"",'General Calculation'!$AD$166),"") -> 0.9 | P22: Normal spacing
B24: Carrots (Oct/Jan - Arid climate ) | D24: 2.5 | E24: =IF(AND(F24='Data Validation Sheet'!$C$19,'Data Validation Sheet'!$E$19>'Data Validation Sheet'!$B$12),0,IF(AND(F24='Data Validation Sheet'!$C$20,'Data Validation Sheet'!$E$20>'Data Validation Sheet'!$B$12),0,1)) -> 1 | F24: Season 2 | H24: 2022-07-01 | J24: Microirrigation: Drip irrigation | N24: =IFERROR(IF(J24=0,"",'General Calculation'!$AD$167),"") -> 0.9 | P24: Normal spacing
B26: none | E26: =IF(AND(F26='Data Validation Sheet'!$C$19,'Data Validation Sheet'!$E$19>'Data Validation Sheet'!$B$12),0,IF(AND(F26='Data Validation Sheet'!$C$20,'Data Validation Sheet'!$E$20>'Data Validation Sheet'!$B$12),0,1)) -> 1 | F26: Season 1 | N26: =IFERROR(IF(J26=0,"",'General Calculation'!$AD$168),"") ->  | P26: Normal spacing
B28: none | E28: =IF(AND(F28='Data Validation Sheet'!$C$19,'Data Validation Sheet'!$E$19>'Data Validation Sheet'!$B$12),0,IF(AND(F28='Data Validation Sheet'!$C$20,'Data Validation Sheet'!$E$20>'Data Validation Sheet'!$B$12),0,1)) -> 1 | F28: Season 1 | N28: =IFERROR(IF(J28=0,"",'General Calculation'!$AD$169),"") ->  | P28: Normal spacing
B30: none | E30: =IF(AND(F30='Data Validation Sheet'!$C$19,'Data Validation Sheet'!$E$19>'Data Validation Sheet'!$B$12),0,IF(AND(F30='Data Validation Sheet'!$C$20,'Data Validation Sheet'!$E$20>'Data Validation Sheet'!$B$12),0,1)) -> 1 | F30: Season 1 | N30: =IFERROR(IF(J30=0,"",'General Calculation'!$AD$170),"") ->  | P30: Normal spacing
B32: =Translate!$C$162 -> Maximum daily irrigation water need - year 1: | C32: ='General Calculation'!$D$191 -> 58.42175112 | D32: =Translate!$C$164&" "&'General Calculation'!$E$191&" "&'General Calculation'!$F$191 -> m³ in the month of July 2021 | G32: =Translate!$C$165&" " &'1 Geographic Data'!$C$7 -> in Kenya | I32: =Translate!$C$166 -> Pump utilization rate: | L32: ='General Calculation'!$D$193 -> 0.2630839994 | M32: =Translate!$C$168 -> Yearly water need in m³ - year 2: | R32: ='General Calculation'!$D$190 -> 4458.466199
B33: =Translate!$C$163 -> Maximum daily irrigation water need - year 2: | C33: ='General Calculation'!$H$191 -> 61.17913767 | D33: =Translate!$C$164&" "&'General Calculation'!$I$191&" "&'General Calculation'!$J$191 -> m³ in the month of September 2022 | G33: =Translate!$C$165&" " &'1 Geographic Data'!$C$7 -> in Kenya | I33: =Translate!$C$166 -> Pump utilization rate: | L33: ='General Calculation'!$H$193 -> 0.2547103033 | M33: =Translate!$C$167 -> Yearly water need in m³ - year 1: | R33: ='General Calculation'!$H$190 -> 5066.242263

Sheet 3 Livestock Water Requirement
B1: =Translate!$C$176 -> SAFEGUARD WATER – Water Requirement Tool
B2: =Translate!$C$177 -> Enter the number of livestock head per month at your location, for automatic indication of water requirements.
B4: =Translate!$C$178 -> 3 LIVESTOCK WATER REQUIREMENT
S6: =Translate!$C$179 -> Farm code/name: | U6: ='1 Geographic Data'!C8 -> Mary Wanjiku's Farm
T9: https://www.agric.wa.gov.au/small-landholders-western-australia/calculating-livestock-water-requirements-small-landholders?page=0%2C1
E10: ='General Calculation'!D123 -> May | F10: ='General Calculation'!E123 -> June | G10: ='General Calculation'!F123 -> July | H10: ='General Calculation'!G123 -> August | I10: ='General Calculation'!H123 -> September | J10: ='General Calculation'!I123 -> October | K10: ='General Calculation'!J123 -> November | L10: ='General Calculation'!K123 -> December | M10: ='General Calculation'!L123 -> January | N10: ='General Calculation'!M123 -> February | O10: ='General Calculation'!N123 -> March | P10: ='General Calculation'!O123 -> April
B11: ='1 Geographic Data'!A23 -> Mean daily temperature [°C] | E11: ='General Calculation'!D126 -> 23.9 | F11: ='General Calculation'!E126 -> 23.5 | G11: ='General Calculation'!F126 -> 23 | H11: ='General Calculation'!G126 -> 23 | I11: ='General Calculation'!H126 -> 23.6 | J11: ='General Calculation'!I126 -> 23.9 | K11: ='General Calculation'!J126 -> 23.6 | L11: ='General Calculation'!K126 -> 24 | M11: ='General Calculation'!L126 -> 25.5 | N11: ='General Calculation'!M126 -> 25 | O11: ='General Calculation'!N126 -> 24.6 | P11: ='General Calculation'!O126 -> 23.8
B12: ='1 Geographic Data'!A30 -> Rainfall [mm/month] | E12: ='General Calculation'!D127 -> 109.8 | F12: ='General Calculation'!E127 -> 38.1 | G12: ='General Calculation'!F127 -> 27 | H12: ='General Calculation'!G127 -> 21.6 | I12: ='General Calculation'!H127 -> 18.3 | J12: ='General Calculation'!I127 -> 48.3 | K12: ='General Calculation'!J127 -> 97.2 | L12: ='General Calculation'!K127 -> 86.1 | M12: ='General Calculation'!L127 -> 45 | N12: ='General Calculation'!M127 -> 33 | O12: ='General Calculation'!N127 -> 69.3 | P12: ='General Calculation'!O127 -> 142.8
T13: =Translate!$C$183 -> Enter new livestock data here: | U13: =Translate!$C$184 -> Long term average demand (L/day) | V13: =Translate!$C$185 -> Maximum summer demand (L/day)
T14: =Translate!C186 -> Alpaca (lactating) | U14: 10 | V14: 25
B15: =Translate!$C$180 -> Total water need per day [l/day] | E15: =SUM(E23,E26,E29,E32,E35) -> 0 | F15: =SUM(F23,F26,F29,F32,F35) -> 0 | G15: 0 | H15: 0 | I15: 0 | J15: 0 | K15: 0 | L15: 0 | M15: 0 | N15: 0 | O15: 0 | P15: 0 | T15: =Translate!$C$187 -> Alpaca (dry, adult) | U15: 4 | V15: 10
B16: =Translate!$C$181 -> Total water need per day [m³/day] | E16: =E15/1000 -> 0 | F16: =F15/1000 -> 0 | G16: =G15/1000 -> 0 | H16: 0 | I16: 0 | J16: 0 | K16: 0 | L16: 0 | M16: 0 | N16: 0 | O16: 0 | P16: 0 | T16: =Translate!$C$188 -> Alpaca (<12 months) | U16: 3 | V16: 6
T17: =Translate!$C$189 -> Camel (average size) | U17: 30 | V17: 40
T18: =Translate!$C$190 -> Cattle (lactating) | U18: 80 | V18: 160
T19: =Translate!$C$191 -> Cattle (adult, dry) | U19: 50 | V19: 100
B20: =Translate!$C$182 -> Livestock type: | E20: =E10 -> May | F20: =F10 -> June | G20: July | H20: August | I20: September | J20: October | K20: November | L20: December | M20: January | N20: February | O20: March | P20: April | T20: =Translate!$C$192 -> Cattle (weaner) | U20: 25 | V20: 50
T21: =Translate!$C$193 -> Chicken (1-4 weeks) | U21: 0.13 | V21: 0.415
D22: # | E22: 3 | F22: 3 | G22: 3 | H22: 3 | I22: 3 | J22: 3 | K22: 3 | L22: 3 | M22: 3 | N22: 3 | O22: 3 | P22: 3 | T22: =Translate!$C$194 -> Chicken (5-8 weeks) | U22: 0.407 | V22: 0.77
D23: =Translate!$C$209 -> l / day | E23: =IFERROR(IF(AVERAGE($E$11:$P$11)>E$11,VLOOKUP($B$22,$T$14:$V$36,2,FALSE),VLOOKUP($B$22,$T$14:$V$36,3,FALSE))*E22,"") ->  | F23: =IFERROR(IF(AVERAGE($E$11:$P$11)>F$11,VLOOKUP($B$22,$T$14:$V$36,2,FALSE),VLOOKUP($B$22,$T$14:$V$36,3,FALSE))*F22,"") ->  | T23: =Translate!$C$195 -> Goats (lactating) | U23: 20 | V23: 40
T24: =Translate!$C$196 -> Goats (adult, dry) | U24: 10 | V24: 20
D25: # | T25: =Translate!$C$197 -> Goats (weaner) | U25: 5 | V25: 10
D26: =Translate!$C$209 -> l / day | E26: =IFERROR(IF(AVERAGE($E$11:$P$11)>E$11,VLOOKUP($B$25,$T$14:$V$36,2,FALSE),VLOOKUP($B$25,$T$14:$V$36,3,FALSE))*E25,"") ->  | F26: =IFERROR(IF(AVERAGE($E$11:$P$11)>F$11,VLOOKUP($B$25,$T$14:$V$36,2,FALSE),VLOOKUP($B$25,$T$14:$V$36,3,FALSE))*F25,"") ->  | T26: =Translate!$C$198 -> Horses (lactating) | U26: 90 | V26: 140
T27: =Translate!$C$199 -> Horses (adult, dry) | U27: 45 | V27: 70
D28: # | T28: =Translate!$C$200 -> Horses (<12 months) | U28: 20 | V28: 40
D29: =Translate!$C$209 -> l / day | E29: =IFERROR(IF(AVERAGE($E$11:$P$11)>E$11,VLOOKUP($B$28,$T$14:$V$36,2,FALSE),VLOOKUP($B$28,$T$14:$V$36,3,FALSE))*E28,"") ->  | F29: =IFERROR(IF(AVERAGE($E$11:$P$11)>F$11,VLOOKUP($B$28,$T$14:$V$36,2,FALSE),VLOOKUP($B$28,$T$14:$V$36,3,FALSE))*F28,"") ->  | T29: =Translate!$C$201 -> Pig (lactating) | U29: 24 | V29: 45
T30: =Translate!$C$202 -> Pig (adult, dry) | U30: 12 | V30: 15
D31: # | T31: =Translate!$C$203 -> Pig (Weaner) | U31: 3 | V31: 3
D32: =Translate!$C$209 -> l / day | E32: =IFERROR(IF(AVERAGE($E$11:$P$11)>E$11,VLOOKUP($B$31,$T$14:$V$36,2,FALSE),VLOOKUP($B$31,$T$14:$V$36,3,FALSE))*E31,"") ->  | F32: =IFERROR(IF(AVERAGE($E$11:$P$11)>F$11,VLOOKUP($B$31,$T$14:$V$36,2,FALSE),VLOOKUP($B$31,$T$14:$V$36,3,FALSE))*F31,"") ->  | T32: =Translate!$C$204 -> Sheep (lactating) | U32: 7 | V32: 14
T33: =Translate!$C$205 -> Sheep (adult, dry) | U33: 5 | V33: 10
D34: # | T34: =Translate!$C$206 -> Sheep (weaners) | U34: 3 | V34: 5
D35: =Translate!$C$209 -> l / day | E35: =IFERROR(IF(AVERAGE($E$11:$P$11)>E$11,VLOOKUP($B$34,$T$14:$V$36,2,FALSE),VLOOKUP($B$34,$T$14:$V$36,3,FALSE))*E34,"") ->  | F35: =IFERROR(IF(AVERAGE($E$11:$P$11)>F$11,VLOOKUP($B$34,$T$14:$V$36,2,FALSE),VLOOKUP($B$34,$T$14:$V$36,3,FALSE))*F34,"") ->  | T35: =Translate!$C$207 -> Other
T36: =Translate!$C$208 -> Other
B39: =Translate!$C$213 -> Maximum daily water need: | H39: =MAX($E$16:$P$16) -> 0 | I39: =Translate!$C$214&" "& 'General Calculation'!$E$221 & "." ->  | L39: =Translate!$C$215 -> Pump utilization rate: | P39: ='General Calculation'!$D$223 ->  | R39: =Translate!$C$216 -> Yearly water need in m³: | U39: ='General Calculation'!D220 -> 

Sheet 4 Summary
A1: =Translate!$C$218 -> SAFEGUARD WATER – Water Requirement Tool
A2: =Translate!$C$219 -> Summary Sheet of Crop Water Requirements and Livestock Water Requirements
A4: =Translate!$C$220 -> 4 Summary for Total Annual Water Requirements
X6: =Translate!$C$221 -> Farm code/name: | AA6: ='1 Geographic Data'!C8 -> Mary Wanjiku's Farm
A10: =Translate!$C$222 -> Crop Water Requirements
E11: ='2 Crop Water Requirement'!$D$20 -> Area | H11: =Translate!$C$223 -> Crop Water need [m³/day]
C12: =Translate!$C$224 -> Crops | E12: =Translate!$C$225 -> Season 1 | F12: =Translate!$C$226 -> Season 2 | H12: ='General Calculation'!D230 -> May | I12: ='General Calculation'!E230 -> June | J12: ='General Calculation'!F230 -> July | K12: ='General Calculation'!G230 -> August | L12: ='General Calculation'!H230 -> September | M12: ='General Calculation'!I230 -> October | N12: ='General Calculation'!J230 -> November | O12: ='General Calculation'!K230 -> December | P12: ='General Calculation'!L230 -> January | Q12: ='General Calculation'!M230 -> February | R12: ='General Calculation'!N230 -> March | S12: ='General Calculation'!O230 -> April | T12: ='General Calculation'!P230 -> May | U12: ='General Calculation'!Q230 -> June | V12: ='General Calculation'!R230 -> July | W12: ='General Calculation'!S230 -> August | X12: ='General Calculation'!T230 -> September | Y12: ='General Calculation'!U230 -> October | Z12: ='General Calculation'!V230 -> November | AA12: ='General Calculation'!W230 -> December | AB12: ='General Calculation'!X230 -> January | AC12: ='General Calculation'!Y230 -> February | AD12: ='General Calculation'!Z230 -> March | AE12: ='General Calculation'!AA230 -> April
C14: =IF('General Calculation'!C181=""," - ",'General Calculation'!C181) -> Carrots | E14: =IF(OR('2 Crop Water Requirement'!$F$22='Data Validation Sheet'!$C$20,'2 Crop Water Requirement'!$D$22=""),"",'2 Crop Water Requirement'!$D$22) -> 2.5 | F14: =IF(OR('2 Crop Water Requirement'!$F$22='Data Validation Sheet'!$C$19,'2 Crop Water Requirement'!$D$22=""),"",'2 Crop Water Requirement'!$D$22) ->  | H14: =IF('General Calculation'!D181=0," - ",'General Calculation'!D181) -> 20.18450735 | I14: =IF('General Calculation'!E181=0," - ",'General Calculation'!E181) -> 53.40994419 | J14: =IF('General Calculation'!F181=0," - ",'General Calculation'!F181) -> 58.42175112 | K14: =IF('General Calculation'!G181=0," - ",'General Calculation'!G181) -> 52.42173255 | L14: =IF('General Calculation'!H181=0," - ",'General Calculation'!H181) -> - | M14: =IF('General Calculation'!I181=0," - ",'General Calculation'!I181) -> - | N14: =IF('General Calculation'!J181=0," - ",'General Calculation'!J181) -> - | O14: =IF('General Calculation'!K181=0," - ",'General Calculation'!K181) -> - | P14: =IF('General Calculation'!L181=0," - ",'General Calculation'!L181) -> - | Q14: =IF('General Calculation'!M181=0," - ",'General Calculation'!M181) -> - | R14: =IF('General Calculation'!N181=0," - ",'General Calculation'!N181) -> - | S14: =IF('General Calculation'!O181=0," - ",'General Calculation'!O181) -> - | T14: =IF('General Calculation'!P181=0," - ",'General Calculation'!P181) -> - | U14: =IF('General Calculation'!Q181=0," - ",'General Calculation'!Q181) -> - | V14: =IF('General Calculation'!R181=0," - ",'General Calculation'!R181) -> - | W14: =IF('General Calculation'!S181=0," - ",'General Calculation'!S181) -> - | X14: =IF('General Calculation'!T181=0," - ",'General Calculation'!T181) -> - | Y14: =IF('General Calculation'!U181=0," - ",'General Calculation'!U181) -> - | Z14: =IF('General Calculation'!V181=0," - ",'General Calculation'!V181) -> - | AA14: =IF('General Calculation'!W181=0," - ",'General Calculation'!W181) -> - | AB14: =IF('General Calculation'!X181=0," - ",'General Calculation'!X181) -> - | AC14: =IF('General Calculation'!Y181=0," - ",'General Calculation'!Y181) -> - | AD14: =IF('General Calculation'!Z181=0," - ",'General Calculation'!Z181) -> - | AE14: =IF('General Calculation'!AA181=0," - ",'General Calculation'!AA181) -> -
C15: =IF('General Calculation'!C182=""," - ",'General Calculation'!C182) -> Carrots | E15: =IF(OR('2 Crop Water Requirement'!$F$24='Data Validation Sheet'!$C$20,'2 Crop Water Requirement'!$D$24=""),"",'2 Crop Water Requirement'!$D$24) ->  | F15: =IF(OR('2 Crop Water Requirement'!$F$24='Data Validation Sheet'!$C$19,'2 Crop Water Requirement'!$D$24=""),"",'2 Crop Water Requirement'!$D$24) -> 2.5 | H15: =IF('General Calculation'!D182=0," - ",'General Calculation'!D182) -> - | I15: =IF('General Calculation'!E182=0," - ",'General Calculation'!E182) -> - | J15: =IF('General Calculation'!F182=0," - ",'General Calculation'!F182) -> - | K15: =IF('General Calculation'!G182=0," - ",'General Calculation'!G182) -> - | L15: =IF('General Calculation'!H182=0," - ",'General Calculation'!H182) -> - | M15: =IF('General Calculation'!I182=0," - ",'General Calculation'!I182) -> - | N15: =IF('General Calculation'!J182=0," - ",'General Calculation'!J182) -> - | O15: =IF('General Calculation'!K182=0," - ",'General Calculation'!K182) -> - | P15: =IF('General Calculation'!L182=0," - ",'General Calculation'!L182) -> - | Q15: =IF('General Calculation'!M182=0," - ",'General Calculation'!M182) -> - | R15: =IF('General Calculation'!N182=0," - ",'General Calculation'!N182) -> - | S15: =IF('General Calculation'!O182=0," - ",'General Calculation'!O182) -> - | T15: =IF('General Calculation'!P182=0," - ",'General Calculation'!P182) -> - | U15: =IF('General Calculation'!Q182=0," - ",'General Calculation'!Q182) -> - | V15: =IF('General Calculation'!R182=0," - ",'General Calculation'!R182) -> 40.14151545 | W15: =IF('General Calculation'!S182=0," - ",'General Calculation'!S182) -> 56.56880584 | X15: =IF('General Calculation'!T182=0," - ",'General Calculation'!T182) -> 61.17913767 | Y15: =IF('General Calculation'!U182=0," - ",'General Calculation'!U182) -> 29.10602162 | Z15: =IF('General Calculation'!V182=0," - ",'General Calculation'!V182) -> - | AA15: =IF('General Calculation'!W182=0," - ",'General Calculation'!W182) -> - | AB15: =IF('General Calculation'!X182=0," - ",'General Calculation'!X182) -> - | AC15: =IF('General Calculation'!Y182=0," - ",'General Calculation'!Y182) -> - | AD15: =IF('General Calculation'!Z182=0," - ",'General Calculation'!Z182) -> - | AE15: =IF('General Calculation'!AA182=0," - ",'General Calculation'!AA182) -> -
C16: =IF('General Calculation'!C183=""," - ",'General Calculation'!C183) -> - | E16: =IF(OR('2 Crop Water Requirement'!$F$26='Data Validation Sheet'!$C$20,'2 Crop Water Requirement'!$D$26=""),"",'2 Crop Water Requirement'!$D$26) ->  | F16: =IF(OR('2 Crop Water Requirement'!$F$26='Data Validation Sheet'!$C$19,'2 Crop Water Requirement'!$D$26=""),"",'2 Crop Water Requirement'!$D$26) ->  | H16: =IF('General Calculation'!D183=0," - ",'General Calculation'!D183) -> - | I16: =IF('General Calculation'!E183=0," - ",'General Calculation'!E183) -> - | J16: =IF('General Calculation'!F183=0," - ",'General Calculation'!F183) -> - | K16: =IF('General Calculation'!G183=0," - ",'General Calculation'!G183) -> - | L16: =IF('General Calculation'!H183=0," - ",'General Calculation'!H183) -> - | M16: =IF('General Calculation'!I183=0," - ",'General Calculation'!I183) -> - | N16: =IF('General Calculation'!J183=0," - ",'General Calculation'!J183) -> - | O16: =IF('General Calculation'!K183=0," - ",'General Calculation'!K183) -> - | P16: =IF('General Calculation'!L183=0," - ",'General Calculation'!L183) -> - | Q16: =IF('General Calculation'!M183=0," - ",'General Calculation'!M183) -> - | R16: =IF('General Calculation'!N183=0," - ",'General Calculation'!N183) -> - | S16: =IF('General Calculation'!O183=0," - ",'General Calculation'!O183) -> - | T16: =IF('General Calculation'!P183=0," - ",'General Calculation'!P183) -> - | U16: =IF('General Calculation'!Q183=0," - ",'General Calculation'!Q183) -> - | V16: =IF('General Calculation'!R183=0," - ",'General Calculation'!R183) -> - | W16: =IF('General Calculation'!S183=0," - ",'General Calculation'!S183) -> - | X16: =IF('General Calculation'!T183=0," - ",'General Calculation'!T183) -> - | Y16: =IF('General Calculation'!U183=0," - ",'General Calculation'!U183) -> - | Z16: =IF('General Calculation'!V183=0," - ",'General Calculation'!V183) -> - | AA16: =IF('General Calculation'!W183=0," - ",'General Calculation'!W183) -> - | AB16: =IF('General Calculation'!X183=0," - ",'General Calculation'!X183) -> - | AC16: =IF('General Calculation'!Y183=0," - ",'General Calculation'!Y183) -> - | AD16: =IF('General Calculation'!Z183=0," - ",'General Calculation'!Z183) -> - | AE16: =IF('General Calculation'!AA183=0," - ",'General Calculation'!AA183) -> -
C17: =IF('General Calculation'!C184=""," - ",'General Calculation'!C184) -> - | E17: =IF(OR('2 Crop Water Requirement'!$F$28='Data Validation Sheet'!$C$20,'2 Crop Water Requirement'!$D$28=""),"",'2 Crop Water Requirement'!$D$28) ->  | F17: =IF(OR('2 Crop Water Requirement'!$F$28='Data Validation Sheet'!$C$19,'2 Crop Water Requirement'!$D$28=""),"",'2 Crop Water Requirement'!$D$28) ->  | H17: =IF('General Calculation'!D184=0," - ",'General Calculation'!D184) -> - | I17: =IF('General Calculation'!E184=0," - ",'General Calculation'!E184) -> - | J17: =IF('General Calculation'!F184=0," - ",'General Calculation'!F184) -> - | K17: =IF('General Calculation'!G184=0," - ",'General Calculation'!G184) -> - | L17: =IF('General Calculation'!H184=0," - ",'General Calculation'!H184) -> - | M17: =IF('General Calculation'!I184=0," - ",'General Calculation'!I184) -> - | N17: =IF('General Calculation'!J184=0," - ",'General Calculation'!J184) -> - | O17: =IF('General Calculation'!K184=0," - ",'General Calculation'!K184) -> - | P17: =IF('General Calculation'!L184=0," - ",'General Calculation'!L184) -> - | Q17: =IF('General Calculation'!M184=0," - ",'General Calculation'!M184) -> - | R17: =IF('General Calculation'!N184=0," - ",'General Calculation'!N184) -> - | S17: =IF('General Calculation'!O184=0," - ",'General Calculation'!O184) -> - | T17: =IF('General Calculation'!P184=0," - ",'General Calculation'!P184) -> - | U17: =IF('General Calculation'!Q184=0," - ",'General Calculation'!Q184) -> - | V17: =IF('General Calculation'!R184=0," - ",'General Calculation'!R184) -> - | W17: =IF('General Calculation'!S184=0," - ",'General Calculation'!S184) -> - | X17: =IF('General Calculation'!T184=0," - ",'General Calculation'!T184) -> - | Y17: =IF('General Calculation'!U184=0," - ",'General Calculation'!U184) -> - | Z17: =IF('General Calculation'!V184=0," - ",'General Calculation'!V184) -> - | AA17: =IF('General Calculation'!W184=0," - ",'General Calculation'!W184) -> - | AB17: =IF('General Calculation'!X184=0," - ",'General Calculation'!X184) -> - | AC17: =IF('General Calculation'!Y184=0," - ",'General Calculation'!Y184) -> - | AD17: =IF('General Calculation'!Z184=0," - ",'General Calculation'!Z184) -> - | AE17: =IF('General Calculation'!AA184=0," - ",'General Calculation'!AA184) -> -
C18: =IF('General Calculation'!C185=""," - ",'General Calculation'!C185) -> - | E18: =IF(OR('2 Crop Water Requirement'!$F$30='Data Validation Sheet'!$C$20,'2 Crop Water Requirement'!$D$30=""),"",'2 Crop Water Requirement'!$D$30) ->  | F18: =IF(OR('2 Crop Water Requirement'!$F$30='Data Validation Sheet'!$C$19,'2 Crop Water Requirement'!$D$30=""),"",'2 Crop Water Requirement'!$D$30) ->  | H18: =IF('General Calculation'!D185=0," - ",'General Calculation'!D185) -> - | I18: =IF('General Calculation'!E185=0," - ",'General Calculation'!E185) -> - | J18: =IF('General Calculation'!F185=0," - ",'General Calculation'!F185) -> - | K18: =IF('General Calculation'!G185=0," - ",'General Calculation'!G185) -> - | L18: =IF('General Calculation'!H185=0," - ",'General Calculation'!H185) -> - | M18: =IF('General Calculation'!I185=0," - ",'General Calculation'!I185) -> - | N18: =IF('General Calculation'!J185=0," - ",'General Calculation'!J185) -> - | O18: =IF('General Calculation'!K185=0," - ",'General Calculation'!K185) -> - | P18: =IF('General Calculation'!L185=0," - ",'General Calculation'!L185) -> - | Q18: =IF('General Calculation'!M185=0," - ",'General Calculation'!M185) -> - | R18: =IF('General Calculation'!N185=0," - ",'General Calculation'!N185) -> - | S18: =IF('General Calculation'!O185=0," - ",'General Calculation'!O185) -> - | T18: =IF('General Calculation'!P185=0," - ",'General Calculation'!P185) -> - | U18: =IF('General Calculation'!Q185=0," - ",'General Calculation'!Q185) -> - | V18: =IF('General Calculation'!R185=0," - ",'General Calculation'!R185) -> - | W18: =IF('General Calculation'!S185=0," - ",'General Calculation'!S185) -> - | X18: =IF('General Calculation'!T185=0," - ",'General Calculation'!T185) -> - | Y18: =IF('General Calculation'!U185=0," - ",'General Calculation'!U185) -> - | Z18: =IF('General Calculation'!V185=0," - ",'General Calculation'!V185) -> - | AA18: =IF('General Calculation'!W185=0," - ",'General Calculation'!W185) -> - | AB18: =IF('General Calculation'!X185=0," - ",'General Calculation'!X185) -> - | AC18: =IF('General Calculation'!Y185=0," - ",'General Calculation'!Y185) -> - | AD18: =IF('General Calculation'!Z185=0," - ",'General Calculation'!Z185) -> - | AE18: =IF('General Calculation'!AA185=0," - ",'General Calculation'!AA185) -> -
C19: =Translate!$C$227 -> Total | E19: =SUM(E14:E18) -> 2.5 | F19: =SUM(F14:F18) -> 2.5 | H19: =SUM(H14:H18) -> 20.18450735 | I19: =SUM(I14:I18) -> 53.40994419 | J19: 58.42175112 | K19: 52.42173255 | L19: 0 | M19: 0 | N19: 0 | O19: 0 | P19: 0 | Q19: 0 | R19: 0 | S19: 0 | T19: =SUM(T14:T18) -> 0 | U19: 0 | V19: 40.14151545 | W19: =SUM(W14:W18) -> 56.56880584 | X19: 61.17913767 | Y19: 29.10602162 | Z19: 0 | AA19: 0 | AB19: 0 | AC19: =SUM(AC14:AC18) -> 0 | AD19: 0 | AE19: 0
A23: =Translate!$C$228 -> Livestock Water Requirements
H24: =Translate!$C$229 -> Livestock Water need [m³/day]
C25: =Translate!$C$230 -> Livestock | E25: =Translate!$C$231 -> Heads | H25: =H12 -> May | I25: June | J25: July | K25: August | L25: September | M25: October | N25: November | O25: December | P25: January | Q25: February | R25: March | S25: April | T25: =T12 -> May | U25: June | V25: July | W25: August | X25: September | Y25: October | Z25: November | AA25: December | AB25: January | AC25: February | AD25: March | AE25: April
C27: =IF('General Calculation'!C201=0," - ",'General Calculation'!C209) -> - | E27: =IFERROR(SUM('3 Livestock Water Requirement'!E22:P22)/COUNTA('3 Livestock Water Requirement'!E22:P22),"") -> 3 | H27: =IF('General Calculation'!D209=0," - ",'General Calculation'!D209) -> - | I27: =IF('General Calculation'!E209=0," - ",'General Calculation'!E209) ->  | J27: =IF('General Calculation'!F209=0," - ",'General Calculation'!F209) ->  | K27: =IF('General Calculation'!G209=0," - ",'General Calculation'!G209) ->  | L27: =IF('General Calculation'!H209=0," - ",'General Calculation'!H209) ->  | M27: =IF('General Calculation'!I209=0," - ",'General Calculation'!I209) ->  | N27: =IF('General Calculation'!J209=0," - ",'General Calculation'!J209) ->  | O27: =IF('General Calculation'!K209=0," - ",'General Calculation'!K209) ->  | P27: =IF('General Calculation'!L209=0," - ",'General Calculation'!L209) ->  | Q27: =IF('General Calculation'!M209=0," - ",'General Calculation'!M209) ->  | R27: =IF('General Calculation'!N209=0," - ",'General Calculation'!N209) ->  | S27: =IF('General Calculation'!O209=0," - ",'General Calculation'!O209) ->  | T27: =IF('General Calculation'!P209=0," - ",'General Calculation'!P209) -> - | U27: =IF('General Calculation'!Q209=0," - ",'General Calculation'!Q209) ->  | V27: =IF('General Calculation'!R209=0," - ",'General Calculation'!R209) ->  | W27: =IF('General Calculation'!S209=0," - ",'General Calculation'!S209) ->  | X27: =IF('General Calculation'!T209=0," - ",'General Calculation'!T209) ->  | Y27: =IF('General Calculation'!U209=0," - ",'General Calculation'!U209) ->  | Z27: =IF('General Calculation'!V209=0," - ",'General Calculation'!V209) ->  | AA27: =IF('General Calculation'!W209=0," - ",'General Calculation'!W209) ->  | AB27: =IF('General Calculation'!X209=0," - ",'General Calculation'!X209) ->  | AC27: =IF('General Calculation'!Y209=0," - ",'General Calculation'!Y209) ->  | AD27: =IF('General Calculation'!Z209=0," - ",'General Calculation'!Z209) ->  | AE27: =IF('General Calculation'!AA209=0," - ",'General Calculation'!AA209) -> 
C28: =IF('General Calculation'!C202=0," - ",'General Calculation'!C210) -> - | E28: =IFERROR(SUM('3 Livestock Water Requirement'!E25:P25)/COUNTA('3 Livestock Water Requirement'!E25:P25),"") ->  | H28: =IF('General Calculation'!D210=0," - ",'General Calculation'!D210) -> - | I28: =IF('General Calculation'!E210=0," - ",'General Calculation'!E210) -> - | J28: =IF('General Calculation'!F210=0," - ",'General Calculation'!F210) -> - | K28: =IF('General Calculation'!G210=0," - ",'General Calculation'!G210) -> - | L28: =IF('General Calculation'!H210=0," - ",'General Calculation'!H210) -> - | M28: =IF('General Calculation'!I210=0," - ",'General Calculation'!I210) -> - | N28: =IF('General Calculation'!J210=0," - ",'General Calculation'!J210) -> - | O28: =IF('General Calculation'!K210=0," - ",'General Calculation'!K210) -> - | P28: =IF('General Calculation'!L210=0," - ",'General Calculation'!L210) -> - | Q28: =IF('General Calculation'!M210=0," - ",'General Calculation'!M210) -> - | R28: =IF('General Calculation'!N210=0," - ",'General Calculation'!N210) -> - | S28: =IF('General Calculation'!O210=0," - ",'General Calculation'!O210) -> - | T28: =IF('General Calculation'!P210=0," - ",'General Calculation'!P210) -> - | U28: =IF('General Calculation'!Q210=0," - ",'General Calculation'!Q210) -> - | V28: =IF('General Calculation'!R210=0," - ",'General Calculation'!R210) -> - | W28: =IF('General Calculation'!S210=0," - ",'General Calculation'!S210) -> - | X28: =IF('General Calculation'!T210=0," - ",'General Calculation'!T210) -> - | Y28: =IF('General Calculation'!U210=0," - ",'General Calculation'!U210) -> - | Z28: =IF('General Calculation'!V210=0," - ",'General Calculation'!V210) -> - | AA28: =IF('General Calculation'!W210=0," - ",'General Calculation'!W210) -> - | AB28: =IF('General Calculation'!X210=0," - ",'General Calculation'!X210) -> - | AC28: =IF('General Calculation'!Y210=0," - ",'General Calculation'!Y210) -> - | AD28: =IF('General Calculation'!Z210=0," - ",'General Calculation'!Z210) -> - | AE28: =IF('General Calculation'!AA210=0," - ",'General Calculation'!AA210) -> -
C29: =IF('General Calculation'!C203=0," - ",'General Calculation'!C211) -> - | E29: =IFERROR(SUM('3 Livestock Water Requirement'!E28:P28)/COUNTA('3 Livestock Water Requirement'!E28:P28),"") ->  | H29: =IF('General Calculation'!D211=0," - ",'General Calculation'!D211) -> - | I29: =IF('General Calculation'!E211=0," - ",'General Calculation'!E211) -> - | J29: =IF('General Calculation'!F211=0," - ",'General Calculation'!F211) -> - | K29: =IF('General Calculation'!G211=0," - ",'General Calculation'!G211) -> - | L29: =IF('General Calculation'!H211=0," - ",'General Calculation'!H211) -> - | M29: =IF('General Calculation'!I211=0," - ",'General Calculation'!I211) -> - | N29: =IF('General Calculation'!J211=0," - ",'General Calculation'!J211) -> - | O29: =IF('General Calculation'!K211=0," - ",'General Calculation'!K211) -> - | P29: =IF('General Calculation'!L211=0," - ",'General Calculation'!L211) -> - | Q29: =IF('General Calculation'!M211=0," - ",'General Calculation'!M211) -> - | R29: =IF('General Calculation'!N211=0," - ",'General Calculation'!N211) -> - | S29: =IF('General Calculation'!O211=0," - ",'General Calculation'!O211) -> - | T29: =IF('General Calculation'!P211=0," - ",'General Calculation'!P211) -> - | U29: =IF('General Calculation'!Q211=0," - ",'General Calculation'!Q211) -> - | V29: =IF('General Calculation'!R211=0," - ",'General Calculation'!R211) -> - | W29: =IF('General Calculation'!S211=0," - ",'General Calculation'!S211) -> - | X29: =IF('General Calculation'!T211=0," - ",'General Calculation'!T211) -> - | Y29: =IF('General Calculation'!U211=0," - ",'General Calculation'!U211) -> - | Z29: =IF('General Calculation'!V211=0," - ",'General Calculation'!V211) -> - | AA29: =IF('General Calculation'!W211=0," - ",'General Calculation'!W211) -> - | AB29: =IF('General Calculation'!X211=0," - ",'General Calculation'!X211) -> - | AC29: =IF('General Calculation'!Y211=0," - ",'General Calculation'!Y211) -> - | AD29: =IF('General Calculation'!Z211=0," - ",'General Calculation'!Z211) -> - | AE29: =IF('General Calculation'!AA211=0," - ",'General Calculation'!AA211) -> -
C30: =IF('General Calculation'!C204=0," - ",'General Calculation'!C212) -> - | E30: =IFERROR(SUM('3 Livestock Water Requirement'!E31:P31)/COUNTA('3 Livestock Water Requirement'!E31:P31),"") ->  | H30: =IF('General Calculation'!D212=0," - ",'General Calculation'!D212) -> - | I30: =IF('General Calculation'!E212=0," - ",'General Calculation'!E212) -> - | J30: =IF('General Calculation'!F212=0," - ",'General Calculation'!F212) -> - | K30: =IF('General Calculation'!G212=0," - ",'General Calculation'!G212) -> - | L30: =IF('General Calculation'!H212=0," - ",'General Calculation'!H212) -> - | M30: =IF('General Calculation'!I212=0," - ",'General Calculation'!I212) -> - | N30: =IF('General Calculation'!J212=0," - ",'General Calculation'!J212) -> - | O30: =IF('General Calculation'!K212=0," - ",'General Calculation'!K212) -> - | P30: =IF('General Calculation'!L212=0," - ",'General Calculation'!L212) -> - | Q30: =IF('General Calculation'!M212=0," - ",'General Calculation'!M212) -> - | R30: =IF('General Calculation'!N212=0," - ",'General Calculation'!N212) -> - | S30: =IF('General Calculation'!O212=0," - ",'General Calculation'!O212) -> - | T30: =IF('General Calculation'!P212=0," - ",'General Calculation'!P212) -> - | U30: =IF('General Calculation'!Q212=0," - ",'General Calculation'!Q212) -> - | V30: =IF('General Calculation'!R212=0," - ",'General Calculation'!R212) -> - | W30: =IF('General Calculation'!S212=0," - ",'General Calculation'!S212) -> - | X30: =IF('General Calculation'!T212=0," - ",'General Calculation'!T212) -> - | Y30: =IF('General Calculation'!U212=0," - ",'General Calculation'!U212) -> - | Z30: =IF('General Calculation'!V212=0," - ",'General Calculation'!V212) -> - | AA30: =IF('General Calculation'!W212=0," - ",'General Calculation'!W212) -> - | AB30: =IF('General Calculation'!X212=0," - ",'General Calculation'!X212) -> - | AC30: =IF('General Calculation'!Y212=0," - ",'General Calculation'!Y212) -> - | AD30: =IF('General Calculation'!Z212=0," - ",'General Calculation'!Z212) -> - | AE30: =IF('General Calculation'!AA212=0," - ",'General Calculation'!AA212) -> -
C31: =IF('General Calculation'!C205=0," - ",'General Calculation'!C213) -> - | E31: =IFERROR(SUM('3 Livestock Water Requirement'!E34:P34)/COUNTA('3 Livestock Water Requirement'!E34:P34),"") ->  | H31: =IF('General Calculation'!D213=0," - ",'General Calculation'!D213) -> - | I31: =IF('General Calculation'!E213=0," - ",'General Calculation'!E213) -> - | J31: =IF('General Calculation'!F213=0," - ",'General Calculation'!F213) -> - | K31: =IF('General Calculation'!G213=0," - ",'General Calculation'!G213) -> - | L31: =IF('General Calculation'!H213=0," - ",'General Calculation'!H213) -> - | M31: =IF('General Calculation'!I213=0," - ",'General Calculation'!I213) -> - | N31: =IF('General Calculation'!J213=0," - ",'General Calculation'!J213) -> - | O31: =IF('General Calculation'!K213=0," - ",'General Calculation'!K213) -> - | P31: =IF('General Calculation'!L213=0," - ",'General Calculation'!L213) -> - | Q31: =IF('General Calculation'!M213=0," - ",'General Calculation'!M213) -> - | R31: =IF('General Calculation'!N213=0," - ",'General Calculation'!N213) -> - | S31: =IF('General Calculation'!O213=0," - ",'General Calculation'!O213) -> - | T31: =IF('General Calculation'!P213=0," - ",'General Calculation'!P213) -> - | U31: =IF('General Calculation'!Q213=0," - ",'General Calculation'!Q213) -> - | V31: =IF('General Calculation'!R213=0," - ",'General Calculation'!R213) -> - | W31: =IF('General Calculation'!S213=0," - ",'General Calculation'!S213) -> - | X31: =IF('General Calculation'!T213=0," - ",'General Calculation'!T213) -> - | Y31: =IF('General Calculation'!U213=0," - ",'General Calculation'!U213) -> - | Z31: =IF('General Calculation'!V213=0," - ",'General Calculation'!V213) -> - | AA31: =IF('General Calculation'!W213=0," - ",'General Calculation'!W213) -> - | AB31: =IF('General Calculation'!X213=0," - ",'General Calculation'!X213) -> - | AC31: =IF('General Calculation'!Y213=0," - ",'General Calculation'!Y213) -> - | AD31: =IF('General Calculation'!Z213=0," - ",'General Calculation'!Z213) -> - | AE31: =IF('General Calculation'!AA213=0," - ",'General Calculation'!AA213) -> -
C32: =C19 -> Total | E32: =SUM(E27:E31) -> 3 | H32: =SUM(H27:H31) -> 0 | T32: =SUM(T27:T31) -> 0
A36: =Translate!$C$232 -> Total Water Requirements
H38: =Translate!$C$233 -> Total Water need [m³/day]
H39: =H25 -> May | I39: June | J39: July | K39: August | L39: September | M39: October | N39: November | O39: December | P39: January | Q39: February | R39: March | S39: April | T39: =T25 -> May | U39: June | V39: July | W39: August | X39: September | Y39: October | Z39: November | AA39: December | AB39: January | AC39: February | AD39: March | AE39: April
C41: =C12 -> Crops | E41: =E19+F19&" "&'2 Crop Water Requirement'!C8 -> 5 acre | H41: =H19 -> 20.18450735 | I41: 53.40994419 | J41: 58.42175112 | K41: 52.42173255 | L41: 0 | M41: 0 | N41: 0 | O41: 0 | P41: 0 | Q41: 0 | R41: 0 | S41: 0 | T41: =T19 -> 0 | U41: 0 | V41: 40.14151545 | W41: =W19 -> 56.56880584 | X41: 61.17913767 | Y41: 29.10602162 | Z41: 0 | AA41: 0 | AB41: 0 | AC41: 0 | AD41: 0 | AE41: 0
C42: =C25 -> Livestock | E42: =E25&": "&E32 -> Heads: 3 | H42: =H32 -> 0 | T42: =T32 -> 0
C43: =C19 -> Total | H43: =SUM(H41:H42) -> 20.18450735 | T43: =SUM(T41:T42) -> 0
B46: =Translate!$C$235 -> Maximum daily water need: | G46: ='General Calculation'!$D$237 ->  | H46: =Translate!$C$236&" "& 'General Calculation'!E237 & "." ->  | K46: =Translate!$C$237 -> Pump utilization rate: | N46: ='General Calculation'!$D$239 ->  | O46: =Translate!$C$238 -> Yearly water need in m³: | S46: ='General Calculation'!D236 -> 

Sheet 5 How this tool works
B2: =Translate!$C$240 -> This tool is based on the FAO Irrigation and Drainage Paper No. 56: Crop Evapotranspiration (guidelines for computing crop water requirements), available at: | AM2: http://www.fao.org/docrep/X0490E/X0490E00.htm
C6: =Translate!$C$241 -> Overview
F8: 1 | H8: =Translate!$C$242 -> The major climatic factors
F9: 2 | H9: =Translate!$C$243 -> Reference Evapotranspiration
F10: 3.1 | H10: =Translate!$C$244 -> Crop Factor Kc
F11: 3.2 | H11: =Translate!$C$245 -> Growing Period
F12: 4 | H12: =Translate!$C$246 -> Crop Evapotranspiration
F13: 5 | H13: =Translate!$C$247 -> Effective Rainfall
F14: 6 | H14: =Translate!$C$248 -> Irrigation Water Need
F15: 7 | H15: =Translate!$C$249 -> Unit conversion
A19: 1 | C19: =Translate!$C$250 -> The major climatic factors which influence the crop water needs are:
D21: =Translate!$C$251 -> Sunshine
D22: =Translate!$C$252 -> Temperature
D23: =Translate!$C$253 -> Humidity
D24: =Translate!$C$254 -> Windspeed
C26: =Translate!$C$255 -> Climatic Factor | G26: =Translate!$C$256 -> Crop Water need
G27: =Translate!$C$257 -> High | L27: =Translate!$C$262 -> Low
C28: =Translate!$C$252 -> Temperature | G28: =Translate!$C$258 -> hot | L28: =Translate!$C$263 -> cool
C29: =Translate!$C$253 -> Humidity | G29: =Translate!$C$259 -> low (dry) | L29: =Translate!$C$264 -> high (humid)
C30: =Translate!$C$254 -> Windspeed | G30: =Translate!$C$260 -> windy | L30: =Translate!$C$265 -> little wind
C31: =Translate!$C$251 -> Sunshine | G31: =Translate!$C$261 -> sunny | L31: =Translate!$C$266 -> cloudy
A36: 2 | C36: =Translate!$C$267 -> Reference evapotranspiration (ETo)
D38: =Translate!$C$268 -> ETo is the rate of evapotranspiration from a large area, covered by green grass, 8 to 15 cm tall, which grows actively, completely shades the ground and which is not short of water.
D47: =Translate!$C$269 -> FAO Penman-Monteith method is recommended by FAO as the sole standard method for the computation of ETo. It is a method with the strong likelihood of correctly predicting ETo in a wide range of locations and climates and has provision for application in data-short situations
T49: http://www.fao.org/docrep/X0490E/X0490E00.htm
D51: =Translate!$C$270 -> Depending on the available data, this tool provides three methods for the calculate ETo:
E52: 1 | F52: =Translate!$C$271 -> FAO Penman-Monteith method: requires maximum and minimum temperatures, humidity, wind speed and sun hours data
E53: 2 | F53: =Translate!$C$272 -> Hargreaves method: requires maximum and minimum temperatures
E54: 3 | F54: =Translate!$C$273 -> Blaney-Criddle method: requires only average temperatures
A66: 3.1 | C66: =Translate!$C$274 -> Crop factor Kc
D68: =Translate!$C$275 -> The crop factor mainly depends on:
E69: =Translate!$C$276 -> type of crop
E70: =Translate!$C$277 -> growth stage of the crop
E71: =Translate!$C$278 -> climate
D75: =Translate!C279 -> Plant-specific Crop coefficients for the different growth stages can be obtained from Table 1.
D79: =Translate!$C$280 -> New crops and adjustment to the crop coefficient (Kc) and growing period for crops can be done in the sheet "Crop Information"
AA91: =Translate!C281 -> Table 1 - Crop factors of different crops and growing stages
AA92: =Translate!$C$282 -> more information is available at: | AM92: http://www.fao.org/docrep/X0490E/X0490E00.htm
A94: 3.2 | C94: =Translate!$C$283 -> Growing Period
D96: =Translate!$C$284 -> The plant's growth is divided into different growing stages, in which the plant's environmental conditions change:
E98: =Translate!$C$285 -> Initial stage
E99: =Translate!$C$286 -> Crop development stage
E100: =Translate!$C$287 -> Mid-season stage
E101: =Translate!$C$288 -> late season stage
D103: =Translate!$C$289 -> The duration of each growing stage for different crops can be obtained from Table 2.
B126: =Translate!$C$280 -> New crops and adjustment to the crop coefficient (Kc) and growing period for crops can be done in the sheet "Crop Information"
W139: =Translate!$C$290 -> Table 2 - Days of the different growing stages. | AL139: http://www.fao.org/docrep/X0490E/X0490E00.htm
W141: =Translate!$C$291 -> The values in Table 2 are useful as a general guide and for comparison purposes. The listed lengths of growth stages are average lengths for the regions and periods specified and are intended to serve only as examples. Local observations of the specific crop growth stage should be used, wherever possible.
A146: 4 | C146: =Translate!$C$292 -> Crop Evapotranspiration ETc
D148: =Translate!$C$293 -> Multiplying the reference evapotranspiration ETo with the crop factor Kc gives the crop evapotranspiration ETc
D159: =Translate!$C$294 -> Both ETc and ETo are expressed in the same unit: usually in mm/day (as an average for a period of one month) or in mm/month.
D161: =Translate!$C$295 -> The crop water need ETc can be supplied in various ways:
E162: =Translate!$C$296 -> rainfall
E163: =Translate!$C$297 -> irrigation
E164: =Translate!$C$298 -> combination of irrigation and rainfall
A169: 5 | C169: =Translate!$C$299 -> Effective rainfall
D171: =Translate!$C$300 -> Effective rainfall is the total rainfall minus runoff, minus evaporation and minus deep percolation.
D172: =Translate!$C$301 -> Only the water retained in the root zone can be used by the plants and represents what is called the effective part of the rainwater.
D173: =Translate!$C$302 -> The term effective rainfall is used to define this fraction of the total amount of rainwater useful for meeting the water need of the crops.
T175: =Translate!$C$303 -> with : | V175: P= | X175: =Translate!$C$304 -> rainfall or precipitation (mm/month)
V176: Pe= | X176: =Translate!$C$305 -> effective rainfall or effective precipitation (mm/month)
A181: 6 | C181: =Translate!$C$306 -> Irrigation water need
D189: =Translate!$C$307 -> The crop evapotranspiration ETc minus the effective rainfall equals the amount of irrigation water needed
A197: 7 | C197: =Translate!$C$308 -> Unit conversion
C199: =Translate!$C$309 -> Calculating the irrigation water need as described above leads to the unit mm/month. Multiplying this number by the factor 10 and dividing through the days of the month transforms this unit to m³/ha/day
E201: =Translate!C310 -> 1 mm = 1 l/m² = 10 m³/ha
E202: =Translate!$C$311 -> 1 mm = 0,001 m³/m² = 10 m³/ha

Sheet Crop Information
B2: =Translate!$C$313 -> This data is based on the FAO Irrigation and Drainage Paper No. 56: Crop Evapotranspiration (guidelines for computing crop water requirements), available at: | K2: http://www.fao.org/3/x0490e/x0490e00.htm
B3: =Translate!$C$314 -> Information on row and plant spacing, planting depth and date of seeds can be found at: | K3: https://www.edenseeds.com.au/flux-content/eden/pdf/EdenSeeds-PlantingGuide.pdf
D5: =Translate!$C$317 -> Crop Growing Period | I5: =Translate!$C$318 -> Crop factor of the development stages
B6: =Translate!$C$315 -> Crop | C6: # | D6: =Translate!$C$319 -> Initial stage | E6: =Translate!$C$320 -> Crop development stage | F6: =Translate!$C$321 -> Mid-season stage | G6: =Translate!$C$322 -> late season stage | H6: =Translate!$C$323 -> Total | I6: =Translate!$C$319 -> Initial stage | J6: =Translate!$C$321 -> Mid-season stage | K6: =Translate!$C$322 -> late season stage
B7: =Translate!$C$316 -> none | C7: 1
B8: =Translate!C324 -> Alfalfa (1st cutting cycle - Jan/Apr - USA) | C8: 2 | D8: 10 | E8: 25 | F8: 23 | G8: 10 | H8: =SUM(D8:G8) -> 68 | I8: 0.4 | J8: 1.1 | K8: 1
B9: =Translate!C325 -> Alfalfa (other cutting cycle - Mar/Jun - USA) | C9: 3 | D9: 5 | E9: 15 | F9: 10 | G9: 8 | H9: =SUM(D9:G9) -> 38 | I9: 0.4 | J9: 1.1 | K9: 1
B10: =Translate!C326 -> Alfalfa (seeds - Mar/Jun - USA) | C10: 4 | D10: 5 | E10: 15 | F10: 10 | G10: 8 | H10: 38 | I10: 0.4 | J10: 0.5 | K10: 0.5
B11: =Translate!C327 -> Almond (no ground cover - Apr - USA) | C11: 5 | D11: 20 | E11: 10 | F11: 130 | G11: 30 | H11: 190 | I11: 0.4 | J11: 0.9 | K11: 0.65
B12: =Translate!C328 -> Artichoke (1st year - Apr - California) | C12: 6 | D12: 40 | E12: 40 | F12: 250 | G12: 30 | H12: 360 | I12: 0.5 | J12: 1 | K12: 0.95
B13: =Translate!C329 -> Artichoke (2nd year - May - cut in May) | C13: 7 | D13: 20 | E13: 25 | F13: 250 | G13: 30 | H13: 325 | I13: 0.5 | J13: 1 | K13: 0.95
B14: =Translate!C330 -> Asparagus (Feb - warm winter) | C14: 8 | D14: 50 | E14: 30 | F14: 100 | G14: 50 | H14: 230 | I14: 0.5 | J14: 0.95 | K14: 0.3
B15: =Translate!C331 -> Asparagus (Feb - Mediterranean) | C15: 9 | D15: 90 | E15: 30 | F15: 200 | G15: 45 | H15: 365 | I15: 0.5 | J15: 0.95 | K15: 0.3
B16: =Translate!C332 -> Avocado (Jan - Florida, USA) | C16: 10 | D16: 60 | E16: 60 | F16: 120 | G16: 120 | H16: 360 | I16: 0.7 | J16: 0.98 | K16: 0.7
B17: =Translate!C333 -> Banana (1st year - Mar - Mediterranean) | C17: 11 | D17: 120 | E17: 90 | F17: 120 | G17: 60 | H17: 390 | I17: 0.5 | J17: 1.1 | K17: 1
B18: =Translate!C334 -> Banana (1st year - Mar - subtropical/humid/light to moderate wind) | C18: 12 | D18: 120 | E18: 90 | F18: 120 | G18: 60 | H18: 390 | I18: 0.6 | J18: 1 | K18: 0.8
B19: =Translate!C335 -> Banana (1st year - Mar - subtropical/tropical) | C19: 13 | D19: 90 | E19: 165 | F19: 45 | G19: 30 | H19: 330 | I19: 0.5 | J19: 1.1 | K19: 1
B20: =Translate!C336 -> Banana (2nd year - Mar - Mediterranean) | C20: 14 | D20: 120 | E20: 60 | F20: 180 | G20: 5 | H20: 365 | I20: 1 | J20: 1.2 | K20: 1.1
B21: =Translate!C337 -> Banana (2nd year - Feb - subtropical/tropical) | C21: 15 | D21: 60 | E21: 60 | F21: 75 | G21: 45 | H21: 240 | I21: 1 | J21: 1.2 | K21: 1.1
B22: =Translate!C338 -> Barley/Oats/Wheat (Nov - central India) | C22: 16 | D22: 15 | E22: 25 | F22: 50 | G22: 30 | H22: 120 | I22: 0.3 | J22: 1.15 | K22: 0.25
B23: =Translate!C339 -> Barley/Oats/Wheat (Mar/Apr - 35/45 °L)) | C23: 17 | D23: 20 | E23: 25 | F23: 60 | G23: 30 | H23: 135 | I23: 0.3 | J23: 1.15 | K23: 0.25
B24: =Translate!C340 -> Barley/Oats/Wheat (Jul - East Africa) | C24: 18 | D24: 15 | E24: 30 | F24: 65 | G24: 40 | H24: 150 | I24: 0.3 | J24: 1.15 | K24: 0.25
B25: =Translate!C341 -> Barley/Oats/Wheat (Nov) | C25: 19 | D25: 40 | E25: 60 | F25: 60 | G25: 40 | H25: 200 | I25: 0.4 | J25: 1.15 | K25: 0.3
B26: =Translate!C342 -> Barley/Oats/Wheat (Dec - California desert) | C26: 20 | D26: 20 | E26: 50 | F26: 60 | G26: 30 | H26: 160 | I26: 0.7 | J26: 1.15 | K26: 0.3
B27: =Translate!C343 -> Beans (dry - May/Jun - central climates) | C27: 21 | D27: 20 | E27: 30 | F27: 40 | G27: 20 | H27: 110 | I27: 0.4 | J27: 1.15 | K27: 0.35
B28: =Translate!C344 -> Beans (dry - Jun - Pakistan/California) | C28: 22 | D28: 15 | E28: 25 | F28: 35 | G28: 20 | H28: 95 | I28: 0.4 | J28: 1.15 | K28: 0.35
B29: =Translate!C345 -> Beans (dry - Jun - Idaho) | C29: 23 | D29: 25 | E29: 25 | F29: 30 | G29: 20 | H29: 100 | I29: 0.4 | J29: 1.15 | K29: 0.35
B30: =Translate!C346 -> Beans (green - Feb/Mar - California/Mediterranean) | C30: 24 | D30: 20 | E30: 30 | F30: 30 | G30: 10 | H30: 90 | I30: 0.5 | J30: 1.05 | K30: 0.9
B31: =Translate!C347 -> Beans (green - Aug/Sep - California/Egypt/Lebanon) | C31: 25 | D31: 15 | E31: 25 | F31: 25 | G31: 10 | H31: 75 | I31: 0.5 | J31: 1.05 | K31: 0.9
B32: =Translate!C348 -> Beets (table - Apr/May - Mediterranean) | C32: 26 | D32: 15 | E32: 25 | F32: 20 | G32: 10 | H32: 70 | I32: 0.5 | J32: 1.05 | K32: 0.95
B33: =Translate!C349 -> Beets (table - Feb/Mar - Mediterranean/Arid) | C33: 27 | D33: 25 | E33: 30 | F33: 25 | G33: 10 | H33: 90 | I33: 0.5 | J33: 1.05 | K33: 0.95
B34: =Translate!C350 -> Broccoli (Sept - California desert) | C34: 28 | D34: 35 | E34: 45 | F34: 40 | G34: 15 | H34: 135 | I34: 0.7 | J34: 1.05 | K34: 0.95
B35: =Translate!C351 -> Cabbage (Sept - California desert) | C35: 29 | D35: 40 | E35: 60 | F35: 50 | G35: 15 | H35: 165 | I35: 0.7 | J35: 1.05 | K35: 0.95
B36: =Translate!C352 -> Cantaloupe (Jan - California ) | C36: 30 | D36: 30 | E36: 45 | F36: 35 | G36: 10 | H36: 120 | I36: 0.5 | J36: 0.85 | K36: 0.6
B37: =Translate!C353 -> Cantaloupe (Aug - California ) | C37: 31 | D37: 10 | E37: 60 | F37: 25 | G37: 25 | H37: 120 | I37: 0.5 | J37: 0.85 | K37: 0.6
B38: =Translate!C354 -> Carrots (Oct/Jan - Arid climate ) | C38: 32 | D38: 20 | E38: 30 | F38: 30 | G38: 20 | H38: 100 | I38: 0.7 | J38: 1.05 | K38: 0.95
B39: =Translate!C355 -> Carrots (Feb/Mar - Mediterranean ) | C39: 33 | D39: 30 | E39: 40 | F39: 60 | G39: 20 | H39: 150 | I39: 0.7 | J39: 1.05 | K39: 0.95
B40: =Translate!C356 -> Carrots (Oct - California desert) | C40: 34 | D40: 30 | E40: 50 | F40: 90 | G40: 30 | H40: 200 | I40: 0.7 | J40: 1.05 | K40: 0.95
B41: =Translate!C357 -> Cassava ( 1st year - rainy season - Tropical regions) | C41: 35 | D41: 20 | E41: 40 | F41: 90 | G41: 60 | H41: 210 | I41: 0.3 | J41: 0.8 | K41: 0.3
B42: =Translate!C358 -> Cassava ( 2nd year - season - Tropical regions) | C42: 36 | D42: 150 | E42: 40 | F42: 110 | G42: 60 | H42: 360 | I42: 0.3 | J42: 1.1 | K42: 0.5
B43: =Translate!C359 -> Castor beans (Mar - semiarid climates ) | C43: 37 | D43: 25 | E43: 40 | F43: 65 | G43: 50 | H43: 180 | I43: 0.35 | J43: 1.15 | K43: 0.55
B44: =Translate!C360 -> Castor beans (Nov - Indonesia ) | C44: 38 | D44: 20 | E44: 40 | F44: 50 | G44: 25 | H44: 135 | I44: 0.35 | J44: 1.15 | K44: 0.55
B45: =Translate!C361 -> Cauliflower (Sept - California desert) | C45: 39 | D45: 35 | E45: 50 | F45: 40 | G45: 15 | H45: 140 | I45: 0.7 | J45: 1.05 | K45: 0.95
B46: =Translate!C362 -> Celery (Oct- semiarid) | C46: 40 | D46: 25 | E46: 40 | F46: 95 | G46: 20 | H46: 180 | I46: 0.7 | J46: 1.05 | K46: 1
B47: =Translate!C363 -> Celery (Apr - Mediterranean) | C47: 41 | D47: 25 | E47: 40 | F47: 45 | G47: 15 | H47: 125 | I47: 0.7 | J47: 1.05 | K47: 1
B48: =Translate!C364 -> Celery (Jan - semiarid) | C48: 42 | D48: 30 | E48: 55 | F48: 105 | G48: 20 | H48: 210 | I48: 0.7 | J48: 1.05 | K48: 1
B49: =Translate!C365 -> Chilli pepper (Brazil/Tropical) | C49: 43 | D49: 30 | E49: 15 | F49: 20 | G49: 10 | H49: 75 | I49: 0.63 | J49: 1.4 | K49: 0.86
B50: =Translate!C366 -> Citrus (no ground cover/70% canopy - Jan - Mediterranean) | C50: 44 | D50: 60 | E50: 90 | F50: 120 | G50: 95 | H50: 365 | I50: 0.7 | J50: 0.65 | K50: 0.7
B51: =Translate!C367 -> Citrus (no ground cover/50% canopy - Jan - Mediterranean) | C51: 45 | D51: 60 | E51: 90 | F51: 120 | G51: 95 | H51: 365 | I51: 0.65 | J51: 0.6 | K51: 0.65
B52: =Translate!C368 -> Citrus (no ground cover/20% canopy - Jan - Mediterranean) | C52: 46 | D52: 60 | E52: 90 | F52: 120 | G52: 95 | H52: 365 | I52: 0.5 | J52: 0.45 | K52: 0.55
B53: =Translate!C369 -> Citrus (with active ground cover or weeds/70% canopy - Jan - Mediterranean) | C53: 47 | D53: 60 | E53: 90 | F53: 120 | G53: 95 | H53: 365 | I53: 0.75 | J53: 0.7 | K53: 0.75
B54: =Translate!C370 -> Citrus (with active ground cover or weeds/50% canopy - Jan - Mediterranean) | C54: 48 | D54: 60 | E54: 90 | F54: 120 | G54: 95 | H54: 365 | I54: 0.8 | J54: 0.8 | K54: 0.8
B55: =Translate!C371 -> Citrus (with active ground cover or weeds/20% canopy - Jan - Mediterranean) | C55: 49 | D55: 60 | E55: 90 | F55: 120 | G55: 95 | H55: 365 | I55: 0.85 | J55: 0.85 | K55: 0.85
B56: =Translate!C372 -> Cotton (Mar/May - Egypt/Pakistan/California) | C56: 50 | D56: 30 | E56: 50 | F56: 60 | G56: 55 | H56: 195 | I56: 0.35 | J56: 1.2 | K56: 0.6
B57: =Translate!C373 -> Cotton (Mar - California desert) | C57: 51 | D57: 45 | E57: 90 | F57: 45 | G57: 45 | H57: 225 | I57: 0.35 | J57: 1.2 | K57: 0.6
B58: =Translate!C374 -> Cotton (Sept - Yemen ) | C58: 52 | D58: 30 | E58: 50 | F58: 60 | G58: 55 | H58: 195 | I58: 0.35 | J58: 1.2 | K58: 0.6
B59: =Translate!C375 -> Cotton (Apr - Texas ) | C59: 53 | D59: 30 | E59: 50 | F59: 55 | G59: 45 | H59: 180 | I59: 0.35 | J59: 1.2 | K59: 0.6
B60: =Translate!C376 -> Cucumber (Jun/Aug - arid region ) | C60: 54 | D60: 20 | E60: 30 | F60: 40 | G60: 15 | H60: 105 | I60: 0.6 | J60: 1 | K60: 0.75
B61: =Translate!C377 -> Cucumber (Nov/Feb - arid region ) | C61: 55 | D61: 25 | E61: 35 | F61: 50 | G61: 20 | H61: 130 | I61: 0.6 | J61: 1 | K61: 0.75
B62: =Translate!C378 -> Deciduous Orchard (no ground cover/killing frost - Mar - high latitudes) | C62: 56 | D62: 20 | E62: 70 | F62: 90 | G62: 30 | H62: 210 | I62: 0.45 | J62: 0.93 | K62: 0.68
B63: =Translate!C379 -> Deciduous Orchard (no ground cover/no frosts - Mar - high latitudes) | C63: 57 | D63: 20 | E63: 70 | F63: 90 | G63: 30 | H63: 210 | I63: 0.58 | J63: 0.93 | K63: 0.7
B64: =Translate!C380 -> Deciduous Orchard (active ground cover/killing frost - Mar - high latitudes) | C64: 58 | D64: 20 | E64: 70 | F64: 90 | G64: 30 | H64: 210 | I64: 0.5 | J64: 1.18 | K64: 0.93
B65: =Translate!C381 -> Deciduous Orchard (active ground cover/no frosts - Mar - high latitudes) | C65: 59 | D65: 20 | E65: 70 | F65: 90 | G65: 30 | H65: 210 | I65: 0.8 | J65: 1.18 | K65: 0.85
B66: =Translate!C382 -> Deciduous Orchard (no ground cover/killing frost - Mar - low latitudes) | C66: 60 | D66: 20 | E66: 70 | F66: 120 | G66: 60 | H66: 270 | I66: 0.45 | J66: 0.93 | K66: 0.68
B67: =Translate!C383 -> Deciduous Orchard (no ground cover/no frosts - Mar - low latitudes) | C67: 61 | D67: 20 | E67: 70 | F67: 120 | G67: 60 | H67: 270 | I67: 0.58 | J67: 0.93 | K67: 0.7
B68: =Translate!C384 -> Deciduous Orchard (active ground cover/killing frost - Mar - low latitudes) | C68: 62 | D68: 20 | E68: 70 | F68: 120 | G68: 60 | H68: 270 | I68: 0.5 | J68: 1.18 | K68: 0.93
B69: =Translate!C385 -> Deciduous Orchard (active ground cover/no frosts - Mar - low latitudes) | C69: 63 | D69: 20 | E69: 70 | F69: 120 | G69: 60 | H69: 270 | I69: 0.8 | J69: 1.18 | K69: 0.85
B70: =Translate!C386 -> Deciduous Orchard (no ground cover/killing frost - Mar - California) | C70: 64 | D70: 30 | E70: 50 | F70: 130 | G70: 30 | H70: 240 | I70: 0.45 | J70: 0.93 | K70: 0.68
B71: =Translate!C387 -> Deciduous Orchard (no ground cover/no frosts - Mar - California) | C71: 65 | D71: 30 | E71: 50 | F71: 130 | G71: 30 | H71: 240 | I71: 0.58 | J71: 0.93 | K71: 0.7
B72: =Translate!C388 -> Deciduous Orchard (active ground cover/killing frost - California) | C72: 66 | D72: 30 | E72: 50 | F72: 130 | G72: 30 | H72: 240 | I72: 0.5 | J72: 1.18 | K72: 0.93
B73: =Translate!C389 -> Deciduous Orchard (active ground cover/no frosts - Mar - California) | C73: 67 | D73: 30 | E73: 50 | F73: 130 | G73: 30 | H73: =SUM(D73:G73) -> 240 | I73: 0.8 | J73: 1.18 | K73: 0.85
B74: =Translate!C390 -> Eggplant (Oct - arid region) | C74: 68 | D74: 30 | E74: 40 | F74: 40 | G74: 20 | H74: 130 | I74: 0.6 | J74: 1.05 | K74: 0.9
B75: =Translate!C391 -> Eggplant (May/Jun - Mediterranean) | C75: 69 | D75: 30 | E75: 45 | F75: 40 | G75: 25 | H75: 140 | I75: 0.6 | J75: 1.05 | K75: 0.9
B76: =Translate!C392 -> Faba bean, broad bean (May - Europe) | C76: 70 | D76: 15 | E76: 25 | F76: 35 | G76: 15 | H76: 90 | I76: 0.5 | J76: 1.15 | K76: 1.1
B77: =Translate!C393 -> Faba bean, broad bean (Mar/Apr - Mediterranean) | C77: 71 | D77: 20 | E77: 30 | F77: 35 | G77: 15 | H77: 100 | I77: 0.5 | J77: 1.15 | K77: 1.1
B78: =Translate!C394 -> Faba bean, broad bean (dry - Nov - Europe) | C78: 72 | D78: 90 | E78: 45 | F78: 40 | G78: 60 | H78: 235 | I78: 0.5 | J78: 1.15 | K78: 1.1
B79: =Translate!C395 -> Faba bean, broad bean (green - Nov - Europe) | C79: 73 | D79: 90 | E79: 45 | F79: 40 | G79: 0 | H79: 175 | I79: 0.5 | J79: 1.15 | K79: 0.3
B80: =Translate!C396 -> Flax (Apr - Europe) | C80: 74 | D80: 25 | E80: 35 | F80: 50 | G80: 40 | H80: 150 | I80: 0.35 | J80: 1.1 | K80: 0.25
B81: =Translate!C397 -> Flax (Oct - Arizona) | C81: 75 | D81: 30 | E81: 40 | F81: 100 | G81: 50 | H81: 220 | I81: 0.35 | J81: 1.1 | K81: 0.25
B82: =Translate!C398 -> Grapes (Apr - low latitudes) | C82: 76 | D82: 20 | E82: 40 | F82: 120 | G82: 60 | H82: 240 | I82: 0.3 | J82: 0.85 | K82: 0.45
B83: =Translate!C399 -> Grapes (Mar - California) | C83: 77 | D83: 20 | E83: 50 | F83: 75 | G83: 60 | H83: 205 | I83: 0.3 | J83: 0.85 | K83: 0.45
B84: =Translate!C400 -> Grapes (May - high latitudes ) | C84: 78 | D84: 20 | E84: 50 | F84: 90 | G84: 20 | H84: 180 | I84: 0.3 | J84: 0.85 | K84: 0.45
B85: =Translate!C401 -> Grapes (wine - Apr - mid latitudes) | C85: 79 | D85: 30 | E85: 60 | F85: 40 | G85: 80 | H85: 210 | I85: 0.3 | J85: 0.7 | K85: 0.45
B86: =Translate!C402 -> Green gram, cowpeas (harvest fresh - Mar -Mediterranean) | C86: 80 | D86: 20 | E86: 30 | F86: 30 | G86: 20 | H86: 100 | I86: 0.4 | J86: 1.05 | K86: 0.6
B87: =Translate!C403 -> Green gram, cowpeas (harvest dry - Mar -Mediterranean) | C87: 81 | D87: 20 | E87: 30 | F87: 30 | G87: 20 | H87: 100 | I87: 0.4 | J87: 1.05 | K87: 0.35
B88: =Translate!C404 -> Groundnut (Dry - West Africa ) | C88: 82 | D88: 25 | E88: 35 | F88: 45 | G88: 25 | H88: 130 | I88: 0.4 | J88: 1.15 | K88: 0.6
B89: =Translate!C405 -> Groundnut (season - high latitudes) | C89: 83 | D89: 35 | E89: 35 | F89: 35 | G89: 35 | H89: 140 | I89: 0.4 | J89: 1.15 | K89: 0.6
B90: =Translate!C406 -> Groundnut (May/Jun - Mediterranean) | C90: 84 | D90: 35 | E90: 45 | F90: 35 | G90: 25 | H90: 140 | I90: 0.4 | J90: 1.15 | K90: 0.6
B91: =Translate!C407 -> Hops (Apr - Idaho) | C91: 85 | D91: 25 | E91: 40 | F91: 80 | G91: 10 | H91: 155 | I91: 0.3 | J91: 1.05 | K91: 0.85
B92: =Translate!C408 -> Kale, Rape | C92: 86 | D92: 20 | E92: 20 | F92: 30 | G92: 50 | H92: 120 | I92: 0.7 | J92: 1 | K92: 0.95
B93: =Translate!C409 -> Lentil (Apr - Europe) | C93: 87 | D93: 20 | E93: 30 | F93: 60 | G93: 40 | H93: 150 | I93: 0.4 | J93: 1.1 | K93: 0.3
B94: =Translate!C410 -> Lentil (Oct/Nov -arid region) | C94: 88 | D94: 25 | E94: 35 | F94: 70 | G94: 40 | H94: 170 | I94: 0.4 | J94: 1.1 | K94: 0.3
B95: =Translate!C411 -> Lettuce (Apr - Mediterranean) | C95: 89 | D95: 20 | E95: 30 | F95: 15 | G95: 10 | H95: 75 | I95: 0.7 | J95: 1 | K95: 0.95
B96: =Translate!C412 -> Lettuce (Nov/Jan - Mediterranean) | C96: 90 | D96: 30 | E96: 40 | F96: 25 | G96: 10 | H96: 105 | I96: 0.7 | J96: 1 | K96: 0.95
B97: =Translate!C413 -> Lettuce (Oct/Nov - arid region) | C97: 91 | D97: 25 | E97: 35 | F97: 30 | G97: 10 | H97: 100 | I97: 0.7 | J97: 1 | K97: 0.95
B98: =Translate!C414 -> Lettuce (Feb - Mediterranean) | C98: 92 | D98: 35 | E98: 50 | F98: 45 | G98: 10 | H98: 140 | I98: 0.7 | J98: 1 | K98: 0.95
B99: =Translate!C415 -> Maize (grain - Apr - East Africa (alt.)) | C99: 93 | D99: 30 | E99: 50 | F99: 60 | G99: 40 | H99: 180 | I99: 0.3 | J99: 1.2 | K99: 0.5
B100: =Translate!C416 -> Maize (grain - Dec/Jan - arid climate) | C100: 94 | D100: 25 | E100: 40 | F100: 45 | G100: 30 | H100: 140 | I100: 0.3 | J100: 1.2 | K100: 0.5
B101: =Translate!C417 -> Maize (grain - Jun - Nigeria (humid)) | C101: 95 | D101: 20 | E101: 35 | F101: 40 | G101: 30 | H101: 125 | I101: 0.3 | J101: 1.2 | K101: 0.5
B102: =Translate!C418 -> Maize (grain - Oct - India (dry, cool)) | C102: 96 | D102: 20 | E102: 35 | F102: 40 | G102: 30 | H102: 125 | I102: 0.3 | J102: 1.2 | K102: 0.5
B103: =Translate!C419 -> Maize (grain - Apr - Spain (spring, summer)/California) | C103: 97 | D103: 30 | E103: 40 | F103: 50 | G103: 30 | H103: 150 | I103: 0.3 | J103: 1.2 | K103: 0.5
B104: =Translate!C420 -> Maize (grain - Apr - Idaho) | C104: 98 | D104: 30 | E104: 40 | F104: 50 | G104: 50 | H104: 170 | I104: 0.3 | J104: 1.2 | K104: 0.5
B105: =Translate!C421 -> Maize (sweet - Mar - Philippines) | C105: 99 | D105: 20 | E105: 20 | F105: 30 | G105: 10 | H105: 80 | I105: 0.3 | J105: 1.15 | K105: 1.05
B106: =Translate!C422 -> Maize (sweet - May/Jun - Mediterranean) | C106: 100 | D106: 20 | E106: 25 | F106: 25 | G106: 10 | H106: 80 | I106: 0.3 | J106: 1.15 | K106: 1.05
B107: =Translate!C423 -> Maize (sweet - Oct/Dec - arid climate) | C107: 101 | D107: 20 | E107: 30 | F107: 40 | G107: 10 | H107: 100 | I107: 0.3 | J107: 1.15 | K107: 1.05
B108: =Translate!C424 -> Maize (sweet - Apr - Idaho) | C108: 102 | D108: 30 | E108: 30 | F108: 30 | G108: 103 | H108: 193 | I108: 0.3 | J108: 1.15 | K108: 1.05
B109: =Translate!C425 -> Maize (sweet - Jan - California desert) | C109: 103 | D109: 20 | E109: 40 | F109: 70 | G109: 10 | H109: 140 | I109: 0.3 | J109: 1.15 | K109: 1.05
B110: =Translate!C426 -> Mango (Jun) | C110: 104 | D110: 90 | E110: 90 | F110: 90 | G110: 95 | H110: 365 | I110: 0.9 | J110: 1.1 | K110: 0.9
B111: =Translate!C427 -> Millet (Jun - Pakistan) | C111: 105 | D111: 15 | E111: 25 | F111: 40 | G111: 25 | H111: 105 | I111: 0.3 | J111: 1 | K111: 0.3
B112: =Translate!C428 -> Millet (Apr - Central USA) | C112: 106 | D112: 20 | E112: 30 | F112: 55 | G112: 35 | H112: 140 | I112: 0.3 | J112: 1 | K112: 0.3
B113: =Translate!C429 -> Okra (sub humid) | C113: 107 | D113: 20 | E113: 20 | F113: 40 | G113: 20 | H113: 100 | I113: 0.5 | J113: 0.95 | K113: 0.55
B114: =Translate!C430 -> Olives (Mar - Mediterranean) | C114: 108 | D114: 30 | E114: 90 | F114: 60 | G114: 90 | H114: 270 | I114: 0.65 | J114: 0.7 | K114: 0.7
B115: =Translate!C431 -> Onion (dry - Apr - Mediterranean) | C115: 109 | D115: 15 | E115: 25 | F115: 70 | G115: 40 | H115: 150 | I115: 0.7 | J115: 1.05 | K115: 0.75
B116: =Translate!C432 -> Onion (dry - Oct/Jan - arid region/California) | C116: 110 | D116: 20 | E116: 35 | F116: 110 | G116: 45 | H116: 210 | I116: 0.7 | J116: 1.05 | K116: 0.75
B117: =Translate!C433 -> Onion (green - Apr/May - Mediterranean) | C117: 111 | D117: 25 | E117: 30 | F117: 10 | G117: 5 | H117: 70 | I117: 0.7 | J117: 1 | K117: 1
B118: =Translate!C434 -> Onion (green - Oct - arid region) | C118: 112 | D118: 20 | E118: 45 | F118: 20 | G118: 10 | H118: 95 | I118: 0.7 | J118: 1 | K118: 1
B119: =Translate!C435 -> Onion (green - Mar - California) | C119: 113 | D119: 30 | E119: 55 | F119: 55 | G119: 40 | H119: 180 | I119: 0.7 | J119: 1 | K119: 1
B120: =Translate!C436 -> Onion (seed - Sept - California desert) | C120: 114 | D120: 20 | E120: 45 | F120: 165 | G120: 45 | H120: 275 | I120: 0.7 | J120: 1.05 | K120: 0.8
B121: =Translate!C437 -> Peas (fresh - May - Europe) | C121: 115 | D121: 15 | E121: 25 | F121: 35 | G121: 15 | H121: 90 | I121: 0.5 | J121: 1.152 | K121: 1.1
B122: =Translate!C438 -> Peas (fresh - Mar/Apr - Mediterranean) | C122: 116 | D122: 20 | E122: 30 | F122: 35 | G122: 15 | H122: 100 | I122: 0.5 | J122: 1.152 | K122: 1.1
B123: =Translate!C439 -> Peas (fresh - Apr - Idaho) | C123: 117 | D123: 35 | E123: 25 | F123: 30 | G123: 20 | H123: 110 | I123: 0.5 | J123: 1.152 | K123: 1.1
B124: =Translate!C440 -> Peas (dry - May - Europe) | C124: 118 | D124: 15 | E124: 25 | F124: 35 | G124: 15 | H124: 90 | I124: 0.4 | J124: 1.15 | K124: 0.3
B125: =Translate!C441 -> Peas (dry - Mar/Apr - Mediterranean) | C125: 119 | D125: 20 | E125: 30 | F125: 35 | G125: 15 | H125: 100 | I125: 0.4 | J125: 1.15 | K125: 0.3
B126: =Translate!C442 -> Peas (dry - Apr - Idaho) | C126: 120 | D126: 35 | E126: 25 | F126: 30 | G126: 20 | H126: 110 | I126: 0.4 | J126: 1.15 | K126: 0.3
B127: =Translate!C443 -> Pigeon peas | C127: 121 | D127: 20 | E127: 30 | F127: 30 | G127: 20 | H127: 100 | I127: 0.4 | J127: 1.05 | K127: 0.35
B128: =Translate!C444 -> Pineapple (bare soil - Hawaii) | C128: 122 | D128: 60 | E128: 120 | F128: 600 | G128: 10 | H128: 790 | I128: 0.5 | J128: 0.3 | K128: 0.3
B129: =Translate!C445 -> Pineapple (with grass cover - Hawaii) | C129: 123 | D129: 60 | E129: 120 | F129: 600 | G129: 10 | H129: 790 | I129: 0.5 | J129: 0.5 | K129: 0.5
B130: =Translate!C446 -> Pistachios (no ground cover - Feb - Mediterranean) | C130: 124 | D130: 20 | E130: 60 | F130: 30 | G130: 40 | H130: 150 | I130: 0.4 | J130: 1.1 | K130: 0.45
B131: =Translate!C447 -> Potato (Jan/Nov - semiarid climate) | C131: 125 | D131: 25 | E131: 30 | F131: 47 | G131: 30 | H131: 132 | I131: 0.5 | J131: 1.15 | K131: 0.75
B132: =Translate!C448 -> Potato (May - Continental Climate ) | C132: 126 | D132: 25 | E132: 30 | F132: 45 | G132: 30 | H132: 130 | I132: 0.5 | J132: 1.15 | K132: 0.75
B133: =Translate!C449 -> Potato (Apr - Europe) | C133: 127 | D133: 30 | E133: 35 | F133: 50 | G133: 30 | H133: 145 | I133: 0.5 | J133: 1.15 | K133: 0.75
B134: =Translate!C450 -> Potato (Apr/May - Idaho, USA ) | C134: 128 | D134: 45 | E134: 30 | F134: 70 | G134: 20 | H134: 165 | I134: 0.5 | J134: 1.15 | K134: 0.75
B135: =Translate!C451 -> Potato (Dec - California desert) | C135: 129 | D135: 30 | E135: 35 | F135: 50 | G135: 25 | H135: 140 | I135: 0.5 | J135: 1.15 | K135: 0.75
B136: =Translate!C452 -> Pumpkin, Winter squash (Mar/Aug - Mediterranean) | C136: 130 | D136: 20 | E136: 30 | F136: 30 | G136: 20 | H136: 100 | I136: 0.5 | J136: 1 | K136: 0.8
B137: =Translate!C453 -> Pumpkin, Winter squash (Jun - Europe) | C137: 131 | D137: 25 | E137: 35 | F137: 35 | G137: 25 | H137: =SUM(D137:G137) -> 120 | I137: 0.5 | J137: 1 | K137: 0.8
B138: =Translate!C454 -> Radish (Mar/Apr - Mediterranean/Europe) | C138: 132 | D138: 5 | E138: 10 | F138: 15 | G138: 5 | H138: 35 | I138: 0.7 | J138: 0.9 | K138: 0.85
B139: =Translate!C455 -> Radish (Winter - arid region) | C139: 133 | D139: 10 | E139: 10 | F139: 15 | G139: 5 | H139: 40 | I139: 0.7 | J139: 0.9 | K139: 0.85
B140: =Translate!C456 -> Rice (Dec/May - Tropics/Mediterranean) | C140: 134 | D140: 30 | E140: 30 | F140: 60 | G140: 30 | H140: 150 | I140: 1.05 | J140: 1.2 | K140: 0.75
B141: =Translate!C457 -> Safflower (Apr - California) | C141: 135 | D141: 20 | E141: 35 | F141: 45 | G141: 25 | H141: 125 | I141: 0.35 | J141: 1.1 | K141: 0.25
B142: =Translate!C458 -> Safflower (Mar - high latitudes) | C142: 136 | D142: 25 | E142: 35 | F142: 55 | G142: 30 | H142: 145 | I142: 0.35 | J142: 1.1 | K142: 0.25
B143: =Translate!C459 -> Safflower (Oct/Nov - arid region) | C143: 137 | D143: 35 | E143: 55 | F143: 60 | G143: 40 | H143: 190 | I143: 0.35 | J143: 1.1 | K143: 0.25
B144: =Translate!C460 -> Sesame (Jun - China) | C144: 138 | D144: 20 | E144: 30 | F144: 40 | G144: 20 | H144: 110 | I144: 0.35 | J144: 1.1 | K144: 0.25
B145: =Translate!C461 -> Sorghum (grain - May/Jun - USA/Pakistan/Mediterranean) | C145: 139 | D145: 20 | E145: 35 | F145: 40 | G145: 30 | H145: 125 | I145: 0.3 | J145: 1.05 | K145: 0.55
B146: =Translate!C462 -> Sorghum (grain - Mar/Apr - arid region) | C146: 140 | D146: 20 | E146: 35 | F146: 45 | G146: 30 | H146: 130 | I146: 0.3 | J146: 1.05 | K146: 0.55
B147: =Translate!C463 -> Sorghum (sweet - May/Jun - USA/Pakistan/Mediterranean) | C147: 141 | D147: 20 | E147: 35 | F147: 40 | G147: 30 | H147: 125 | I147: 0.3 | J147: 1.2 | K147: 1.05
B148: =Translate!C464 -> Sorghum (sweet - Mar/Apr - arid region) | C148: 142 | D148: 20 | E148: 35 | F148: 45 | G148: 30 | H148: 130 | I148: 0.3 | J148: 1.2 | K148: 1.05
B149: =Translate!C465 -> Soybeans (Dec - Tropics) | C149: 143 | D149: 15 | E149: 15 | F149: 40 | G149: 15 | H149: 85 | I149: 0.4 | J149: 1.15 | K149: 0.5
B150: =Translate!C466 -> Soybeans (May - Central USA) | C150: 144 | D150: 20 | E150: 32 | F150: 60 | G150: 25 | H150: 137 | I150: 0.4 | J150: 1.15 | K150: 0.5
B151: =Translate!C467 -> Soybeans (Jun - Japan ) | C151: 145 | D151: 20 | E151: 25 | F151: 75 | G151: 30 | H151: 150 | I151: 0.4 | J151: 1.15 | K151: 0.5
B152: =Translate!C468 -> Spinach (Apr/Sep/Oct - Mediterranean) | C152: 146 | D152: 20 | E152: 20 | F152: 20 | G152: 5 | H152: 65 | I152: 0.7 | J152: 1 | K152: 0.95
B153: =Translate!C469 -> Spinach (Nov - arid region) | C153: 147 | D153: 20 | E153: 30 | F153: 40 | G153: 10 | H153: 100 | I153: 0.7 | J153: 1 | K153: 0.95
B154: =Translate!C470 -> Squash, Zucchini (Apr/Dec - Mediterranean/arid region) | C154: 148 | D154: 25 | E154: 35 | F154: 25 | G154: 15 | H154: 100 | I154: 0.5 | J154: 0.95 | K154: 0.75
B155: =Translate!C471 -> Squash, Zucchini (May/Jun - Mediterranean/Europe) | C155: 149 | D155: 20 | E155: 30 | F155: 25 | G155: 15 | H155: 90 | I155: 0.5 | J155: 0.95 | K155: 0.75
B156: =Translate!C472 -> Sudan (1st cutting cycle - Apr - California desert) | C156: 150 | D156: 25 | E156: 25 | F156: 15 | G156: 10 | H156: 75 | I156: 0.5 | J156: 1 | K156: 0.95
B157: =Translate!C473 -> Sudan (other cutting cycles - Jun -California desert) | C157: 151 | D157: 3 | E157: 15 | F157: 12 | G157: 7 | H157: 37 | I157: 0.5 | J157: 1 | K157: 0.95
B158: =Translate!C474 -> Sugarbeet (Mar - California) | C158: 152 | D158: 30 | E158: 45 | F158: 90 | G158: 15 | H158: 180 | I158: 0.35 | J158: 1.2 | K158: 0.7
B159: =Translate!C475 -> Sugarbeet (Jun - California) | C159: 153 | D159: 25 | E159: 30 | F159: 90 | G159: 10 | H159: 155 | I159: 0.35 | J159: 1.2 | K159: 0.7
B160: =Translate!C476 -> Sugarbeet (Sep - California desert) | C160: 154 | D160: 25 | E160: 65 | F160: 100 | G160: 65 | H160: 255 | I160: 0.35 | J160: 1.2 | K160: 0.7
B161: =Translate!C477 -> Sugarbeet (Apr - Idaho) | C161: 155 | D161: 50 | E161: 40 | F161: 50 | G161: 40 | H161: 180 | I161: 0.35 | J161: 1.2 | K161: 0.7
B162: =Translate!C478 -> Sugarbeet (May - Mediterranean) | C162: 156 | D162: 25 | E162: 35 | F162: 50 | G162: 50 | H162: 160 | I162: 0.35 | J162: 1.2 | K162: 0.7
B163: =Translate!C479 -> Sugarbeet (Nov - Mediterranean) | C163: 157 | D163: 45 | E163: 75 | F163: 80 | G163: 30 | H163: 230 | I163: 0.35 | J163: 1.2 | K163: 0.7
B164: =Translate!C480 -> Sugarbeet (Nov - arid regions) | C164: 158 | D164: 35 | E164: 60 | F164: 70 | G164: 40 | H164: 205 | I164: 0.35 | J164: 1.2 | K164: 0.7
B165: =Translate!C481 -> Sugarcane (ratoon - low latitudes) | C165: 159 | D165: 25 | E165: 70 | F165: 135 | G165: 50 | H165: 280 | I165: 0.4 | J165: 1.25 | K165: 0.75
B166: =Translate!C482 -> Sugarcane (ratoon - Tropics) | C166: 160 | D166: 30 | E166: 50 | F166: 180 | G166: 60 | H166: 320 | I166: 0.4 | J166: 1.25 | K166: 0.75
B167: =Translate!C483 -> Sugarcane (ratoon - Hawaii) | C167: 161 | D167: 35 | E167: 105 | F167: 210 | G167: 70 | H167: 420 | I167: 0.4 | J167: 1.25 | K167: 0.75
B168: =Translate!C484 -> Sugarcane (virgin - low latitudes) | C168: 162 | D168: 35 | E168: 60 | F168: 190 | G168: 120 | H168: 405 | I168: 0.4 | J168: 1.25 | K168: 0.75
B169: =Translate!C485 -> Sugarcane (virgin - Tropics) | C169: 163 | D169: 50 | E169: 70 | F169: 220 | G169: 140 | H169: 480 | I169: 0.4 | J169: 1.25 | K169: 0.75
B170: =Translate!C486 -> Sugarcane (virgin - Hawaii) | C170: 164 | D170: 75 | E170: 105 | F170: 330 | G170: 210 | H170: 720 | I170: 0.4 | J170: 1.25 | K170: 0.75
B171: =Translate!C487 -> Sunflower (Apr/May - Mediterranean/California) | C171: 165 | D171: 25 | E171: 35 | F171: 45 | G171: 25 | H171: 130 | I171: 0.35 | J171: 1.1 | K171: 0.35
B172: =Translate!C488 -> Sweet melons (May - Mediterranean) | C172: 166 | D172: 25 | E172: 35 | F172: 40 | G172: 20 | H172: 120 | I172: 0.5 | J172: 1.05 | K172: 0.75
B173: =Translate!C489 -> Sweet melons (Mar - California) | C173: 167 | D173: 30 | E173: 30 | F173: 50 | G173: 30 | H173: 140 | I173: 0.5 | J173: 1.05 | K173: 0.75
B174: =Translate!C490 -> Sweet melons (Aug - California desert) | C174: 168 | D174: 15 | E174: 40 | F174: 65 | G174: 15 | H174: 135 | I174: 0.5 | J174: 1.05 | K174: 0.75
B175: =Translate!C491 -> Sweet melons (Dec/Jan - arid region) | C175: 169 | D175: 30 | E175: 45 | F175: 65 | G175: 20 | H175: 160 | I175: 0.5 | J175: 1.05 | K175: 0.75
B176: =Translate!C492 -> Sweet peppers (Apr/Jun - Europe/Mediterranean) | C176: 170 | D176: 28 | E176: 35 | F176: 40 | G176: 20 | H176: 123 | I176: 0.6 | J176: 1.05 | K176: 0.9
B177: =Translate!C493 -> Sweet peppers (Oct - arid region) | C177: 171 | D177: 30 | E177: 40 | F177: 110 | G177: 30 | H177: 210 | I177: 0.6 | J177: 1.05 | K177: 0.9
B178: =Translate!C494 -> Sweet potato (Apr - Mediterranean) | C178: 172 | D178: 20 | E178: 30 | F178: 60 | G178: 40 | H178: 150 | I178: 0.5 | J178: 1.15 | K178: 0.65
B179: =Translate!C495 -> Sweet potato (rainy season - Tropical regions) | C179: 173 | D179: 15 | E179: 30 | F179: 50 | G179: 30 | H179: 125 | I179: 0.5 | J179: 1.15 | K179: 0.65
B180: =Translate!C496 -> Tomato (Jan - arid region) | C180: 174 | D180: 30 | E180: 40 | F180: 40 | G180: 25 | H180: 135 | I180: 0.6 | J180: 1.15 | K180: 0.8
B181: =Translate!C497 -> Tomato (Apr/May - California) | C181: 175 | D181: 35 | E181: 40 | F181: 50 | G181: 30 | H181: 155 | I181: 0.6 | J181: 1.15 | K181: 0.8
B182: =Translate!C498 -> Tomato (Jan - California desert) | C182: 176 | D182: 25 | E182: 40 | F182: 60 | G182: 30 | H182: 155 | I182: 0.6 | J182: 1.15 | K182: 0.8
B183: =Translate!C499 -> Tomato (Oct/Nov - arid region) | C183: 177 | D183: 35 | E183: 45 | F183: 70 | G183: 30 | H183: 180 | I183: 0.6 | J183: 1.15 | K183: 0.8
B184: =Translate!C500 -> Tomato (Apr/May - Mediterranean) | C184: 178 | D184: 30 | E184: 40 | F184: 45 | G184: 30 | H184: 145 | I184: 0.6 | J184: 1.15 | K184: 0.8
B185: =Translate!C501 -> Walnuts (Apr - Utah) | C185: 179 | D185: 20 | E185: 10 | F185: 130 | G185: 30 | H185: 190 | I185: 0.5 | J185: 1.1 | K185: 0.65
B186: =Translate!C502 -> Water melons (Apr - Italy) | C186: 180 | D186: 20 | E186: 30 | F186: 30 | G186: 30 | H186: 110 | I186: 0.4 | J186: 1 | K186: 0.75
B187: =Translate!C503 -> Water melons (Mat/Aug - Near East (desert)) | C187: 181 | D187: 10 | E187: 20 | F187: 20 | G187: 30 | H187: 80 | I187: 0.4 | J187: 1 | K187: 0.75
B188: =Translate!C504 -> Winter Wheat (Dec - California) | C188: 182 | D188: 202 | E188: 602 | F188: 70 | G188: 30 | H188: 904 | I188: 0.4 | J188: 1.15 | K188: 0.35
B189: =Translate!C505 -> Winter Wheat (Nov - Mediterranean) | C189: 183 | D189: 30 | E189: 140 | F189: 40 | G189: 30 | H189: 240 | I189: 0.4 | J189: 1.15 | K189: 0.35
B190: =Translate!C506 -> Winter Wheat (Oct - Idaho) | C190: 184 | D190: 160 | E190: 75 | F190: 75 | G190: 25 | H190: 335 | I190: 0.7 | J190: 1.15 | K190: 0.35
B191: =Translate!$C$507 -> New crop | C191: 185 | D191: =Translate!$C$508 -> Insert value | E191: =Translate!$C$508 -> Insert value | F191: =Translate!$C$508 -> Insert value | G191: =Translate!$C$508 -> Insert value | H191: 0 | I191: =Translate!$C$508 -> Insert value | J191: =Translate!$C$508 -> Insert value | K191: =Translate!$C$508 -> Insert value
B192: =Translate!$C$507 -> New crop | C192: 186 | D192: =Translate!$C$508 -> Insert value | E192: =Translate!$C$508 -> Insert value | F192: =Translate!$C$508 -> Insert value | G192: =Translate!$C$508 -> Insert value | H192: 0 | I192: =Translate!$C$508 -> Insert value | J192: =Translate!$C$508 -> Insert value | K192: =Translate!$C$508 -> Insert value
B193: =Translate!$C$507 -> New crop | C193: 187 | D193: =Translate!$C$508 -> Insert value | E193: =Translate!$C$508 -> Insert value | F193: =Translate!$C$508 -> Insert value | G193: =Translate!$C$508 -> Insert value | H193: 0 | I193: =Translate!$C$508 -> Insert value | J193: =Translate!$C$508 -> Insert value | K193: =Translate!$C$508 -> Insert value
B194: =Translate!$C$507 -> New crop | C194: 188 | D194: =Translate!$C$508 -> Insert value | E194: =Translate!$C$508 -> Insert value | F194: =Translate!$C$508 -> Insert value | G194: =Translate!$C$508 -> Insert value | H194: 0 | I194: =Translate!$C$508 -> Insert value | J194: =Translate!$C$508 -> Insert value | K194: =Translate!$C$508 -> Insert value
B195: =Translate!$C$507 -> New crop | C195: 189 | D195: =Translate!$C$508 -> Insert value | E195: =Translate!$C$508 -> Insert value | F195: =Translate!$C$508 -> Insert value | G195: =Translate!$C$508 -> Insert value | H195: 0 | I195: =Translate!$C$508 -> Insert value | J195: =Translate!$C$508 -> Insert value | K195: =Translate!$C$508 -> Insert value
B196: =Translate!$C$507 -> New crop | C196: 190 | D196: =Translate!$C$508 -> Insert value | E196: =Translate!$C$508 -> Insert value | F196: =Translate!$C$508 -> Insert value | G196: =Translate!$C$508 -> Insert value | H196: 0 | I196: =Translate!$C$508 -> Insert value | J196: =Translate!$C$508 -> Insert value | K196: =Translate!$C$508 -> Insert value
B197: =Translate!$C$507 -> New crop | C197: 191 | D197: =Translate!$C$508 -> Insert value | E197: =Translate!$C$508 -> Insert value | F197: =Translate!$C$508 -> Insert value | G197: =Translate!$C$508 -> Insert value | H197: 0 | I197: =Translate!$C$508 -> Insert value | J197: =Translate!$C$508 -> Insert value | K197: =Translate!$C$508 -> Insert value
B198: =Translate!$C$507 -> New crop | C198: 192 | D198: =Translate!$C$508 -> Insert value | E198: =Translate!$C$508 -> Insert value | F198: =Translate!$C$508 -> Insert value | G198: =Translate!$C$508 -> Insert value | H198: 0 | I198: =Translate!$C$508 -> Insert value | J198: =Translate!$C$508 -> Insert value | K198: =Translate!$C$508 -> Insert value
B199: =Translate!$C$507 -> New crop | C199: 193 | D199: =Translate!$C$508 -> Insert value | E199: =Translate!$C$508 -> Insert value | F199: =Translate!$C$508 -> Insert value | G199: =Translate!$C$508 -> Insert value | H199: 0 | I199: =Translate!$C$508 -> Insert value | J199: =Translate!$C$508 -> Insert value | K199: =Translate!$C$508 -> Insert value
B200: =Translate!$C$507 -> New crop | C200: 194 | D200: =Translate!$C$508 -> Insert value | E200: =Translate!$C$508 -> Insert value | F200: =Translate!$C$508 -> Insert value | G200: =Translate!$C$508 -> Insert value | H200: 0 | I200: =Translate!$C$508 -> Insert value | J200: =Translate!$C$508 -> Insert value | K200: =Translate!$C$508 -> Insert value
B201: =Translate!$C$507 -> New crop | C201: 195 | D201: =Translate!$C$508 -> Insert value | E201: =Translate!$C$508 -> Insert value | F201: =Translate!$C$508 -> Insert value | G201: =Translate!$C$508 -> Insert value | H201: =SUM(D201:G201) -> 0 | I201: =Translate!$C$508 -> Insert value | J201: =Translate!$C$508 -> Insert value | K201: =Translate!$C$508 -> Insert value
B202: =Translate!$C$507 -> New crop | C202: 196 | D202: =Translate!$C$508 -> Insert value | E202: =Translate!$C$508 -> Insert value | F202: =Translate!$C$508 -> Insert value | G202: =Translate!$C$508 -> Insert value | H202: 0 | I202: =Translate!$C$508 -> Insert value | J202: =Translate!$C$508 -> Insert value | K202: =Translate!$C$508 -> Insert value
... 14 more rows

Sheet Translate
B2: =$C$17 -> Do not modify this sheet
B5: =$C$18 -> Reference Row
B6: =$C$19 -> Selected Language: | C6: ='READ ME'!$G$10 -> English | D6: English | E6: Français | F6: Español | G6: العربية
B7: =$C$21 -> Language code: | C7: =$C$22 -> Must specify language code (as indicated in the existing languages) to format dates | D7: [$-409] | E7: [$-40C] | F7: [$-C0A] | G7: [$-401]
B8: =$C$20 -> Sheet name | C8: =HLOOKUP($C$6,$D$6:$I$603,ROW()-ROW($B$5),FALSE) -> READ ME | D8: READ ME | E8: LISER MOI | F8: LÉEME | G8: اقرأ هذه الصفحة
C9: =HLOOKUP($C$6,$D$6:$I$603,ROW()-ROW($B$5),FALSE) -> 1 Geographic Data | D9: 1 Geographic Data | E9: 1 Données géographiques | F9: 1 Datos geográficos | G9: 1 البيانات الجغرافية
C10: 2 Crop Water Requirement | D10: 2 Crop Water Requirement | E10: 2 Besoins en eau des cultures | F10: 2 Necesidades de agua cultivos | G10: 2 الاحتياجات المائية للمحاصيل
C11: 3 Livestock Water Requirement | D11: 3 Livestock Water Requirement | E11: 3 Besoins en eau des animaux | F11: 3 Necesidades de agua ganado | G11: 3 متطلبات المياه للماشية
C12: 4 Summary | D12: 4 Summary | E12: 4 Bilan | F12: 4 Resumen | G12: 4 ملخص
C13: 5 How this tool works | D13: 5 How this tool works | E13: 5 Comment ça fonctionne | F13: 5 Funcionamiento | G13: 5 كيف تعمل هذه الأداة
C14: Crop Information | D14: Crop Information | E14: Information sur les cultures | F14: Información sobre cultivos | G14: معلومات المحاصيل
C15: Translate | D15: Translate | E15: Traduire | F15: Traducción | G15: ترجمة
B17: =$C$15 -> Translate | C17: Do not modify this sheet | D17: Do not modify this sheet | E17: Ne modifiez pas cette feuille | F17: No modifique esta hoja | G17: لا تعدل هذه الصفحة
C18: Reference Row | D18: Reference Row | E18: Ligne de référence | F18: Fila de referencia | G18: صف مرجعي
C19: Selected Language: | D19: Selected Language: | E19: Langue sélectionnée: | F19: Idioma seleccionado: | G19: اللغة المختارة:
C20: Sheet name | D20: Sheet name | E20: Nom de la feuille | F20: Nombre de la hoja | G20: اسم الصفحة
C21: Language code: | D21: Language code: | E21: Code langue : | F21: Código de lenguaje: | G21: رمز اللغة:
C22: Must specify language code (as indicated in the existing languages) to format dates | D22: Must specify language code (as indicated in the existing languages) to format dates | E22: Doit spécifier le code de langue (comme indiqué dans les langues existantes) pour formater les dates | F22: Debe especificar el código de idioma (como se indica en los idiomas existentes) para formatear las fechas | G22: يجب تحديد رمز اللغة (كما هو موضح في اللغات الموجودة) لضبط التواريخ
B24: =$C$8 -> READ ME | C24: Select language | D24: Select language | E24: Sélectionner la langue | F24: Seleccione el idioma | G24: اختار اللغة
C25: Read Me Sheet | D25: Read Me Sheet | E25: Feuille Lisez-moi | F25: Léeme | G25: اقرأ هذه الصفحة
C26: SAFEGUARD WATER – Water Requirement Tool | D26: SAFEGUARD WATER – Water Requirement Tool | E26: PRÉSERVER L’EAU – Outil d'évaluation des besoins en eau | F26: SALVAGUARDA EL AGUA – Herramienta de cálculo de necesidades de agua | G26: حماية المياه: أداة احتياجات المياه
C27: Introduction | D27: Introduction | E27: Introduction | F27: Introducción | G27: مقدمة
C28: This tool serves to calculate the water requirement for crops and livestock according to the geographic position, climatic data, and rainfall patterns at the Solar-Powered Irrigation System (SPIS) location. Complimentary tools are available under: | D28: This tool serves to calculate the water requirement for crops and livestock according to the geographic position, climatic data, and rainfall patterns at the Solar-Powered Irrigation System (SPIS) location. Complimentary tools are available under: | E28: Cet outil sert à calculer les besoins en eau des cultures et des animaux d’élevage en fonction de l’emplacement géographique, des données climatiques, et des régimes de précipitation à l’endroit où le "Système d'Irrigation à Energie Solaire" (SIES) est installé. Des outils complémentaires sont disponibles à l’adresse suivante: | F28: Esta herramienta sirve para calcular las necesidades de agua para los cultivos y el ganado de acuerdo con la situación geográfica y los patrones de lluvia para un SPIS. Hay disponibles herramientas complementarias en: | G28: تعمل هذه الأداة على حساب الاحتياجات المائية للمحاصيل والماشية وفقًا للموقع الجغرافي, والبيانات المناخية وأنماط سقوط الأمطار في موقع "نظام الري الذي يعمل بالطاقة الشمسية" (SPIS). أدوات إضافية مجانية متوفرة تحت:
C29: Tips & Tricks | D29: Tips & Tricks | E29: Conseils et Astuces | F29: Consejos y trucos | G29: نصائح وحيل
C30: ● Make sure that macro is always enabled for the proper functioning of this tool | D30: ● Make sure that macro is always enabled for the proper functioning of this tool | E30: ● Assurez-vous que les macros sont toujours activées pour le bon fonctionnement de cet outil | F30: ● Asegúrese de que la macro esté siempre habilitada para el correcto funcionamiento de esta herramienta. | G30: ● تأكد من تمكين الماكرو دائمًا من أجل حسن سير هذه الأداة
C31: ● Only enter values into white cells | D31: ● Only enter values into white cells | E31: ● Saisissez des valeurs uniquement dans les cellules blanches | F31: ● Solo ingrese valores en las celdas blancas. | G31: ● أدخل القيم فقط في الخلايا البيضاء
C32: ● This tool comprises drop down lists and macros to simplify data entry and results review. | D32: ● This tool comprises drop down lists and macros to simplify data entry and results review. | E32: ● Cet outil contient des listes déroulantes et des macros pour simplifier la saisie des données et la présentation des résultats | F32: ● Esta herramienta incluye listas desplegables y macros para simplificar la entrada de datos y la revisión de resultados. | G32: ● تتضمن هذه الأداة قوائم منسدلة ووحدات ماكرو لتبسيط إدخال البيانات ومراجعة النتائج.
C33: ● For the multilanguage option to work properly, do NOT delete sheets | D33: ● For the multilanguage option to work properly, do NOT delete sheets | E33: ● Pour que l'option multilingue fonctionne correctement, ne supprimez PAS les feuilles | F33: ● Para que la opción de varios idiomas funcione correctamente, NO elimine las hojas. | G33: ● لكي يعمل خيار اللغات المتعددة بشكل صحيح ، لا تحذف الصفحات
C34: ● Make sure that this file is always saved as ".xlsm" | D34: ● Make sure that this file is always saved as ".xlsm" | E34: ● Assurez-vous que ce fichier est toujours enregistré sous ".xlsm" | F34: ● Asegúrese de que este archivo siempre se guarde como ".xlsm" | G34: ● تأكد من حفظ هذا الملف دائمًا باسم ".xlsm"
C35: Overview | D35: Overview | E35: Aperçu | F35: Sinopsis | G35: نظرة عامة
C36: This tool comprises the following sheet: | D36: This tool comprises the following sheet: | E36: Cet outil est composé des feuilles suivantes: | F36: Esta herramienta incluye las siguientes hojas: | G36: تتكون هذه الأداة من الصفحات التالية:
C37: for adding basic site information and entering climatic data | D37: for adding basic site information and entering climatic data | E37: pour ajouter des informations de base sur le site et entrer les données climatique | F37: Información básica del lugar y datos de precipitación y temperatura | G37: لإضافة معلومات الموقع الأساسية وإدخال البيانات المناخية
C38: for selecting crops and planting periods; for automatic calculation of crop water requirements and irrigation water need | D38: for selecting crops and planting periods; for automatic calculation of crop water requirements and irrigation water need | E38: pour le choix des cultures et les périodes de plantation ; pour le calcul automatique des besoins en eau des cultures et d'irrigation | F38: Selección de cultivo y período de plantación; y cálculo automático de las necesidades de agua de un cultivo individual | G38: لاختيار المحاصيل وفترات الزراعة ؛ للحساب التلقائي للاحتياجات المائية للمحاصيل ومياه الري
C39: for adding the type and number of livestock; for automatic calculation of the water requirement for all livestock | D39: for adding the type and number of livestock; for automatic calculation of the water requirement for all livestock | E39: pour l'addition du type et du nombre d'animaux d'élevage ; pour le calcul automatique des besoins en eau de tous les animaux d'élevage | F39: Tipo y n.° de cabezas de ganado; cálculo automático de las necesidades de agua para todo el ganado | G39: لإضافة نوع وعدد الماشية ؛ للحساب التلقائي للاحتياجات المائية لجميع الماشية
C40: for the summary of crop and livestock water need | D40: for the summary of crop and livestock water need | E40: pour le résumé des besoins en eau des cultures et du bétail | F40: Resumen de las necesidades de agua de cultivo y ganado | G40: لتلخيص احتياجات المياه للمحاصيل والماشية
C41: for understanding the way this tool works and on which data it is based on | D41: for understanding the way this tool works and on which data it is based on | E41: pour comprendre le fonctionnement de cet outil et sur quelles données il est basé | F41: Explicación del funcionamiento de esta herramienta y en qué datos se basa | G41: لفهم طريقة عمل هذه الأداة والبيانات التي تستند إليها
C42: for adjusting and adding the necessary crops information | D42: for adjusting and adding the necessary crops information | E42: pour ajuster et ajouter les informations nécessaires sur les cultures | F42: Con posibilidad de adaptar y añadir cultivos y sus respectivas necesidades de agua | G42: لضبط وإضافة معلومات المحاصيل اللازمة
C43: This tool is based on the FAO Irrigation and Drainage Paper No. 56: Crop Evapotranspiration (guidelines for computing crop water requirements), available at: | D43: This tool is based on the FAO Irrigation and Drainage Paper No. 56: Crop Evapotranspiration (guidelines for computing crop water requirements), available at: | E43: Cet outil est basé sur le document n° 56 de la FAO sur l'irrigation et le drainage: Evapotranspiration des cultures (directives pour le calcul des besoins en eau des cultures), disponible sur: | F43: Esta herramienta se basa en el documento de riego y drenaje de la FAO n° 56: Evapotranspiración de cultivos (directrices para calcular los necesidades de agua de los cultivos), disponible en: | G43: تعتمد هذه الأداة على ورقة الري والصرف رقم 56 الصادرة عن منظمة الأغذية والزراعة: البخر- نتح المحاصيل (مبادئ توجيهية لحساب الإحتياجات المائية للمحاصيل) ، وهي متاحة على الموقع:
C44: About | D44: About | E44: En savoir plus | F44: Acerca de | G44: حول
C45: Published by: | D45: Published by: | E45: Publié par: | F45: Publicado por: | G45: نشرت من قبل:
C46: Responsible: | D46: Responsible: | E46: Responsables: | F46: Responsable: | G46: مسؤول:
C47: Contact: | D47: Contact: | E47: Contact: | F47: Contacto: | G47: اتصال:
C48: Download link: | D48: Download link: | E48: Lien de téléchargement: | F48: Enlace descarga: | G48: رابط التحميل:
C49: About: | D49: About: | E49: À propos de: | F49: Acerca de: | G49: حول:
C50: Version: | D50: Version: | E50: Version: | F50: Versión: | G50: إصدار:
C51: GIZ & FAO | D51: GIZ & FAO | E51: GIZ et FAO | F51: GIZ & FAO | G51: الوكالة الألمانية للتعاون الدولي (GIZ) ومنظمة الأغذية والزراعة (FAO)
C52: GIZ project "Water and Energy for Food (WE4F)" | D52: GIZ project "Water and Energy for Food (WE4F)" | E52: Projet de la GIZ « Les innovations dans l’agriculture et la production alimentaire protègent le climat (PEEPA/WE4F) » (Water and Energy for Food) | F52: GIZ project "Water and Energy for Food (WE4F)" | G52: مشروع الوكالة الألمانية للتعاون الدولي "المياه والطاقة من أجل الغذاء Water and Energy for Food (WE4F)"
C53: Water and Energy for Food Grand Challenge at: | D53: Water and Energy for Food Grand Challenge at: | E53: Eau et Energie pour l'Alimentation (PEEPA). Disponible à l’adresse : | F53: Water and Energy for Food Grand Challenge at: | G53: التحدي الكبير للمياه والطاقة من أجل الغذاء في:
C54: 3.0 (June 2021) | D54: 3.0 (June 2021) | E54: 3.0 (Juin 2021) | F54: 3.0 (Junio 2021) | G54: 3.0 (يونيو 2021)
C55: The Toolbox on Solar Powered Irrigation Systems (SPIS) is a legacy project of the global initiative Powering Agriculture: An Energy Grand Challenge for Development (PAEGC). In 2012, the United States Agency for International Development (USAID), the Swedish International Development Cooperation Agency (Sida), the German Federal Ministry for Economic Cooperation and Development (BMZ), Duke Energy, and the Overseas Private Investment Corporation (OPIC) combined resources to support new and sustainable approaches to accelerate the development and deployment of clean energy solutions for increasing agriculture productivity. The Toolbox on SPIS has now been embraced for further development by PAEGC's successor program Water and Energy for Food (WE4F). WE4F is a joint international initiative of the European Union (EU), German Federal Ministry for Economic Cooperation and Development (BMZ), the Ministry of Foreign Affairs of the Kingdom of the Netherlands, Sweden through the Swedish International Development Cooperation Agency (Sida), and the U.S. Agency for International Development (USAID). WE4F aims to increase food production along the value chain through a more sustainable and efficient usage of water and/or energy. | D55: The Toolbox on Solar Powered Irrigation Systems (SPIS) is a legacy project of the global initiative Powering Agriculture: An Energy Grand Challenge for Development (PAEGC). In 2012, the United States Agency for International Development (USAID), the Swedish International Development Cooperation Agency (Sida), the German Federal Ministry for Economic Cooperation and Development (BMZ), Duke Energy, and the Overseas Private Investment Corporation (OPIC) combined resources to support new and sustainable approaches to accelerate the development and deployment of clean energy solutions for increasing agriculture productivity. The Toolbox on SPIS has now been embraced for further development by PAEGC's successor program Water and Energy for Food (WE4F). WE4F is a joint international initiative of the European Union (EU), German Federal Ministry for Economic Cooperation and Development (BMZ), the Ministry of Foreign Affairs of the Kingdom of the Netherlands, Sweden through the Swedish International Development Cooperation Agency (Sida), and the U.S. Agency for International Development (USAID). WE4F aims to increase food production along the value chain through a more sustainable and efficient usage of water and/or energy. | E55: La boîte à outils pour les systèmes d’irrigation à énergie solaire (Solar Powered Irrigation Systems, SPIS) est un projet hérité de l'initiative mondiale « Propulser l’agriculture : un grand défi énergétique pour le développement » (Powering Agriculture: An Energy Grand Challenge for Development – PAEGC). En 2012, l’Agence des États-Unis pour le développement international (USAID), l’Agence suédoise de coopération internationale au développement (Sida), le ministère fédéral allemand de la Coopération économique et du Développement (BMZ), Duke Energy et l’Overseas Private Investment Cooperation (OPIC) ont mis leurs ressources en commun pour soutenir des approches nouvelles et durables afin d'accélérer le développement et le déploiement des solutions énergétiques propres pour accroître la productivité agricole. La boîte à outils sur les SPIS a maintenant été adoptée pour un développement ultérieur par le programme successeur du PAEGC, Eau et Energie pour l'Alimentation (PEEPA) - Water and Energy for Food (WE4F). WE4F/PEEPA est une initiative commune de l'Union européenne, du Ministère fédéral allemand de la coopération économique et du développement (BMZ), du Ministère des affaires étrangères du royaume des Pays-Bas, de l’Agence suédoise de développement (Sida) et de l’Agence de développement des États-Unis (USAID). WE4F/PEEPA vise à accroître la production alimentaire tout au long de la chaîne de valeur grâce à une utilisation plus durable et plus efficace de l'eau et/ou de l'énergie. | F55: La publicación de la Caja de herramientas de sistemas de riego solar ha sido posible gracias al apoyo brindado por la iniciativa mundial Powering Agriculture: An Energy Grand Challenge for Development (PAEGC) (Energización Rural: Un gran desafío energético para el desarrollo). En 2012, la Agencia de los Estados Unidos para el Desarrollo Internacional (USAID), la Agencia Sueca de Cooperación Internacional para el Desarrollo (Sida), el Ministerio Federal de Cooperación Económica y Desarrollo (BMZ) de Alemania, la empresa de energía Duke Energy Corporation y la Corporación de Inversiones Privadas en el Extranjero (OPIC) juntaron recursos para crear la iniciativa PAEGC. El objetivo de PAEGC es fomentar nuevos enfoques sostenibles con el fin de acelerar el desarrollo y asegurar el establecimiento de energías limpias que incrementen la productividad y/o el valor de la agricultura en países en desarrollo y regiones emergentes sin acceso a fuentes de energía confiables, asequibles y limpias. | G55: يعتبر صندوق الأدوات الخاص بأنظمة الري التي تعمل بالطاقة الشمسية (SPIS) مشروعًا هاما للمبادرة العالمية "دعم الزراعة: تحدي الطاقة الكبير من أجل التنمية" Powering Agriculture: An Energy Grand Challenge for Development (PAEGC). في عام 2012 ، قامت الوكالة الأمريكية للتنمية الدولية (USAID) ، والوكالة السويدية للتعاون الإنمائي الدولي (ٍSida) ، والوزارة الفيدرالية الألمانية للتعاون الاقتصادي والتنمية (BMZ) ، وشركة Duke Energy ، ومؤسسة الاستثمار الخاص لما وراء البحار (OPIC) بجهود مشتركة لدعم الأساليب الجديدة والمستدامة لتسريع تطوير ونشر حلول الطاقة النظيفة لزيادة الإنتاجية الزراعية. تم اعتماد صندوق SPIS الآن لمزيد من التطوير من قبل البرنامج اللاحق لـ PAEGC "الماء والطاقة من اجل الغذاء" Water and Energy for Food (WE4F). الاخير هو مبادرة دولية مشتركة من الاتحاد الأوروبي (EU) ، والوزارة الاتحادية الألمانية للتعاون الاقتصادي والتنمية (BMZ) ، ووزارة الشؤون الخارجية لمملكة هولندا ، والسويد من خلال الوكالة السويدية للتعاون الإنمائي الدولي (Sida) ، والوكالة الأمريكية للتنمية الدولية (USAID). تهدف WE4F إلى زيادة إنتاج الغذاء على امتداد سلاسل القيمة الغذائية من خلال استخدام المياه و / أو الطاقة بطريقة أكثر استدامة وكفاءة.
C56: The designations employed and the presentation of material in this information product do not imply the expression of any opinion whatsoever on the part of Deutsche Gesellschaft für Internationale Zusammenarbeit (GIZ) GmbH, Food and Agriculture Organization of the United Nations (FAO) or any of the PAEGC Founding Partners concerning the legal or development status of any country, territory, city or area or of its authorities, or concerning the delimitation of its frontiers or boundaries. The mention of specific companies or products of manufacturers, whether or not these have been patented, does not imply that these have been endorsed or recommended by GIZ, FAO, or any of the PAEGC Founding Partners in preference to others of a similar nature that are not mentioned. The views expressed in this information product are those of the author and do not necessarily reflect the views or policies of GIZ, FAO, or any of the PAEGC Founding Partners. | D56: The designations employed and the presentation of material in this information product do not imply the expression of any opinion whatsoever on the part of Deutsche Gesellschaft für Internationale Zusammenarbeit (GIZ) GmbH, Food and Agriculture Organization of the United Nations (FAO) or any of the PAEGC Founding Partners concerning the legal or development status of any country, territory, city or area or of its authorities, or concerning the delimitation of its frontiers or boundaries. The mention of specific companies or products of manufacturers, whether or not these have been patented, does not imply that these have been endorsed or recommended by GIZ, FAO, or any of the PAEGC Founding Partners in preference to others of a similar nature that are not mentioned. The views expressed in this information product are those of the author and do not necessarily reflect the views or policies of GIZ, FAO, or any of the PAEGC Founding Partners. | E56: Les appellations employées dans ce produit d’information et la présentation des documents qui y figurent n’impliquent de la part de la Deutsche Gesellschaft für Internationale Zusammenarbeit (GIZ) GmbH, de l’Organisation des Nations unies pour l’alimentation et l’agriculture (FAO) ou de l’un des partenaires fondateurs de l’initiative PAEGC aucune prise de position quant au statut juridique ou au stade de développement des pays, territoires, villes ou zones ou de leurs autorités, ni quant au tracé de leurs frontières ou limites. La mention de sociétés déterminées ou de produits de fabricants, qu’ils soient ou non brevetés, n’entraîne de la part de la GIZ, de la FAO ou de l’un des partenaires fondateurs du PAEGC aucune approbation ou recommandation desdits produits de préférence à d’autres de nature analogue qui ne sont pas cités. Les opinions exprimées dans ce produit d’information sont celles des auteurs et ne reflètent pas nécessairement celles de la GIZ, de la FAO, ou de l’un des partenaires fondateurs du PAEGC. | F56: Las denominaciones empleadas y la presentación del material en este producto informativo no implican juicio alguno por parte de la Deutsche Gesellschaft für Internationale Zusammenarbeit (GIZ) GmbH, la Organización de las Naciones Unidas para la Alimentación y la Agricultura (FAO), o los socios fundadores de la iniciativa PAEGC, sobre la condición jurídica o el grado de desarrollo de ninguno de los países, territorios, ciudades o zonas citados o de sus autoridades, ni respecto de la delimitación de sus fronteras o límites. La mención de empresas o productos de fabricantes en particular, estén o no patentados, no implica que la GIZ, la FAO o alguno de los socios fundadores de la iniciativa PAEGC los aprueben o recomienden, dándoles preferencia sobre otros de naturaleza similar que no se mencionan. Las opiniones expresadas en este producto informativo son las de su(s) autor(es) o autora(s), y no reflejan necesariamente los puntos de vista o las políticas de la GIZ, la FAO o ninguno de los socios fundadores de la iniciativa PAEGC. | G56: التسميات المستخدمة وطريقة عرض المواد في هذا المنتج المعلوماتي لا تعبر عن أي رأي من جانب Deutsche Gesellschaft für Internationale Zusammenarbeit (GIZ) GmbH أو منظمة الأغذية والزراعة للأمم المتحدة (FAO) أو أي من الشركاء المؤسسين لـ PAEGC فيما يتعلق بالوضع القانوني أو التنموي لأي بلد أو إقليم أو مدينة أو منطقة أو لسلطاتها ، أو فيما يتعلق بترسيم حدودها أو نطاقاتها. إن ذكر شركات أو منتجات معينة من الشركات المصنعة ، سواء تم تسجيل براءات اختراع لها أم لا ، لا يعني أن هذه الشركات أو المنتجات قد تم اعتمادها أو التوصية بها من قبل GIZ أو منظمة الأغذية والزراعة أو أي من الشركاء المؤسسين لـ PAEGC او تفضيلها على الشركات أو المنتجات الاخرى غير مذكورة من نفس الطبيعة. الآراء الواردة في هذا المنتج المعلوماتي هي آراء المؤلف ولا تعكس بالضرورة آراء أو سياسات الوكالة الألمانية للتعاون الدولي أو منظمة الأغذية والزراعة أو أي من الشركاء المؤسسين لـ PAEGC.
C57: GIZ, FAO and the PAEGC Founding Partners encourage the use, reproduction and dissemination of material in this information product. Except where otherwise indicated, material may be copied, downloaded and printed for private study, research and teaching purposes, or for use in non-commercial products or services, provided that appropriate acknowledgement of GIZ and FAO as the source and copyright holder is given. | D57: GIZ, FAO and the PAEGC Founding Partners encourage the use, reproduction and dissemination of material in this information product. Except where otherwise indicated, material may be copied, downloaded and printed for private study, research and teaching purposes, or for use in non-commercial products or services, provided that appropriate acknowledgement of GIZ and FAO as the source and copyright holder is given. | E57: La GIZ, la FAO et les partenaires fondateurs du PAEGC encouragent l’utilisation, la reproduction et la diffusion des informations contenues dans ce document. Sauf indication contraire, ces dernières peuvent être copiées, téléchargées et imprimées à des fins privées d’étude, de recherche et d’enseignement, ou pour être utilisées dans des produits ou services non commerciaux, à condition que la GIZ et la FAO soient clairement indiquées en tant que sources des informations et détentrices du droit d’auteur. | F57: La GIZ, la FAO y los socios fundadores de la iniciativa PAEGC fomentan la utilización, la reproducción y la difusión del material presentado en este producto informativo. A menos que se indique lo contrario, el material puede ser copiado, descargado e impreso con fines de estudio privado, enseñanza e investigación científica, o para su utilización en productos o servicios no comerciales, siempre que se otorgue a la GIZ y la FAO el debido reconocimiento como fuentes y como titulares de los derechos de autor. | G57: تشجع الوكالة الألمانية للتعاون الدولي ومنظمة الأغذية والزراعة والشركاء المؤسسين لـ PAEGC على استخدام واستنساخ ونشر المواد في هذا المنتج المعلوماتي. يمكن نسخ المواد وتنزيلها وطباعتها للدراسة الخاصة ، ولأغراض البحث والتعليم ، أو لاستخدامها في المنتجات أو الخدمات غير التجارية ، ما لم يُذكر خلاف ذلك ، شريطة تقديم إقرار مناسب من الوكالة الألمانية للتعاون الدولي ومنظمة الأغذية والزراعة كمصدر وصاحب حقوق التأليف والنشر.
C58: =HLOOKUP($C$6,$D$6:$I$603,ROW()-ROW($B$5),FALSE) -> © GIZ and FAO, 2021 | D58: © GIZ and FAO, 2021 | E58: © GIZ et FAO, 2021 | F58: © GIZ & FAO, 2021 | G58: © GIZ و FAO, 2021
C59: 0
B60: =$C$9 -> 1 Geographic Data | C60: January | D60: January | E60: Janvier | F60: Enero | G60: يناير
C61: February | D61: February | E61: Février | F61: Febrero | G61: فبراير
C62: March | D62: March | E62: Mars | F62: Marzo | G62: مارس
C63: April | D63: April | E63: Avril | F63: Abril | G63: أبريل
C64: May | D64: May | E64: Mai | F64: Mayo | G64: مايو
C65: June | D65: June | E65: Juin | F65: Junio | G65: يونيو
C66: July | D66: July | E66: Juillet | F66: Julio | G66: يوليو
C67: August | D67: August | E67: Août | F67: Agosto | G67: أغسطس
C68: September | D68: September | E68: Septembre | F68: Septiembre | G68: سبتمبر
C69: October | D69: October | E69: Octobre | F69: Octubre | G69: أكتوبر
C70: November | D70: November | E70: Novembre | F70: Noviembre | G70: نوفمبر
C71: December | D71: December | E71: Décembre | F71: Diciembre | G71: ديسمبر
C72: SAFEGUARD WATER – Water Requirement Tool | D72: SAFEGUARD WATER – Water Requirement Tool | E72: PROTÉGER L’EAU – Outil d'évaluation des besoins en eau | F72: SALVAGUARDA EL AGUA – Herramienta de cálculo de las necesidades de agua | G72: حماية المياه: أداة احتياجات المياه
C73: Enter basic rainfall and climatic data for you location. | D73: Enter basic rainfall and climatic data for you location. | E73: Saisissez les données pluviométriques et climatiques de base de votre site. | F73: Introduzca los datos climáticos de su ubicación. | G73: أدخل البيانات الأساسية للأمطار والمناخ للموقع الخاص بك.
C74: 1 GENERAL GEOGRAPHIC INFORMATION | D74: 1 GENERAL GEOGRAPHIC INFORMATION | E74: 1 INFORMATIONS GÉOGRAPHIQUES D’ORDRE GÉNÉRAL | F74: 1 INFORMACIÓN GEOGRÁFICA GENERAL | G74: 1 معلومات جغرافية عامة
C75: =HLOOKUP($C$6,$D$6:$I$603,ROW()-ROW($B$5),FALSE) -> Country | D75: Country | E75: Pays | F75: País | G75: الدولة
C76: Farm code | D76: Farm code | E76: Code de l’exploitation | F76: Código de la granja | G76: رمز المزرعة
C77: Region | D77: Region | E77: Région | F77: Región | G77: المنطقة
C78: Date | D78: Date | E78: Date | F78: Fecha | G78: التاريخ
C79: Name of the farm | D79: Name of the farm | E79: Nom de l’exploitation | F79: Nombre de la granja | G79: اسم المزرعة
C80: Village | D80: Village | E80: Village | F80: Localidad | G80: القرية
C81: Division | D81: Division | E81: Division | F81: División | G81: القسم
C82: District | D82: District | E82: District | F82: Distrito | G82: الحي
C83: Select available climatic data: | D83: Select available climatic data: | E83: Sélectionnez les données climatiques disponibles : | F83: Seleccione los datos climáticos disponibles: | G83: حدد البيانات المناخية المتاحة:
C84: Option 1: | D84: Option 1: | E84: Option 1: | F84: Opción 1: | G84: الخيار 1:
C85: Only mean temperature | D85: Only mean temperature | E85: Seulement température moyenne | F85: Solo temperatura media | G85: فقط متوسط درجات الحرارة
C86: Option 2: | D86: Option 2: | E86: Option 2: | F86: Opcion 2: | G86: الخيار 2:
C87: Maximum and minimum temperature | D87: Maximum and minimum temperature | E87: Température maximale et minimale | F87: Temperatura máxima y mínima | G87: درجة الحرارة العظمى والصغرى
C88: Option 3: | D88: Option 3: | E88: Option 3: | F88: Opcion 3: | G88: الخيار 3:
C89: Maximum and minimum temperature; humidity; wind speed; and sun hours | D89: Maximum and minimum temperature; humidity; wind speed; and sun hours | E89: Température maximale et minimale ; humidité; vitesse du vent; et heures d'ensoleillement | F89: Temperatura máxima y mínima; humedad; velocidad del viento; y horas de insolación | G89: درجتي الحرارة العظمى والصغرى؛ الرطوبة؛ سرعة الرياح؛ وساعات سطوع الشمس
C90: Option 4: | D90: Option 4: | E90: Option 4: | F90: Opcion 4: | G90: الخيار 4:
C91: Reference evapotranspiration | D91: Reference evapotranspiration | E91: Évapotranspiration de référence | F91: Evapotranspiración de referencia | G91: البخر- نتح المرجعي
C92: Mean daily temperature [°C] | D92: Mean daily temperature [°C] | E92: Température quotidienne moyenne [°C] | F92: Temperatura media diaria [°C] | G92: المتوسط اليومي لدرجة الحرارة [درجة مئوية]
C93: Maximum daily temperature [°C] | D93: Maximum daily temperature [°C] | E93: Température maximale quotidienne [°C] | F93: Temperatura máxima diaria [°C] | G93: درجة الحرارة العظمى اليومية [درجة مئوية]
C94: Minimum daily temperature [°C] | D94: Minimum daily temperature [°C] | E94: Température minimale quotidienne [°C] | F94: Temperatura mínima diaria [°C] | G94: درجة الحرارة الصغرى اليومية [درجة مئوية]
C95: Relative humidity [%] | D95: Relative humidity [%] | E95: Humidité relative [%] | F95: Humedad relativa [%] | G95: الرطوبة النسبية [٪]
C96: Wind speed [m/s] | D96: Wind speed [m/s] | E96: Vitesse du vent [m/s] | F96: Velocidad del viento [m / s] | G96: سرعة الرياح [م / ث]
C97: Sunshine [hours] | D97: Sunshine [hours] | E97: Heures d'ensoleillement [heures] | F97: Horas de insolación [horas] | G97: سطوع الشمس [عدد الساعات]
C98: Reference evapotranspiration [mm/day] | D98: Reference evapotranspiration [mm/day] | E98: Evapotranspiration de référence [mm/jour] | F98: Evapotranspiración de referencia [mm/día] | G98: البخر- نتح المرجعي [ملم / اليوم]
C99: Rainfall [mm/month] | D99: Rainfall [mm/month] | E99: Pluviométrie [mm/mois] | F99: Lluvias [mm/mes] | G99: الأمطار [ملم / الشهر]
C100: Use the following links to obtain indicative monthly rainfall and climatic data for the site: | D100: Use the following links to obtain indicative monthly rainfall and climatic data for the site: | E100: Utilisez les liens suivants pour obtenir les données des précipitations mensuelles et les données climatiques indicatives du site : | F100: Usar los siguientes enlaces para obtener datos indicativos de precipitaciones mensuales y datos climáticos del lugar: | G100: استخدم الروابط التالية للحصول على بيانات إرشادية شهرية عن الأمطار و المناخ للموقع:
C101: Select geographic location: | D101: Select geographic location: | E101: Sélectionnez l'emplacement géographique: | F101: Seleccionar ubicación geográfica: | G101: حدد الموقع الجغرافي:
C102: Latitude: | D102: Latitude: | E102: Latitude: | F102: Latitud: | G102: خط العرض:
C103: Longitude: | D103: Longitude: | E103: Longitude: | F103: Longitud: | G103: خط الطول:
C104: decimal degree | D104: decimal degree | E104: degré décimal | F104: grado decimal | G104: درجة عشرية
C105: Hemisphere: | D105: Hemisphere: | E105: Hémisphère: | F105: Hemisferio: | G105: نصف الكرة الأرضية:
C106: North | D106: North | E106: Nord | F106: Norte | G106: الشمالي | H106: North | I106: North
C107: South | D107: South | E107: Sud | F107: Sur | G107: الجنوبي | H107: South | I107: South
C108: East | D108: East | E108: Est | F108: Este | G108: الشرقي | H108: East | I108: East
C109: West | D109: West | E109: Ouest | F109: Oeste | G109: الغربي | H109: West | I109: West
C110: Notes: | D110: Notes: | E110: Remarques: | F110: Notas: | G110: ملاحظات:
C111: Use the link to identify the exact coordinates of the site: | D111: Use the link to identify the exact coordinates of the site: | E111: Utilisez le lien pour identifier les coordonnées exactes du site : | F111: Usar el enlace para la identificación exacta de coordenadas: | G111: استخدم الرابط لتحديد الإحداثيات الدقيقة للموقع:
C112: Altitude: | D112: Altitude: | E112: Altitude: | F112: Altitud: | G112: ارتفاع:
C113: meter | D113: meter | E113: mètre | F113: metro | G113: متر
B115: =$C$10 -> 2 Crop Water Requirement | C115: SAFEGUARD WATER – Water Requirement Tool | D115: SAFEGUARD WATER – Water Requirement Tool | E115: PROTÉGER L’EAU – Outil d'évaluation des besoins en eau | F115: SALVAGUARDA EL AGUA – Herramienta de cálculo de las necesidades de agua | G115: حماية المياه: أداة احتياجات المياه
C116: Select crop intended for planting at your location, for automatic indication of water requirements | D116: Select crop intended for planting at your location, for automatic indication of water requirements | E116: Sélectionnez la culture qui va être plantée sur votre site afin d’obtenir une indication automatique des besoins en eau | F116: Seleccione el cultivo que desee plantar para el cálculo automático de necesidades de agua | G116: حدد المحاصيل المخصصة للزراعة في موقعك ، للإشارة التلقائية لمتطلبات المياه
C117: 2 CROP WATER REQUIREMENT | D117: 2 CROP WATER REQUIREMENT | E117: 2 BESOINS EN EAU DES CULTURES | F117: 2 NECESIDADES DE AGUA DE LOS CULTIVOS | G117: 2 الاحتياجات المائية للمحاصيل
C118: Farm code/name: | D118: Farm code/name: | E118: Code/Nom de l’exploitation: | F118: Código/nombre de la granja: | G118: رمز / اسم المزرعة:
C119: Conversion factor to 1 ha: | D119: Conversion factor to 1 ha: | E119: Facteur de conversion pour 1 ha : | F119: Factor de conversión a 1 ha: | G119: عامل التحويل إلى 1 هكتار:
C120: Area measurement unit: | D120: Area measurement unit: | E120: Unité de mesure de surface : | F120: Unidad de medida del área: | G120: وحدة قياس المساحة:
C121: ha | D121: ha | E121: ha | F121: ha | G121: هكتار
C122: acre | D122: acre | E122: acre | F122: acre | G122: أكر
C123: Sq. km | D123: Sq. km | E123: km carré | F123: km cuad. | G123: كيلومتر مربع
C124: Sq. m | D124: Sq. m | E124: m carré | F124: m cuad. | G124: متر مربع
C125: Sq. yard | D125: Sq. yard | E125: verge carrée | F125: yarda cuad. | G125: ياردة مربعة
C126: Sq. ft | D126: Sq. ft | E126: pied carré | F126: pie cuad. | G126: قدم مربع
C127: First year: Irrigation water need [m³/day] | D127: First year: Irrigation water need [m³/day] | E127: Première année : Besoin en eau d'irrigation [m³/jour] | F127: Primer año: necesidad de agua de riego [m³/día] | G127: السنة الأولى: الإحتياجات المائية للري [م3 / اليوم]
C128: Second year: Irrigation water need [m³/day] | D128: Second year: Irrigation water need [m³/day] | E128: Deuxième année : Besoin en eau d'irrigation [m³/jour] | F128: Segundo año: necesidad de agua de riego [m³/día] | G128: السنة الثانية: الإحتياجات المائية للري [م3 / اليوم]
C129: °C | D129: °C | E129: °C | F129: °C | G129: درجة مئوية
C130: mm/month | D130: mm/month | E130: mm/mois | F130: mm/mes | G130: مم / الشهر
C131: m³/day | D131: m³/day | E131: m³/jour | F131: m³/día | G131: م³ / اليوم
C132: Above average temperature | D132: Above average temperature | E132: Température au dessus de la moyenne | F132: Temperatura por encima del promedio | G132: درجة الحرارة فوق المتوسط
C133: Above average rainfall | D133: Above average rainfall | E133: Pluviométrie supérieure à la moyenne | F133: Lluvia por encima del promedio | G133: تساقط الأمطار فوق المتوسط
C134: Total farm area: | D134: Total farm area: | E134: Superficie totale de la ferme: | F134: Área total de la finca: | G134: المساحة الكلية للمزرعة:
C135: Crop to be irrigated | D135: Crop to be irrigated | E135: Culture à irriguer | F135: Cultivo a regar | G135: المحاصيل المراد ريها
C136: Area | D136: Area | E136: Superficie | F136: Área | G136: المساحة
C137: Season | D137: Season | E137: Saison | F137: Temporada | G137: موسم الري
C138: Planting Date | D138: Planting Date | E138: Date de plantation | F138: Fecha de siembra | G138: تاريخ الزراعة
C139: =HLOOKUP($C$6,$D$6:$I$603,ROW()-ROW($B$5),FALSE) -> Irrigation method | D139: Irrigation method | E139: Méthode d'irrigation | F139: Método de riego | G139: طريقة الري
C140: Irrigation Efficiency | D140: Irrigation Efficiency | E140: Efficacité de l'irrigation | F140: Eficiencia de riego | G140: كفاءة الري
C141: Cropping density | D141: Cropping density | E141: Densité de culture | F141: Densidad de cultivo | G141: كثافة المحاصيل
C142: Season 1 | D142: Season 1 | E142: Saison 1 | F142: Temporada 1 | G142: موسم الري 1
C143: Season 2 | D143: Season 2 | E143: Saison 2 | F143: Temporada 2 | G143: موسم الري 2
C144: Surface: Graded furrow | D144: Surface: Graded furrow | E144: Surface: Irrigation à la raie (inclinée) | F144: Superficie: Riego por surcos (inclinado) | G144: الري السطحي: الري على الخطوط
C145: Surface: with tailwater reuse | D145: Surface: with tailwater reuse | E145: Surface: avec réutilisation des eaux en aval | F145: Superficie: con reutilización de agua de drenaje | G145: الري السطحي: مع اعادة استخدام مياه الصرف الزراعي
C146: Surface: Graded border/basins | D146: Surface: Graded border/basins | E146: Surface: Bassins/planches (inclinées) | F146: Superficie: Riego por fajas/tablares (inclinado) | G146: الري السطحي: الري بالاحواض و الري الشريطي
C147: Sprinkler: Periodic move | D147: Sprinkler: Periodic move | E147: Aspersion: Déplacement périodique | F147: Aspersión: Desplazamiento periódico | G147: الري بالرش: النقالي
C148: Sprinkler: Side roll | D148: Sprinkler: Side roll | E148: Aspersion: Rouleau latéral | F148: Aspersión: Side Roll | G148: الري بالرش: المتدحرج
C149: Sprinkler: Moving big gun | D149: Sprinkler: Moving big gun | E149: Aspersion: Canon déplaçable | F149: Aspersión: Cañón movible | G149: الري بالرش: الري المدفعي
C150: Center pivot: Impact heads with end gun | D150: Center pivot: Impact heads with end gun | E150: Pivot central: Asperseurs à batteur avec canon d'extrémité | F150: Pivote central: Aspersores de impacto con cañón final | G150: الري المحوري: رشاش ارتدادي مع رشاش مدفعي على الطرف
C151: Center pivot: Spray heads without end gun | D151: Center pivot: Spray heads without end gun | E151: Pivot central: Arroseur sans canon d'extrémité | F151: Pivote central: Rociador sin cañón final | G151: الري المحوري: رشاش بدون رشاش مدفعي على الطرف
C152: Center pivot: LEPA without end gun | D152: Center pivot: LEPA without end gun | E152: Pivot central : Système LEPA sans canon d'extrémité | F152: Pivote central: LEPA sin cañón final | G152: الري المحوري: تدفق المياه منخفضة الطاقة (LEPA) بدون رشاش مدفعي على الطرف
C153: Lateral move: Spray heads with hose feed | D153: Lateral move: Spray heads with hose feed | E153: Mouvement latéral: Arroseur avec alimentation par tuyau | F153: Movimiento lateral: Rociador con alimentación por manguera | G153: الري الجانبي: بخاخ - مغدى من خرطوم
C154: Lateral move: Spray heads with canal feed | D154: Lateral move: Spray heads with canal feed | E154: Mouvement latéral: Arroseur avec alimentation par canal | F154: Movimiento lateral: Rociador con alimentación del canal | G154: الري الجانبي: بخاخ - مغدى من قناة
C155: Microirrigation: Drip irrigation | D155: Microirrigation: Drip irrigation | E155: Microirrigation: Goutte à goutte | F155: microirrigación: Goteo | G155: الري الدقيق: الري بالتنقيط السطحي
C156: Microirrigation: Subsurface drip | D156: Microirrigation: Subsurface drip | E156: Microirrigation: Goutte à goutte enterrée | F156: microirrigación: Sub-Irrigación | G156: الري الدقيق: الري بالتنقيط تحت السطحي
C157: Microirrigation: Microspray | D157: Microirrigation: Microspray | E157: Microirrigation: Micro-asperseur | F157: microirrigación: Micro-aspersión | G157: الري الدقيق: رشاشات متناهية الصغر
C158: Garden hose | D158: Garden hose | E158: Tuyau d'arrosage | F158: Manguera de riego | G158: الري بالخرطوم
C159: Normal spacing | D159: Normal spacing | E159: Espacement normal | F159: Espaciado normal | G159: تباعد طبيعي
C160: Double spacing | D160: Double spacing | E160: Espacement double | F160: Espaciado doble | G160: تباعد مزدوج
C161: Triple spacing | D161: Triple spacing | E161: Espacement triple | F161: Espaciado Triple | G161: تباعد ثلاثي
C162: Maximum daily irrigation water need - year 1: | D162: Maximum daily irrigation water need - year 1: | E162: Besoin quotidien maximal en eau d'irrigation - année 1 : | F162: Cantidad diaria máxima de agua necesaria para riego - año 1: | G162: الحد الأقصى لمتطلبات مياه الري اليومية - السنة الأولى:
C163: Maximum daily irrigation water need - year 2: | D163: Maximum daily irrigation water need - year 2: | E163: Besoin quotidien maximal en eau d'irrigation - année 2 : | F163: Cantidad diaria máxima de agua necesaria para riego - año 2: | G163: الحد الأقصى لمتطلبات مياه الري اليومية - السنة الثانية:
C164: m³ in the month of | D164: m³ in the month of | E164: m³ au mois de | F164: m³ en el mes de | G164: م3 في شهر
C165: in | D165: in | E165: au | F165: en | G165: في
C166: Pump utilization rate: | D166: Pump utilization rate: | E166: Taux d'utilisation de la pompe : | F166: Tasa utilización de la bomba: | G166: معدل استخدام المضخة:
C167: Yearly water need in m³ - year 1: | D167: Yearly water need in m³ - year 1: | E167: Besoin en eau annuel en m³ - année 1 : | F167: Necesidad anual de agua en m³ - año 1: | G167: الاحتياجات المائية السنوية بـ م3 - السنة الأولى:
C168: Yearly water need in m³ - year 2: | D168: Yearly water need in m³ - year 2: | E168: Besoin en eau annuel en m³ - année 2 : | F168: Necesidad anual de agua en m³ - año 2: | G168: الاحتياجات المائية السنوية بـ م3 - السنة الثانية:
C169: Crop Water Requirement - CWR - and Rainfall over 2 years | D169: Crop Water Requirement - CWR - and Rainfall over 2 years | E169: Besoins en eau des cultures - BEC - et la pluviométrie sur 2 ans | F169: Necesidades de Agua de los Cultivos - NAC - y lluvia durante 2 años | G169: الاحتياجات المائية للمحاصيل - إ.م.م - والأمطار لمدة 2 سنة
C170: Effective rainfall [mm/month] | D170: Effective rainfall [mm/month] | E170: Pluie efficace [mm/mois] | F170: Lluvia efectiva [mm/mes] | G170: الأمطار الفعلية [ملم / شهر]
C171: CWR - | D171: CWR - | E171: BEC - | F171: NAC - | G171: إ.م.م -
C172: [mm/month] | D172: [mm/month] | E172: [mm/mois] | F172: [mm/mes] | G172: [ملم / شهر]
C173: Total irrigation water need [m3/day] | D173: Total irrigation water need [m3/day] | E173: Besoin total en eau d'irrigation [m3/jour] | F173: Necesidad total de agua de riego [m3/día] | G173: إجمالي احتياجات مياه الري [م3 / يوم]
C174: Effective Rainfall & ETc [mm/month] | D174: Effective Rainfall & ETc [mm/month] | E174: Pluie efficace & ETc [mm/mois] | F174: Lluvia efectiva & ETc [mm/mes] | G174: الأمطار الفعلية و الاحتياجات المائية للمحاصيل [ملم / شهر]
B176: =$C$11 -> 3 Livestock Water Requirement | C176: SAFEGUARD WATER – Water Requirement Tool | D176: SAFEGUARD WATER – Water Requirement Tool | E176: PROTÉGER L’EAU – Outil d'évaluation des besoins en eau | F176: SALVAGUARDA EL AGUA – Herramienta de cálculo de las necesidades de agua | G176: حماية المياه: أداة احتياجات المياه
C177: Enter the number of livestock head per month at your location, for automatic indication of water requirements. | D177: Enter the number of livestock head per month at your location, for automatic indication of water requirements. | E177: Saisissez le nombre d’animaux d’élevage par mois sur votre site pour obtenir une indication automatique des besoins en eau. | F177: Introduzca el número de cabezas de ganado por mes para el cálculo automático de las necesidades de agua | G177: أدخل عدد رؤوس الماشية المتوفرة شهريًا في موقعك ، للإشارة التلقائية لمتطلبات المياه.
C178: 3 LIVESTOCK WATER REQUIREMENT | D178: 3 LIVESTOCK WATER REQUIREMENT | E178: 3 BESOINS EN EAU DES ANIMAUX D’ÉLEVAGE | F178: 3 NECESIDADES DE AGUA DEL GANADO | G178: 3 متطلبات المياه للماشية
C179: Farm code/name: | D179: Farm code/name: | E179: Code/Nom de l’exploitation: | F179: Código/nombre de la granja: | G179: رمز / اسم المزرعة:
C180: Total water need per day [l/day] | D180: Total water need per day [l/day] | E180: Besoin total en eau par jour [l/jour] | F180: Necesidad agua total por día [l/día] | G180: إجمالي الاحتياج اليومي من المياه [لتر / يوم]
C181: Total water need per day [m³/day] | D181: Total water need per day [m³/day] | E181: Besoin total en eau par jour [m³/jour] | F181: Necesidad agua total por día [m³/día] | G181: إجمالي الاحتياج اليومي من المياه [م3 / يوم]
C182: Livestock type: | D182: Livestock type: | E182: Type de bétail: | F182: Tipo de ganado: | G182: نوع الماشية:
C183: Enter new livestock data here: | D183: Enter new livestock data here: | E183: Saisissez les données sur les nouveaux animaux d’élevage ici : | F183: Introducir nuevos datos de ganado aquí: | G183: أدخل بيانات عن الثروة الحيوانية الجديدة هنا:
C184: Long term average demand (L/day) | D184: Long term average demand (L/day) | E184: Demande moyenne à long terme (L/jour) | F184: Demanda promedio a largo plazo (l/día) | G184: متوسط ​​الطلب طويل الأجل (لتر / يوم)
C185: Maximum summer demand (L/day) | D185: Maximum summer demand (L/day) | E185: Demande estivale maximale (L/jour) | F185: Demanda estival máxima (l/día) | G185: أقصى طلب في الصيف (لتر / يوم)
C186: Alpaca (lactating) | D186: Alpaca (lactating) | E186: Alpaga (en lactation) | F186: Alpacas (lactantes) | G186: الألبكة (مرضع)
C187: Alpaca (dry, adult) | D187: Alpaca (dry, adult) | E187: Alpaga (tarie, adulte) | F187: Alpacas (no lactantes, adultos) | G187: الألبكة (غير مرضع ، بالغ)
C188: Alpaca (<12 months) | D188: Alpaca (<12 months) | E188: Alpaga (<12 mois) | F188: Alpacas (<12 meses) | G188: الألبكة (أقل من 12 شهرًا)
C189: Camel (average size) | D189: Camel (average size) | E189: Chameau (taille moyenne) | F189: Camello (tamaño medio) | G189: الجمل (متوسط الحجم)
C190: Cattle (lactating) | D190: Cattle (lactating) | E190: Bovin (en lactation) | F190: Bovinos (lactantes) | G190: الابقار (مرضع)
C191: Cattle (adult, dry) | D191: Cattle (adult, dry) | E191: Bovin (adulte, tari) | F191: Bovino (adultos, no lactantes) | G191: الابقار (غير مرضع ، بالغ)
C192: Cattle (weaner) | D192: Cattle (weaner) | E192: Bovin (sevré) | F192: Bovinos (destetados) | G192: الابقار (مفطوم)
C193: Chicken (1-4 weeks) | D193: Chicken (1-4 weeks) | E193: Poulet (1-4 semaines) | F193: Pollo (1-4 semanas) | G193: دجاج (1-4 أسابيع)
C194: Chicken (5-8 weeks) | D194: Chicken (5-8 weeks) | E194: Poulet (5-8 semaines) | F194: Pollo (5-8 semanas) | G194: دجاج (5-8 أسابيع)
C195: Goats (lactating) | D195: Goats (lactating) | E195: Caprin (en lactation) | F195: Cabras (lactantes) | G195: الماعز (مرضع)
C196: Goats (adult, dry) | D196: Goats (adult, dry) | E196: Caprin (adultes, tari) | F196: Cabras (adultas, no lactantes) | G196: الماعز (بالغ ، غير مرضع)
C197: Goats (weaner) | D197: Goats (weaner) | E197: Caprin (sevré) | F197: Cabras (destetadas) | G197: الماعز (مفطوم)
C198: Horses (lactating) | D198: Horses (lactating) | E198: Équin (en lactation) | F198: Caballos (lactantes) | G198: الخيول (مرضع)
C199: Horses (adult, dry) | D199: Horses (adult, dry) | E199: Équin (adulte, tari) | F199: Caballos (adultos, no lactantes) | G199: الخيول (غير مرضع ، بالغ)
C200: Horses (<12 months) | D200: Horses (<12 months) | E200: Équin (<12 mois) | F200: Caballos (<12 meses) | G200: الخيول (أقل من 12 شهرًا)
C201: Pig (lactating) | D201: Pig (lactating) | E201: Porc (en lactation) | F201: Cerdos (lactantes) | G201: خنزير (مرضع)
C202: Pig (adult, dry) | D202: Pig (adult, dry) | E202: Porc (adulte, tari) | F202: Cerdos (adultos, no lactantes) | G202: خنزير (غير مرضع ، بالغ)
C203: =HLOOKUP($C$6,$D$6:$I$603,ROW()-ROW($B$5),FALSE) -> Pig (Weaner) | D203: Pig (Weaner) | E203: Porc (Sevré) | F203: Cerdos (destetados) | G203: خنزير (مفطوم)
C204: Sheep (lactating) | D204: Sheep (lactating) | E204: Ovin (en lactation) | F204: Ovejas (lactantes) | G204: الأغنام (مرضع)
C205: Sheep (adult, dry) | D205: Sheep (adult, dry) | E205: Ovin (adulte, tari) | F205: Ovejas (adultos, no lactantes) | G205: الأغنام (غير مرضع ، بالغ)
C206: Sheep (weaners) | D206: Sheep (weaners) | E206: Ovin (sevré) | F206: Ovejas (destetadas) | G206: الأغنام (مفطوم)
C207: Other | D207: Other | E207: Autre | F207: Otro | G207: آخر
... 391 more rows

Sheet Crop Calculation Sheet (hidden)
B2: Do not modify | G2: Earliest planting date: | H2: ='Data Validation Sheet'!J18 -> 2021-05-01 | J2: Last simulated date: | L2: =DATE(YEAR($H$2)+2,MONTH($H$2),0) -> 2023-04-30
B3: Date format
B4: Year | D4: yyyy
B5: Month | D5: mmmm | G5: Month after Planthing | H5: 1 | I5: 2 | J5: 3 | K5: 4 | L5: 5 | M5: 6 | N5: 7 | O5: 8 | P5: 9 | Q5: 10 | R5: 11 | S5: 12 | T5: 13 | U5: 14 | V5: 15 | W5: 16 | X5: 17 | Y5: 18 | Z5: 19 | AA5: 20 | AB5: 21 | AC5: 22 | AD5: 23 | AE5: 24
B6: Selected language | D6: ='READ ME'!$G$10 -> English | G6: Year | H6: =TEXT(DATE(YEAR($H$2),MONTH($H$2),1),$D$7&$D$4) -> 2021 | I6: =TEXT((DATE(YEAR($H$2),MONTH($H$2)+I5-1,1)),$D$7&$D$4) -> 2021 | J6: 2021 | K6: 2021 | L6: 2021 | M6: 2021 | N6: 2021 | O6: 2021 | P6: 2022 | Q6: 2022 | R6: 2022 | S6: 2022 | T6: 2022 | U6: 2022 | V6: 2022 | W6: 2022 | X6: 2022 | Y6: 2022 | Z6: 2022 | AA6: 2022 | AB6: 2023 | AC6: 2023 | AD6: 2023 | AE6: 2023
B7: Selected code | D7: =VLOOKUP($D$6,$B$9:$C$14,2,FALSE) -> [$-409] | G7: Month of the year | H7: =TEXT(DATE(YEAR($H$2),MONTH($H$2),1),$D$7&$D$5) -> May | I7: =TEXT(DATE(YEAR($H$2),MONTH($H$2)+I5-1,1),$D$7&$D$5) -> June | J7: July | K7: August | L7: September | M7: October | N7: November | O7: December | P7: January | Q7: February | R7: March | S7: April | T7: May | U7: June | V7: July | W7: August | X7: September | Y7: October | Z7: November | AA7: December | AB7: January | AC7: February | AD7: March | AE7: April
B8: Language | C8: Code | G8: 1st day of the month | H8: =(DATE(YEAR($H$2),MONTH($H$2)+H5-1,1)) -> 2021-05-01 | I8: =(DATE(YEAR($H$2),MONTH($H$2)+I5-1,1)) -> 2021-06-01 | J8: =(DATE(YEAR($H$2),MONTH($H$2)+J5-1,1)) -> 2021-07-01 | K8: 2021-08-01 | L8: 2021-09-01 | M8: 2021-10-01 | N8: 2021-11-01 | O8: 2021-12-01 | P8: 2022-01-01 | Q8: 2022-02-01 | R8: 2022-03-01 | S8: 2022-04-01 | T8: 2022-05-01 | U8: 2022-06-01 | V8: 2022-07-01 | W8: 2022-08-01 | X8: 2022-09-01 | Y8: 2022-10-01 | Z8: 2022-11-01 | AA8: 2022-12-01 | AB8: 2023-01-01 | AC8: 2023-02-01 | AD8: 2023-03-01 | AE8: 2023-04-01
B9: =Translate!D6 -> English | C9: =Translate!D7 -> [$-409] | G9: Days per month | H9: =DAY(DATE(YEAR(H8),MONTH(H8)+1,1)-1) -> 31 | I9: =DAY(DATE(YEAR(I8),MONTH(I8)+1,1)-1) -> 30 | J9: =DAY(DATE(YEAR(J8),MONTH(J8)+1,1)-1) -> 31 | K9: 31 | L9: 30 | M9: 31 | N9: 30 | O9: 31 | P9: 31 | Q9: 28 | R9: 31 | S9: 30 | T9: 31 | U9: =DAY(DATE(YEAR(U8),MONTH(U8)+1,1)-1) -> 30 | V9: 31 | W9: 31 | X9: 30 | Y9: 31 | Z9: 30 | AA9: 31 | AB9: 31 | AC9: 28 | AD9: 31 | AE9: 30
B10: =Translate!E6 -> Français | C10: =Translate!E7 -> [$-40C] | G10: ='General Calculation'!$C$115 -> Reference Evapotranspiration | H10: =VLOOKUP($G$10,'General Calculation'!$C$115:$O$115,MATCH('Crop Calculation Sheet'!H7,'General Calculation'!$C$114:$O$114,0)) -> 5.31832 | I10: =VLOOKUP($G$10,'General Calculation'!$C$115:$O$115,MATCH('Crop Calculation Sheet'!I7,'General Calculation'!$C$114:$O$114,0)) -> 5.2668 | J10: =VLOOKUP($G$10,'General Calculation'!$C$115:$O$115,MATCH('Crop Calculation Sheet'!J7,'General Calculation'!$C$114:$O$114,0)) -> 5.2024 | K10: =VLOOKUP($G$10,'General Calculation'!$C$115:$O$115,MATCH('Crop Calculation Sheet'!K7,'General Calculation'!$C$114:$O$114,0)) -> 5.2024 | L10: =VLOOKUP($G$10,'General Calculation'!$C$115:$O$115,MATCH('Crop Calculation Sheet'!L7,'General Calculation'!$C$114:$O$114,0)) -> 5.27968 | M10: =VLOOKUP($G$10,'General Calculation'!$C$115:$O$115,MATCH('Crop Calculation Sheet'!M7,'General Calculation'!$C$114:$O$114,0)) -> 5.12838 | N10: =VLOOKUP($G$10,'General Calculation'!$C$115:$O$115,MATCH('Crop Calculation Sheet'!N7,'General Calculation'!$C$114:$O$114,0)) -> 5.09112 | O10: =VLOOKUP($G$10,'General Calculation'!$C$115:$O$115,MATCH('Crop Calculation Sheet'!O7,'General Calculation'!$C$114:$O$114,0)) -> 5.1408 | P10: =VLOOKUP($G$10,'General Calculation'!$C$115:$O$115,MATCH('Crop Calculation Sheet'!P7,'General Calculation'!$C$114:$O$114,0)) -> 5.3271 | Q10: =VLOOKUP($G$10,'General Calculation'!$C$115:$O$115,MATCH('Crop Calculation Sheet'!Q7,'General Calculation'!$C$114:$O$114,0)) -> 5.265 | R10: =VLOOKUP($G$10,'General Calculation'!$C$115:$O$115,MATCH('Crop Calculation Sheet'!R7,'General Calculation'!$C$114:$O$114,0)) -> 5.21532 | S10: =VLOOKUP($G$10,'General Calculation'!$C$115:$O$115,MATCH('Crop Calculation Sheet'!S7,'General Calculation'!$C$114:$O$114,0)) -> 5.30544 | T10: =VLOOKUP($G$10,'General Calculation'!$C$115:$O$115,MATCH('Crop Calculation Sheet'!T7,'General Calculation'!$C$114:$O$114,0)) -> 5.31832 | U10: =VLOOKUP($G$10,'General Calculation'!$C$115:$O$115,MATCH('Crop Calculation Sheet'!U7,'General Calculation'!$C$114:$O$114,0)) -> 5.2668 | V10: =VLOOKUP($G$10,'General Calculation'!$C$115:$O$115,MATCH('Crop Calculation Sheet'!V7,'General Calculation'!$C$114:$O$114,0)) -> 5.2024 | W10: =VLOOKUP($G$10,'General Calculation'!$C$115:$O$115,MATCH('Crop Calculation Sheet'!W7,'General Calculation'!$C$114:$O$114,0)) -> 5.2024 | X10: =VLOOKUP($G$10,'General Calculation'!$C$115:$O$115,MATCH('Crop Calculation Sheet'!X7,'General Calculation'!$C$114:$O$114,0)) -> 5.27968 | Y10: =VLOOKUP($G$10,'General Calculation'!$C$115:$O$115,MATCH('Crop Calculation Sheet'!Y7,'General Calculation'!$C$114:$O$114,0)) -> 5.12838 | Z10: =VLOOKUP($G$10,'General Calculation'!$C$115:$O$115,MATCH('Crop Calculation Sheet'!Z7,'General Calculation'!$C$114:$O$114,0)) -> 5.09112 | AA10: =VLOOKUP($G$10,'General Calculation'!$C$115:$O$115,MATCH('Crop Calculation Sheet'!AA7,'General Calculation'!$C$114:$O$114,0)) -> 5.1408 | AB10: =VLOOKUP($G$10,'General Calculation'!$C$115:$O$115,MATCH('Crop Calculation Sheet'!AB7,'General Calculation'!$C$114:$O$114,0)) -> 5.3271 | AC10: =VLOOKUP($G$10,'General Calculation'!$C$115:$O$115,MATCH('Crop Calculation Sheet'!AC7,'General Calculation'!$C$114:$O$114,0)) -> 5.265 | AD10: =VLOOKUP($G$10,'General Calculation'!$C$115:$O$115,MATCH('Crop Calculation Sheet'!AD7,'General Calculation'!$C$114:$O$114,0)) -> 5.21532 | AE10: =VLOOKUP($G$10,'General Calculation'!$C$115:$O$115,MATCH('Crop Calculation Sheet'!AE7,'General Calculation'!$C$114:$O$114,0)) -> 5.30544
B11: =Translate!F6 -> Español | C11: =Translate!F7 -> [$-C0A]
B12: =Translate!G6 -> العربية | C12: =Translate!G7 -> [$-401] | E12: Crop 1 | F12: =IFERROR(LEFT($F$31,FIND("(",$F$31)-1),$F$31) -> Carrots | G12: Crop Water Requirement | H12: =SUMIFS($J$41:$J$771,$B$41:$B$771,H$6,$C$41:$C$771,H$7) -> 119.5026504 | I12: 155.396934 | J12: 167.309184 | K12: 40.266576 | L12: 0 | M12: 0 | N12: 0 | O12: 0 | P12: 0 | Q12: 0 | R12: 0 | S12: 0 | T12: 0 | U12: 0 | V12: 0 | W12: 0 | X12: 0 | Y12: 0 | Z12: 0 | AA12: 0 | AB12: 0 | AC12: 0 | AD12: 0 | AE12: 0
B13: =Translate!H6 -> 0 | C13: =Translate!H7 -> 0 | G13: Number of day/month | H13: =COUNTIFS($J$41:$J$771,">0",$B$41:$B$771,H$6,$C$41:$C$771,H$7) -> 31 | I13: 30 | J13: 31 | K13: 8 | L13: 0 | M13: 0 | N13: 0 | O13: 0 | P13: 0 | Q13: 0 | R13: 0 | S13: 0 | T13: 0 | U13: 0 | V13: 0 | W13: 0 | X13: 0 | Y13: 0 | Z13: 0 | AA13: 0 | AB13: 0 | AC13: 0 | AD13: 0 | AE13: 0
B14: =Translate!I6 -> 0 | C14: =Translate!I7 -> 0
E15: Crop 2 | F15: =IFERROR(LEFT($M$31,FIND("(",$M$31)-1),$M$31) -> Carrots | G15: Crop Water Requirement | H15: =SUMIFS($Q$41:$Q$771,$B$41:$B$771,H$6,$C$41:$C$771,H$7) -> 0 | I15: 0 | J15: 0 | K15: 0 | L15: 0 | M15: 0 | N15: 0 | O15: 0 | P15: =SUMIFS($Q$41:$Q$771,$B$41:$B$771,P$6,$C$41:$C$771,P$7) -> 0 | Q15: 0 | R15: 0 | S15: 0 | T15: 0 | U15: 0 | V15: 116.897928 | W15: 158.959332 | X15: 164.2508448 | Y15: 39.6936612 | Z15: 0 | AA15: 0 | AB15: 0 | AC15: 0 | AD15: 0 | AE15: 0
G16: Number of day/month | H16: =COUNTIFS($Q$41:$Q$771,">0",$B$41:$B$771,H$6,$C$41:$C$771,H$7) -> 0 | I16: 0 | J16: 0 | K16: 0 | L16: 0 | M16: 0 | N16: 0 | O16: 0 | P16: 0 | Q16: 0 | R16: 0 | S16: 0 | T16: 0 | U16: 0 | V16: 31 | W16: 31 | X16: 30 | Y16: 8 | Z16: 0 | AA16: 0 | AB16: 0 | AC16: 0 | AD16: 0 | AE16: 0
E18: Crop 3 | F18: =IFERROR(LEFT($T$31,FIND("(",$T$31)-1),$T$31) ->  | G18: Crop Water Requirement | H18: =SUMIFS($X$41:$X$771,$B$41:$B$771,H$6,$C$41:$C$771,H$7) -> 0 | I18: =SUMIFS($X$41:$X$771,$B$41:$B$771,I$6,$C$41:$C$771,I$7) -> 0 | J18: 0 | K18: 0 | L18: 0 | M18: 0 | N18: 0 | O18: 0 | P18: 0 | Q18: 0 | R18: 0 | S18: 0 | T18: 0 | U18: 0 | V18: 0 | W18: 0 | X18: 0 | Y18: 0 | Z18: 0 | AA18: 0 | AB18: 0 | AC18: 0 | AD18: 0 | AE18: 0
G19: Number of day/month | H19: =COUNTIFS($X$41:$X$771,">0",$B$41:$B$771,H$6,$C$41:$C$771,H$7) -> 0 | I19: =COUNTIFS($X$41:$X$771,">0",$B$41:$B$771,I$6,$C$41:$C$771,I$7) -> 0 | J19: 0 | K19: 0 | L19: 0 | M19: 0 | N19: 0 | O19: 0 | P19: 0 | Q19: 0 | R19: 0 | S19: 0 | T19: 0 | U19: 0 | V19: 0 | W19: 0 | X19: 0 | Y19: 0 | Z19: 0 | AA19: 0 | AB19: 0 | AC19: 0 | AD19: 0 | AE19: 0
E21: Crop 4 | F21: =IFERROR(LEFT($AA$31,FIND("(",$AA$31)-1),$AA$31) ->  | G21: Crop Water Requirement | H21: =SUMIFS($AE$41:$AE$771,$B$41:$B$771,H$6,$C$41:$C$771,H$7) -> 0 | I21: 0 | J21: 0 | K21: 0 | L21: 0 | M21: 0 | N21: 0 | O21: 0 | P21: 0 | Q21: 0 | R21: 0 | S21: 0 | T21: 0 | U21: 0 | V21: 0 | W21: 0 | X21: 0 | Y21: 0 | Z21: 0 | AA21: 0 | AB21: 0 | AC21: 0 | AD21: 0 | AE21: 0
G22: Number of day/month | H22: =COUNTIFS($AE$41:$AE$771,">0",$B$41:$B$771,H$6,$C$41:$C$771,H$7) -> 0 | I22: 0 | J22: 0 | K22: 0 | L22: 0 | M22: 0 | N22: 0 | O22: 0 | P22: 0 | Q22: 0 | R22: 0 | S22: 0 | T22: 0 | U22: 0 | V22: 0 | W22: 0 | X22: 0 | Y22: 0 | Z22: 0 | AA22: 0 | AB22: 0 | AC22: 0 | AD22: 0 | AE22: 0
B23: Month | C23: ETo
B24: =TRANSPOSE('General Calculation'!$D$114:$O$114) -> January | C24: =TRANSPOSE('General Calculation'!$D$115:$O$115) -> 5.3271 | E24: Crop 5 | F24: =IFERROR(LEFT($AH$31,FIND("(",$AH$31)-1),$AH$31) ->  | G24: Crop Water Requirement | H24: =SUMIFS($AL$41:$AL$771,$B$41:$B$771,H$6,$C$41:$C$771,H$7) -> 0 | I24: =SUMIFS($AL$41:$AL$771,$B$41:$B$771,I$6,$C$41:$C$771,I$7) -> 0 | J24: 0 | K24: 0 | L24: 0 | M24: 0 | N24: 0 | O24: 0 | P24: 0 | Q24: 0 | R24: 0 | S24: 0 | T24: 0 | U24: 0 | V24: 0 | W24: 0 | X24: 0 | Y24: 0 | Z24: 0 | AA24: 0 | AB24: 0 | AC24: 0 | AD24: 0 | AE24: 0
B25: February | C25: 5.265 | G25: Number of day/month | H25: =COUNTIFS($AL$41:$AL$771,">0",$B$41:$B$771,H$6,$C$41:$C$771,H$7) -> 0 | I25: =COUNTIFS($AL$41:$AL$771,">0",$B$41:$B$771,I$6,$C$41:$C$771,I$7) -> 0 | J25: 0 | K25: 0 | L25: 0 | M25: 0 | N25: 0 | O25: 0 | P25: 0 | Q25: 0 | R25: 0 | S25: 0 | T25: 0 | U25: 0 | V25: 0 | W25: 0 | X25: 0 | Y25: 0 | Z25: 0 | AA25: 0 | AB25: 0 | AC25: 0 | AD25: 0 | AE25: 0
B26: March | C26: 5.21532
B27: April | C27: 5.30544
B28: May | C28: 5.31832
B29: June | C29: 5.2668
B30: July | C30: 5.2024
B31: August | C31: 5.2024 | E31: Crop 1 | F31: =IF(OR('2 Crop Water Requirement'!$B$22="",'2 Crop Water Requirement'!$B$22="none"),"",'2 Crop Water Requirement'!$B$22) -> Carrots (Oct/Jan - Arid climate ) | J31: =IFERROR(VLOOKUP(F31,'Crop Information'!$B$7:$C$216,2,FALSE),"") -> 32 | L31: Crop 2 | M31: =IF(OR('2 Crop Water Requirement'!$B$24="",'2 Crop Water Requirement'!$B$24="none"),"",'2 Crop Water Requirement'!$B$24) -> Carrots (Oct/Jan - Arid climate ) | Q31: =IFERROR(VLOOKUP(M31,'Crop Information'!$B$7:$C$216,2,FALSE),"") -> 32 | S31: Crop 3 | T31: =IF(OR('2 Crop Water Requirement'!$B$26="",'2 Crop Water Requirement'!$B$26="none"),"",'2 Crop Water Requirement'!$B$26) ->  | X31: =IFERROR(VLOOKUP(T31,'Crop Information'!$B$7:$C$216,2,FALSE),"") ->  | Z31: Crop 4 | AA31: =IF(OR('2 Crop Water Requirement'!$B$28="",'2 Crop Water Requirement'!$B$28="none"),"",'2 Crop Water Requirement'!$B$28) ->  | AE31: =IFERROR(VLOOKUP(AA31,'Crop Information'!$B$7:$C$216,2,FALSE),"") ->  | AG31: Crop 5 | AH31: =IF(OR('2 Crop Water Requirement'!$B$30="",'2 Crop Water Requirement'!$B$30="none"),"",'2 Crop Water Requirement'!$B$30) ->  | AL31: =IFERROR(VLOOKUP(AH31,'Crop Information'!$B$7:$C$216,2,FALSE),"") -> 
B32: September | C32: 5.27968 | G32: Date after Sowing
B33: October | C33: 5.12838 | E33: Crop 1 | F33: Days | G33: DAS | H33: From | I33: To | J33: Crop Factor | L33: Crop 2 | M33: Days | N33: DAS | O33: From | P33: To | Q33: Crop Factor | S33: Crop 3 | T33: Days | U33: DAS | V33: From | W33: To | X33: Crop Factor | Z33: Crop 4 | AA33: Days | AB33: DAS | AC33: From | AD33: To | AE33: Crop Factor | AG33: Crop 5 | AH33: Days | AI33: DAS | AJ33: From | AK33: To | AL33: Crop Factor
B34: November | C34: 5.09112 | E34: Initial: | F34: =INDEX('Crop Information'!$D$7:$D$216,$J$31) -> 20 | G34: =F34 -> 20 | H34: ='2 Crop Water Requirement'!$H$22 -> 2021-05-01 | I34: =H34+F34-1 -> 2021-05-20 | J34: =INDEX('Crop Information'!$I$7:$I$216,$J$31) -> 0.7 | L34: Initial: | M34: =INDEX('Crop Information'!$D$7:$D$216,$Q$31) -> 20 | N34: =M34 -> 20 | O34: ='2 Crop Water Requirement'!$H$24 -> 2022-07-01 | P34: =O34+M34-1 -> 2022-07-20 | Q34: =INDEX('Crop Information'!$I$7:$I$216,$Q$31) -> 0.7 | S34: Initial: | T34: =INDEX('Crop Information'!$D$7:$D$216,$X$31) ->  | U34: =T34 ->  | V34: ='2 Crop Water Requirement'!$H$26 -> 00:00:00 | W34: =V34+T34-1 ->  | X34: =INDEX('Crop Information'!$I$7:$I$216,$X$31) ->  | Z34: Initial: | AA34: =INDEX('Crop Information'!$D$7:$D$216,$AE$31) ->  | AB34: =AA34 ->  | AC34: ='2 Crop Water Requirement'!$H$28 -> 00:00:00 | AD34: =AC34+AA34-1 ->  | AE34: =INDEX('Crop Information'!$I$7:$I$216,$AE$31) ->  | AG34: Initial: | AH34: =INDEX('Crop Information'!$D$7:$D$216,$AL$31) ->  | AI34: =AH34 ->  | AJ34: ='2 Crop Water Requirement'!$H$30 -> 00:00:00 | AK34: =AJ34+AH34-1 ->  | AL34: =INDEX('Crop Information'!$I$7:$I$216,$AL$31) -> 
B35: December | C35: 5.1408 | E35: Development: | F35: =INDEX('Crop Information'!$E$7:$E$216,$J$31,) -> 30 | G35: =G34+F35 -> 50 | H35: =I34+1 -> 2021-05-21 | I35: =I34+F35 -> 2021-06-19 | J35: ="-" -> - | L35: Development: | M35: =INDEX('Crop Information'!$E$7:$E$216,$Q$31,) -> 30 | N35: =N34+M35 -> 50 | O35: =P34+1 -> 2022-07-21 | P35: =P34+M35 -> 2022-08-19 | Q35: ="-" -> - | S35: Development: | T35: =INDEX('Crop Information'!$E$7:$E$216,$X$31,) ->  | U35: =U34+T35 ->  | V35: =W34+1 ->  | W35: =W34+T35 ->  | X35: ="-" -> - | Z35: Development: | AA35: =INDEX('Crop Information'!$E$7:$E$216,$AE$31,) ->  | AB35: =AB34+AA35 ->  | AC35: =AD34+1 ->  | AD35: =AD34+AA35 ->  | AE35: ="-" -> - | AG35: Development: | AH35: =INDEX('Crop Information'!$E$7:$E$216,$AL$31,) ->  | AI35: =AI34+AH35 ->  | AJ35: =AK34+1 ->  | AK35: =AK34+AH35 ->  | AL35: ="-" -> -
E36: Mid season: | F36: =INDEX('Crop Information'!$F$7:$F$216,$J$31) -> 30 | G36: =G35+F36 -> 80 | H36: =I35+1 -> 2021-06-20 | I36: =I35+F36 -> 2021-07-19 | J36: =INDEX('Crop Information'!$J$7:$J$216,$J$31) -> 1.05 | L36: Mid season: | M36: =INDEX('Crop Information'!$F$7:$F$216,$Q$31) -> 30 | N36: =N35+M36 -> 80 | O36: =P35+1 -> 2022-08-20 | P36: =P35+M36 -> 2022-09-18 | Q36: =INDEX('Crop Information'!$J$7:$J$216,$Q$31) -> 1.05 | S36: Mid season: | T36: =INDEX('Crop Information'!$F$7:$F$216,$X$31) ->  | U36: =U35+T36 ->  | V36: =W35+1 ->  | W36: =W35+T36 ->  | X36: =INDEX('Crop Information'!$J$7:$J$216,$X$31) ->  | Z36: Mid season: | AA36: =INDEX('Crop Information'!$F$7:$F$216,$AE$31) ->  | AB36: =AB35+AA36 ->  | AC36: =AD35+1 ->  | AD36: =AD35+AA36 ->  | AE36: =INDEX('Crop Information'!$J$7:$J$216,$AE$31) ->  | AG36: Mid season: | AH36: =INDEX('Crop Information'!$F$7:$F$216,$AL$31) ->  | AI36: =AI35+AH36 ->  | AJ36: =AK35+1 ->  | AK36: =AK35+AH36 ->  | AL36: =INDEX('Crop Information'!$J$7:$J$216,$AL$31) -> 
E37: Late season: | F37: =INDEX('Crop Information'!$G$7:$G$216,$J$31) -> 20 | G37: =G36+F37 -> 100 | H37: =I36+1 -> 2021-07-20 | I37: =F37+I36 -> 2021-08-08 | J37: =INDEX('Crop Information'!$K$7:$K$216,$J$31) -> 0.95 | L37: Late season: | M37: =INDEX('Crop Information'!$G$7:$G$216,$Q$31) -> 20 | N37: =N36+M37 -> 100 | O37: =P36+1 -> 2022-09-19 | P37: =M37+P36 -> 2022-10-08 | Q37: =INDEX('Crop Information'!$K$7:$K$216,$Q$31) -> 0.95 | S37: Late season: | T37: =INDEX('Crop Information'!$G$7:$G$216,$X$31) ->  | U37: =U36+T37 ->  | V37: =W36+1 ->  | W37: =T37+W36 ->  | X37: =INDEX('Crop Information'!$K$7:$K$216,$X$31) ->  | Z37: Late season: | AA37: =INDEX('Crop Information'!$G$7:$G$216,$AE$31) ->  | AB37: =AB36+AA37 ->  | AC37: =AD36+1 ->  | AD37: =AA37+AD36 ->  | AE37: =INDEX('Crop Information'!$K$7:$K$216,$AE$31) ->  | AG37: Late season: | AH37: =INDEX('Crop Information'!$G$7:$G$216,$AL$31) ->  | AI37: =AI36+AH37 ->  | AJ37: =AK36+1 ->  | AK37: =AH37+AK36 ->  | AL37: =INDEX('Crop Information'!$K$7:$K$216,$AL$31) -> 
E38: Total growing days: | F38: =INDEX('Crop Information'!$H$7:$H$216,$J$31) -> 100 | L38: Total growing days: | M38: =INDEX('Crop Information'!$H$7:$H$216,$Q$31) -> 100 | S38: Total growing days: | T38: =INDEX('Crop Information'!$H$7:$H$216,$X$31) ->  | Z38: Total growing days: | AA38: =INDEX('Crop Information'!$H$7:$H$216,$AE$31) ->  | AG38: Total growing days: | AH38: =INDEX('Crop Information'!$H$7:$H$216,$AE$31) -> 
B40: Year | C40: Month | D40: Date | F40: DAS | G40: Stage: | H40: ETo | I40: Kc | J40: ETc | M40: DAS | N40: Stage: | O40: ETo | P40: Kc | Q40: ETc | T40: DAS | U40: Stage: | V40: ETo | W40: Kc | X40: ETc | AA40: DAS | AB40: Stage: | AC40: ETo | AD40: Kc | AE40: ETc | AH40: DAS | AI40: Stage: | AJ40: ETo | AK40: Kc | AL40: ETc
B41: =IFERROR(TEXT(DATE(YEAR($D41),MONTH($D41),1),$D$7&$D$4),"") -> 2021 | C41: =IFERROR(TEXT(DATE(YEAR($D41),MONTH($D41),1),$D$7&$D$5),"") -> May | D41: =DATE(YEAR($H$2),MONTH($H$2),1) -> 2021-05-01 | F41: =IFERROR(IF(OR($D41-$H$34+1<=0,$D41>$I$37),"",$D41-$H$34+1),"") -> 1 | G41: =IF(F41="","",IF(F41<=$G$34,"Initial",IF(AND(F41>$G$34,F41<=$G$35),"Development",IF(AND(F41>$G$35,F41<=$G$36),"Mid Season","Late Season")))) -> Initial | H41: =IFERROR(VLOOKUP($C41,$B$24:$C$35,2,FALSE),"") -> 5.31832 | I41: =IF(F41="","",IF(F41<=$G$34,$J$34,IF(AND(F41>$G$34,F41<=$G$35),$J$34+((F41-$G$34)/$F$35)*($J$36-$J$34),IF(AND(F41>$G$35,F41<=$G$36),$J$36,$J$36+((F41-$G$36)/$F$37)*($J$37-$J$36))))) -> 0.7 | J41: =IFERROR((H41*I41),0) -> 3.722824 | M41: =IFERROR(IF(OR($D41-$O$34+1<=0,$D41>$P$37),"",$D41-$O$34+1),"") ->  | N41: =IF(M41="","",IF(M41<=$N$34,"Initial",IF(AND(M41>$N$34,M41<=$N$35),"Development",IF(AND(M41>$N$35,M41<=$N$36),"Mid Season","Late Season")))) ->  | O41: =IFERROR(VLOOKUP($C41,$B$24:$C$35,2,FALSE),"") -> 5.31832 | P41: =IF(M41="","",IF(M41<=$N$34,$Q$34,IF(AND(M41>$N$34,M41<=$N$35),$Q$34+((M41-$N$34)/$M$35)*($Q$36-$Q$34),IF(AND(M41>$N$35,M41<=$N$36),$Q$36,$Q$36+((M41-$N$36)/$M$37)*($Q$37-$Q$36))))) ->  | Q41: =IFERROR((O41*P41),0) -> 0 | T41: =IFERROR(IF(OR($D41-$V$34+1<=0,$D41>$W$37),"",$D41-$V$34+1),"") ->  | U41: =IF(T41="","",IF(T41<=$U$34,"Initial",IF(AND(T41>$U$34,T41<=$U$35),"Development",IF(AND(T41>$U$35,T41<=$U$36),"Mid Season","Late Season")))) ->  | V41: =IFERROR(VLOOKUP($C41,$B$24:$C$35,2,FALSE),"") -> 5.31832 | W41: =IF(T41="","",IF(T41<=$U$34,$X$34,IF(AND(T41>$U$34,T41<=$U$35),$X$34+((T41-$U$34)/$T$35)*($X$36-$X$34),IF(AND(T41>$U$35,T41<=$U$36),$X$36,$X$36+((T41-$U$36)/$T$37)*($X$37-$X$36))))) ->  | X41: =IFERROR((V41*W41),0) -> 0 | AA41: =IFERROR(IF(OR($D41-$AC$34+1<=0,$D41>$AD$37),"",$D41-$AC$34+1),"") ->  | AB41: =IF(AA41="","",IF(AA41<=$AB$34,"Initial",IF(AND(AA41>$AB$34,AA41<=$AB$35),"Development",IF(AND(AA41>$AB$35,AA41<=$AB$36),"Mid Season","Late Season")))) ->  | AC41: =IFERROR(VLOOKUP($C41,$B$24:$C$35,2,FALSE),"") -> 5.31832 | AD41: =IF(AA41="","",IF(AA41<=$AB$34,$AE$34,IF(AND(AA41>$AB$34,AA41<=$AB$35),$AE$34+((AA41-$AB$34)/$AA$35)*($AE$36-$AE$34),IF(AND(AA41>$AB$35,AA41<=$AB$36),$AE$36,$AE$36+((AA41-$AB$36)/$AA$37)*($AE$37-$AE$36))))) ->  | AE41: =IFERROR((AC41*AD41),0) -> 0 | AH41: =IFERROR(IF(OR($D41-$AJ$34+1<=0,$D41>$AK$37),"",$D41-$AJ$34+1),"") ->  | AI41: =IF(AH41="","",IF(AH41<=$AI$34,"Initial",IF(AND(AH41>$AI$34,AH41<=$AI$35),"Development",IF(AND(AH41>$AI$35,AH41<=$AI$36),"Mid Season","Late Season")))) ->  | AJ41: =IFERROR(VLOOKUP($C41,$B$24:$C$35,2,FALSE),"") -> 5.31832 | AK41: =IF(AH41="","",IF(AH41<=$AI$34,$AL$34,IF(AND(AH41>$AI$34,AH41<=$AI$35),$AL$34+((AH41-$AI$34)/$AH$35)*($AL$36-$AL$34),IF(AND(AH41>$AI$35,AH41<=$AI$36),$AL$36,$AL$36+((AH41-$AI$36)/$AH$37)*($AL$37-$AL$36))))) ->  | AL41: =IFERROR((AJ41*AK41),0) -> 0
B42: 2021 | C42: May | D42: =IFERROR(IF(D41+1<=$L$2, D41+1,""),"") -> 2021-05-02 | F42: 2 | G42: Initial | H42: 5.31832 | I42: 0.7 | J42: =IFERROR((H42*I42),0) -> 3.722824 | O42: 5.31832 | Q42: =IFERROR((O42*P42),0) -> 0 | V42: 5.31832 | X42: =IFERROR((V42*W42),0) -> 0 | AC42: 5.31832 | AE42: =IFERROR((AC42*AD42),0) -> 0 | AH42: =IFERROR(IF(OR($D42-$AJ$34+1<=0,$D42>$AK$37),"",$D42-$AJ$34+1),"") ->  | AI42: =IF(AH42="","",IF(AH42<=$AI$34,"Initial",IF(AND(AH42>$AI$34,AH42<=$AI$35),"Development",IF(AND(AH42>$AI$35,AH42<=$AI$36),"Mid Season","Late Season")))) ->  | AJ42: 5.31832 | AK42: =IF(AH42="","",IF(AH42<=$AB$34,$AE$34,IF(AND(AH42>$AB$34,AH42<=$AB$35),$AE$34+((AH42-$AB$34)/$AA$35)*($AE$36-$AE$34),IF(AND(AH42>$AB$35,AH42<=$AB$36),$AE$36,$AE$36+((AH42-$AB$36)/$AA$37)*($AE$37-$AE$36))))) ->  | AL42: =IFERROR((AJ42*AK42),0) -> 0
B43: 2021 | C43: May | D43: 2021-05-03 | F43: 3 | G43: Initial | H43: 5.31832 | I43: 0.7 | J43: 3.722824 | O43: 5.31832 | Q43: 0 | V43: 5.31832 | X43: 0 | AC43: 5.31832 | AE43: 0 | AJ43: 5.31832 | AL43: 0
B44: 2021 | C44: May | D44: 2021-05-04 | F44: 4 | G44: Initial | H44: 5.31832 | I44: 0.7 | J44: 3.722824 | O44: 5.31832 | Q44: 0 | V44: 5.31832 | X44: 0 | AC44: 5.31832 | AE44: 0 | AJ44: 5.31832 | AL44: 0
B45: 2021 | C45: May | D45: 2021-05-05 | F45: 5 | G45: Initial | H45: 5.31832 | I45: 0.7 | J45: 3.722824 | O45: 5.31832 | Q45: 0 | V45: 5.31832 | X45: 0 | AC45: 5.31832 | AE45: 0 | AJ45: 5.31832 | AL45: 0
B46: 2021 | C46: May | D46: 2021-05-06 | F46: 6 | G46: Initial | H46: 5.31832 | I46: 0.7 | J46: 3.722824 | O46: 5.31832 | Q46: 0 | V46: 5.31832 | X46: 0 | AC46: 5.31832 | AE46: 0 | AJ46: 5.31832 | AL46: 0
B47: 2021 | C47: May | D47: 2021-05-07 | F47: 7 | G47: Initial | H47: 5.31832 | I47: 0.7 | J47: 3.722824 | O47: 5.31832 | Q47: 0 | V47: 5.31832 | X47: 0 | AC47: 5.31832 | AE47: 0 | AJ47: 5.31832 | AL47: 0
B48: 2021 | C48: May | D48: 2021-05-08 | F48: 8 | G48: Initial | H48: 5.31832 | I48: 0.7 | J48: 3.722824 | O48: 5.31832 | Q48: 0 | V48: 5.31832 | X48: 0 | AC48: 5.31832 | AE48: 0 | AJ48: 5.31832 | AL48: 0
B49: 2021 | C49: May | D49: 2021-05-09 | F49: 9 | G49: Initial | H49: 5.31832 | I49: 0.7 | J49: 3.722824 | O49: 5.31832 | Q49: 0 | V49: 5.31832 | X49: 0 | AC49: 5.31832 | AE49: 0 | AJ49: 5.31832 | AL49: 0
B50: 2021 | C50: May | D50: 2021-05-10 | F50: 10 | G50: Initial | H50: 5.31832 | I50: 0.7 | J50: 3.722824 | O50: 5.31832 | Q50: 0 | V50: 5.31832 | X50: 0 | AC50: 5.31832 | AE50: 0 | AJ50: 5.31832 | AL50: 0
B51: 2021 | C51: May | D51: 2021-05-11 | F51: 11 | G51: Initial | H51: 5.31832 | I51: 0.7 | J51: 3.722824 | O51: 5.31832 | Q51: 0 | V51: 5.31832 | X51: 0 | AC51: 5.31832 | AE51: 0 | AJ51: 5.31832 | AL51: 0
B52: 2021 | C52: May | D52: 2021-05-12 | F52: 12 | G52: Initial | H52: 5.31832 | I52: 0.7 | J52: 3.722824 | O52: 5.31832 | Q52: 0 | V52: 5.31832 | X52: 0 | AC52: 5.31832 | AE52: 0 | AJ52: 5.31832 | AL52: 0
B53: 2021 | C53: May | D53: 2021-05-13 | F53: 13 | G53: Initial | H53: 5.31832 | I53: 0.7 | J53: 3.722824 | O53: 5.31832 | Q53: 0 | V53: 5.31832 | X53: 0 | AC53: 5.31832 | AE53: 0 | AJ53: 5.31832 | AL53: 0
B54: 2021 | C54: May | D54: 2021-05-14 | F54: 14 | G54: Initial | H54: 5.31832 | I54: 0.7 | J54: 3.722824 | O54: 5.31832 | Q54: 0 | V54: 5.31832 | X54: 0 | AC54: 5.31832 | AE54: 0 | AJ54: 5.31832 | AL54: 0
B55: 2021 | C55: May | D55: 2021-05-15 | F55: 15 | G55: Initial | H55: 5.31832 | I55: 0.7 | J55: 3.722824 | O55: 5.31832 | Q55: 0 | V55: 5.31832 | X55: 0 | AC55: 5.31832 | AE55: 0 | AJ55: 5.31832 | AL55: 0
B56: 2021 | C56: May | D56: 2021-05-16 | F56: 16 | G56: Initial | H56: 5.31832 | I56: 0.7 | J56: 3.722824 | O56: 5.31832 | Q56: 0 | V56: 5.31832 | X56: 0 | AC56: 5.31832 | AE56: 0 | AJ56: 5.31832 | AL56: 0
B57: 2021 | C57: May | D57: 2021-05-17 | F57: 17 | G57: Initial | H57: 5.31832 | I57: 0.7 | J57: 3.722824 | O57: 5.31832 | Q57: 0 | V57: 5.31832 | X57: 0 | AC57: 5.31832 | AE57: 0 | AJ57: 5.31832 | AL57: 0
B58: 2021 | C58: May | D58: 2021-05-18 | F58: 18 | G58: Initial | H58: 5.31832 | I58: 0.7 | J58: 3.722824 | O58: 5.31832 | Q58: 0 | V58: 5.31832 | X58: 0 | AC58: 5.31832 | AE58: 0 | AJ58: 5.31832 | AL58: 0
B59: 2021 | C59: May | D59: 2021-05-19 | F59: 19 | G59: Initial | H59: 5.31832 | I59: 0.7 | J59: 3.722824 | O59: 5.31832 | Q59: 0 | V59: 5.31832 | X59: 0 | AC59: 5.31832 | AE59: 0 | AJ59: 5.31832 | AL59: 0
B60: 2021 | C60: May | D60: 2021-05-20 | F60: 20 | G60: Initial | H60: 5.31832 | I60: 0.7 | J60: 3.722824 | O60: 5.31832 | Q60: 0 | V60: 5.31832 | X60: 0 | AC60: 5.31832 | AE60: 0 | AJ60: 5.31832 | AL60: 0
B61: 2021 | C61: May | D61: 2021-05-21 | F61: 21 | G61: Development | H61: 5.31832 | I61: 0.7116666667 | J61: 3.784871067 | O61: 5.31832 | Q61: 0 | V61: 5.31832 | X61: 0 | AC61: 5.31832 | AE61: 0 | AJ61: 5.31832 | AL61: 0
B62: 2021 | C62: May | D62: 2021-05-22 | F62: 22 | G62: Development | H62: 5.31832 | I62: 0.7233333333 | J62: 3.846918133 | O62: 5.31832 | Q62: 0 | V62: 5.31832 | X62: 0 | AC62: 5.31832 | AE62: 0 | AJ62: 5.31832 | AL62: 0
B63: 2021 | C63: May | D63: 2021-05-23 | F63: 23 | G63: Development | H63: 5.31832 | I63: 0.735 | J63: 3.9089652 | O63: 5.31832 | Q63: 0 | V63: 5.31832 | X63: 0 | AC63: 5.31832 | AE63: 0 | AJ63: 5.31832 | AL63: 0
B64: 2021 | C64: May | D64: 2021-05-24 | F64: 24 | G64: Development | H64: 5.31832 | I64: 0.7466666667 | J64: 3.971012267 | O64: 5.31832 | Q64: 0 | V64: 5.31832 | X64: 0 | AC64: 5.31832 | AE64: 0 | AJ64: 5.31832 | AL64: 0
B65: 2021 | C65: May | D65: 2021-05-25 | F65: 25 | G65: Development | H65: 5.31832 | I65: 0.7583333333 | J65: 4.033059333 | O65: 5.31832 | Q65: 0 | V65: 5.31832 | X65: 0 | AC65: 5.31832 | AE65: 0 | AJ65: 5.31832 | AL65: 0
B66: 2021 | C66: May | D66: 2021-05-26 | F66: 26 | G66: Development | H66: 5.31832 | I66: 0.77 | J66: 4.0951064 | O66: 5.31832 | Q66: 0 | V66: 5.31832 | X66: 0 | AC66: 5.31832 | AE66: 0 | AJ66: 5.31832 | AL66: 0
B67: 2021 | C67: May | D67: 2021-05-27 | F67: 27 | G67: Development | H67: 5.31832 | I67: 0.7816666667 | J67: 4.157153467 | O67: 5.31832 | Q67: 0 | V67: 5.31832 | X67: 0 | AC67: 5.31832 | AE67: 0 | AJ67: 5.31832 | AL67: 0
B68: 2021 | C68: May | D68: 2021-05-28 | F68: 28 | G68: Development | H68: 5.31832 | I68: 0.7933333333 | J68: 4.219200533 | O68: 5.31832 | Q68: 0 | V68: 5.31832 | X68: 0 | AC68: 5.31832 | AE68: 0 | AJ68: 5.31832 | AL68: 0
B69: 2021 | C69: May | D69: 2021-05-29 | F69: 29 | G69: Development | H69: 5.31832 | I69: 0.805 | J69: 4.2812476 | O69: 5.31832 | Q69: 0 | V69: 5.31832 | X69: 0 | AC69: 5.31832 | AE69: 0 | AJ69: 5.31832 | AL69: 0
B70: 2021 | C70: May | D70: 2021-05-30 | F70: 30 | G70: Development | H70: 5.31832 | I70: 0.8166666667 | J70: 4.343294667 | O70: 5.31832 | Q70: 0 | V70: 5.31832 | X70: 0 | AC70: 5.31832 | AE70: 0 | AJ70: 5.31832 | AL70: 0
B71: 2021 | C71: May | D71: 2021-05-31 | F71: 31 | G71: Development | H71: 5.31832 | I71: 0.8283333333 | J71: 4.405341733 | O71: 5.31832 | Q71: 0 | V71: 5.31832 | X71: 0 | AC71: 5.31832 | AE71: 0 | AJ71: 5.31832 | AL71: 0
B72: 2021 | C72: June | D72: 2021-06-01 | F72: 32 | G72: Development | H72: 5.2668 | I72: 0.84 | J72: 4.424112 | O72: 5.2668 | Q72: 0 | V72: 5.2668 | X72: 0 | AC72: 5.2668 | AE72: 0 | AJ72: 5.2668 | AL72: 0
B73: 2021 | C73: June | D73: 2021-06-02 | F73: 33 | G73: Development | H73: 5.2668 | I73: 0.8516666667 | J73: 4.485558 | O73: 5.2668 | Q73: 0 | V73: 5.2668 | X73: 0 | AC73: 5.2668 | AE73: 0 | AJ73: 5.2668 | AL73: 0
B74: 2021 | C74: June | D74: 2021-06-03 | F74: 34 | G74: Development | H74: 5.2668 | I74: 0.8633333333 | J74: 4.547004 | O74: 5.2668 | Q74: 0 | V74: 5.2668 | X74: 0 | AC74: 5.2668 | AE74: 0 | AJ74: 5.2668 | AL74: 0
B75: 2021 | C75: June | D75: 2021-06-04 | F75: 35 | G75: Development | H75: 5.2668 | I75: 0.875 | J75: 4.60845 | O75: 5.2668 | Q75: 0 | V75: 5.2668 | X75: 0 | AC75: 5.2668 | AE75: 0 | AJ75: 5.2668 | AL75: 0
B76: 2021 | C76: June | D76: 2021-06-05 | F76: 36 | G76: Development | H76: 5.2668 | I76: 0.8866666667 | J76: 4.669896 | O76: 5.2668 | Q76: 0 | V76: 5.2668 | X76: 0 | AC76: 5.2668 | AE76: 0 | AJ76: 5.2668 | AL76: 0
B77: 2021 | C77: June | D77: 2021-06-06 | F77: 37 | G77: Development | H77: 5.2668 | I77: 0.8983333333 | J77: 4.731342 | O77: 5.2668 | Q77: 0 | V77: 5.2668 | X77: 0 | AC77: 5.2668 | AE77: 0 | AJ77: 5.2668 | AL77: 0
B78: 2021 | C78: June | D78: 2021-06-07 | F78: 38 | G78: Development | H78: 5.2668 | I78: 0.91 | J78: 4.792788 | O78: 5.2668 | Q78: 0 | V78: 5.2668 | X78: 0 | AC78: 5.2668 | AE78: 0 | AJ78: 5.2668 | AL78: 0
B79: 2021 | C79: June | D79: 2021-06-08 | F79: 39 | G79: Development | H79: 5.2668 | I79: 0.9216666667 | J79: 4.854234 | O79: 5.2668 | Q79: 0 | V79: 5.2668 | X79: 0 | AC79: 5.2668 | AE79: 0 | AJ79: 5.2668 | AL79: 0
B80: 2021 | C80: June | D80: 2021-06-09 | F80: 40 | G80: Development | H80: 5.2668 | I80: 0.9333333333 | J80: 4.91568 | O80: 5.2668 | Q80: 0 | V80: 5.2668 | X80: 0 | AC80: 5.2668 | AE80: 0 | AJ80: 5.2668 | AL80: 0
B81: 2021 | C81: June | D81: 2021-06-10 | F81: 41 | G81: Development | H81: 5.2668 | I81: 0.945 | J81: 4.977126 | O81: 5.2668 | Q81: 0 | V81: 5.2668 | X81: 0 | AC81: 5.2668 | AE81: 0 | AJ81: 5.2668 | AL81: 0
B82: 2021 | C82: June | D82: 2021-06-11 | F82: 42 | G82: Development | H82: 5.2668 | I82: 0.9566666667 | J82: 5.038572 | O82: 5.2668 | Q82: 0 | V82: 5.2668 | X82: 0 | AC82: 5.2668 | AE82: 0 | AJ82: 5.2668 | AL82: 0
B83: 2021 | C83: June | D83: 2021-06-12 | F83: 43 | G83: Development | H83: 5.2668 | I83: 0.9683333333 | J83: 5.100018 | O83: 5.2668 | Q83: 0 | V83: 5.2668 | X83: 0 | AC83: 5.2668 | AE83: 0 | AJ83: 5.2668 | AL83: 0
B84: 2021 | C84: June | D84: 2021-06-13 | F84: 44 | G84: Development | H84: 5.2668 | I84: 0.98 | J84: 5.161464 | O84: 5.2668 | Q84: 0 | V84: 5.2668 | X84: 0 | AC84: 5.2668 | AE84: 0 | AJ84: 5.2668 | AL84: 0
B85: 2021 | C85: June | D85: 2021-06-14 | F85: 45 | G85: Development | H85: 5.2668 | I85: 0.9916666667 | J85: 5.22291 | O85: 5.2668 | Q85: 0 | V85: 5.2668 | X85: 0 | AC85: 5.2668 | AE85: 0 | AJ85: 5.2668 | AL85: 0
B86: 2021 | C86: June | D86: 2021-06-15 | F86: 46 | G86: Development | H86: 5.2668 | I86: 1.003333333 | J86: 5.284356 | O86: 5.2668 | Q86: 0 | V86: 5.2668 | X86: 0 | AC86: 5.2668 | AE86: 0 | AJ86: 5.2668 | AL86: 0
B87: 2021 | C87: June | D87: 2021-06-16 | F87: 47 | G87: Development | H87: 5.2668 | I87: 1.015 | J87: 5.345802 | O87: 5.2668 | Q87: 0 | V87: 5.2668 | X87: 0 | AC87: 5.2668 | AE87: 0 | AJ87: 5.2668 | AL87: 0
B88: 2021 | C88: June | D88: 2021-06-17 | F88: 48 | G88: Development | H88: 5.2668 | I88: 1.026666667 | J88: 5.407248 | O88: 5.2668 | Q88: 0 | V88: 5.2668 | X88: 0 | AC88: 5.2668 | AE88: 0 | AJ88: 5.2668 | AL88: 0
B89: 2021 | C89: June | D89: 2021-06-18 | F89: 49 | G89: Development | H89: 5.2668 | I89: 1.038333333 | J89: 5.468694 | O89: 5.2668 | Q89: 0 | V89: 5.2668 | X89: 0 | AC89: 5.2668 | AE89: 0 | AJ89: 5.2668 | AL89: 0
B90: 2021 | C90: June | D90: 2021-06-19 | F90: 50 | G90: Development | H90: 5.2668 | I90: 1.05 | J90: 5.53014 | O90: 5.2668 | Q90: 0 | V90: 5.2668 | X90: 0 | AC90: 5.2668 | AE90: 0 | AJ90: 5.2668 | AL90: 0
B91: 2021 | C91: June | D91: 2021-06-20 | F91: 51 | G91: Mid Season | H91: 5.2668 | I91: 1.05 | J91: 5.53014 | O91: 5.2668 | Q91: 0 | V91: 5.2668 | X91: 0 | AC91: 5.2668 | AE91: 0 | AJ91: 5.2668 | AL91: 0
B92: 2021 | C92: June | D92: 2021-06-21 | F92: 52 | G92: Mid Season | H92: 5.2668 | I92: 1.05 | J92: 5.53014 | O92: 5.2668 | Q92: 0 | V92: 5.2668 | X92: 0 | AC92: 5.2668 | AE92: 0 | AJ92: 5.2668 | AL92: 0
B93: 2021 | C93: June | D93: 2021-06-22 | F93: 53 | G93: Mid Season | H93: 5.2668 | I93: 1.05 | J93: 5.53014 | O93: 5.2668 | Q93: 0 | V93: 5.2668 | X93: 0 | AC93: 5.2668 | AE93: 0 | AJ93: 5.2668 | AL93: 0
B94: 2021 | C94: June | D94: 2021-06-23 | F94: 54 | G94: Mid Season | H94: 5.2668 | I94: 1.05 | J94: 5.53014 | O94: 5.2668 | Q94: 0 | V94: 5.2668 | X94: 0 | AC94: 5.2668 | AE94: 0 | AJ94: 5.2668 | AL94: 0
B95: 2021 | C95: June | D95: 2021-06-24 | F95: 55 | G95: Mid Season | H95: 5.2668 | I95: 1.05 | J95: 5.53014 | O95: 5.2668 | Q95: 0 | V95: 5.2668 | X95: 0 | AC95: 5.2668 | AE95: 0 | AJ95: 5.2668 | AL95: 0
B96: 2021 | C96: June | D96: 2021-06-25 | F96: 56 | G96: Mid Season | H96: 5.2668 | I96: 1.05 | J96: 5.53014 | O96: 5.2668 | Q96: 0 | V96: 5.2668 | X96: 0 | AC96: 5.2668 | AE96: 0 | AJ96: 5.2668 | AL96: 0
B97: 2021 | C97: June | D97: 2021-06-26 | F97: 57 | G97: Mid Season | H97: 5.2668 | I97: 1.05 | J97: 5.53014 | O97: 5.2668 | Q97: 0 | V97: 5.2668 | X97: 0 | AC97: 5.2668 | AE97: 0 | AJ97: 5.2668 | AL97: 0
B98: 2021 | C98: June | D98: 2021-06-27 | F98: 58 | G98: Mid Season | H98: 5.2668 | I98: 1.05 | J98: 5.53014 | O98: 5.2668 | Q98: 0 | V98: 5.2668 | X98: 0 | AC98: 5.2668 | AE98: 0 | AJ98: 5.2668 | AL98: 0
B99: 2021 | C99: June | D99: 2021-06-28 | F99: 59 | G99: Mid Season | H99: 5.2668 | I99: 1.05 | J99: 5.53014 | O99: 5.2668 | Q99: 0 | V99: 5.2668 | X99: 0 | AC99: 5.2668 | AE99: 0 | AJ99: 5.2668 | AL99: 0
B100: 2021 | C100: June | D100: 2021-06-29 | F100: 60 | G100: Mid Season | H100: 5.2668 | I100: 1.05 | J100: 5.53014 | O100: 5.2668 | Q100: 0 | V100: 5.2668 | X100: 0 | AC100: 5.2668 | AE100: 0 | AJ100: 5.2668 | AL100: 0
B101: 2021 | C101: June | D101: 2021-06-30 | F101: 61 | G101: Mid Season | H101: 5.2668 | I101: 1.05 | J101: 5.53014 | O101: 5.2668 | Q101: 0 | V101: 5.2668 | X101: 0 | AC101: 5.2668 | AE101: 0 | AJ101: 5.2668 | AL101: 0
B102: 2021 | C102: July | D102: 2021-07-01 | F102: 62 | G102: Mid Season | H102: 5.2024 | I102: 1.05 | J102: 5.46252 | O102: 5.2024 | Q102: 0 | V102: 5.2024 | X102: 0 | AC102: 5.2024 | AE102: 0 | AJ102: 5.2024 | AL102: 0
B103: 2021 | C103: July | D103: 2021-07-02 | F103: 63 | G103: Mid Season | H103: 5.2024 | I103: 1.05 | J103: 5.46252 | O103: 5.2024 | Q103: 0 | V103: 5.2024 | X103: 0 | AC103: 5.2024 | AE103: 0 | AJ103: 5.2024 | AL103: 0
B104: 2021 | C104: July | D104: 2021-07-03 | F104: 64 | G104: Mid Season | H104: 5.2024 | I104: 1.05 | J104: 5.46252 | O104: 5.2024 | Q104: 0 | V104: 5.2024 | X104: 0 | AC104: 5.2024 | AE104: 0 | AJ104: 5.2024 | AL104: 0
B105: =IFERROR(TEXT(DATE(YEAR($D105),MONTH($D105),1),$D$7&$D$4),"") -> 2021 | C105: =IFERROR(TEXT(DATE(YEAR($D105),MONTH($D105),1),$D$7&$D$5),"") -> July | D105: 2021-07-04 | F105: =IFERROR(IF(OR($D105-$H$34+1<=0,$D105>$I$37),"",$D105-$H$34+1),"") -> 65 | G105: =IF(F105="","",IF(F105<=$G$34,"Initial",IF(AND(F105>$G$34,F105<=$G$35),"Development",IF(AND(F105>$G$35,F105<=$G$36),"Mid Season","Late Season")))) -> Mid Season | H105: =IFERROR(VLOOKUP($C105,$B$24:$C$35,2,FALSE),"") -> 5.2024 | I105: =IF(F105="","",IF(F105<=$G$34,$J$34,IF(AND(F105>$G$34,F105<=$G$35),$J$34+((F105-$G$34)/$F$35)*($J$36-$J$34),IF(AND(F105>$G$35,F105<=$G$36),$J$36,$J$36+((F105-$G$36)/$F$37)*($J$37-$J$36))))) -> 1.05 | J105: 5.46252 | M105: =IFERROR(IF(OR($D105-$O$34+1<=0,$D105>$P$37),"",$D105-$O$34+1),"") ->  | N105: =IF(M105="","",IF(M105<=$N$34,"Initial",IF(AND(M105>$N$34,M105<=$N$35),"Development",IF(AND(M105>$N$35,M105<=$N$36),"Mid Season","Late Season")))) ->  | O105: =IFERROR(VLOOKUP($C105,$B$24:$C$35,2,FALSE),"") -> 5.2024 | P105: =IF(M105="","",IF(M105<=$N$34,$Q$34,IF(AND(M105>$N$34,M105<=$N$35),$Q$34+((M105-$N$34)/$M$35)*($Q$36-$Q$34),IF(AND(M105>$N$35,M105<=$N$36),$Q$36,$Q$36+((M105-$N$36)/$M$37)*($Q$37-$Q$36))))) ->  | Q105: 0 | T105: =IFERROR(IF(OR($D105-$V$34+1<=0,$D105>$W$37),"",$D105-$V$34+1),"") ->  | U105: =IF(T105="","",IF(T105<=$U$34,"Initial",IF(AND(T105>$U$34,T105<=$U$35),"Development",IF(AND(T105>$U$35,T105<=$U$36),"Mid Season","Late Season")))) ->  | V105: =IFERROR(VLOOKUP($C105,$B$24:$C$35,2,FALSE),"") -> 5.2024 | W105: =IF(T105="","",IF(T105<=$U$34,$X$34,IF(AND(T105>$U$34,T105<=$U$35),$X$34+((T105-$U$34)/$T$35)*($X$36-$X$34),IF(AND(T105>$U$35,T105<=$U$36),$X$36,$X$36+((T105-$U$36)/$T$37)*($X$37-$X$36))))) ->  | X105: 0 | AA105: =IFERROR(IF(OR($D105-$AC$34+1<=0,$D105>$AD$37),"",$D105-$AC$34+1),"") ->  | AB105: =IF(AA105="","",IF(AA105<=$AB$34,"Initial",IF(AND(AA105>$AB$34,AA105<=$AB$35),"Development",IF(AND(AA105>$AB$35,AA105<=$AB$36),"Mid Season","Late Season")))) ->  | AC105: =IFERROR(VLOOKUP($C105,$B$24:$C$35,2,FALSE),"") -> 5.2024 | AD105: =IF(AA105="","",IF(AA105<=$AB$34,$AE$34,IF(AND(AA105>$AB$34,AA105<=$AB$35),$AE$34+((AA105-$AB$34)/$AA$35)*($AE$36-$AE$34),IF(AND(AA105>$AB$35,AA105<=$AB$36),$AE$36,$AE$36+((AA105-$AB$36)/$AA$37)*($AE$37-$AE$36))))) ->  | AE105: 0 | AJ105: =IFERROR(VLOOKUP($C105,$B$24:$C$35,2,FALSE),"") -> 5.2024 | AL105: 0
B106: 2021 | C106: July | D106: =IFERROR(IF(D105+1<=$L$2, D105+1,""),"") -> 2021-07-05 | F106: 66 | G106: Mid Season | H106: 5.2024 | I106: 1.05 | J106: =IFERROR((H106*I106),0) -> 5.46252 | O106: 5.2024 | Q106: =IFERROR((O106*P106),0) -> 0 | V106: 5.2024 | X106: =IFERROR((V106*W106),0) -> 0 | AC106: 5.2024 | AE106: =IFERROR((AC106*AD106),0) -> 0 | AH106: =IFERROR(IF(OR($D106-$AJ$34+1<=0,$D106>$AK$37),"",$D106-$AJ$34+1),"") ->  | AI106: =IF(AH106="","",IF(AH106<=$AI$34,"Initial",IF(AND(AH106>$AI$34,AH106<=$AI$35),"Development",IF(AND(AH106>$AI$35,AH106<=$AI$36),"Mid Season","Late Season")))) ->  | AJ106: 5.2024 | AK106: =IF(AH106="","",IF(AH106<=$AB$34,$AE$34,IF(AND(AH106>$AB$34,AH106<=$AB$35),$AE$34+((AH106-$AB$34)/$AA$35)*($AE$36-$AE$34),IF(AND(AH106>$AB$35,AH106<=$AB$36),$AE$36,$AE$36+((AH106-$AB$36)/$AA$37)*($AE$37-$AE$36))))) ->  | AL106: =IFERROR((AJ106*AK106),0) -> 0
B107: 2021 | C107: July | D107: 2021-07-06 | F107: 67 | G107: Mid Season | H107: 5.2024 | I107: 1.05 | J107: 5.46252 | O107: 5.2024 | Q107: 0 | V107: 5.2024 | X107: 0 | AC107: 5.2024 | AE107: 0 | AJ107: 5.2024 | AL107: 0
B108: 2021 | C108: July | D108: 2021-07-07 | F108: 68 | G108: Mid Season | H108: 5.2024 | I108: 1.05 | J108: 5.46252 | O108: 5.2024 | Q108: 0 | V108: 5.2024 | X108: 0 | AC108: 5.2024 | AE108: 0 | AJ108: 5.2024 | AL108: 0
B109: 2021 | C109: July | D109: 2021-07-08 | F109: 69 | G109: Mid Season | H109: 5.2024 | I109: 1.05 | J109: 5.46252 | O109: 5.2024 | Q109: 0 | V109: 5.2024 | X109: 0 | AC109: 5.2024 | AE109: 0 | AJ109: 5.2024 | AL109: 0
B110: 2021 | C110: July | D110: 2021-07-09 | F110: 70 | G110: Mid Season | H110: 5.2024 | I110: 1.05 | J110: 5.46252 | O110: 5.2024 | Q110: 0 | V110: 5.2024 | X110: 0 | AC110: 5.2024 | AE110: 0 | AJ110: 5.2024 | AL110: 0
B111: 2021 | C111: July | D111: 2021-07-10 | F111: 71 | G111: Mid Season | H111: 5.2024 | I111: 1.05 | J111: 5.46252 | O111: 5.2024 | Q111: 0 | V111: 5.2024 | X111: 0 | AC111: 5.2024 | AE111: 0 | AJ111: 5.2024 | AL111: 0
B112: 2021 | C112: July | D112: 2021-07-11 | F112: 72 | G112: Mid Season | H112: 5.2024 | I112: 1.05 | J112: 5.46252 | O112: 5.2024 | Q112: 0 | V112: 5.2024 | X112: 0 | AC112: 5.2024 | AE112: 0 | AJ112: 5.2024 | AL112: 0
B113: 2021 | C113: July | D113: 2021-07-12 | F113: 73 | G113: Mid Season | H113: 5.2024 | I113: 1.05 | J113: 5.46252 | O113: 5.2024 | Q113: 0 | V113: 5.2024 | X113: 0 | AC113: 5.2024 | AE113: 0 | AJ113: 5.2024 | AL113: 0
B114: 2021 | C114: July | D114: 2021-07-13 | F114: 74 | G114: Mid Season | H114: 5.2024 | I114: 1.05 | J114: 5.46252 | O114: 5.2024 | Q114: 0 | V114: 5.2024 | X114: 0 | AC114: 5.2024 | AE114: 0 | AJ114: 5.2024 | AL114: 0
B115: 2021 | C115: July | D115: 2021-07-14 | F115: 75 | G115: Mid Season | H115: 5.2024 | I115: 1.05 | J115: 5.46252 | O115: 5.2024 | Q115: 0 | V115: 5.2024 | X115: 0 | AC115: 5.2024 | AE115: 0 | AJ115: 5.2024 | AL115: 0
B116: 2021 | C116: July | D116: 2021-07-15 | F116: 76 | G116: Mid Season | H116: 5.2024 | I116: 1.05 | J116: 5.46252 | O116: 5.2024 | Q116: 0 | V116: 5.2024 | X116: 0 | AC116: 5.2024 | AE116: 0 | AJ116: 5.2024 | AL116: 0
B117: 2021 | C117: July | D117: 2021-07-16 | F117: 77 | G117: Mid Season | H117: 5.2024 | I117: 1.05 | J117: 5.46252 | O117: 5.2024 | Q117: 0 | V117: 5.2024 | X117: 0 | AC117: 5.2024 | AE117: 0 | AJ117: 5.2024 | AL117: 0
B118: 2021 | C118: July | D118: 2021-07-17 | F118: 78 | G118: Mid Season | H118: 5.2024 | I118: 1.05 | J118: 5.46252 | O118: 5.2024 | Q118: 0 | V118: 5.2024 | X118: 0 | AC118: 5.2024 | AE118: 0 | AJ118: 5.2024 | AL118: 0
B119: 2021 | C119: July | D119: 2021-07-18 | F119: 79 | G119: Mid Season | H119: 5.2024 | I119: 1.05 | J119: 5.46252 | O119: 5.2024 | Q119: 0 | V119: 5.2024 | X119: 0 | AC119: 5.2024 | AE119: 0 | AJ119: 5.2024 | AL119: 0
B120: 2021 | C120: July | D120: 2021-07-19 | F120: 80 | G120: Mid Season | H120: 5.2024 | I120: 1.05 | J120: 5.46252 | O120: 5.2024 | Q120: 0 | V120: 5.2024 | X120: 0 | AC120: 5.2024 | AE120: 0 | AJ120: 5.2024 | AL120: 0
B121: 2021 | C121: July | D121: 2021-07-20 | F121: 81 | G121: Late Season | H121: 5.2024 | I121: 1.045 | J121: 5.436508 | O121: 5.2024 | Q121: 0 | V121: 5.2024 | X121: 0 | AC121: 5.2024 | AE121: 0 | AJ121: 5.2024 | AL121: 0
B122: 2021 | C122: July | D122: 2021-07-21 | F122: 82 | G122: Late Season | H122: 5.2024 | I122: 1.04 | J122: 5.410496 | O122: 5.2024 | Q122: 0 | V122: 5.2024 | X122: 0 | AC122: 5.2024 | AE122: 0 | AJ122: 5.2024 | AL122: 0
B123: 2021 | C123: July | D123: 2021-07-22 | F123: 83 | G123: Late Season | H123: 5.2024 | I123: 1.035 | J123: 5.384484 | O123: 5.2024 | Q123: 0 | V123: 5.2024 | X123: 0 | AC123: 5.2024 | AE123: 0 | AJ123: 5.2024 | AL123: 0
B124: 2021 | C124: July | D124: 2021-07-23 | F124: 84 | G124: Late Season | H124: 5.2024 | I124: 1.03 | J124: 5.358472 | O124: 5.2024 | Q124: 0 | V124: 5.2024 | X124: 0 | AC124: 5.2024 | AE124: 0 | AJ124: 5.2024 | AL124: 0
B125: 2021 | C125: July | D125: 2021-07-24 | F125: 85 | G125: Late Season | H125: 5.2024 | I125: 1.025 | J125: 5.33246 | O125: 5.2024 | Q125: 0 | V125: 5.2024 | X125: 0 | AC125: 5.2024 | AE125: 0 | AJ125: 5.2024 | AL125: 0
B126: 2021 | C126: July | D126: 2021-07-25 | F126: 86 | G126: Late Season | H126: 5.2024 | I126: 1.02 | J126: 5.306448 | O126: 5.2024 | Q126: 0 | V126: 5.2024 | X126: 0 | AC126: 5.2024 | AE126: 0 | AJ126: 5.2024 | AL126: 0
B127: 2021 | C127: July | D127: 2021-07-26 | F127: 87 | G127: Late Season | H127: 5.2024 | I127: 1.015 | J127: 5.280436 | O127: 5.2024 | Q127: 0 | V127: 5.2024 | X127: 0 | AC127: 5.2024 | AE127: 0 | AJ127: 5.2024 | AL127: 0
B128: 2021 | C128: July | D128: 2021-07-27 | F128: 88 | G128: Late Season | H128: 5.2024 | I128: 1.01 | J128: 5.254424 | O128: 5.2024 | Q128: 0 | V128: 5.2024 | X128: 0 | AC128: 5.2024 | AE128: 0 | AJ128: 5.2024 | AL128: 0
B129: 2021 | C129: July | D129: 2021-07-28 | F129: 89 | G129: Late Season | H129: 5.2024 | I129: 1.005 | J129: 5.228412 | O129: 5.2024 | Q129: 0 | V129: 5.2024 | X129: 0 | AC129: 5.2024 | AE129: 0 | AJ129: 5.2024 | AL129: 0
B130: 2021 | C130: July | D130: 2021-07-29 | F130: 90 | G130: Late Season | H130: 5.2024 | I130: 1 | J130: 5.2024 | O130: 5.2024 | Q130: 0 | V130: 5.2024 | X130: 0 | AC130: 5.2024 | AE130: 0 | AJ130: 5.2024 | AL130: 0
B131: 2021 | C131: July | D131: 2021-07-30 | F131: 91 | G131: Late Season | H131: 5.2024 | I131: 0.995 | J131: 5.176388 | O131: 5.2024 | Q131: 0 | V131: 5.2024 | X131: 0 | AC131: 5.2024 | AE131: 0 | AJ131: 5.2024 | AL131: 0
B132: 2021 | C132: July | D132: 2021-07-31 | F132: 92 | G132: Late Season | H132: 5.2024 | I132: 0.99 | J132: 5.150376 | O132: 5.2024 | Q132: 0 | V132: 5.2024 | X132: 0 | AC132: 5.2024 | AE132: 0 | AJ132: 5.2024 | AL132: 0
B133: 2021 | C133: August | D133: 2021-08-01 | F133: 93 | G133: Late Season | H133: 5.2024 | I133: 0.985 | J133: 5.124364 | O133: 5.2024 | Q133: 0 | V133: 5.2024 | X133: 0 | AC133: 5.2024 | AE133: 0 | AJ133: 5.2024 | AL133: 0
B134: 2021 | C134: August | D134: 2021-08-02 | F134: 94 | G134: Late Season | H134: 5.2024 | I134: 0.98 | J134: 5.098352 | O134: 5.2024 | Q134: 0 | V134: 5.2024 | X134: 0 | AC134: 5.2024 | AE134: 0 | AJ134: 5.2024 | AL134: 0
B135: 2021 | C135: August | D135: 2021-08-03 | F135: 95 | G135: Late Season | H135: 5.2024 | I135: 0.975 | J135: 5.07234 | O135: 5.2024 | Q135: 0 | V135: 5.2024 | X135: 0 | AC135: 5.2024 | AE135: 0 | AJ135: 5.2024 | AL135: 0
B136: 2021 | C136: August | D136: 2021-08-04 | F136: 96 | G136: Late Season | H136: 5.2024 | I136: 0.97 | J136: 5.046328 | O136: 5.2024 | Q136: 0 | V136: 5.2024 | X136: 0 | AC136: 5.2024 | AE136: 0 | AJ136: 5.2024 | AL136: 0
B137: 2021 | C137: August | D137: 2021-08-05 | F137: 97 | G137: Late Season | H137: 5.2024 | I137: 0.965 | J137: 5.020316 | O137: 5.2024 | Q137: 0 | V137: 5.2024 | X137: 0 | AC137: 5.2024 | AE137: 0 | AJ137: 5.2024 | AL137: 0
B138: 2021 | C138: August | D138: 2021-08-06 | F138: 98 | G138: Late Season | H138: 5.2024 | I138: 0.96 | J138: 4.994304 | O138: 5.2024 | Q138: 0 | V138: 5.2024 | X138: 0 | AC138: 5.2024 | AE138: 0 | AJ138: 5.2024 | AL138: 0
B139: 2021 | C139: August | D139: 2021-08-07 | F139: 99 | G139: Late Season | H139: 5.2024 | I139: 0.955 | J139: 4.968292 | O139: 5.2024 | Q139: 0 | V139: 5.2024 | X139: 0 | AC139: 5.2024 | AE139: 0 | AJ139: 5.2024 | AL139: 0
B140: 2021 | C140: August | D140: 2021-08-08 | F140: 100 | G140: Late Season | H140: 5.2024 | I140: 0.95 | J140: 4.94228 | O140: 5.2024 | Q140: 0 | V140: 5.2024 | X140: 0 | AC140: 5.2024 | AE140: 0 | AJ140: 5.2024 | AL140: 0
B141: 2021 | C141: August | D141: 2021-08-09 | H141: 5.2024 | J141: 0 | O141: 5.2024 | Q141: 0 | V141: 5.2024 | X141: 0 | AC141: 5.2024 | AE141: 0 | AJ141: 5.2024 | AL141: 0
B142: 2021 | C142: August | D142: 2021-08-10 | H142: 5.2024 | J142: 0 | O142: 5.2024 | Q142: 0 | V142: 5.2024 | X142: 0 | AC142: 5.2024 | AE142: 0 | AJ142: 5.2024 | AL142: 0
B143: 2021 | C143: August | D143: 2021-08-11 | H143: 5.2024 | J143: 0 | O143: 5.2024 | Q143: 0 | V143: 5.2024 | X143: 0 | AC143: 5.2024 | AE143: 0 | AJ143: 5.2024 | AL143: 0
B144: 2021 | C144: August | D144: 2021-08-12 | H144: 5.2024 | J144: 0 | O144: 5.2024 | Q144: 0 | V144: 5.2024 | X144: 0 | AC144: 5.2024 | AE144: 0 | AJ144: 5.2024 | AL144: 0
B145: 2021 | C145: August | D145: 2021-08-13 | H145: 5.2024 | J145: 0 | O145: 5.2024 | Q145: 0 | V145: 5.2024 | X145: 0 | AC145: 5.2024 | AE145: 0 | AJ145: 5.2024 | AL145: 0
B146: 2021 | C146: August | D146: 2021-08-14 | H146: 5.2024 | J146: 0 | O146: 5.2024 | Q146: 0 | V146: 5.2024 | X146: 0 | AC146: 5.2024 | AE146: 0 | AJ146: 5.2024 | AL146: 0
B147: 2021 | C147: August | D147: 2021-08-15 | H147: 5.2024 | J147: 0 | O147: 5.2024 | Q147: 0 | V147: 5.2024 | X147: 0 | AC147: 5.2024 | AE147: 0 | AJ147: 5.2024 | AL147: 0
B148: 2021 | C148: August | D148: 2021-08-16 | H148: 5.2024 | J148: 0 | O148: 5.2024 | Q148: 0 | V148: 5.2024 | X148: 0 | AC148: 5.2024 | AE148: 0 | AJ148: 5.2024 | AL148: 0
B149: 2021 | C149: August | D149: 2021-08-17 | H149: 5.2024 | J149: 0 | O149: 5.2024 | Q149: 0 | V149: 5.2024 | X149: 0 | AC149: 5.2024 | AE149: 0 | AJ149: 5.2024 | AL149: 0
B150: 2021 | C150: August | D150: 2021-08-18 | H150: 5.2024 | J150: 0 | O150: 5.2024 | Q150: 0 | V150: 5.2024 | X150: 0 | AC150: 5.2024 | AE150: 0 | AJ150: 5.2024 | AL150: 0
B151: 2021 | C151: August | D151: 2021-08-19 | H151: 5.2024 | J151: 0 | O151: 5.2024 | Q151: 0 | V151: 5.2024 | X151: 0 | AC151: 5.2024 | AE151: 0 | AJ151: 5.2024 | AL151: 0
B152: 2021 | C152: August | D152: 2021-08-20 | H152: 5.2024 | J152: 0 | O152: 5.2024 | Q152: 0 | V152: 5.2024 | X152: 0 | AC152: 5.2024 | AE152: 0 | AJ152: 5.2024 | AL152: 0
B153: 2021 | C153: August | D153: 2021-08-21 | H153: 5.2024 | J153: 0 | O153: 5.2024 | Q153: 0 | V153: 5.2024 | X153: 0 | AC153: 5.2024 | AE153: 0 | AJ153: 5.2024 | AL153: 0
B154: 2021 | C154: August | D154: 2021-08-22 | H154: 5.2024 | J154: 0 | O154: 5.2024 | Q154: 0 | V154: 5.2024 | X154: 0 | AC154: 5.2024 | AE154: 0 | AJ154: 5.2024 | AL154: 0
B155: 2021 | C155: August | D155: 2021-08-23 | H155: 5.2024 | J155: 0 | O155: 5.2024 | Q155: 0 | V155: 5.2024 | X155: 0 | AC155: 5.2024 | AE155: 0 | AJ155: 5.2024 | AL155: 0
B156: 2021 | C156: August | D156: 2021-08-24 | H156: 5.2024 | J156: 0 | O156: 5.2024 | Q156: 0 | V156: 5.2024 | X156: 0 | AC156: 5.2024 | AE156: 0 | AJ156: 5.2024 | AL156: 0
B157: 2021 | C157: August | D157: 2021-08-25 | H157: 5.2024 | J157: 0 | O157: 5.2024 | Q157: 0 | V157: 5.2024 | X157: 0 | AC157: 5.2024 | AE157: 0 | AJ157: 5.2024 | AL157: 0
B158: 2021 | C158: August | D158: 2021-08-26 | H158: 5.2024 | J158: 0 | O158: 5.2024 | Q158: 0 | V158: 5.2024 | X158: 0 | AC158: 5.2024 | AE158: 0 | AJ158: 5.2024 | AL158: 0
B159: 2021 | C159: August | D159: 2021-08-27 | H159: 5.2024 | J159: 0 | O159: 5.2024 | Q159: 0 | V159: 5.2024 | X159: 0 | AC159: 5.2024 | AE159: 0 | AJ159: 5.2024 | AL159: 0
B160: 2021 | C160: August | D160: 2021-08-28 | H160: 5.2024 | J160: 0 | O160: 5.2024 | Q160: 0 | V160: 5.2024 | X160: 0 | AC160: 5.2024 | AE160: 0 | AJ160: 5.2024 | AL160: 0
B161: 2021 | C161: August | D161: 2021-08-29 | H161: 5.2024 | J161: 0 | O161: 5.2024 | Q161: 0 | V161: 5.2024 | X161: 0 | AC161: 5.2024 | AE161: 0 | AJ161: 5.2024 | AL161: 0
B162: 2021 | C162: August | D162: 2021-08-30 | H162: 5.2024 | J162: 0 | O162: 5.2024 | Q162: 0 | V162: 5.2024 | X162: 0 | AC162: 5.2024 | AE162: 0 | AJ162: 5.2024 | AL162: 0
B163: 2021 | C163: August | D163: 2021-08-31 | H163: 5.2024 | J163: 0 | O163: 5.2024 | Q163: 0 | V163: 5.2024 | X163: 0 | AC163: 5.2024 | AE163: 0 | AJ163: 5.2024 | AL163: 0
B164: 2021 | C164: September | D164: 2021-09-01 | H164: 5.27968 | J164: 0 | O164: 5.27968 | Q164: 0 | V164: 5.27968 | X164: 0 | AC164: 5.27968 | AE164: 0 | AJ164: 5.27968 | AL164: 0
B165: 2021 | C165: September | D165: 2021-09-02 | H165: 5.27968 | J165: 0 | O165: 5.27968 | Q165: 0 | V165: 5.27968 | X165: 0 | AC165: 5.27968 | AE165: 0 | AJ165: 5.27968 | AL165: 0
B166: 2021 | C166: September | D166: 2021-09-03 | H166: 5.27968 | J166: 0 | O166: 5.27968 | Q166: 0 | V166: 5.27968 | X166: 0 | AC166: 5.27968 | AE166: 0 | AJ166: 5.27968 | AL166: 0
B167: 2021 | C167: September | D167: 2021-09-04 | H167: 5.27968 | J167: 0 | O167: 5.27968 | Q167: 0 | V167: 5.27968 | X167: 0 | AC167: 5.27968 | AE167: 0 | AJ167: 5.27968 | AL167: 0
B168: 2021 | C168: September | D168: 2021-09-05 | H168: 5.27968 | J168: 0 | O168: 5.27968 | Q168: 0 | V168: 5.27968 | X168: 0 | AC168: 5.27968 | AE168: 0 | AJ168: 5.27968 | AL168: 0
B169: =IFERROR(TEXT(DATE(YEAR($D169),MONTH($D169),1),$D$7&$D$4),"") -> 2021 | C169: =IFERROR(TEXT(DATE(YEAR($D169),MONTH($D169),1),$D$7&$D$5),"") -> September | D169: 2021-09-06 | F169: =IFERROR(IF(OR($D169-$H$34+1<=0,$D169>$I$37),"",$D169-$H$34+1),"") ->  | G169: =IF(F169="","",IF(F169<=$G$34,"Initial",IF(AND(F169>$G$34,F169<=$G$35),"Development",IF(AND(F169>$G$35,F169<=$G$36),"Mid Season","Late Season")))) ->  | H169: =IFERROR(VLOOKUP($C169,$B$24:$C$35,2,FALSE),"") -> 5.27968 | I169: =IF(F169="","",IF(F169<=$G$34,$J$34,IF(AND(F169>$G$34,F169<=$G$35),$J$34+((F169-$G$34)/$F$35)*($J$36-$J$34),IF(AND(F169>$G$35,F169<=$G$36),$J$36,$J$36+((F169-$G$36)/$F$37)*($J$37-$J$36))))) ->  | J169: 0 | M169: =IFERROR(IF(OR($D169-$O$34+1<=0,$D169>$P$37),"",$D169-$O$34+1),"") ->  | N169: =IF(M169="","",IF(M169<=$N$34,"Initial",IF(AND(M169>$N$34,M169<=$N$35),"Development",IF(AND(M169>$N$35,M169<=$N$36),"Mid Season","Late Season")))) ->  | O169: =IFERROR(VLOOKUP($C169,$B$24:$C$35,2,FALSE),"") -> 5.27968 | P169: =IF(M169="","",IF(M169<=$N$34,$Q$34,IF(AND(M169>$N$34,M169<=$N$35),$Q$34+((M169-$N$34)/$M$35)*($Q$36-$Q$34),IF(AND(M169>$N$35,M169<=$N$36),$Q$36,$Q$36+((M169-$N$36)/$M$37)*($Q$37-$Q$36))))) ->  | Q169: 0 | T169: =IFERROR(IF(OR($D169-$V$34+1<=0,$D169>$W$37),"",$D169-$V$34+1),"") ->  | U169: =IF(T169="","",IF(T169<=$U$34,"Initial",IF(AND(T169>$U$34,T169<=$U$35),"Development",IF(AND(T169>$U$35,T169<=$U$36),"Mid Season","Late Season")))) ->  | V169: =IFERROR(VLOOKUP($C169,$B$24:$C$35,2,FALSE),"") -> 5.27968 | W169: =IF(T169="","",IF(T169<=$U$34,$X$34,IF(AND(T169>$U$34,T169<=$U$35),$X$34+((T169-$U$34)/$T$35)*($X$36-$X$34),IF(AND(T169>$U$35,T169<=$U$36),$X$36,$X$36+((T169-$U$36)/$T$37)*($X$37-$X$36))))) ->  | X169: 0 | AA169: =IFERROR(IF(OR($D169-$AC$34+1<=0,$D169>$AD$37),"",$D169-$AC$34+1),"") ->  | AB169: =IF(AA169="","",IF(AA169<=$AB$34,"Initial",IF(AND(AA169>$AB$34,AA169<=$AB$35),"Development",IF(AND(AA169>$AB$35,AA169<=$AB$36),"Mid Season","Late Season")))) ->  | AC169: =IFERROR(VLOOKUP($C169,$B$24:$C$35,2,FALSE),"") -> 5.27968 | AD169: =IF(AA169="","",IF(AA169<=$AB$34,$AE$34,IF(AND(AA169>$AB$34,AA169<=$AB$35),$AE$34+((AA169-$AB$34)/$AA$35)*($AE$36-$AE$34),IF(AND(AA169>$AB$35,AA169<=$AB$36),$AE$36,$AE$36+((AA169-$AB$36)/$AA$37)*($AE$37-$AE$36))))) ->  | AE169: 0 | AJ169: =IFERROR(VLOOKUP($C169,$B$24:$C$35,2,FALSE),"") -> 5.27968 | AL169: 0
B170: 2021 | C170: September | D170: =IFERROR(IF(D169+1<=$L$2, D169+1,""),"") -> 2021-09-07 | H170: 5.27968 | J170: =IFERROR((H170*I170),0) -> 0 | O170: 5.27968 | Q170: =IFERROR((O170*P170),0) -> 0 | V170: 5.27968 | X170: =IFERROR((V170*W170),0) -> 0 | AC170: 5.27968 | AE170: =IFERROR((AC170*AD170),0) -> 0 | AH170: =IFERROR(IF(OR($D170-$AJ$34+1<=0,$D170>$AK$37),"",$D170-$AJ$34+1),"") ->  | AI170: =IF(AH170="","",IF(AH170<=$AI$34,"Initial",IF(AND(AH170>$AI$34,AH170<=$AI$35),"Development",IF(AND(AH170>$AI$35,AH170<=$AI$36),"Mid Season","Late Season")))) ->  | AJ170: 5.27968 | AK170: =IF(AH170="","",IF(AH170<=$AB$34,$AE$34,IF(AND(AH170>$AB$34,AH170<=$AB$35),$AE$34+((AH170-$AB$34)/$AA$35)*($AE$36-$AE$34),IF(AND(AH170>$AB$35,AH170<=$AB$36),$AE$36,$AE$36+((AH170-$AB$36)/$AA$37)*($AE$37-$AE$36))))) ->  | AL170: =IFERROR((AJ170*AK170),0) -> 0
B171: 2021 | C171: September | D171: 2021-09-08 | H171: 5.27968 | J171: 0 | O171: 5.27968 | Q171: 0 | V171: 5.27968 | X171: 0 | AC171: 5.27968 | AE171: 0 | AJ171: 5.27968 | AL171: 0
B172: 2021 | C172: September | D172: 2021-09-09 | H172: 5.27968 | J172: 0 | O172: 5.27968 | Q172: 0 | V172: 5.27968 | X172: 0 | AC172: 5.27968 | AE172: 0 | AJ172: 5.27968 | AL172: 0
B173: 2021 | C173: September | D173: 2021-09-10 | H173: 5.27968 | J173: 0 | O173: 5.27968 | Q173: 0 | V173: 5.27968 | X173: 0 | AC173: 5.27968 | AE173: 0 | AJ173: 5.27968 | AL173: 0
B174: 2021 | C174: September | D174: 2021-09-11 | H174: 5.27968 | J174: 0 | O174: 5.27968 | Q174: 0 | V174: 5.27968 | X174: 0 | AC174: 5.27968 | AE174: 0 | AJ174: 5.27968 | AL174: 0
B175: 2021 | C175: September | D175: 2021-09-12 | H175: 5.27968 | J175: 0 | O175: 5.27968 | Q175: 0 | V175: 5.27968 | X175: 0 | AC175: 5.27968 | AE175: 0 | AJ175: 5.27968 | AL175: 0
B176: 2021 | C176: September | D176: 2021-09-13 | H176: 5.27968 | J176: 0 | O176: 5.27968 | Q176: 0 | V176: 5.27968 | X176: 0 | AC176: 5.27968 | AE176: 0 | AJ176: 5.27968 | AL176: 0
B177: 2021 | C177: September | D177: 2021-09-14 | H177: 5.27968 | J177: 0 | O177: 5.27968 | Q177: 0 | V177: 5.27968 | X177: 0 | AC177: 5.27968 | AE177: 0 | AJ177: 5.27968 | AL177: 0
B178: 2021 | C178: September | D178: 2021-09-15 | H178: 5.27968 | J178: 0 | O178: 5.27968 | Q178: 0 | V178: 5.27968 | X178: 0 | AC178: 5.27968 | AE178: 0 | AJ178: 5.27968 | AL178: 0
B179: 2021 | C179: September | D179: 2021-09-16 | H179: 5.27968 | J179: 0 | O179: 5.27968 | Q179: 0 | V179: 5.27968 | X179: 0 | AC179: 5.27968 | AE179: 0 | AJ179: 5.27968 | AL179: 0
B180: 2021 | C180: September | D180: 2021-09-17 | H180: 5.27968 | J180: 0 | O180: 5.27968 | Q180: 0 | V180: 5.27968 | X180: 0 | AC180: 5.27968 | AE180: 0 | AJ180: 5.27968 | AL180: 0
B181: 2021 | C181: September | D181: 2021-09-18 | H181: 5.27968 | J181: 0 | O181: 5.27968 | Q181: 0 | V181: 5.27968 | X181: 0 | AC181: 5.27968 | AE181: 0 | AJ181: 5.27968 | AL181: 0
B182: 2021 | C182: September | D182: 2021-09-19 | H182: 5.27968 | J182: 0 | O182: 5.27968 | Q182: 0 | V182: 5.27968 | X182: 0 | AC182: 5.27968 | AE182: 0 | AJ182: 5.27968 | AL182: 0
B183: 2021 | C183: September | D183: 2021-09-20 | H183: 5.27968 | J183: 0 | O183: 5.27968 | Q183: 0 | V183: 5.27968 | X183: 0 | AC183: 5.27968 | AE183: 0 | AJ183: 5.27968 | AL183: 0
B184: 2021 | C184: September | D184: 2021-09-21 | H184: 5.27968 | J184: 0 | O184: 5.27968 | Q184: 0 | V184: 5.27968 | X184: 0 | AC184: 5.27968 | AE184: 0 | AJ184: 5.27968 | AL184: 0
B185: 2021 | C185: September | D185: 2021-09-22 | H185: 5.27968 | J185: 0 | O185: 5.27968 | Q185: 0 | V185: 5.27968 | X185: 0 | AC185: 5.27968 | AE185: 0 | AJ185: 5.27968 | AL185: 0
B186: 2021 | C186: September | D186: 2021-09-23 | H186: 5.27968 | J186: 0 | O186: 5.27968 | Q186: 0 | V186: 5.27968 | X186: 0 | AC186: 5.27968 | AE186: 0 | AJ186: 5.27968 | AL186: 0
B187: 2021 | C187: September | D187: 2021-09-24 | H187: 5.27968 | J187: 0 | O187: 5.27968 | Q187: 0 | V187: 5.27968 | X187: 0 | AC187: 5.27968 | AE187: 0 | AJ187: 5.27968 | AL187: 0
B188: 2021 | C188: September | D188: 2021-09-25 | H188: 5.27968 | J188: 0 | O188: 5.27968 | Q188: 0 | V188: 5.27968 | X188: 0 | AC188: 5.27968 | AE188: 0 | AJ188: 5.27968 | AL188: 0
B189: 2021 | C189: September | D189: 2021-09-26 | H189: 5.27968 | J189: 0 | O189: 5.27968 | Q189: 0 | V189: 5.27968 | X189: 0 | AC189: 5.27968 | AE189: 0 | AJ189: 5.27968 | AL189: 0
B190: 2021 | C190: September | D190: 2021-09-27 | H190: 5.27968 | J190: 0 | O190: 5.27968 | Q190: 0 | V190: 5.27968 | X190: 0 | AC190: 5.27968 | AE190: 0 | AJ190: 5.27968 | AL190: 0
B191: 2021 | C191: September | D191: 2021-09-28 | H191: 5.27968 | J191: 0 | O191: 5.27968 | Q191: 0 | V191: 5.27968 | X191: 0 | AC191: 5.27968 | AE191: 0 | AJ191: 5.27968 | AL191: 0
B192: 2021 | C192: September | D192: 2021-09-29 | H192: 5.27968 | J192: 0 | O192: 5.27968 | Q192: 0 | V192: 5.27968 | X192: 0 | AC192: 5.27968 | AE192: 0 | AJ192: 5.27968 | AL192: 0
B193: 2021 | C193: September | D193: 2021-09-30 | H193: 5.27968 | J193: 0 | O193: 5.27968 | Q193: 0 | V193: 5.27968 | X193: 0 | AC193: 5.27968 | AE193: 0 | AJ193: 5.27968 | AL193: 0
B194: 2021 | C194: October | D194: 2021-10-01 | H194: 5.12838 | J194: 0 | O194: 5.12838 | Q194: 0 | V194: 5.12838 | X194: 0 | AC194: 5.12838 | AE194: 0 | AJ194: 5.12838 | AL194: 0
B195: 2021 | C195: October | D195: 2021-10-02 | H195: 5.12838 | J195: 0 | O195: 5.12838 | Q195: 0 | V195: 5.12838 | X195: 0 | AC195: 5.12838 | AE195: 0 | AJ195: 5.12838 | AL195: 0
B196: 2021 | C196: October | D196: 2021-10-03 | H196: 5.12838 | J196: 0 | O196: 5.12838 | Q196: 0 | V196: 5.12838 | X196: 0 | AC196: 5.12838 | AE196: 0 | AJ196: 5.12838 | AL196: 0
B197: 2021 | C197: October | D197: 2021-10-04 | H197: 5.12838 | J197: 0 | O197: 5.12838 | Q197: 0 | V197: 5.12838 | X197: 0 | AC197: 5.12838 | AE197: 0 | AJ197: 5.12838 | AL197: 0
B198: 2021 | C198: October | D198: 2021-10-05 | H198: 5.12838 | J198: 0 | O198: 5.12838 | Q198: 0 | V198: 5.12838 | X198: 0 | AC198: 5.12838 | AE198: 0 | AJ198: 5.12838 | AL198: 0
B199: 2021 | C199: October | D199: 2021-10-06 | H199: 5.12838 | J199: 0 | O199: 5.12838 | Q199: 0 | V199: 5.12838 | X199: 0 | AC199: 5.12838 | AE199: 0 | AJ199: 5.12838 | AL199: 0
B200: 2021 | C200: October | D200: 2021-10-07 | H200: 5.12838 | J200: 0 | O200: 5.12838 | Q200: 0 | V200: 5.12838 | X200: 0 | AC200: 5.12838 | AE200: 0 | AJ200: 5.12838 | AL200: 0
B201: 2021 | C201: October | D201: 2021-10-08 | H201: 5.12838 | J201: 0 | O201: 5.12838 | Q201: 0 | V201: 5.12838 | X201: 0 | AC201: 5.12838 | AE201: 0 | AJ201: 5.12838 | AL201: 0
B202: 2021 | C202: October | D202: 2021-10-09 | H202: 5.12838 | J202: 0 | O202: 5.12838 | Q202: 0 | V202: 5.12838 | X202: 0 | AC202: 5.12838 | AE202: 0 | AJ202: 5.12838 | AL202: 0
B203: 2021 | C203: October | D203: 2021-10-10 | H203: 5.12838 | J203: 0 | O203: 5.12838 | Q203: 0 | V203: 5.12838 | X203: 0 | AC203: 5.12838 | AE203: 0 | AJ203: 5.12838 | AL203: 0
B204: 2021 | C204: October | D204: 2021-10-11 | H204: 5.12838 | J204: 0 | O204: 5.12838 | Q204: 0 | V204: 5.12838 | X204: 0 | AC204: 5.12838 | AE204: 0 | AJ204: 5.12838 | AL204: 0
... 567 more rows

Sheet General Calculation (hidden)
B1: Available climatic Data | C1: Option | D1: Status
C2: Option 1 | D2: TRUE | E2: Blaney-Criddle method
C3: Option 2 | D3: FALSE | E3: Hargreaves method
C4: Option 3 | D4: FALSE | E4: FAO Penman-Monteith method
C5: Option 4 | D5: FALSE | E5: Reference evapotranspiration
B7: Hemisphere | C7: =Translate!$C$106 -> North | D7: =Translate!$C$108 -> East
C8: =Translate!$C$107 -> South | D8: =Translate!$C$109 -> West
B10: Option 1 | C10: Blaney-Criddle method
C11: latitude | D11: =IF($D$2=TRUE,MROUND('1 Geographic Data'!$D$37,5),"") -> 5 | E11: degree | G11: Translate Hemisphere to be used in formula
C12: Hemisphere | D12: =IF($D$2=TRUE,'1 Geographic Data'!$G$37,"") -> North | E12: =IF(OR(D12=$G$12,D12=$H$12,D12=$I$12,D12=$J$12,D12=$K$12,D12=$L$12),$G$12,"South") -> North | G12: =Translate!D106 -> North | H12: =Translate!E106 -> Nord | I12: =Translate!F106 -> Norte | J12: =Translate!G106 -> الشمالي | K12: =Translate!H106 -> North | L12: =Translate!I106 -> North
D14: ='1 Geographic Data'!C22 -> January | E14: ='1 Geographic Data'!D22 -> February | F14: ='1 Geographic Data'!E22 -> March | G14: ='1 Geographic Data'!F22 -> April | H14: ='1 Geographic Data'!G22 -> May | I14: ='1 Geographic Data'!H22 -> June | J14: ='1 Geographic Data'!I22 -> July | K14: ='1 Geographic Data'!J22 -> August | L14: ='1 Geographic Data'!K22 -> September | M14: ='1 Geographic Data'!L22 -> October | N14: ='1 Geographic Data'!M22 -> November | O14: ='1 Geographic Data'!N22 -> December
C15: =IF($D$2= TRUE,'1 Geographic Data'!A23,'1 Geographic Data'!A23) -> Mean daily temperature [°C] | D15: =IF($D$2= TRUE,'1 Geographic Data'!C23,"") -> 25.5 | E15: =IF($D$2= TRUE,'1 Geographic Data'!D23,"") -> 25 | F15: =IF($D$2= TRUE,'1 Geographic Data'!E23,"") -> 24.6 | G15: =IF($D$2= TRUE,'1 Geographic Data'!F23,"") -> 23.8 | H15: =IF($D$2= TRUE,'1 Geographic Data'!G23,"") -> 23.9 | I15: =IF($D$2= TRUE,'1 Geographic Data'!H23,"") -> 23.5 | J15: =IF($D$2= TRUE,'1 Geographic Data'!I23,"") -> 23 | K15: =IF($D$2= TRUE,'1 Geographic Data'!J23,"") -> 23 | L15: =IF($D$2= TRUE,'1 Geographic Data'!K23,"") -> 23.6 | M15: =IF($D$2= TRUE,'1 Geographic Data'!L23,"") -> 23.9 | N15: =IF($D$2= TRUE,'1 Geographic Data'!M23,"") -> 23.6 | O15: =IF($D$2= TRUE,'1 Geographic Data'!N23,"") -> 24
C16: Daytime hours: | D16: =IF($D$2= TRUE, IF($E$12="North",INDEX(F21:F33,VLOOKUP($D$11,$D$21:$E$33,2,FALSE)),INDEX(F35:F47,VLOOKUP($D$11,$D$21:$E$33,2,FALSE))),"") -> 0.27 | E16: =IF($D$2= TRUE, IF($E$12="North",INDEX(G21:G33,VLOOKUP($D$11,$D$21:$E$33,2,FALSE)),INDEX(G35:G47,VLOOKUP($D$11,$D$21:$E$33,2,FALSE))),"") -> 0.27 | F16: 0.27 | G16: 0.28 | H16: 0.28 | I16: 0.28 | J16: 0.28 | K16: 0.28 | L16: 0.28 | M16: 0.27 | N16: 0.27 | O16: 0.27
C17: Reference Evapotranspiration | D17: =IF($D$2= TRUE, D16*(0.46*D15+8),"") -> 5.3271 | E17: =IF($D$2= TRUE, E16*(0.46*E15+8),"") -> 5.265 | F17: 5.21532 | G17: 5.30544 | H17: 5.31832 | I17: 5.2668 | J17: 5.2024 | K17: 5.2024 | L17: 5.27968 | M17: 5.12838 | N17: 5.09112 | O17: 5.1408
C19: Mean daily percentage (p) of annual daytime hours for different latitudes
C20: North | D20: Latitude | E20: # | F20: =D14 -> January | G20: =E14 -> February | H20: March | I20: April | J20: May | K20: June | L20: July | M20: August | N20: September | O20: October | P20: November | Q20: December
D21: 60 | E21: 1 | F21: 0.15 | G21: 0.2 | H21: 0.26 | I21: 0.32 | J21: 0.38 | K21: 0.41 | L21: 0.4 | M21: 0.34 | N21: 0.28 | O21: 0.22 | P21: 0.17 | Q21: 0.13
D22: 55 | E22: 2 | F22: 0.17 | G22: 0.21 | H22: 0.26 | I22: 0.32 | J22: 0.36 | K22: 0.39 | L22: 0.38 | M22: 0.33 | N22: 0.28 | O22: 0.23 | P22: 0.18 | Q22: 0.16
D23: 50 | E23: 3 | F23: 0.19 | G23: 0.23 | H23: 0.27 | I23: 0.31 | J23: 0.34 | K23: 0.36 | L23: 0.35 | M23: 0.32 | N23: 0.28 | O23: 0.24 | P23: 0.2 | Q23: 0.18
D24: 45 | E24: 4 | F24: 0.2 | G24: 0.23 | H24: 0.27 | I24: 0.3 | J24: 0.34 | K24: 0.35 | L24: 0.34 | M24: 0.32 | N24: 0.28 | O24: 0.24 | P24: 0.21 | Q24: 0.2
D25: 40 | E25: 5 | F25: 0.22 | G25: 0.24 | H25: 0.27 | I25: 0.3 | J25: 0.32 | K25: 0.34 | L25: 0.33 | M25: 0.31 | N25: 0.28 | O25: 0.25 | P25: 0.22 | Q25: 0.21
D26: 35 | E26: 6 | F26: 0.23 | G26: 0.25 | H26: 0.27 | I26: 0.29 | J26: 0.31 | K26: 0.32 | L26: 0.32 | M26: 0.3 | N26: 0.28 | O26: 0.25 | P26: 0.23 | Q26: 0.22
D27: 30 | E27: 7 | F27: 0.24 | G27: 0.25 | H27: 0.27 | I27: 0.29 | J27: 0.31 | K27: 0.32 | L27: 0.31 | M27: 0.3 | N27: 0.28 | O27: 0.26 | P27: 0.24 | Q27: 0.23
D28: 25 | E28: 8 | F28: 0.24 | G28: 0.26 | H28: 0.27 | I28: 0.29 | J28: 0.3 | K28: 0.31 | L28: 0.31 | M28: 0.29 | N28: 0.28 | O28: 0.26 | P28: 0.25 | Q28: 0.24
D29: 20 | E29: 9 | F29: 0.25 | G29: 0.26 | H29: 0.27 | I29: 0.28 | J29: 0.29 | K29: 0.3 | L29: 0.3 | M29: 0.29 | N29: 0.28 | O29: 0.26 | P29: 0.25 | Q29: 0.25
D30: 15 | E30: 10 | F30: 0.26 | G30: 0.26 | H30: 0.27 | I30: 0.28 | J30: 0.29 | K30: 0.29 | L30: 0.29 | M30: 0.28 | N30: 0.28 | O30: 0.27 | P30: 0.26 | Q30: 0.25
D31: 10 | E31: 11 | F31: 0.26 | G31: 0.27 | H31: 0.27 | I31: 0.28 | J31: 0.28 | K31: 0.29 | L31: 0.29 | M31: 0.28 | N31: 0.28 | O31: 0.27 | P31: 0.26 | Q31: 0.26
D32: 5 | E32: 12 | F32: 0.27 | G32: 0.27 | H32: 0.27 | I32: 0.28 | J32: 0.28 | K32: 0.28 | L32: 0.28 | M32: 0.28 | N32: 0.28 | O32: 0.27 | P32: 0.27 | Q32: 0.27
D33: 0 | E33: 13 | F33: 0.27 | G33: 0.27 | H33: 0.27 | I33: 0.27 | J33: 0.27 | K33: 0.27 | L33: 0.27 | M33: 0.27 | N33: 0.27 | O33: 0.27 | P33: 0.27 | Q33: 0.27
C34: South | D34: Latitude | E34: # | F34: =D14 -> January | G34: =E14 -> February | H34: March | I34: April | J34: May | K34: June | L34: July | M34: August | N34: September | O34: October | P34: November | Q34: December
D35: 60 | E35: 1 | F35: 0.4 | G35: 0.34 | H35: 0.28 | I35: 0.22 | J35: 0.17 | K35: 0.13 | L35: 0.15 | M35: 0.2 | N35: 0.26 | O35: 0.32 | P35: 0.38 | Q35: 0.41
D36: 55 | E36: 2 | F36: 0.38 | G36: 0.33 | H36: 0.28 | I36: 0.23 | J36: 0.18 | K36: 0.16 | L36: 0.17 | M36: 0.21 | N36: 0.26 | O36: 0.32 | P36: 0.36 | Q36: 0.39
D37: 50 | E37: 3 | F37: 0.35 | G37: 0.32 | H37: 0.28 | I37: 0.24 | J37: 0.2 | K37: 0.18 | L37: 0.19 | M37: 0.23 | N37: 0.27 | O37: 0.31 | P37: 0.34 | Q37: 0.36
D38: 45 | E38: 4 | F38: 0.34 | G38: 0.32 | H38: 0.28 | I38: 0.24 | J38: 0.21 | K38: 0.2 | L38: 0.2 | M38: 0.23 | N38: 0.27 | O38: 0.3 | P38: 0.34 | Q38: 0.35
D39: 40 | E39: 5 | F39: 0.33 | G39: 0.31 | H39: 0.28 | I39: 0.25 | J39: 0.22 | K39: 0.21 | L39: 0.22 | M39: 0.24 | N39: 0.27 | O39: 0.3 | P39: 0.32 | Q39: 0.34
D40: 35 | E40: 6 | F40: 0.32 | G40: 0.3 | H40: 0.28 | I40: 0.25 | J40: 0.23 | K40: 0.22 | L40: 0.23 | M40: 0.25 | N40: 0.27 | O40: 0.29 | P40: 0.31 | Q40: 0.32
D41: 30 | E41: 7 | F41: 0.31 | G41: 0.3 | H41: 0.28 | I41: 0.26 | J41: 0.24 | K41: 0.23 | L41: 0.24 | M41: 0.25 | N41: 0.27 | O41: 0.29 | P41: 0.31 | Q41: 0.32
D42: 25 | E42: 8 | F42: 0.31 | G42: 0.29 | H42: 0.28 | I42: 0.26 | J42: 0.25 | K42: 0.24 | L42: 0.24 | M42: 0.26 | N42: 0.27 | O42: 0.29 | P42: 0.3 | Q42: 0.31
D43: 20 | E43: 9 | F43: 0.3 | G43: 0.29 | H43: 0.28 | I43: 0.26 | J43: 0.25 | K43: 0.25 | L43: 0.25 | M43: 0.26 | N43: 0.27 | O43: 0.28 | P43: 0.29 | Q43: 0.3
D44: 15 | E44: 10 | F44: 0.29 | G44: 0.28 | H44: 0.28 | I44: 0.27 | J44: 0.26 | K44: 0.25 | L44: 0.26 | M44: 0.26 | N44: 0.27 | O44: 0.28 | P44: 0.29 | Q44: 0.29
D45: 10 | E45: 11 | F45: 0.29 | G45: 0.28 | H45: 0.28 | I45: 0.27 | J45: 0.26 | K45: 0.26 | L45: 0.26 | M45: 0.27 | N45: 0.27 | O45: 0.28 | P45: 0.28 | Q45: 0.29
D46: 5 | E46: 12 | F46: 0.28 | G46: 0.28 | H46: 0.28 | I46: 0.27 | J46: 0.27 | K46: 0.27 | L46: 0.27 | M46: 0.27 | N46: 0.27 | O46: 0.28 | P46: 0.28 | Q46: 0.28
D47: 0 | E47: 13 | F47: 0.27 | G47: 0.27 | H47: 0.27 | I47: 0.27 | J47: 0.27 | K47: 0.27 | L47: 0.27 | M47: 0.27 | N47: 0.27 | O47: 0.27 | P47: 0.27 | Q47: 0.27
B49: Option 2 | C49: Hargreaves method
C50: latitude | D50: =IF($D$3=TRUE,'1 Geographic Data'!$D$37,"") ->  | E50: degree | F50: =IF($D$3=TRUE,'1 Geographic Data'!$G$37,"") ->  | G50: =IF(OR(F50=$G$12,F50=$H$12,F50=$I$12,F50=$J$12,F50=$K$12,F50=$L$12),$G$12,"South") -> South | H50: ="==>" -> ==> | I50: =IF($D$3= TRUE, IF(G50="North",PI()*$D$50/180, PI()*-$D$50/180),"") ->  | J50: Radians
C51: Longitude | D51: =IF($D$3=TRUE,'1 Geographic Data'!$D$38,"") ->  | E51: degree | F51: =IF($D$3=TRUE,'1 Geographic Data'!$G$38,"") -> 
D53: =D14 -> January | E53: February | F53: March | G53: April | H53: May | I53: June | J53: July | K53: August | L53: September | M53: October | N53: November | O53: December
C54: =IF($D$4= TRUE,'1 Geographic Data'!A24,'1 Geographic Data'!A24) -> Maximum daily temperature [°C] | D54: =IF($D$3= TRUE,'1 Geographic Data'!C24, "") ->  | E54: =IF($D$3= TRUE,'1 Geographic Data'!D24, "") ->  | F54: =IF($D$3= TRUE,'1 Geographic Data'!E24, "") ->  | G54: =IF($D$3= TRUE,'1 Geographic Data'!F24, "") ->  | H54: =IF($D$3= TRUE,'1 Geographic Data'!G24, "") ->  | I54: =IF($D$3= TRUE,'1 Geographic Data'!H24, "") ->  | J54: =IF($D$3= TRUE,'1 Geographic Data'!I24, "") ->  | K54: =IF($D$3= TRUE,'1 Geographic Data'!J24, "") ->  | L54: =IF($D$3= TRUE,'1 Geographic Data'!K24, "") ->  | M54: =IF($D$3= TRUE,'1 Geographic Data'!L24, "") ->  | N54: =IF($D$3= TRUE,'1 Geographic Data'!M24, "") ->  | O54: =IF($D$3= TRUE,'1 Geographic Data'!N24, "") -> 
C55: =IF($D$3= TRUE,'1 Geographic Data'!A25,'1 Geographic Data'!A25) -> Minimum daily temperature [°C] | D55: =IF($D$3= TRUE,'1 Geographic Data'!C25, "") ->  | E55: =IF($D$3= TRUE,'1 Geographic Data'!D25, "") ->  | F55: =IF($D$3= TRUE,'1 Geographic Data'!E25, "") ->  | G55: =IF($D$3= TRUE,'1 Geographic Data'!F25, "") ->  | H55: =IF($D$3= TRUE,'1 Geographic Data'!G25, "") ->  | I55: =IF($D$3= TRUE,'1 Geographic Data'!H25, "") ->  | J55: =IF($D$3= TRUE,'1 Geographic Data'!I25, "") ->  | K55: =IF($D$3= TRUE,'1 Geographic Data'!J25, "") ->  | L55: =IF($D$3= TRUE,'1 Geographic Data'!K25, "") ->  | M55: =IF($D$3= TRUE,'1 Geographic Data'!L25, "") ->  | N55: =IF($D$3= TRUE,'1 Geographic Data'!M25, "") ->  | O55: =IF($D$3= TRUE,'1 Geographic Data'!N25, "") -> 
C56: Reference Evapotranspiration | D56: =D65 ->  | E56: =E65 -> 
C58: Mean Temp. [°C] | D58: =IF($D$3= TRUE,(D54+D55)/2,"") ->  | E58: =IF($D$3= TRUE,(E54+E55)/2,"") -> 
C59: Month | D59: 1 | E59: 2 | F59: 3 | G59: 4 | H59: 5 | I59: 6 | J59: 7 | K59: 8 | L59: 9 | M59: 10 | N59: 11 | O59: 12
C60: J | D60: =IF($D$3= TRUE,TRUNC((30.4*D59)-15),"") ->  | E60: =IF($D$3= TRUE,TRUNC((30.4*E59)-15),"") -> 
C61: dr | D61: =IF($D$3= TRUE,1+(0.033*COS(2*PI()*D60/365)),"") ->  | E61: =IF($D$3= TRUE,1+(0.033*COS(2*PI()*E60/365)),"") -> 
C62: Solar Decl. δ [Rad] | D62: =IF($D$3= TRUE,0.4093*SIN((2*PI()*D60/365)-1.39),"") ->  | E62: =IF($D$3= TRUE,0.4093*SIN((2*PI()*E60/365)-1.39),"") -> 
C63: Sunset Angle [Rad] | D63: =IF($D$3= TRUE,ACOS(-TAN($I$50)*TAN(D62)),"") -> 
C64: Ra [MJ m-2 day-1] | D64: =IF($D$3= TRUE,(24*60*0.082*D61/PI())*((D63*SIN($I$50)*SIN(D62))+(COS($I$50)*COS(D62)*SIN(D63))),"") -> 
C65: ETo [mm day-1] | D65: =IF($D$3= TRUE,0.408*0.0023*(D58+17.8)*(D54-D55)^0.5*D64,"") ->  | E65: =IF($D$3= TRUE,0.408*0.0023*(E58+17.8)*(E54-E55)^0.5*E64,"") -> 
B68: Option 3 | C68: FAO Penman-Monteith method
C69: latitude | D69: =IF($D$4=TRUE,'1 Geographic Data'!$D$37,"") ->  | E69: degree | F69: =IF($D$4=TRUE,'1 Geographic Data'!$G$37,"") ->  | G69: =IF(OR(F69=$G$12,F69=$H$12,F69=$I$12,F69=$J$12,F69=$K$12,F69=$L$12),$G$12,"South") -> South | H69: ="==>" -> ==> | I69: =IF($D$4= TRUE,IF(G69="North",PI()*$D$69/180, PI()*-$D$69/180),"") ->  | J69: Radians
C70: Longitude | D70: =IF($D$4=TRUE,'1 Geographic Data'!$D$38,"") ->  | E70: degree | F70: =IF($D$4=TRUE,'1 Geographic Data'!$G$38,"") -> 
C71: Altitude | D71: =IF($D$4=TRUE,'1 Geographic Data'!$D$35,"") ->  | E71: meter
C73: Angstrom values | D73: as | E73: 0.25 | G73: albedo α | H73: 0.23
D74: bs | E74: 0.5
D76: =D14 -> January | E76: February | F76: March | G76: April | H76: May | I76: June | J76: July | K76: August | L76: September | M76: October | N76: November | O76: December
C77: =IF($D$4= TRUE,'1 Geographic Data'!A24,'1 Geographic Data'!A24) -> Maximum daily temperature [°C] | D77: =IF($D$4= TRUE,'1 Geographic Data'!C24,"") ->  | E77: =IF($D$4= TRUE,'1 Geographic Data'!D24,"") ->  | F77: =IF($D$4= TRUE,'1 Geographic Data'!E24,"") ->  | G77: =IF($D$4= TRUE,'1 Geographic Data'!F24,"") ->  | H77: =IF($D$4= TRUE,'1 Geographic Data'!G24,"") ->  | I77: =IF($D$4= TRUE,'1 Geographic Data'!H24,"") ->  | J77: =IF($D$4= TRUE,'1 Geographic Data'!I24,"") ->  | K77: =IF($D$4= TRUE,'1 Geographic Data'!J24,"") ->  | L77: =IF($D$4= TRUE,'1 Geographic Data'!K24,"") ->  | M77: =IF($D$4= TRUE,'1 Geographic Data'!L24,"") ->  | N77: =IF($D$4= TRUE,'1 Geographic Data'!M24,"") ->  | O77: =IF($D$4= TRUE,'1 Geographic Data'!N24,"") -> 
C78: =IF($D$4= TRUE,'1 Geographic Data'!A25,'1 Geographic Data'!A25) -> Minimum daily temperature [°C] | D78: =IF($D$4= TRUE,'1 Geographic Data'!C25,"") ->  | E78: =IF($D$4= TRUE,'1 Geographic Data'!D25,"") ->  | F78: =IF($D$4= TRUE,'1 Geographic Data'!E25,"") ->  | G78: =IF($D$4= TRUE,'1 Geographic Data'!F25,"") ->  | H78: =IF($D$4= TRUE,'1 Geographic Data'!G25,"") ->  | I78: =IF($D$4= TRUE,'1 Geographic Data'!H25,"") ->  | J78: =IF($D$4= TRUE,'1 Geographic Data'!I25,"") ->  | K78: =IF($D$4= TRUE,'1 Geographic Data'!J25,"") ->  | L78: =IF($D$4= TRUE,'1 Geographic Data'!K25,"") ->  | M78: =IF($D$4= TRUE,'1 Geographic Data'!L25,"") ->  | N78: =IF($D$4= TRUE,'1 Geographic Data'!M25,"") ->  | O78: =IF($D$4= TRUE,'1 Geographic Data'!N25,"") -> 
C79: =IF($D$4= TRUE,'1 Geographic Data'!A26,'1 Geographic Data'!A26) -> Relative humidity [%] | D79: =IF($D$4= TRUE,'1 Geographic Data'!C26,"") ->  | E79: =IF($D$4= TRUE,'1 Geographic Data'!D26,"") ->  | F79: =IF($D$4= TRUE,'1 Geographic Data'!E26,"") ->  | G79: =IF($D$4= TRUE,'1 Geographic Data'!F26,"") ->  | H79: =IF($D$4= TRUE,'1 Geographic Data'!G26,"") ->  | I79: =IF($D$4= TRUE,'1 Geographic Data'!H26,"") ->  | J79: =IF($D$4= TRUE,'1 Geographic Data'!I26,"") ->  | K79: =IF($D$4= TRUE,'1 Geographic Data'!J26,"") ->  | L79: =IF($D$4= TRUE,'1 Geographic Data'!K26,"") ->  | M79: =IF($D$4= TRUE,'1 Geographic Data'!L26,"") ->  | N79: =IF($D$4= TRUE,'1 Geographic Data'!M26,"") ->  | O79: =IF($D$4= TRUE,'1 Geographic Data'!N26,"") -> 
C80: =IF($D$4= TRUE,'1 Geographic Data'!A27,'1 Geographic Data'!A27) -> Wind speed [m/s] | D80: =IF($D$4= TRUE,'1 Geographic Data'!C27,"") ->  | E80: =IF($D$4= TRUE,'1 Geographic Data'!D27,"") ->  | F80: =IF($D$4= TRUE,'1 Geographic Data'!E27,"") ->  | G80: =IF($D$4= TRUE,'1 Geographic Data'!F27,"") ->  | H80: =IF($D$4= TRUE,'1 Geographic Data'!G27,"") ->  | I80: =IF($D$4= TRUE,'1 Geographic Data'!H27,"") ->  | J80: =IF($D$4= TRUE,'1 Geographic Data'!I27,"") ->  | K80: =IF($D$4= TRUE,'1 Geographic Data'!J27,"") ->  | L80: =IF($D$4= TRUE,'1 Geographic Data'!K27,"") ->  | M80: =IF($D$4= TRUE,'1 Geographic Data'!L27,"") ->  | N80: =IF($D$4= TRUE,'1 Geographic Data'!M27,"") ->  | O80: =IF($D$4= TRUE,'1 Geographic Data'!N27,"") -> 
C81: =IF($D$4= TRUE,'1 Geographic Data'!A28,'1 Geographic Data'!A28) -> Sunshine [hours] | D81: =IF($D$4= TRUE,'1 Geographic Data'!C28,"") ->  | E81: =IF($D$4= TRUE,'1 Geographic Data'!D28,"") ->  | F81: =IF($D$4= TRUE,'1 Geographic Data'!E28,"") ->  | G81: =IF($D$4= TRUE,'1 Geographic Data'!F28,"") ->  | H81: =IF($D$4= TRUE,'1 Geographic Data'!G28,"") ->  | I81: =IF($D$4= TRUE,'1 Geographic Data'!H28,"") ->  | J81: =IF($D$4= TRUE,'1 Geographic Data'!I28,"") ->  | K81: =IF($D$4= TRUE,'1 Geographic Data'!J28,"") ->  | L81: =IF($D$4= TRUE,'1 Geographic Data'!K28,"") ->  | M81: =IF($D$4= TRUE,'1 Geographic Data'!L28,"") ->  | N81: =IF($D$4= TRUE,'1 Geographic Data'!M28,"") ->  | O81: =IF($D$4= TRUE,'1 Geographic Data'!N28,"") -> 
C82: Reference Evapotranspiration | D82: =D106 ->  | E82: =E106 -> 
C84: Mean Temp. [°C] | D84: =IF($D$4= TRUE,(D77+D78)/2,"") ->  | E84: =IF($D$4= TRUE,(E77+E78)/2,"") -> 
C85: Delta [kPa °C-1] | D85: =IF($D$4= TRUE,4098*(0.6108*EXP((17.27*D84)/(D84+237.3)))/(D84+237.3)^2,"") -> 
C86: e° (Tmax) [KPa] | D86: =IF($D$4= TRUE,0.6108*EXP((17.27*D77)/(D77+237.3)),"") -> 
C87: e° (Tmin) [KPa] | D87: =IF($D$4= TRUE,0.6108*EXP((17.27*D78)/(D78+237.3)),"") -> 
C88: es [KPa] | D88: =IF($D$4= TRUE,(D86+D87)/2,"") ->  | E88: =IF($D$4= TRUE,(E86+E87)/2,"") -> 
C89: ea [KPa] | D89: =IF($D$4= TRUE,D79*D88/100,"") -> 
C90: (es - ea) [KPa] | D90: =IF($D$4= TRUE,D88-D89,"") ->  | E90: =IF($D$4= TRUE,E88-E89,"") -> 
C91: Atm. P [KPa] | D91: =IF($D$4= TRUE,101.3*((293-0.0065*$D$71)/293)^5.26,"") -> 
C92: Gamma, γ [kPa °C-1] | D92: =IF($D$4= TRUE,0.000665*D91,"") ->  | E92: =IF($D$4= TRUE,0.000665*E91,"") -> 
C93: Month | D93: 1 | E93: 2 | F93: 3 | G93: 4 | H93: 5 | I93: 6 | J93: 7 | K93: 8 | L93: 9 | M93: 10 | N93: 11 | O93: 12
C94: J | D94: =IF($D$4= TRUE,TRUNC((30.4*D93)-15),"") ->  | E94: =IF($D$4= TRUE,TRUNC((30.4*E93)-15),"") -> 
C95: dr | D95: =IF($D$4= TRUE,1+(0.033*COS(2*PI()*D94/365)),"") ->  | E95: =IF($D$4= TRUE,1+(0.033*COS(2*PI()*E94/365)),"") -> 
C96: Solar Decl. δ [Rad] | D96: =IF($D$4= TRUE,0.4093*SIN((2*PI()*D94/365)-1.39),"") ->  | E96: =IF($D$4= TRUE,0.4093*SIN((2*PI()*E94/365)-1.39),"") -> 
C97: Sunset Angle [Rad] | D97: =IF($D$4= TRUE,ACOS(-TAN($I$69)*TAN(D96)),"") -> 
C98: Ra [MJ m-2 day-1] | D98: =IF($D$4= TRUE,(24*60*0.082*D95/PI())*((D97*SIN($I$69)*SIN(D96))+(COS($I$69)*COS(D96)*SIN(D97))),"") -> 
C99: Daylight hours N | D99: =IF($D$4= TRUE,24*D97/PI(),"") ->  | E99: =IF($D$4= TRUE,24*E97/PI(),"") -> 
C100: Rs [MJ m-2 day-1] | D100: =IF($D$4= TRUE,($E$73+($E$74*D81/D99))*D98,"") -> 
C101: Rso [MJ m-2 day-1] | D101: =IF($D$4= TRUE,($E$73+$E$74)*D98,"") -> 
C102: Rns [MJ m-2 day-1] | D102: =IF($D$4= TRUE,(1-$H$73)*D100,"") -> 
C103: Rnl [MJ m-2 day-1] | D103: =IF($D$4= TRUE,4.903*10^-9*(((D77+273.16)^4+(D78+273.16)^4)/2)*(0.34-(0.14*SQRT(D89)))*((1.35*D100/D101)-0.35),"") -> 
C104: Rn [MJ m-2 day-1] | D104: =IF($D$4= TRUE,D102-D103,"") ->  | E104: =IF($D$4= TRUE,E102-E103,"") -> 
C105: Gmonth [MJ m-2 day-1] | D105: =IF($D$4= TRUE,0.14*(D84-O84),"") ->  | E105: =IF($D$4= TRUE,0.14*(E84-D84),"") -> 
C106: ETo [mm day-1] | D106: =IF($D$4= TRUE,((0.408*D85*(D104-D105))+(D92*900*D80*D90/(D84+273)))/(D85+(D92*(1+(0.34*D80)))),"") -> 
B108: Option 4 | C108: Reference evapotranspiration
D109: =D14 -> January | E109: February | F109: March | G109: April | H109: May | I109: June | J109: July | K109: August | L109: September | M109: October | N109: November | O109: December
C110: =IF($D$5= TRUE,'1 Geographic Data'!A23,'1 Geographic Data'!A23) -> Mean daily temperature [°C] | D110: =IF($D$5= TRUE,'1 Geographic Data'!C23,'1 Geographic Data'!C23) -> 25.5 | E110: =IF($D$5= TRUE,'1 Geographic Data'!D23,'1 Geographic Data'!D23) -> 25 | F110: =IF($D$5= TRUE,'1 Geographic Data'!E23,'1 Geographic Data'!E23) -> 24.6 | G110: =IF($D$5= TRUE,'1 Geographic Data'!F23,'1 Geographic Data'!F23) -> 23.8 | H110: =IF($D$5= TRUE,'1 Geographic Data'!G23,'1 Geographic Data'!G23) -> 23.9 | I110: =IF($D$5= TRUE,'1 Geographic Data'!H23,'1 Geographic Data'!H23) -> 23.5 | J110: =IF($D$5= TRUE,'1 Geographic Data'!I23,'1 Geographic Data'!I23) -> 23 | K110: =IF($D$5= TRUE,'1 Geographic Data'!J23,'1 Geographic Data'!J23) -> 23 | L110: =IF($D$5= TRUE,'1 Geographic Data'!K23,'1 Geographic Data'!K23) -> 23.6 | M110: =IF($D$5= TRUE,'1 Geographic Data'!L23,'1 Geographic Data'!L23) -> 23.9 | N110: =IF($D$5= TRUE,'1 Geographic Data'!M23,'1 Geographic Data'!M23) -> 23.6 | O110: =IF($D$5= TRUE,'1 Geographic Data'!N23,'1 Geographic Data'!N23) -> 24
C111: =IF($D$5= TRUE,'1 Geographic Data'!A29,'1 Geographic Data'!A29) -> Reference evapotranspiration [mm/day] | D111: =IF($D$5= TRUE,'1 Geographic Data'!C29,"") ->  | E111: =IF($D$5= TRUE,'1 Geographic Data'!D29,"") ->  | F111: =IF($D$5= TRUE,'1 Geographic Data'!E29,"") ->  | G111: =IF($D$5= TRUE,'1 Geographic Data'!F29,"") ->  | H111: =IF($D$5= TRUE,'1 Geographic Data'!G29,"") ->  | I111: =IF($D$5= TRUE,'1 Geographic Data'!H29,"") ->  | J111: =IF($D$5= TRUE,'1 Geographic Data'!I29,"") ->  | K111: =IF($D$5= TRUE,'1 Geographic Data'!J29,"") ->  | L111: =IF($D$5= TRUE,'1 Geographic Data'!K29,"") ->  | M111: =IF($D$5= TRUE,'1 Geographic Data'!L29,"") ->  | N111: =IF($D$5= TRUE,'1 Geographic Data'!M29,"") ->  | O111: =IF($D$5= TRUE,'1 Geographic Data'!N29,"") -> 
D114: =D14 -> January | E114: February | F114: March | G114: April | H114: May | I114: June | J114: July | K114: August | L114: September | M114: October | N114: November | O114: December
B115: Final Values | C115: Reference Evapotranspiration | D115: =IF($D$2= TRUE, D17, IF($D$3= TRUE, D65,IF($D$4= TRUE, D82,D111))) -> 5.3271 | E115: 5.265 | F115: 5.21532 | G115: 5.30544 | H115: 5.31832 | I115: 5.2668 | J115: 5.2024 | K115: 5.2024 | L115: 5.27968 | M115: 5.12838 | N115: 5.09112 | O115: 5.1408
C116: ='1 Geographic Data'!$A$23 -> Mean daily temperature [°C] | D116: =IF($D$2= TRUE, D15, IF($D$3= TRUE, D58,IF($D$4= TRUE, D84,D110))) -> 25.5 | E116: 25 | F116: 24.6 | G116: 23.8 | H116: 23.9 | I116: 23.5 | J116: 23 | K116: 23 | L116: 23.6 | M116: 23.9 | N116: 23.6 | O116: 24
C117: ='1 Geographic Data'!A30 -> Rainfall [mm/month] | D117: ='1 Geographic Data'!C30 -> 45 | E117: ='1 Geographic Data'!D30 -> 33 | F117: ='1 Geographic Data'!E30 -> 69.3 | G117: ='1 Geographic Data'!F30 -> 142.8 | H117: ='1 Geographic Data'!G30 -> 109.8 | I117: ='1 Geographic Data'!H30 -> 38.1 | J117: ='1 Geographic Data'!I30 -> 27 | K117: ='1 Geographic Data'!J30 -> 21.6 | L117: ='1 Geographic Data'!K30 -> 18.3 | M117: ='1 Geographic Data'!L30 -> 48.3 | N117: ='1 Geographic Data'!M30 -> 97.2 | O117: ='1 Geographic Data'!N30 -> 86.1
A120: Calculation of crop water requiremnet and irrigation requirement
C122: Year | D122: ='Crop Calculation Sheet'!H6 -> 2021 | E122: ='Crop Calculation Sheet'!I6 -> 2021 | F122: ='Crop Calculation Sheet'!J6 -> 2021 | G122: ='Crop Calculation Sheet'!K6 -> 2021 | H122: ='Crop Calculation Sheet'!L6 -> 2021 | I122: ='Crop Calculation Sheet'!M6 -> 2021 | J122: ='Crop Calculation Sheet'!N6 -> 2021 | K122: ='Crop Calculation Sheet'!O6 -> 2021 | L122: ='Crop Calculation Sheet'!P6 -> 2022 | M122: ='Crop Calculation Sheet'!Q6 -> 2022 | N122: ='Crop Calculation Sheet'!R6 -> 2022 | O122: ='Crop Calculation Sheet'!S6 -> 2022 | P122: ='Crop Calculation Sheet'!T6 -> 2022 | Q122: ='Crop Calculation Sheet'!U6 -> 2022 | R122: ='Crop Calculation Sheet'!V6 -> 2022 | S122: ='Crop Calculation Sheet'!W6 -> 2022 | T122: ='Crop Calculation Sheet'!X6 -> 2022 | U122: ='Crop Calculation Sheet'!Y6 -> 2022 | V122: ='Crop Calculation Sheet'!Z6 -> 2022 | W122: ='Crop Calculation Sheet'!AA6 -> 2022 | X122: ='Crop Calculation Sheet'!AB6 -> 2023 | Y122: ='Crop Calculation Sheet'!AC6 -> 2023 | Z122: ='Crop Calculation Sheet'!AD6 -> 2023 | AA122: ='Crop Calculation Sheet'!AE6 -> 2023
C123: Month of the year | D123: =PROPER('Crop Calculation Sheet'!H7) -> May | E123: =PROPER('Crop Calculation Sheet'!I7) -> June | F123: =PROPER('Crop Calculation Sheet'!J7) -> July | G123: =PROPER('Crop Calculation Sheet'!K7) -> August | H123: =PROPER('Crop Calculation Sheet'!L7) -> September | I123: =PROPER('Crop Calculation Sheet'!M7) -> October | J123: =PROPER('Crop Calculation Sheet'!N7) -> November | K123: =PROPER('Crop Calculation Sheet'!O7) -> December | L123: =PROPER('Crop Calculation Sheet'!P7) -> January | M123: =PROPER('Crop Calculation Sheet'!Q7) -> February | N123: =PROPER('Crop Calculation Sheet'!R7) -> March | O123: =PROPER('Crop Calculation Sheet'!S7) -> April | P123: =PROPER('Crop Calculation Sheet'!T7) -> May | Q123: =PROPER('Crop Calculation Sheet'!U7) -> June | R123: =PROPER('Crop Calculation Sheet'!V7) -> July | S123: =PROPER('Crop Calculation Sheet'!W7) -> August | T123: =PROPER('Crop Calculation Sheet'!X7) -> September | U123: =PROPER('Crop Calculation Sheet'!Y7) -> October | V123: =PROPER('Crop Calculation Sheet'!Z7) -> November | W123: =PROPER('Crop Calculation Sheet'!AA7) -> December | X123: =PROPER('Crop Calculation Sheet'!AB7) -> January | Y123: =PROPER('Crop Calculation Sheet'!AC7) -> February | Z123: =PROPER('Crop Calculation Sheet'!AD7) -> March | AA123: =PROPER('Crop Calculation Sheet'!AE7) -> April
C124: Days per month | D124: ='Crop Calculation Sheet'!H9 -> 31 | E124: ='Crop Calculation Sheet'!I9 -> 30 | F124: ='Crop Calculation Sheet'!J9 -> 31 | G124: ='Crop Calculation Sheet'!K9 -> 31 | H124: ='Crop Calculation Sheet'!L9 -> 30 | I124: ='Crop Calculation Sheet'!M9 -> 31 | J124: ='Crop Calculation Sheet'!N9 -> 30 | K124: ='Crop Calculation Sheet'!O9 -> 31 | L124: ='Crop Calculation Sheet'!P9 -> 31 | M124: ='Crop Calculation Sheet'!Q9 -> 28 | N124: ='Crop Calculation Sheet'!R9 -> 31 | O124: ='Crop Calculation Sheet'!S9 -> 30 | P124: ='Crop Calculation Sheet'!T9 -> 31 | Q124: ='Crop Calculation Sheet'!U9 -> 30 | R124: ='Crop Calculation Sheet'!V9 -> 31 | S124: ='Crop Calculation Sheet'!W9 -> 31 | T124: ='Crop Calculation Sheet'!X9 -> 30 | U124: ='Crop Calculation Sheet'!Y9 -> 31 | V124: ='Crop Calculation Sheet'!Z9 -> 30 | W124: ='Crop Calculation Sheet'!AA9 -> 31 | X124: ='Crop Calculation Sheet'!AB9 -> 31 | Y124: ='Crop Calculation Sheet'!AC9 -> 28 | Z124: ='Crop Calculation Sheet'!AD9 -> 31 | AA124: ='Crop Calculation Sheet'!AE9 -> 30
C125: ='General Calculation'!$C$115 -> Reference Evapotranspiration | D125: ='Crop Calculation Sheet'!H10 -> 5.31832 | E125: ='Crop Calculation Sheet'!I10 -> 5.2668 | F125: ='Crop Calculation Sheet'!J10 -> 5.2024 | G125: ='Crop Calculation Sheet'!K10 -> 5.2024 | H125: ='Crop Calculation Sheet'!L10 -> 5.27968 | I125: ='Crop Calculation Sheet'!M10 -> 5.12838 | J125: ='Crop Calculation Sheet'!N10 -> 5.09112 | K125: ='Crop Calculation Sheet'!O10 -> 5.1408 | L125: ='Crop Calculation Sheet'!P10 -> 5.3271 | M125: ='Crop Calculation Sheet'!Q10 -> 5.265 | N125: ='Crop Calculation Sheet'!R10 -> 5.21532 | O125: ='Crop Calculation Sheet'!S10 -> 5.30544 | P125: ='Crop Calculation Sheet'!T10 -> 5.31832 | Q125: ='Crop Calculation Sheet'!U10 -> 5.2668 | R125: ='Crop Calculation Sheet'!V10 -> 5.2024 | S125: ='Crop Calculation Sheet'!W10 -> 5.2024 | T125: ='Crop Calculation Sheet'!X10 -> 5.27968 | U125: ='Crop Calculation Sheet'!Y10 -> 5.12838 | V125: ='Crop Calculation Sheet'!Z10 -> 5.09112 | W125: ='Crop Calculation Sheet'!AA10 -> 5.1408 | X125: ='Crop Calculation Sheet'!AB10 -> 5.3271 | Y125: ='Crop Calculation Sheet'!AC10 -> 5.265 | Z125: ='Crop Calculation Sheet'!AD10 -> 5.21532 | AA125: ='Crop Calculation Sheet'!AE10 -> 5.30544
C126: =C116 -> Mean daily temperature [°C] | D126: =VLOOKUP($C$126,$C$114:$O$117,MATCH(D$123,$C$114:$O$114,0),FALSE) -> 23.9 | E126: =VLOOKUP($C$126,$C$114:$O$117,MATCH(E$123,$C$114:$O$114,0),FALSE) -> 23.5 | F126: 23 | G126: 23 | H126: 23.6 | I126: 23.9 | J126: 23.6 | K126: 24 | L126: 25.5 | M126: 25 | N126: 24.6 | O126: 23.8 | P126: 23.9 | Q126: 23.5 | R126: 23 | S126: 23 | T126: 23.6 | U126: 23.9 | V126: 23.6 | W126: 24 | X126: 25.5 | Y126: 25 | Z126: 24.6 | AA126: 23.8
C127: =C117 -> Rainfall [mm/month] | D127: =VLOOKUP($C$127,$C$114:$O$117,MATCH(D$123,$C$114:$O$114,0),FALSE) -> 109.8 | E127: 38.1 | F127: 27 | G127: 21.6 | H127: 18.3 | I127: 48.3 | J127: 97.2 | K127: 86.1 | L127: 45 | M127: 33 | N127: 69.3 | O127: 142.8 | P127: 109.8 | Q127: 38.1 | R127: 27 | S127: 21.6 | T127: 18.3 | U127: 48.3 | V127: 97.2 | W127: 86.1 | X127: 45 | Y127: 33 | Z127: 69.3 | AA127: 142.8
C128: =Translate!$C$170 -> Effective rainfall [mm/month] | D128: =IF(D127<=70,IF(0.6*D127-10>0,0.6*D127-10,0),IF(0.8*D127-24>0,0.8*D127-24,0)) -> 63.84 | E128: =IF(E127<=70,IF(0.6*E127-10>0,0.6*E127-10,0),IF(0.8*E127-24>0,0.8*E127-24,0)) -> 12.86 | F128: 6.2 | G128: 2.96 | H128: 0.98 | I128: 18.98 | J128: 53.76 | K128: 44.88 | L128: 17 | M128: 9.8 | N128: 31.58 | O128: =IF(O127<=70,IF(0.6*O127-10>0,0.6*O127-10,0),IF(0.8*O127-24>0,0.8*O127-24,0)) -> 90.24 | P128: =IF(P127<=70,IF(0.6*P127-10>0,0.6*P127-10,0),IF(0.8*P127-24>0,0.8*P127-24,0)) -> 63.84 | Q128: 12.86 | R128: 6.2 | S128: 2.96 | T128: 0.98 | U128: 18.98 | V128: 53.76 | W128: 44.88 | X128: 17 | Y128: 9.8 | Z128: 31.58 | AA128: 90.24
B131: Crop Water Requirement [mm/month]
B132: ='Crop Calculation Sheet'!E12 -> Crop 1 | C132: =IF('Data Validation Sheet'!$F25=TRUE,'Crop Calculation Sheet'!$F$12,"") -> Carrots | D132: =IF('Data Validation Sheet'!$F25=TRUE,'Crop Calculation Sheet'!H$12,0) -> 119.5026504 | E132: =IF('Data Validation Sheet'!$F25=TRUE,'Crop Calculation Sheet'!I$12,0) -> 155.396934 | F132: =IF('Data Validation Sheet'!$F25=TRUE,'Crop Calculation Sheet'!J$12,0) -> 167.309184 | G132: =IF('Data Validation Sheet'!$F25=TRUE,'Crop Calculation Sheet'!K$12,0) -> 40.266576 | H132: =IF('Data Validation Sheet'!$F25=TRUE,'Crop Calculation Sheet'!L$12,0) -> 0 | I132: =IF('Data Validation Sheet'!$F25=TRUE,'Crop Calculation Sheet'!M$12,0) -> 0 | J132: =IF('Data Validation Sheet'!$F25=TRUE,'Crop Calculation Sheet'!N$12,0) -> 0 | K132: =IF('Data Validation Sheet'!$F25=TRUE,'Crop Calculation Sheet'!O$12,0) -> 0 | L132: =IF('Data Validation Sheet'!$F25=TRUE,'Crop Calculation Sheet'!P$12,0) -> 0 | M132: =IF('Data Validation Sheet'!$F25=TRUE,'Crop Calculation Sheet'!Q$12,0) -> 0 | N132: =IF('Data Validation Sheet'!$F25=TRUE,'Crop Calculation Sheet'!R$12,0) -> 0 | O132: =IF('Data Validation Sheet'!$F25=TRUE,'Crop Calculation Sheet'!S$12,0) -> 0 | P132: =IF('Data Validation Sheet'!$F25=TRUE,'Crop Calculation Sheet'!T$12,0) -> 0 | Q132: =IF('Data Validation Sheet'!$F25=TRUE,'Crop Calculation Sheet'!U$12,0) -> 0 | R132: =IF('Data Validation Sheet'!$F25=TRUE,'Crop Calculation Sheet'!V$12,0) -> 0 | S132: =IF('Data Validation Sheet'!$F25=TRUE,'Crop Calculation Sheet'!W$12,0) -> 0 | T132: =IF('Data Validation Sheet'!$F25=TRUE,'Crop Calculation Sheet'!X$12,0) -> 0 | U132: =IF('Data Validation Sheet'!$F25=TRUE,'Crop Calculation Sheet'!Y$12,0) -> 0 | V132: =IF('Data Validation Sheet'!$F25=TRUE,'Crop Calculation Sheet'!Z$12,0) -> 0 | W132: =IF('Data Validation Sheet'!$F25=TRUE,'Crop Calculation Sheet'!AA$12,0) -> 0 | X132: =IF('Data Validation Sheet'!$F25=TRUE,'Crop Calculation Sheet'!AB$12,0) -> 0 | Y132: =IF('Data Validation Sheet'!$F25=TRUE,'Crop Calculation Sheet'!AC$12,0) -> 0 | Z132: =IF('Data Validation Sheet'!$F25=TRUE,'Crop Calculation Sheet'!AD$12,0) -> 0 | AA132: =IF('Data Validation Sheet'!$F25=TRUE,'Crop Calculation Sheet'!AE$12,0) -> 0 | AC132: =IF(C132="","1 -","1 - "&Translate!$C$171&" "&C132&" "&Translate!$C$172) -> 1 - CWR - Carrots [mm/month]
B133: ='Crop Calculation Sheet'!E15 -> Crop 2 | C133: =IF('Data Validation Sheet'!$F26=TRUE,'Crop Calculation Sheet'!$F$15,"") -> Carrots | D133: =IF('Data Validation Sheet'!$F26=TRUE,'Crop Calculation Sheet'!H$15,0) -> 0 | E133: =IF('Data Validation Sheet'!$F26=TRUE,'Crop Calculation Sheet'!I$15,0) -> 0 | F133: =IF('Data Validation Sheet'!$F26=TRUE,'Crop Calculation Sheet'!J$15,0) -> 0 | G133: =IF('Data Validation Sheet'!$F26=TRUE,'Crop Calculation Sheet'!K$15,0) -> 0 | H133: =IF('Data Validation Sheet'!$F26=TRUE,'Crop Calculation Sheet'!L$15,0) -> 0 | I133: =IF('Data Validation Sheet'!$F26=TRUE,'Crop Calculation Sheet'!M$15,0) -> 0 | J133: =IF('Data Validation Sheet'!$F26=TRUE,'Crop Calculation Sheet'!N$15,0) -> 0 | K133: =IF('Data Validation Sheet'!$F26=TRUE,'Crop Calculation Sheet'!O$15,0) -> 0 | L133: =IF('Data Validation Sheet'!$F26=TRUE,'Crop Calculation Sheet'!P$15,0) -> 0 | M133: =IF('Data Validation Sheet'!$F26=TRUE,'Crop Calculation Sheet'!Q$15,0) -> 0 | N133: =IF('Data Validation Sheet'!$F26=TRUE,'Crop Calculation Sheet'!R$15,0) -> 0 | O133: =IF('Data Validation Sheet'!$F26=TRUE,'Crop Calculation Sheet'!S$15,0) -> 0 | P133: =IF('Data Validation Sheet'!$F26=TRUE,'Crop Calculation Sheet'!T$15,0) -> 0 | Q133: =IF('Data Validation Sheet'!$F26=TRUE,'Crop Calculation Sheet'!U$15,0) -> 0 | R133: =IF('Data Validation Sheet'!$F26=TRUE,'Crop Calculation Sheet'!V$15,0) -> 116.897928 | S133: =IF('Data Validation Sheet'!$F26=TRUE,'Crop Calculation Sheet'!W$15,0) -> 158.959332 | T133: =IF('Data Validation Sheet'!$F26=TRUE,'Crop Calculation Sheet'!X$15,0) -> 164.2508448 | U133: =IF('Data Validation Sheet'!$F26=TRUE,'Crop Calculation Sheet'!Y$15,0) -> 39.6936612 | V133: =IF('Data Validation Sheet'!$F26=TRUE,'Crop Calculation Sheet'!Z$15,0) -> 0 | W133: =IF('Data Validation Sheet'!$F26=TRUE,'Crop Calculation Sheet'!AA$15,0) -> 0 | X133: =IF('Data Validation Sheet'!$F26=TRUE,'Crop Calculation Sheet'!AB$15,0) -> 0 | Y133: =IF('Data Validation Sheet'!$F26=TRUE,'Crop Calculation Sheet'!AC$15,0) -> 0 | Z133: =IF('Data Validation Sheet'!$F26=TRUE,'Crop Calculation Sheet'!AD$15,0) -> 0 | AA133: =IF('Data Validation Sheet'!$F26=TRUE,'Crop Calculation Sheet'!AE$15,0) -> 0 | AC133: =IF(C133="","2 -","2 - "&Translate!$C$171&" "&C133&" "&Translate!$C$172) -> 2 - CWR - Carrots [mm/month]
B134: ='Crop Calculation Sheet'!E18 -> Crop 3 | C134: =IF('Data Validation Sheet'!$F27=TRUE,'Crop Calculation Sheet'!$F$18,"") ->  | D134: =IF('Data Validation Sheet'!$F27=TRUE,'Crop Calculation Sheet'!H$18,0) -> 0 | E134: =IF('Data Validation Sheet'!$F27=TRUE,'Crop Calculation Sheet'!I$18,0) -> 0 | F134: =IF('Data Validation Sheet'!$F27=TRUE,'Crop Calculation Sheet'!J$18,0) -> 0 | G134: =IF('Data Validation Sheet'!$F27=TRUE,'Crop Calculation Sheet'!K$18,0) -> 0 | H134: =IF('Data Validation Sheet'!$F27=TRUE,'Crop Calculation Sheet'!L$18,0) -> 0 | I134: =IF('Data Validation Sheet'!$F27=TRUE,'Crop Calculation Sheet'!M$18,0) -> 0 | J134: =IF('Data Validation Sheet'!$F27=TRUE,'Crop Calculation Sheet'!N$18,0) -> 0 | K134: =IF('Data Validation Sheet'!$F27=TRUE,'Crop Calculation Sheet'!O$18,0) -> 0 | L134: =IF('Data Validation Sheet'!$F27=TRUE,'Crop Calculation Sheet'!P$18,0) -> 0 | M134: =IF('Data Validation Sheet'!$F27=TRUE,'Crop Calculation Sheet'!Q$18,0) -> 0 | N134: =IF('Data Validation Sheet'!$F27=TRUE,'Crop Calculation Sheet'!R$18,0) -> 0 | O134: =IF('Data Validation Sheet'!$F27=TRUE,'Crop Calculation Sheet'!S$18,0) -> 0 | P134: =IF('Data Validation Sheet'!$F27=TRUE,'Crop Calculation Sheet'!T$18,0) -> 0 | Q134: =IF('Data Validation Sheet'!$F27=TRUE,'Crop Calculation Sheet'!U$18,0) -> 0 | R134: =IF('Data Validation Sheet'!$F27=TRUE,'Crop Calculation Sheet'!V$18,0) -> 0 | S134: =IF('Data Validation Sheet'!$F27=TRUE,'Crop Calculation Sheet'!W$18,0) -> 0 | T134: =IF('Data Validation Sheet'!$F27=TRUE,'Crop Calculation Sheet'!X$18,0) -> 0 | U134: =IF('Data Validation Sheet'!$F27=TRUE,'Crop Calculation Sheet'!Y$18,0) -> 0 | V134: =IF('Data Validation Sheet'!$F27=TRUE,'Crop Calculation Sheet'!Z$18,0) -> 0 | W134: =IF('Data Validation Sheet'!$F27=TRUE,'Crop Calculation Sheet'!AA$18,0) -> 0 | X134: =IF('Data Validation Sheet'!$F27=TRUE,'Crop Calculation Sheet'!AB$18,0) -> 0 | Y134: =IF('Data Validation Sheet'!$F27=TRUE,'Crop Calculation Sheet'!AC$18,0) -> 0 | Z134: =IF('Data Validation Sheet'!$F27=TRUE,'Crop Calculation Sheet'!AD$18,0) -> 0 | AA134: =IF('Data Validation Sheet'!$F27=TRUE,'Crop Calculation Sheet'!AE$18,0) -> 0 | AC134: =IF(C134="","3 -","3 - "&Translate!$C$171&" "&C134&" "&Translate!$C$172) -> 3 -
B135: ='Crop Calculation Sheet'!E21 -> Crop 4 | C135: =IF('Data Validation Sheet'!$F28=TRUE,'Crop Calculation Sheet'!$F$21,"") ->  | D135: =IF('Data Validation Sheet'!$F28=TRUE,'Crop Calculation Sheet'!H$21,0) -> 0 | E135: =IF('Data Validation Sheet'!$F28=TRUE,'Crop Calculation Sheet'!I$21,0) -> 0 | F135: =IF('Data Validation Sheet'!$F28=TRUE,'Crop Calculation Sheet'!J$21,0) -> 0 | G135: =IF('Data Validation Sheet'!$F28=TRUE,'Crop Calculation Sheet'!K$21,0) -> 0 | H135: =IF('Data Validation Sheet'!$F28=TRUE,'Crop Calculation Sheet'!L$21,0) -> 0 | I135: =IF('Data Validation Sheet'!$F28=TRUE,'Crop Calculation Sheet'!M$21,0) -> 0 | J135: =IF('Data Validation Sheet'!$F28=TRUE,'Crop Calculation Sheet'!N$21,0) -> 0 | K135: =IF('Data Validation Sheet'!$F28=TRUE,'Crop Calculation Sheet'!O$21,0) -> 0 | L135: =IF('Data Validation Sheet'!$F28=TRUE,'Crop Calculation Sheet'!P$21,0) -> 0 | M135: =IF('Data Validation Sheet'!$F28=TRUE,'Crop Calculation Sheet'!Q$21,0) -> 0 | N135: =IF('Data Validation Sheet'!$F28=TRUE,'Crop Calculation Sheet'!R$21,0) -> 0 | O135: =IF('Data Validation Sheet'!$F28=TRUE,'Crop Calculation Sheet'!S$21,0) -> 0 | P135: =IF('Data Validation Sheet'!$F28=TRUE,'Crop Calculation Sheet'!T$21,0) -> 0 | Q135: =IF('Data Validation Sheet'!$F28=TRUE,'Crop Calculation Sheet'!U$21,0) -> 0 | R135: =IF('Data Validation Sheet'!$F28=TRUE,'Crop Calculation Sheet'!V$21,0) -> 0 | S135: =IF('Data Validation Sheet'!$F28=TRUE,'Crop Calculation Sheet'!W$21,0) -> 0 | T135: =IF('Data Validation Sheet'!$F28=TRUE,'Crop Calculation Sheet'!X$21,0) -> 0 | U135: =IF('Data Validation Sheet'!$F28=TRUE,'Crop Calculation Sheet'!Y$21,0) -> 0 | V135: =IF('Data Validation Sheet'!$F28=TRUE,'Crop Calculation Sheet'!Z$21,0) -> 0 | W135: =IF('Data Validation Sheet'!$F28=TRUE,'Crop Calculation Sheet'!AA$21,0) -> 0 | X135: =IF('Data Validation Sheet'!$F28=TRUE,'Crop Calculation Sheet'!AB$21,0) -> 0 | Y135: =IF('Data Validation Sheet'!$F28=TRUE,'Crop Calculation Sheet'!AC$21,0) -> 0 | Z135: =IF('Data Validation Sheet'!$F28=TRUE,'Crop Calculation Sheet'!AD$21,0) -> 0 | AA135: =IF('Data Validation Sheet'!$F28=TRUE,'Crop Calculation Sheet'!AE$21,0) -> 0 | AC135: =IF(C135="","4 -","4 - "&Translate!$C$171&" "&C135&" "&Translate!$C$172) -> 4 -
B136: ='Crop Calculation Sheet'!E24 -> Crop 5 | C136: =IF('Data Validation Sheet'!$F29=TRUE,'Crop Calculation Sheet'!$F$24,"") ->  | D136: =IF('Data Validation Sheet'!$F29=TRUE,'Crop Calculation Sheet'!H$24,0) -> 0 | E136: =IF('Data Validation Sheet'!$F29=TRUE,'Crop Calculation Sheet'!I$24,0) -> 0 | F136: =IF('Data Validation Sheet'!$F29=TRUE,'Crop Calculation Sheet'!J$24,0) -> 0 | G136: =IF('Data Validation Sheet'!$F29=TRUE,'Crop Calculation Sheet'!K$24,0) -> 0 | H136: =IF('Data Validation Sheet'!$F29=TRUE,'Crop Calculation Sheet'!L$24,0) -> 0 | I136: =IF('Data Validation Sheet'!$F29=TRUE,'Crop Calculation Sheet'!M$24,0) -> 0 | J136: =IF('Data Validation Sheet'!$F29=TRUE,'Crop Calculation Sheet'!N$24,0) -> 0 | K136: =IF('Data Validation Sheet'!$F29=TRUE,'Crop Calculation Sheet'!O$24,0) -> 0 | L136: =IF('Data Validation Sheet'!$F29=TRUE,'Crop Calculation Sheet'!P$24,0) -> 0 | M136: =IF('Data Validation Sheet'!$F29=TRUE,'Crop Calculation Sheet'!Q$24,0) -> 0 | N136: =IF('Data Validation Sheet'!$F29=TRUE,'Crop Calculation Sheet'!R$24,0) -> 0 | O136: =IF('Data Validation Sheet'!$F29=TRUE,'Crop Calculation Sheet'!S$24,0) -> 0 | P136: =IF('Data Validation Sheet'!$F29=TRUE,'Crop Calculation Sheet'!T$24,0) -> 0 | Q136: =IF('Data Validation Sheet'!$F29=TRUE,'Crop Calculation Sheet'!U$24,0) -> 0 | R136: =IF('Data Validation Sheet'!$F29=TRUE,'Crop Calculation Sheet'!V$24,0) -> 0 | S136: =IF('Data Validation Sheet'!$F29=TRUE,'Crop Calculation Sheet'!W$24,0) -> 0 | T136: =IF('Data Validation Sheet'!$F29=TRUE,'Crop Calculation Sheet'!X$24,0) -> 0 | U136: =IF('Data Validation Sheet'!$F29=TRUE,'Crop Calculation Sheet'!Y$24,0) -> 0 | V136: =IF('Data Validation Sheet'!$F29=TRUE,'Crop Calculation Sheet'!Z$24,0) -> 0 | W136: =IF('Data Validation Sheet'!$F29=TRUE,'Crop Calculation Sheet'!AA$24,0) -> 0 | X136: =IF('Data Validation Sheet'!$F29=TRUE,'Crop Calculation Sheet'!AB$24,0) -> 0 | Y136: =IF('Data Validation Sheet'!$F29=TRUE,'Crop Calculation Sheet'!AC$24,0) -> 0 | Z136: =IF('Data Validation Sheet'!$F29=TRUE,'Crop Calculation Sheet'!AD$24,0) -> 0 | AA136: =IF('Data Validation Sheet'!$F29=TRUE,'Crop Calculation Sheet'!AE$24,0) -> 0 | AC136: =IF(C136="","5 -","5 - "&Translate!$C$171&" "&C136&" "&Translate!$C$172) -> 5 -
B138: Irrigation Method | C138: Efficiency %
B140: =Translate!C144 -> Surface: Graded furrow | C140: 65
B141: =Translate!C145 -> Surface: with tailwater reuse | C141: 75
B142: =Translate!C146 -> Surface: Graded border/basins | C142: 65
B143: =Translate!C147 -> Sprinkler: Periodic move | C143: 75
B144: =Translate!C148 -> Sprinkler: Side roll | C144: 75
B145: =Translate!C149 -> Sprinkler: Moving big gun | C145: 65
B146: =Translate!C150 -> Center pivot: Impact heads with end gun | C146: 80
B147: =Translate!C151 -> Center pivot: Spray heads without end gun | C147: 90
B148: =Translate!C152 -> Center pivot: LEPA without end gun | C148: 95
B149: =Translate!C153 -> Lateral move: Spray heads with hose feed | C149: 90
B150: =Translate!C154 -> Lateral move: Spray heads with canal feed | C150: 85
B151: =Translate!C155 -> Microirrigation: Drip irrigation | C151: 90
B152: =Translate!C156 -> Microirrigation: Subsurface drip | C152: 90
B153: =Translate!C157 -> Microirrigation: Microspray | C153: 85
B154: =Translate!C158 -> Garden hose | C154: 70
B158: Net Irrigation Requirement [mm/month]
B159: =B132 -> Crop 1 | C159: Carrots | D159: =IF(D132-D$128<0,0,D132-D$128) -> 55.6626504 | E159: 142.536934 | F159: 161.109184 | G159: 37.306576 | H159: 0 | I159: 0 | J159: 0 | K159: 0 | L159: 0 | M159: 0 | N159: 0 | O159: 0 | P159: 0 | Q159: 0 | R159: 0 | S159: 0 | T159: 0 | U159: 0 | V159: 0 | W159: 0 | X159: 0 | Y159: 0 | Z159: 0 | AA159: 0 | AE159: Crop Density
B160: Crop 2 | C160: Carrots | D160: =IF(D133-D$128<0,0,D133-D$128) -> 0 | E160: 0 | F160: 0 | G160: 0 | H160: 0 | I160: 0 | J160: 0 | K160: 0 | L160: 0 | M160: 0 | N160: 0 | O160: =IF(O133-O$128<0,0,O133-O$128) -> 0 | P160: 0 | Q160: 0 | R160: 110.697928 | S160: 155.999332 | T160: 163.2708448 | U160: 20.7136612 | V160: 0 | W160: 0 | X160: 0 | Y160: 0 | Z160: 0 | AA160: 0 | AE160: =Translate!C159 -> Normal spacing
B161: Crop 3 | D161: =IF(D134-D$128<0,0,D134-D$128) -> 0 | E161: 0 | F161: 0 | G161: 0 | H161: 0 | I161: 0 | J161: 0 | K161: 0 | L161: 0 | M161: 0 | N161: 0 | O161: 0 | P161: 0 | Q161: 0 | R161: 0 | S161: 0 | T161: 0 | U161: 0 | V161: 0 | W161: 0 | X161: 0 | Y161: 0 | Z161: 0 | AA161: 0 | AE161: =Translate!C160 -> Double spacing
B162: Crop 4 | D162: =IF(D135-D$128<0,0,D135-D$128) -> 0 | E162: 0 | F162: 0 | G162: 0 | H162: 0 | I162: 0 | J162: 0 | K162: 0 | L162: 0 | M162: 0 | N162: 0 | O162: 0 | P162: 0 | Q162: 0 | R162: 0 | S162: 0 | T162: 0 | U162: 0 | V162: 0 | W162: 0 | X162: 0 | Y162: 0 | Z162: 0 | AA162: 0 | AE162: =Translate!C161 -> Triple spacing
B163: Crop 5 | D163: =IF(D136-D$128<0,0,D136-D$128) -> 0 | E163: 0 | F163: 0 | G163: 0 | H163: 0 | I163: 0 | J163: 0 | K163: 0 | L163: 0 | M163: 0 | N163: 0 | O163: 0 | P163: 0 | Q163: 0 | R163: 0 | S163: 0 | T163: 0 | U163: 0 | V163: 0 | W163: 0 | X163: 0 | Y163: 0 | Z163: 0 | AA163: 0
B165: Gross Irrigation Requirement [mm/month] | AB165: ="Area in "&'2 Crop Water Requirement'!C8 -> Area in acre | AC165: Irrigation Method | AD165: Efficiency | AE165: Cropping Density | AF165: Actual Area in ha
B166: =B159 -> Crop 1 | C166: Carrots | D166: =IFERROR(D159/$AD166,0) -> 61.84738933 | E166: =IFERROR(E159/$AD166,0) -> 158.3743711 | F166: 179.0102044 | G166: 41.45175111 | H166: 0 | I166: 0 | J166: 0 | K166: 0 | L166: 0 | M166: 0 | N166: 0 | O166: 0 | P166: 0 | Q166: 0 | R166: 0 | S166: 0 | T166: 0 | U166: 0 | V166: 0 | W166: 0 | X166: 0 | Y166: 0 | Z166: 0 | AA166: 0 | AB166: ='2 Crop Water Requirement'!$D$22 -> 2.5 | AC166: ='2 Crop Water Requirement'!$J$22 -> Microirrigation: Drip irrigation | AD166: =IFERROR(VLOOKUP(AC166,$B$139:$C$156,2,FALSE)/100,"") -> 0.9 | AE166: =IF('2 Crop Water Requirement'!$P$22=$AE$160,1,IF('2 Crop Water Requirement'!$P$22=$AE$161,0.5,0.3)) -> 1 | AF166: =AB166*AE166/'2 Crop Water Requirement'!$G$8 -> 1.011715667
B167: Crop 2 | C167: Carrots | D167: =IFERROR(D160/$AD167,0) -> 0 | E167: =IFERROR(E160/$AD167,0) -> 0 | F167: 0 | G167: 0 | H167: 0 | I167: 0 | J167: 0 | K167: 0 | L167: 0 | M167: 0 | N167: 0 | O167: 0 | P167: 0 | Q167: 0 | R167: 122.9976978 | S167: 173.3325911 | T167: 181.4120498 | U167: 23.01517911 | V167: 0 | W167: 0 | X167: 0 | Y167: 0 | Z167: 0 | AA167: 0 | AB167: ='2 Crop Water Requirement'!$D$24 -> 2.5 | AC167: ='2 Crop Water Requirement'!$J$24 -> Microirrigation: Drip irrigation | AD167: =IFERROR(VLOOKUP(AC167,$B$139:$C$156,2,FALSE)/100,"") -> 0.9 | AE167: =IF('2 Crop Water Requirement'!$P$24=$AE$160,1,IF('2 Crop Water Requirement'!$P$24=$AE$161,0.5,0.3)) -> 1 | AF167: =AB167*AE167/'2 Crop Water Requirement'!$G$8 -> 1.011715667
B168: Crop 3 | D168: =IFERROR(D161/$AD168,0) -> 0 | E168: =IFERROR(E161/$AD168,0) -> 0 | F168: 0 | G168: 0 | H168: 0 | I168: 0 | J168: 0 | K168: 0 | L168: 0 | M168: 0 | N168: 0 | O168: 0 | P168: 0 | Q168: 0 | R168: 0 | S168: 0 | T168: 0 | U168: 0 | V168: 0 | W168: 0 | X168: 0 | Y168: 0 | Z168: 0 | AA168: 0 | AB168: ='2 Crop Water Requirement'!$D$26 -> 0 | AC168: ='2 Crop Water Requirement'!$J$26 -> 0 | AD168: =IFERROR(VLOOKUP(AC168,$B$139:$C$156,2,FALSE)/100,"") ->  | AE168: =IF('2 Crop Water Requirement'!$P$26=$AE$160,1,IF('2 Crop Water Requirement'!$P$26=$AE$161,0.5,0.3)) -> 1 | AF168: =AB168*AE168/'2 Crop Water Requirement'!$G$8 -> 0
B169: Crop 4 | D169: =IFERROR(D162/$AD169,0) -> 0 | E169: =IFERROR(E162/$AD169,0) -> 0 | F169: 0 | G169: 0 | H169: 0 | I169: 0 | J169: 0 | K169: 0 | L169: 0 | M169: 0 | N169: 0 | O169: 0 | P169: 0 | Q169: 0 | R169: 0 | S169: 0 | T169: 0 | U169: 0 | V169: 0 | W169: 0 | X169: 0 | Y169: 0 | Z169: 0 | AA169: 0 | AB169: ='2 Crop Water Requirement'!$D$28 -> 0 | AC169: ='2 Crop Water Requirement'!$J$28 -> 0 | AD169: =IFERROR(VLOOKUP(AC169,$B$139:$C$156,2,FALSE)/100,"") ->  | AE169: =IF('2 Crop Water Requirement'!$P$28=$AE$160,1,IF('2 Crop Water Requirement'!$P$28=$AE$161,0.5,0.3)) -> 1 | AF169: =AB169*AE169/'2 Crop Water Requirement'!$G$8 -> 0
B170: Crop 5 | D170: =IFERROR(D163/$AD170,0) -> 0 | E170: =IFERROR(E163/$AD170,0) -> 0 | F170: 0 | G170: 0 | H170: 0 | I170: =IFERROR(I163/$AD170,0) -> 0 | J170: 0 | K170: 0 | L170: 0 | M170: 0 | N170: 0 | O170: 0 | P170: 0 | Q170: 0 | R170: 0 | S170: 0 | T170: 0 | U170: 0 | V170: 0 | W170: 0 | X170: 0 | Y170: 0 | Z170: 0 | AA170: 0 | AB170: ='2 Crop Water Requirement'!$D$30 -> 0 | AC170: ='2 Crop Water Requirement'!$J$30 -> 0 | AD170: =IFERROR(VLOOKUP(AC170,$B$139:$C$156,2,FALSE)/100,"") ->  | AE170: =IF('2 Crop Water Requirement'!$P$30=$AE$160,1,IF('2 Crop Water Requirement'!$P$30=$AE$161,0.5,0.3)) -> 1 | AF170: =AB170*AE170/'2 Crop Water Requirement'!$G$8 -> 0
B172: Gross Irrigation Requirement [m3/month]
B173: =B166 -> Crop 1 | C173: Carrots | D173: =D166*$AF166*10 -> 625.7197278 | E173: 1602.298326 | F173: 1811.074285 | G173: 419.3738604 | H173: 0 | I173: 0 | J173: 0 | K173: 0 | L173: 0 | M173: 0 | N173: 0 | O173: 0 | P173: 0 | Q173: 0 | R173: 0 | S173: 0 | T173: 0 | U173: 0 | V173: 0 | W173: 0 | X173: 0 | Y173: 0 | Z173: 0 | AA173: 0
B174: Crop 2 | C174: Carrots | D174: =D167*$AF167*10 -> 0 | E174: 0 | F174: 0 | G174: 0 | H174: 0 | I174: 0 | J174: 0 | K174: 0 | L174: 0 | M174: 0 | N174: 0 | O174: 0 | P174: 0 | Q174: 0 | R174: 1244.386979 | S174: 1753.632981 | T174: 1835.37413 | U174: 232.848173 | V174: 0 | W174: 0 | X174: 0 | Y174: 0 | Z174: 0 | AA174: 0
B175: Crop 3 | D175: =D168*$AF168*10 -> 0 | E175: 0 | F175: 0 | G175: 0 | H175: 0 | I175: 0 | J175: 0 | K175: 0 | L175: 0 | M175: 0 | N175: 0 | O175: 0 | P175: 0 | Q175: 0 | R175: 0 | S175: 0 | T175: 0 | U175: 0 | V175: 0 | W175: 0 | X175: 0 | Y175: 0 | Z175: 0 | AA175: 0
B176: Crop 4 | D176: =D169*$AF169*10 -> 0 | E176: 0 | F176: 0 | G176: 0 | H176: 0 | I176: 0 | J176: 0 | K176: 0 | L176: 0 | M176: 0 | N176: 0 | O176: 0 | P176: 0 | Q176: 0 | R176: 0 | S176: 0 | T176: 0 | U176: 0 | V176: 0 | W176: 0 | X176: 0 | Y176: 0 | Z176: 0 | AA176: 0
B177: Crop 5 | D177: =D170*$AF170*10 -> 0 | E177: 0 | F177: 0 | G177: 0 | H177: 0 | I177: 0 | J177: 0 | K177: 0 | L177: 0 | M177: 0 | N177: 0 | O177: 0 | P177: 0 | Q177: 0 | R177: 0 | S177: 0 | T177: 0 | U177: 0 | V177: 0 | W177: 0 | X177: 0 | Y177: 0 | Z177: 0 | AA177: 0
C178: Total | D178: =SUM(D173:D177) -> 625.7197278 | E178: =SUM(E173:E177) -> 1602.298326 | F178: 1811.074285 | G178: 419.3738604 | H178: 0 | I178: 0 | J178: 0 | K178: 0 | L178: 0 | M178: 0 | N178: 0 | O178: 0 | P178: 0 | Q178: 0 | R178: 1244.386979 | S178: 1753.632981 | T178: 1835.37413 | U178: 232.848173 | V178: 0 | W178: 0 | X178: 0 | Y178: 0 | Z178: 0 | AA178: 0
B180: Gross Irrigation Requirement [m3/day]
B181: =B173 -> Crop 1 | C181: Carrots | D181: =IFERROR(D173/'Crop Calculation Sheet'!H13,0) -> 20.18450735 | E181: =IFERROR(E173/'Crop Calculation Sheet'!I13,0) -> 53.40994419 | F181: =IFERROR(F173/'Crop Calculation Sheet'!J13,0) -> 58.42175112 | G181: =IFERROR(G173/'Crop Calculation Sheet'!K13,0) -> 52.42173255 | H181: =IFERROR(H173/'Crop Calculation Sheet'!L13,0) -> 0 | I181: =IFERROR(I173/'Crop Calculation Sheet'!M13,0) -> 0 | J181: =IFERROR(J173/'Crop Calculation Sheet'!N13,0) -> 0 | K181: =IFERROR(K173/'Crop Calculation Sheet'!O13,0) -> 0 | L181: =IFERROR(L173/'Crop Calculation Sheet'!P13,0) -> 0 | M181: =IFERROR(M173/'Crop Calculation Sheet'!Q13,0) -> 0 | N181: =IFERROR(N173/'Crop Calculation Sheet'!R13,0) -> 0 | O181: =IFERROR(O173/'Crop Calculation Sheet'!S13,0) -> 0 | P181: =IFERROR(P173/'Crop Calculation Sheet'!T13,0) -> 0 | Q181: =IFERROR(Q173/'Crop Calculation Sheet'!U13,0) -> 0 | R181: =IFERROR(R173/'Crop Calculation Sheet'!V13,0) -> 0 | S181: =IFERROR(S173/'Crop Calculation Sheet'!W13,0) -> 0 | T181: =IFERROR(T173/'Crop Calculation Sheet'!X13,0) -> 0 | U181: =IFERROR(U173/'Crop Calculation Sheet'!Y13,0) -> 0 | V181: =IFERROR(V173/'Crop Calculation Sheet'!Z13,0) -> 0 | W181: =IFERROR(W173/'Crop Calculation Sheet'!AA13,0) -> 0 | X181: =IFERROR(X173/'Crop Calculation Sheet'!AB13,0) -> 0 | Y181: =IFERROR(Y173/'Crop Calculation Sheet'!AC13,0) -> 0 | Z181: =IFERROR(Z173/'Crop Calculation Sheet'!AD13,0) -> 0 | AA181: =IFERROR(AA173/'Crop Calculation Sheet'!AE13,0) -> 0
B182: Crop 2 | C182: Carrots | D182: =IFERROR(D174/'Crop Calculation Sheet'!H16,0) -> 0 | E182: =IFERROR(E174/'Crop Calculation Sheet'!I16,0) -> 0 | F182: =IFERROR(F174/'Crop Calculation Sheet'!J16,0) -> 0 | G182: =IFERROR(G174/'Crop Calculation Sheet'!K16,0) -> 0 | H182: =IFERROR(H174/'Crop Calculation Sheet'!L16,0) -> 0 | I182: =IFERROR(I174/'Crop Calculation Sheet'!M16,0) -> 0 | J182: =IFERROR(J174/'Crop Calculation Sheet'!N16,0) -> 0 | K182: =IFERROR(K174/'Crop Calculation Sheet'!O16,0) -> 0 | L182: =IFERROR(L174/'Crop Calculation Sheet'!P16,0) -> 0 | M182: =IFERROR(M174/'Crop Calculation Sheet'!Q16,0) -> 0 | N182: =IFERROR(N174/'Crop Calculation Sheet'!R16,0) -> 0 | O182: =IFERROR(O174/'Crop Calculation Sheet'!S16,0) -> 0 | P182: =IFERROR(P174/'Crop Calculation Sheet'!T16,0) -> 0 | Q182: =IFERROR(Q174/'Crop Calculation Sheet'!U16,0) -> 0 | R182: =IFERROR(R174/'Crop Calculation Sheet'!V16,0) -> 40.14151545 | S182: =IFERROR(S174/'Crop Calculation Sheet'!W16,0) -> 56.56880584 | T182: =IFERROR(T174/'Crop Calculation Sheet'!X16,0) -> 61.17913767 | U182: =IFERROR(U174/'Crop Calculation Sheet'!Y16,0) -> 29.10602162 | V182: =IFERROR(V174/'Crop Calculation Sheet'!Z16,0) -> 0 | W182: =IFERROR(W174/'Crop Calculation Sheet'!AA16,0) -> 0 | X182: =IFERROR(X174/'Crop Calculation Sheet'!AB16,0) -> 0 | Y182: =IFERROR(Y174/'Crop Calculation Sheet'!AC16,0) -> 0 | Z182: =IFERROR(Z174/'Crop Calculation Sheet'!AD16,0) -> 0 | AA182: =IFERROR(AA174/'Crop Calculation Sheet'!AE16,0) -> 0
B183: Crop 3 | D183: =IFERROR(D175/'Crop Calculation Sheet'!H19,0) -> 0 | E183: =IFERROR(E175/'Crop Calculation Sheet'!I19,0) -> 0 | F183: =IFERROR(F175/'Crop Calculation Sheet'!J19,0) -> 0 | G183: =IFERROR(G175/'Crop Calculation Sheet'!K19,0) -> 0 | H183: =IFERROR(H175/'Crop Calculation Sheet'!L19,0) -> 0 | I183: =IFERROR(I175/'Crop Calculation Sheet'!M19,0) -> 0 | J183: =IFERROR(J175/'Crop Calculation Sheet'!N19,0) -> 0 | K183: =IFERROR(K175/'Crop Calculation Sheet'!O19,0) -> 0 | L183: =IFERROR(L175/'Crop Calculation Sheet'!P19,0) -> 0 | M183: =IFERROR(M175/'Crop Calculation Sheet'!Q19,0) -> 0 | N183: =IFERROR(N175/'Crop Calculation Sheet'!R19,0) -> 0 | O183: =IFERROR(O175/'Crop Calculation Sheet'!S19,0) -> 0 | P183: =IFERROR(P175/'Crop Calculation Sheet'!T19,0) -> 0 | Q183: =IFERROR(Q175/'Crop Calculation Sheet'!U19,0) -> 0 | R183: =IFERROR(R175/'Crop Calculation Sheet'!V19,0) -> 0 | S183: =IFERROR(S175/'Crop Calculation Sheet'!W19,0) -> 0 | T183: =IFERROR(T175/'Crop Calculation Sheet'!X19,0) -> 0 | U183: =IFERROR(U175/'Crop Calculation Sheet'!Y19,0) -> 0 | V183: =IFERROR(V175/'Crop Calculation Sheet'!Z19,0) -> 0 | W183: =IFERROR(W175/'Crop Calculation Sheet'!AA19,0) -> 0 | X183: =IFERROR(X175/'Crop Calculation Sheet'!AB19,0) -> 0 | Y183: =IFERROR(Y175/'Crop Calculation Sheet'!AC19,0) -> 0 | Z183: =IFERROR(Z175/'Crop Calculation Sheet'!AD19,0) -> 0 | AA183: =IFERROR(AA175/'Crop Calculation Sheet'!AE19,0) -> 0
B184: Crop 4 | D184: =IFERROR(D176/'Crop Calculation Sheet'!H22,0) -> 0 | E184: =IFERROR(E176/'Crop Calculation Sheet'!I22,0) -> 0 | F184: =IFERROR(F176/'Crop Calculation Sheet'!J22,0) -> 0 | G184: =IFERROR(G176/'Crop Calculation Sheet'!K22,0) -> 0 | H184: =IFERROR(H176/'Crop Calculation Sheet'!L22,0) -> 0 | I184: =IFERROR(I176/'Crop Calculation Sheet'!M22,0) -> 0 | J184: =IFERROR(J176/'Crop Calculation Sheet'!N22,0) -> 0 | K184: =IFERROR(K176/'Crop Calculation Sheet'!O22,0) -> 0 | L184: =IFERROR(L176/'Crop Calculation Sheet'!P22,0) -> 0 | M184: =IFERROR(M176/'Crop Calculation Sheet'!Q22,0) -> 0 | N184: =IFERROR(N176/'Crop Calculation Sheet'!R22,0) -> 0 | O184: =IFERROR(O176/'Crop Calculation Sheet'!S22,0) -> 0 | P184: =IFERROR(P176/'Crop Calculation Sheet'!T22,0) -> 0 | Q184: =IFERROR(Q176/'Crop Calculation Sheet'!U22,0) -> 0 | R184: =IFERROR(R176/'Crop Calculation Sheet'!V22,0) -> 0 | S184: =IFERROR(S176/'Crop Calculation Sheet'!W22,0) -> 0 | T184: =IFERROR(T176/'Crop Calculation Sheet'!X22,0) -> 0 | U184: =IFERROR(U176/'Crop Calculation Sheet'!Y22,0) -> 0 | V184: =IFERROR(V176/'Crop Calculation Sheet'!Z22,0) -> 0 | W184: =IFERROR(W176/'Crop Calculation Sheet'!AA22,0) -> 0 | X184: =IFERROR(X176/'Crop Calculation Sheet'!AB22,0) -> 0 | Y184: =IFERROR(Y176/'Crop Calculation Sheet'!AC22,0) -> 0 | Z184: =IFERROR(Z176/'Crop Calculation Sheet'!AD22,0) -> 0 | AA184: =IFERROR(AA176/'Crop Calculation Sheet'!AE22,0) -> 0
B185: Crop 5 | D185: =IFERROR(D177/'Crop Calculation Sheet'!H25,0) -> 0 | E185: =IFERROR(E177/'Crop Calculation Sheet'!I25,0) -> 0 | F185: =IFERROR(F177/'Crop Calculation Sheet'!J25,0) -> 0 | G185: =IFERROR(G177/'Crop Calculation Sheet'!K25,0) -> 0 | H185: =IFERROR(H177/'Crop Calculation Sheet'!L25,0) -> 0 | I185: =IFERROR(I177/'Crop Calculation Sheet'!M25,0) -> 0 | J185: =IFERROR(J177/'Crop Calculation Sheet'!N25,0) -> 0 | K185: =IFERROR(K177/'Crop Calculation Sheet'!O25,0) -> 0 | L185: =IFERROR(L177/'Crop Calculation Sheet'!P25,0) -> 0 | M185: =IFERROR(M177/'Crop Calculation Sheet'!Q25,0) -> 0 | N185: =IFERROR(N177/'Crop Calculation Sheet'!R25,0) -> 0 | O185: =IFERROR(O177/'Crop Calculation Sheet'!S25,0) -> 0 | P185: =IFERROR(P177/'Crop Calculation Sheet'!T25,0) -> 0 | Q185: =IFERROR(Q177/'Crop Calculation Sheet'!U25,0) -> 0 | R185: =IFERROR(R177/'Crop Calculation Sheet'!V25,0) -> 0 | S185: =IFERROR(S177/'Crop Calculation Sheet'!W25,0) -> 0 | T185: =IFERROR(T177/'Crop Calculation Sheet'!X25,0) -> 0 | U185: =IFERROR(U177/'Crop Calculation Sheet'!Y25,0) -> 0 | V185: =IFERROR(V177/'Crop Calculation Sheet'!Z25,0) -> 0 | W185: =IFERROR(W177/'Crop Calculation Sheet'!AA25,0) -> 0 | X185: =IFERROR(X177/'Crop Calculation Sheet'!AB25,0) -> 0 | Y185: =IFERROR(Y177/'Crop Calculation Sheet'!AC25,0) -> 0 | Z185: =IFERROR(Z177/'Crop Calculation Sheet'!AD25,0) -> 0 | AA185: =IFERROR(AA177/'Crop Calculation Sheet'!AE25,0) -> 0
C186: =Translate!$C$173 -> Total irrigation water need [m3/day] | D186: =SUM(D181:D185) -> 20.18450735 | E186: =SUM(E181:E185) -> 53.40994419 | F186: =SUM(F181:F185) -> 58.42175112 | G186: 52.42173255 | H186: 0 | I186: 0 | J186: 0 | K186: 0 | L186: 0 | M186: 0 | N186: 0 | O186: 0 | P186: 0 | Q186: 0 | R186: 40.14151545 | S186: 56.56880584 | T186: 61.17913767 | U186: 29.10602162 | V186: 0 | W186: 0 | X186: 0 | Y186: 0 | Z186: 0 | AA186: 0
C187: Month | D187: =D123 -> May | E187: =E123 -> June | F187: July | G187: August | H187: September | I187: October | J187: November | K187: December | L187: January | M187: February | N187: March | O187: April | P187: May | Q187: June | R187: July | S187: August | T187: September | U187: October | V187: November | W187: December | X187: January | Y187: February | Z187: March | AA187: April
C188: Year | D188: =D122 -> 2021 | E188: =E122 -> 2021 | F188: 2021 | G188: 2021 | H188: 2021 | I188: 2021 | J188: 2021 | K188: 2021 | L188: 2022 | M188: 2022 | N188: 2022 | O188: 2022 | P188: 2022 | Q188: 2022 | R188: 2022 | S188: 2022 | T188: 2022 | U188: 2022 | V188: 2022 | W188: 2022 | X188: 2023 | Y188: 2023 | Z188: 2023 | AA188: 2023
C190: Yearly irrigation water need: | D190: =SUM(D178:O178) -> 4458.466199 | E190: Year 1 | H190: =SUM(P178:AA178) -> 5066.242263 | I190: Year 2
C191: Maximum daily irrigation water need: | D191: =MAX(D186:O186) -> 58.42175112 | E191: =IF(D191=0,"",INDEX(D187:O187,MATCH(D191,D186:O186,0))) -> July | F191: =IF(D191=0,"",INDEX(D188:O188,MATCH(D191,D186:O186,0))) -> 2021 | H191: =MAX(P186:AA186) -> 61.17913767 | I191: =IF(H191=0,"",INDEX(P187:AA187,MATCH(H191,P186:AA186,0))) -> September | J191: =IF(H191=0,"",INDEX(P188:AA188,MATCH(H191,P186:AA186,0))) -> 2022
C192: Average daily irrigation water need | D192: =AVERAGE(D186:O186) -> 15.36982793 | H192: =AVERAGE(P186:AA186) -> 15.58295672
C193: Pump utilization rate | D193: =IFERROR(D192/D191,0) -> 0.2630839994 | H193: =IFERROR(H192/H191,0) -> 0.2547103033
A197: Calculation of livestock water requiremnet
B199: Livestock water Requirement [l/day]
D200: =D187 -> May | E200: =E187 -> June | F200: July | G200: August | H200: September | I200: October | J200: November | K200: December | L200: January | M200: February | N200: March | O200: April
B201: Livestock 1 | C201: ='3 Livestock Water Requirement'!$B$22 -> 0 | D201: =IFERROR(IF('3 Livestock Water Requirement'!E$23="",0,'3 Livestock Water Requirement'!E$23),0) -> 0 | E201: =IFERROR(IF('3 Livestock Water Requirement'!F$23="","",'3 Livestock Water Requirement'!F$23),0) ->  | F201: =IFERROR(IF('3 Livestock Water Requirement'!G$23="","",'3 Livestock Water Requirement'!G$23),0) ->  | G201: =IFERROR(IF('3 Livestock Water Requirement'!H$23="","",'3 Livestock Water Requirement'!H$23),0) ->  | H201: =IFERROR(IF('3 Livestock Water Requirement'!I$23="","",'3 Livestock Water Requirement'!I$23),0) ->  | I201: =IFERROR(IF('3 Livestock Water Requirement'!J$23="","",'3 Livestock Water Requirement'!J$23),0) ->  | J201: =IFERROR(IF('3 Livestock Water Requirement'!K$23="","",'3 Livestock Water Requirement'!K$23),0) ->  | K201: =IFERROR(IF('3 Livestock Water Requirement'!L$23="","",'3 Livestock Water Requirement'!L$23),0) ->  | L201: =IFERROR(IF('3 Livestock Water Requirement'!M$23="","",'3 Livestock Water Requirement'!M$23),0) ->  | M201: =IFERROR(IF('3 Livestock Water Requirement'!N$23="","",'3 Livestock Water Requirement'!N$23),0) ->  | N201: =IFERROR(IF('3 Livestock Water Requirement'!O$23="","",'3 Livestock Water Requirement'!O$23),0) ->  | O201: =IFERROR(IF('3 Livestock Water Requirement'!P$23="","",'3 Livestock Water Requirement'!P$23),0) -> 
B202: Livestock 2 | C202: ='3 Livestock Water Requirement'!$B$25 -> 0 | D202: =IFERROR(IF('3 Livestock Water Requirement'!E$26="",0,'3 Livestock Water Requirement'!E$26),0) -> 0 | E202: =IFERROR(IF('3 Livestock Water Requirement'!F$26="",0,'3 Livestock Water Requirement'!F$26),0) -> 0 | F202: =IFERROR(IF('3 Livestock Water Requirement'!G$26="",0,'3 Livestock Water Requirement'!G$26),0) -> 0 | G202: =IFERROR(IF('3 Livestock Water Requirement'!H$26="",0,'3 Livestock Water Requirement'!H$26),0) -> 0 | H202: =IFERROR(IF('3 Livestock Water Requirement'!I$26="",0,'3 Livestock Water Requirement'!I$26),0) -> 0 | I202: =IFERROR(IF('3 Livestock Water Requirement'!J$26="",0,'3 Livestock Water Requirement'!J$26),0) -> 0 | J202: =IFERROR(IF('3 Livestock Water Requirement'!K$26="",0,'3 Livestock Water Requirement'!K$26),0) -> 0 | K202: =IFERROR(IF('3 Livestock Water Requirement'!L$26="",0,'3 Livestock Water Requirement'!L$26),0) -> 0 | L202: =IFERROR(IF('3 Livestock Water Requirement'!M$26="",0,'3 Livestock Water Requirement'!M$26),0) -> 0 | M202: =IFERROR(IF('3 Livestock Water Requirement'!N$26="",0,'3 Livestock Water Requirement'!N$26),0) -> 0 | N202: =IFERROR(IF('3 Livestock Water Requirement'!O$26="",0,'3 Livestock Water Requirement'!O$26),0) -> 0 | O202: =IFERROR(IF('3 Livestock Water Requirement'!P$26="",0,'3 Livestock Water Requirement'!P$26),0) -> 0
B203: Livestock 3 | C203: ='3 Livestock Water Requirement'!$B$28 -> 0 | D203: =IFERROR(IF('3 Livestock Water Requirement'!E$29="",0,'3 Livestock Water Requirement'!E$29),0) -> 0 | E203: =IFERROR(IF('3 Livestock Water Requirement'!F$29="",0,'3 Livestock Water Requirement'!F$29),0) -> 0 | F203: =IFERROR(IF('3 Livestock Water Requirement'!G$29="",0,'3 Livestock Water Requirement'!G$29),0) -> 0 | G203: =IFERROR(IF('3 Livestock Water Requirement'!H$29="",0,'3 Livestock Water Requirement'!H$29),0) -> 0 | H203: =IFERROR(IF('3 Livestock Water Requirement'!I$29="",0,'3 Livestock Water Requirement'!I$29),0) -> 0 | I203: =IFERROR(IF('3 Livestock Water Requirement'!J$29="",0,'3 Livestock Water Requirement'!J$29),0) -> 0 | J203: =IFERROR(IF('3 Livestock Water Requirement'!K$29="",0,'3 Livestock Water Requirement'!K$29),0) -> 0 | K203: =IFERROR(IF('3 Livestock Water Requirement'!L$29="",0,'3 Livestock Water Requirement'!L$29),0) -> 0 | L203: =IFERROR(IF('3 Livestock Water Requirement'!M$29="",0,'3 Livestock Water Requirement'!M$29),0) -> 0 | M203: =IFERROR(IF('3 Livestock Water Requirement'!N$29="",0,'3 Livestock Water Requirement'!N$29),0) -> 0 | N203: =IFERROR(IF('3 Livestock Water Requirement'!O$29="",0,'3 Livestock Water Requirement'!O$29),0) -> 0 | O203: =IFERROR(IF('3 Livestock Water Requirement'!P$29="",0,'3 Livestock Water Requirement'!P$29),0) -> 0
B204: Livestock 4 | C204: ='3 Livestock Water Requirement'!$B$31 -> 0 | D204: =IFERROR(IF('3 Livestock Water Requirement'!E$32="",0,'3 Livestock Water Requirement'!E$32),0) -> 0 | E204: =IFERROR(IF('3 Livestock Water Requirement'!F$32="",0,'3 Livestock Water Requirement'!F$32),0) -> 0 | F204: =IFERROR(IF('3 Livestock Water Requirement'!G$32="",0,'3 Livestock Water Requirement'!G$32),0) -> 0 | G204: =IFERROR(IF('3 Livestock Water Requirement'!H$32="",0,'3 Livestock Water Requirement'!H$32),0) -> 0 | H204: =IFERROR(IF('3 Livestock Water Requirement'!I$32="",0,'3 Livestock Water Requirement'!I$32),0) -> 0 | I204: =IFERROR(IF('3 Livestock Water Requirement'!J$32="",0,'3 Livestock Water Requirement'!J$32),0) -> 0 | J204: =IFERROR(IF('3 Livestock Water Requirement'!K$32="",0,'3 Livestock Water Requirement'!K$32),0) -> 0 | K204: =IFERROR(IF('3 Livestock Water Requirement'!L$32="",0,'3 Livestock Water Requirement'!L$32),0) -> 0 | L204: =IFERROR(IF('3 Livestock Water Requirement'!M$32="",0,'3 Livestock Water Requirement'!M$32),0) -> 0 | M204: =IFERROR(IF('3 Livestock Water Requirement'!N$32="",0,'3 Livestock Water Requirement'!N$32),0) -> 0 | N204: =IFERROR(IF('3 Livestock Water Requirement'!O$32="",0,'3 Livestock Water Requirement'!O$32),0) -> 0 | O204: =IFERROR(IF('3 Livestock Water Requirement'!P$32="",0,'3 Livestock Water Requirement'!P$32),0) -> 0
B205: Livestock 5 | C205: ='3 Livestock Water Requirement'!$B$34 -> 0 | D205: =IFERROR(IF('3 Livestock Water Requirement'!E$35="",0,'3 Livestock Water Requirement'!E$35),0) -> 0 | E205: =IFERROR(IF('3 Livestock Water Requirement'!F$35="",0,'3 Livestock Water Requirement'!F$35),0) -> 0 | F205: =IFERROR(IF('3 Livestock Water Requirement'!G$35="",0,'3 Livestock Water Requirement'!G$35),0) -> 0 | G205: =IFERROR(IF('3 Livestock Water Requirement'!H$35="",0,'3 Livestock Water Requirement'!H$35),0) -> 0 | H205: =IFERROR(IF('3 Livestock Water Requirement'!I$35="",0,'3 Livestock Water Requirement'!I$35),0) -> 0 | I205: =IFERROR(IF('3 Livestock Water Requirement'!J$35="",0,'3 Livestock Water Requirement'!J$35),0) -> 0 | J205: =IFERROR(IF('3 Livestock Water Requirement'!K$35="",0,'3 Livestock Water Requirement'!K$35),0) -> 0 | K205: =IFERROR(IF('3 Livestock Water Requirement'!L$35="",0,'3 Livestock Water Requirement'!L$35),0) -> 0 | L205: =IFERROR(IF('3 Livestock Water Requirement'!M$35="",0,'3 Livestock Water Requirement'!M$35),0) -> 0 | M205: =IFERROR(IF('3 Livestock Water Requirement'!N$35="",0,'3 Livestock Water Requirement'!N$35),0) -> 0 | N205: =IFERROR(IF('3 Livestock Water Requirement'!O$35="",0,'3 Livestock Water Requirement'!O$35),0) -> 0 | O205: =IFERROR(IF('3 Livestock Water Requirement'!P$35="",0,'3 Livestock Water Requirement'!P$35),0) -> 0
B208: Livestock water Requirement [m3/day]
B209: Livestock 1 | C209: =C201 -> 0 | D209: =D201/1000 -> 0 | E209: =E201/1000 ->  | P209: =D209 -> 0 | Q209: =E209 -> 
B210: Livestock 2 | C210: =C202 -> 0 | D210: =D202/1000 -> 0 | E210: 0 | F210: 0 | G210: 0 | H210: 0 | I210: 0 | J210: 0 | K210: 0 | L210: 0 | M210: 0 | N210: 0 | O210: 0 | P210: =D210 -> 0 | Q210: 0 | R210: 0 | S210: 0 | T210: 0 | U210: 0 | V210: 0 | W210: 0 | X210: 0 | Y210: 0 | Z210: 0 | AA210: 0
B211: Livestock 3 | C211: =C203 -> 0 | D211: 0 | E211: 0 | F211: 0 | G211: 0 | H211: 0 | I211: 0 | J211: 0 | K211: 0 | L211: 0 | M211: 0 | N211: 0 | O211: 0 | P211: 0 | Q211: 0 | R211: 0 | S211: 0 | T211: 0 | U211: 0 | V211: 0 | W211: 0 | X211: 0 | Y211: 0 | Z211: 0 | AA211: 0
B212: Livestock 4 | C212: =C204 -> 0 | D212: 0 | E212: 0 | F212: 0 | G212: 0 | H212: 0 | I212: 0 | J212: 0 | K212: 0 | L212: 0 | M212: 0 | N212: 0 | O212: 0 | P212: 0 | Q212: 0 | R212: 0 | S212: 0 | T212: 0 | U212: 0 | V212: 0 | W212: 0 | X212: 0 | Y212: 0 | Z212: 0 | AA212: 0
B213: Livestock 5 | C213: =C205 -> 0 | D213: 0 | E213: 0 | F213: 0 | G213: 0 | H213: 0 | I213: 0 | J213: 0 | K213: 0 | L213: 0 | M213: 0 | N213: 0 | O213: 0 | P213: 0 | Q213: 0 | R213: 0 | S213: 0 | T213: 0 | U213: 0 | V213: 0 | W213: 0 | X213: 0 | Y213: 0 | Z213: 0 | AA213: 0
C214: Daily livestock water need [m3/day] | D214: =SUM(D209:D213) -> 0 | E214: =SUM(E209:E213) ->  | F214: =SUM(F209:F213) ->  | P214: 0
C215: Month | D215: =D187 -> May | E215: June | F215: July | G215: August | H215: September | I215: October | J215: November | K215: December | L215: January | M215: February | N215: March | O215: April | P215: May | Q215: June | R215: July | S215: August | T215: September | U215: October | V215: November | W215: December | X215: January | Y215: February | Z215: March | AA215: April
C216: Year | D216: =D188 -> 2021 | E216: 2021 | F216: 2021 | G216: 2021 | H216: 2021 | I216: 2021 | J216: 2021 | K216: 2021 | L216: 2022 | M216: 2022 | N216: 2022 | O216: 2022 | P216: 2022 | Q216: 2022 | R216: 2022 | S216: 2022 | T216: 2022 | U216: 2022 | V216: 2022 | W216: 2022 | X216: 2023 | Y216: 2023 | Z216: 2023 | AA216: 2023
C218: Monthly livestock water need [m3/month] | D218: =D$214*D$124 -> 0 | P218: 0
C220: Yearly livestock water need: | D220: =SUM(D218:O218) -> 
C221: Maximum daily irrigation water need: | D221: =MAX(D214:O214) ->  | E221: =INDEX(D215:AA215,MATCH(D221,D214:AA214,0)) -> 
C222: Average daily irrigation water need | D222: =AVERAGE(D214:O214) -> 
C223: Pump utilization rate | D223: =D222/D221 -> 
A227: Summary
C229: Year | D229: =D216 -> 2021 | E229: =E216 -> 2021 | F229: 2021 | G229: 2021 | H229: 2021 | I229: 2021 | J229: 2021 | K229: 2021 | L229: 2022 | M229: 2022 | N229: 2022 | O229: 2022 | P229: 2022 | Q229: 2022 | R229: 2022 | S229: 2022 | T229: 2022 | U229: 2022 | V229: 2022 | W229: 2022 | X229: 2023 | Y229: 2023 | Z229: 2023 | AA229: 2023
C230: Month | D230: =D215 -> May | E230: =E215 -> June | F230: July | G230: August | H230: September | I230: October | J230: November | K230: December | L230: January | M230: February | N230: March | O230: April | P230: May | Q230: June | R230: July | S230: August | T230: September | U230: October | V230: November | W230: December | X230: January | Y230: February | Z230: March | AA230: April
C231: Daily irrigation water need [m3/day] | D231: =D186 -> 20.18450735 | E231: 53.40994419 | F231: 58.42175112 | G231: 52.42173255 | H231: 0 | I231: 0 | J231: 0 | K231: 0 | L231: 0 | M231: 0 | N231: 0 | O231: 0 | P231: 0 | Q231: 0 | R231: 40.14151545 | S231: 56.56880584 | T231: 61.17913767 | U231: 29.10602162 | V231: 0 | W231: 0 | X231: 0 | Y231: 0 | Z231: 0 | AA231: 0
C232: Daily livestock water need [m3/day] | D232: =D214 -> 0 | E232: =E214 ->  | P232: 0
C233: Total daily water need [m3/day] | D233: =D231+D232 -> 20.18450735 | E233: =E231+E232 ->  | P233: 0
C234: Total monthly water need [m3/month] | D234: =D178+D218 -> 625.7197278 | P234: 0
C236: Yearly water need: | D236: =SUM(D234:O234) -> 
C237: Maximum daily water need: | D237: =MAX(D233:O233) ->  | E237: =INDEX($D$230:$O$230,MATCH($D$237,$D$233:$O$233,0)) -> 
C238: Average daily water need | D238: =AVERAGE(D233:O233) -> 
C239: Pump utilization rate | D239: =D238/D237 -> 

Sheet Data Validation Sheet (hidden)
A1: Area Conversion | B1: =Translate!$C$121 -> ha | C1: 1 | M1: Crop 1 Data Validation | O1: Calendar | P1: =COUNTIF($Q$2:$Q$763,"?*") -> 1 | S1: Crop 2 Data Validation | U1: Calendar | V1: =COUNTIF($W$2:$W$763,"?*") -> 1 | Y1: Crop 3 Data Validation | AA1: Calendar | AB1: =COUNTIF($AC$2:$AC$763,"?*") -> 1 | AE1: Crop 4 Data Validation | AG1: Calendar | AH1: =COUNTIF($AI$2:$AI$763,"?*") -> 1 | AK1: Crop 5 Data Validation | AM1: Calendar | AN1: =COUNTIF($AO$2:$AO$763,"?*") -> 1
B2: =Translate!$C$122 -> acre | C2: 2.47105 | N2: =IF(ISNUMBER(SEARCH('2 Crop Water Requirement'!$B$22,'Data Validation Sheet'!O2)),MAX($N$1:N1)+1,0) -> 0 | O2: ='Crop Information'!B7 -> none | P2: =OFFSET($Q$2,,,COUNTIF($Q$2:$Q$763,"?*")) -> Carrots (Oct/Jan - Arid climate ) | Q2: =IFERROR(VLOOKUP(ROWS($Q$2:Q2),$N$2:$O$763,2,FALSE),"") -> Carrots (Oct/Jan - Arid climate ) | T2: =IF(ISNUMBER(SEARCH('2 Crop Water Requirement'!$B$24,'Data Validation Sheet'!U2)),MAX($T$1:T1)+1,0) -> 0 | U2: ='Crop Information'!B7 -> none | V2: =OFFSET($W$2,,,COUNTIF($W$2:$W$763,"?*")) -> Carrots (Oct/Jan - Arid climate ) | W2: =IFERROR(VLOOKUP(ROWS($W$2:W2),$T$2:$U$763,2,FALSE),"") -> Carrots (Oct/Jan - Arid climate ) | Z2: =IF(ISNUMBER(SEARCH('2 Crop Water Requirement'!$B$26,'Data Validation Sheet'!AA2)),MAX($Z$1:Z1)+1,0) -> 1 | AA2: ='Crop Information'!B7 -> none | AB2: =OFFSET($AC$2,,,COUNTIF($AC$2:$AC$763,"?*")) -> none | AC2: =IFERROR(VLOOKUP(ROWS($AC$2:AC2),$Z$2:$AA$763,2,FALSE),"") -> none | AF2: =IF(ISNUMBER(SEARCH('2 Crop Water Requirement'!B$28,'Data Validation Sheet'!AG2)),MAX($AF$1:AF1)+1,0) -> 1 | AG2: ='Crop Information'!B7 -> none | AH2: =OFFSET($AI$2,,,COUNTIF($AI$2:$AI$763,"?*")) -> none | AI2: =IFERROR(VLOOKUP(ROWS($AI$2:AI2),$AF$2:$AG$763,2,FALSE),"") -> none | AL2: =IF(ISNUMBER(SEARCH('2 Crop Water Requirement'!$B$30,'Data Validation Sheet'!AM2)),MAX($AL$1:AL1)+1,0) -> 1 | AM2: ='Crop Information'!B7 -> none | AN2: =OFFSET($AO$2,,,COUNTIF($AO$2:$AO$763,"?*")) -> none | AO2: =IFERROR(VLOOKUP(ROWS($AO$2:AO2),$AL$2:$AM$763,2,FALSE),"") -> none
B3: =Translate!$C$123 -> Sq. km | C3: 0.01 | N3: =IF(ISNUMBER(SEARCH('2 Crop Water Requirement'!$B$22,'Data Validation Sheet'!O3)),MAX($N$1:N2)+1,0) -> 0 | O3: ='Crop Information'!B8 -> Alfalfa (1st cutting cycle - Jan/Apr - USA) | Q3: =IFERROR(VLOOKUP(ROWS($Q$2:Q3),$N$2:$O$763,2,FALSE),"") ->  | T3: =IF(ISNUMBER(SEARCH('2 Crop Water Requirement'!$B$24,'Data Validation Sheet'!U3)),MAX($T$1:T2)+1,0) -> 0 | U3: ='Crop Information'!B8 -> Alfalfa (1st cutting cycle - Jan/Apr - USA) | W3: =IFERROR(VLOOKUP(ROWS($W$2:W3),$T$2:$U$763,2,FALSE),"") ->  | Z3: =IF(ISNUMBER(SEARCH('2 Crop Water Requirement'!$B$26,'Data Validation Sheet'!AA3)),MAX($Z$1:Z2)+1,0) -> 0 | AA3: ='Crop Information'!B8 -> Alfalfa (1st cutting cycle - Jan/Apr - USA) | AC3: =IFERROR(VLOOKUP(ROWS($AC$2:AC3),$Z$2:$AA$763,2,FALSE),"") ->  | AF3: =IF(ISNUMBER(SEARCH('2 Crop Water Requirement'!B$28,'Data Validation Sheet'!AG3)),MAX($AF$1:AF2)+1,0) -> 0 | AG3: ='Crop Information'!B8 -> Alfalfa (1st cutting cycle - Jan/Apr - USA) | AI3: =IFERROR(VLOOKUP(ROWS($AI$2:AI3),$AF$2:$AG$763,2,FALSE),"") ->  | AL3: =IF(ISNUMBER(SEARCH('2 Crop Water Requirement'!$B$30,'Data Validation Sheet'!AM3)),MAX($AL$1:AL2)+1,0) -> 0 | AM3: ='Crop Information'!B8 -> Alfalfa (1st cutting cycle - Jan/Apr - USA) | AO3: =IFERROR(VLOOKUP(ROWS($AO$2:AO3),$AL$2:$AM$763,2,FALSE),"") -> 
B4: =Translate!$C$124 -> Sq. m | C4: 10000 | N4: =IF(ISNUMBER(SEARCH('2 Crop Water Requirement'!$B$22,'Data Validation Sheet'!O4)),MAX($N$1:N3)+1,0) -> 0 | O4: ='Crop Information'!B9 -> Alfalfa (other cutting cycle - Mar/Jun - USA) | Q4: =IFERROR(VLOOKUP(ROWS($Q$2:Q4),$N$2:$O$763,2,FALSE),"") ->  | T4: =IF(ISNUMBER(SEARCH('2 Crop Water Requirement'!$B$24,'Data Validation Sheet'!U4)),MAX($T$1:T3)+1,0) -> 0 | U4: ='Crop Information'!B9 -> Alfalfa (other cutting cycle - Mar/Jun - USA) | W4: =IFERROR(VLOOKUP(ROWS($W$2:W4),$T$2:$U$763,2,FALSE),"") ->  | Z4: =IF(ISNUMBER(SEARCH('2 Crop Water Requirement'!$B$26,'Data Validation Sheet'!AA4)),MAX($Z$1:Z3)+1,0) -> 0 | AA4: ='Crop Information'!B9 -> Alfalfa (other cutting cycle - Mar/Jun - USA) | AC4: =IFERROR(VLOOKUP(ROWS($AC$2:AC4),$Z$2:$AA$763,2,FALSE),"") ->  | AF4: =IF(ISNUMBER(SEARCH('2 Crop Water Requirement'!B$28,'Data Validation Sheet'!AG4)),MAX($AF$1:AF3)+1,0) -> 0 | AG4: ='Crop Information'!B9 -> Alfalfa (other cutting cycle - Mar/Jun - USA) | AI4: =IFERROR(VLOOKUP(ROWS($AI$2:AI4),$AF$2:$AG$763,2,FALSE),"") ->  | AL4: =IF(ISNUMBER(SEARCH('2 Crop Water Requirement'!$B$30,'Data Validation Sheet'!AM4)),MAX($AL$1:AL3)+1,0) -> 0 | AM4: ='Crop Information'!B9 -> Alfalfa (other cutting cycle - Mar/Jun - USA) | AO4: =IFERROR(VLOOKUP(ROWS($AO$2:AO4),$AL$2:$AM$763,2,FALSE),"") -> 
B5: =Translate!$C$125 -> Sq. yard | C5: 11959.9 | N5: =IF(ISNUMBER(SEARCH('2 Crop Water Requirement'!$B$22,'Data Validation Sheet'!O5)),MAX($N$1:N4)+1,0) -> 0 | O5: ='Crop Information'!B10 -> Alfalfa (seeds - Mar/Jun - USA) | Q5: =IFERROR(VLOOKUP(ROWS($Q$2:Q5),$N$2:$O$763,2,FALSE),"") ->  | T5: =IF(ISNUMBER(SEARCH('2 Crop Water Requirement'!$B$24,'Data Validation Sheet'!U5)),MAX($T$1:T4)+1,0) -> 0 | U5: ='Crop Information'!B10 -> Alfalfa (seeds - Mar/Jun - USA) | W5: =IFERROR(VLOOKUP(ROWS($W$2:W5),$T$2:$U$763,2,FALSE),"") ->  | Z5: =IF(ISNUMBER(SEARCH('2 Crop Water Requirement'!$B$26,'Data Validation Sheet'!AA5)),MAX($Z$1:Z4)+1,0) -> 0 | AA5: ='Crop Information'!B10 -> Alfalfa (seeds - Mar/Jun - USA) | AC5: =IFERROR(VLOOKUP(ROWS($AC$2:AC5),$Z$2:$AA$763,2,FALSE),"") ->  | AF5: =IF(ISNUMBER(SEARCH('2 Crop Water Requirement'!B$28,'Data Validation Sheet'!AG5)),MAX($AF$1:AF4)+1,0) -> 0 | AG5: ='Crop Information'!B10 -> Alfalfa (seeds - Mar/Jun - USA) | AI5: =IFERROR(VLOOKUP(ROWS($AI$2:AI5),$AF$2:$AG$763,2,FALSE),"") ->  | AL5: =IF(ISNUMBER(SEARCH('2 Crop Water Requirement'!$B$30,'Data Validation Sheet'!AM5)),MAX($AL$1:AL4)+1,0) -> 0 | AM5: ='Crop Information'!B10 -> Alfalfa (seeds - Mar/Jun - USA) | AO5: =IFERROR(VLOOKUP(ROWS($AO$2:AO5),$AL$2:$AM$763,2,FALSE),"") -> 
B6: =Translate!$C$126 -> Sq. ft | C6: 107639 | N6: =IF(ISNUMBER(SEARCH('2 Crop Water Requirement'!$B$22,'Data Validation Sheet'!O6)),MAX($N$1:N5)+1,0) -> 0 | O6: ='Crop Information'!B11 -> Almond (no ground cover - Apr - USA) | Q6: =IFERROR(VLOOKUP(ROWS($Q$2:Q6),$N$2:$O$763,2,FALSE),"") ->  | T6: =IF(ISNUMBER(SEARCH('2 Crop Water Requirement'!$B$24,'Data Validation Sheet'!U6)),MAX($T$1:T5)+1,0) -> 0 | U6: ='Crop Information'!B11 -> Almond (no ground cover - Apr - USA) | W6: =IFERROR(VLOOKUP(ROWS($W$2:W6),$T$2:$U$763,2,FALSE),"") ->  | Z6: =IF(ISNUMBER(SEARCH('2 Crop Water Requirement'!$B$26,'Data Validation Sheet'!AA6)),MAX($Z$1:Z5)+1,0) -> 0 | AA6: ='Crop Information'!B11 -> Almond (no ground cover - Apr - USA) | AC6: =IFERROR(VLOOKUP(ROWS($AC$2:AC6),$Z$2:$AA$763,2,FALSE),"") ->  | AF6: =IF(ISNUMBER(SEARCH('2 Crop Water Requirement'!B$28,'Data Validation Sheet'!AG6)),MAX($AF$1:AF5)+1,0) -> 0 | AG6: ='Crop Information'!B11 -> Almond (no ground cover - Apr - USA) | AI6: =IFERROR(VLOOKUP(ROWS($AI$2:AI6),$AF$2:$AG$763,2,FALSE),"") ->  | AL6: =IF(ISNUMBER(SEARCH('2 Crop Water Requirement'!$B$30,'Data Validation Sheet'!AM6)),MAX($AL$1:AL5)+1,0) -> 0 | AM6: ='Crop Information'!B11 -> Almond (no ground cover - Apr - USA) | AO6: =IFERROR(VLOOKUP(ROWS($AO$2:AO6),$AL$2:$AM$763,2,FALSE),"") -> 
N7: =IF(ISNUMBER(SEARCH('2 Crop Water Requirement'!$B$22,'Data Validation Sheet'!O7)),MAX($N$1:N6)+1,0) -> 0 | O7: ='Crop Information'!B12 -> Artichoke (1st year - Apr - California) | Q7: =IFERROR(VLOOKUP(ROWS($Q$2:Q7),$N$2:$O$763,2,FALSE),"") ->  | T7: =IF(ISNUMBER(SEARCH('2 Crop Water Requirement'!$B$24,'Data Validation Sheet'!U7)),MAX($T$1:T6)+1,0) -> 0 | U7: ='Crop Information'!B12 -> Artichoke (1st year - Apr - California) | W7: =IFERROR(VLOOKUP(ROWS($W$2:W7),$T$2:$U$763,2,FALSE),"") ->  | Z7: =IF(ISNUMBER(SEARCH('2 Crop Water Requirement'!$B$26,'Data Validation Sheet'!AA7)),MAX($Z$1:Z6)+1,0) -> 0 | AA7: ='Crop Information'!B12 -> Artichoke (1st year - Apr - California) | AC7: =IFERROR(VLOOKUP(ROWS($AC$2:AC7),$Z$2:$AA$763,2,FALSE),"") ->  | AF7: =IF(ISNUMBER(SEARCH('2 Crop Water Requirement'!B$28,'Data Validation Sheet'!AG7)),MAX($AF$1:AF6)+1,0) -> 0 | AG7: ='Crop Information'!B12 -> Artichoke (1st year - Apr - California) | AI7: =IFERROR(VLOOKUP(ROWS($AI$2:AI7),$AF$2:$AG$763,2,FALSE),"") ->  | AL7: =IF(ISNUMBER(SEARCH('2 Crop Water Requirement'!$B$30,'Data Validation Sheet'!AM7)),MAX($AL$1:AL6)+1,0) -> 0 | AM7: ='Crop Information'!B12 -> Artichoke (1st year - Apr - California) | AO7: =IFERROR(VLOOKUP(ROWS($AO$2:AO7),$AL$2:$AM$763,2,FALSE),"") -> 
N8: =IF(ISNUMBER(SEARCH('2 Crop Water Requirement'!$B$22,'Data Validation Sheet'!O8)),MAX($N$1:N7)+1,0) -> 0 | O8: ='Crop Information'!B13 -> Artichoke (2nd year - May - cut in May) | Q8: =IFERROR(VLOOKUP(ROWS($Q$2:Q8),$N$2:$O$763,2,FALSE),"") ->  | T8: =IF(ISNUMBER(SEARCH('2 Crop Water Requirement'!$B$24,'Data Validation Sheet'!U8)),MAX($T$1:T7)+1,0) -> 0 | U8: ='Crop Information'!B13 -> Artichoke (2nd year - May - cut in May) | W8: =IFERROR(VLOOKUP(ROWS($W$2:W8),$T$2:$U$763,2,FALSE),"") ->  | Z8: =IF(ISNUMBER(SEARCH('2 Crop Water Requirement'!$B$26,'Data Validation Sheet'!AA8)),MAX($Z$1:Z7)+1,0) -> 0 | AA8: ='Crop Information'!B13 -> Artichoke (2nd year - May - cut in May) | AC8: =IFERROR(VLOOKUP(ROWS($AC$2:AC8),$Z$2:$AA$763,2,FALSE),"") ->  | AF8: =IF(ISNUMBER(SEARCH('2 Crop Water Requirement'!B$28,'Data Validation Sheet'!AG8)),MAX($AF$1:AF7)+1,0) -> 0 | AG8: ='Crop Information'!B13 -> Artichoke (2nd year - May - cut in May) | AI8: =IFERROR(VLOOKUP(ROWS($AI$2:AI8),$AF$2:$AG$763,2,FALSE),"") ->  | AL8: =IF(ISNUMBER(SEARCH('2 Crop Water Requirement'!$B$30,'Data Validation Sheet'!AM8)),MAX($AL$1:AL7)+1,0) -> 0 | AM8: ='Crop Information'!B13 -> Artichoke (2nd year - May - cut in May) | AO8: =IFERROR(VLOOKUP(ROWS($AO$2:AO8),$AL$2:$AM$763,2,FALSE),"") -> 
N9: =IF(ISNUMBER(SEARCH('2 Crop Water Requirement'!$B$22,'Data Validation Sheet'!O9)),MAX($N$1:N8)+1,0) -> 0 | O9: ='Crop Information'!B14 -> Asparagus (Feb - warm winter) | Q9: =IFERROR(VLOOKUP(ROWS($Q$2:Q9),$N$2:$O$763,2,FALSE),"") ->  | T9: =IF(ISNUMBER(SEARCH('2 Crop Water Requirement'!$B$24,'Data Validation Sheet'!U9)),MAX($T$1:T8)+1,0) -> 0 | U9: ='Crop Information'!B14 -> Asparagus (Feb - warm winter) | W9: =IFERROR(VLOOKUP(ROWS($W$2:W9),$T$2:$U$763,2,FALSE),"") ->  | Z9: =IF(ISNUMBER(SEARCH('2 Crop Water Requirement'!$B$26,'Data Validation Sheet'!AA9)),MAX($Z$1:Z8)+1,0) -> 0 | AA9: ='Crop Information'!B14 -> Asparagus (Feb - warm winter) | AC9: =IFERROR(VLOOKUP(ROWS($AC$2:AC9),$Z$2:$AA$763,2,FALSE),"") ->  | AF9: =IF(ISNUMBER(SEARCH('2 Crop Water Requirement'!B$28,'Data Validation Sheet'!AG9)),MAX($AF$1:AF8)+1,0) -> 0 | AG9: ='Crop Information'!B14 -> Asparagus (Feb - warm winter) | AI9: =IFERROR(VLOOKUP(ROWS($AI$2:AI9),$AF$2:$AG$763,2,FALSE),"") ->  | AL9: =IF(ISNUMBER(SEARCH('2 Crop Water Requirement'!$B$30,'Data Validation Sheet'!AM9)),MAX($AL$1:AL8)+1,0) -> 0 | AM9: ='Crop Information'!B14 -> Asparagus (Feb - warm winter) | AO9: =IFERROR(VLOOKUP(ROWS($AO$2:AO9),$AL$2:$AM$763,2,FALSE),"") -> 
N10: =IF(ISNUMBER(SEARCH('2 Crop Water Requirement'!$B$22,'Data Validation Sheet'!O10)),MAX($N$1:N9)+1,0) -> 0 | O10: ='Crop Information'!B15 -> Asparagus (Feb - Mediterranean) | Q10: =IFERROR(VLOOKUP(ROWS($Q$2:Q10),$N$2:$O$763,2,FALSE),"") ->  | T10: =IF(ISNUMBER(SEARCH('2 Crop Water Requirement'!$B$24,'Data Validation Sheet'!U10)),MAX($T$1:T9)+1,0) -> 0 | U10: ='Crop Information'!B15 -> Asparagus (Feb - Mediterranean) | W10: =IFERROR(VLOOKUP(ROWS($W$2:W10),$T$2:$U$763,2,FALSE),"") ->  | Z10: =IF(ISNUMBER(SEARCH('2 Crop Water Requirement'!$B$26,'Data Validation Sheet'!AA10)),MAX($Z$1:Z9)+1,0) -> 0 | AA10: ='Crop Information'!B15 -> Asparagus (Feb - Mediterranean) | AC10: =IFERROR(VLOOKUP(ROWS($AC$2:AC10),$Z$2:$AA$763,2,FALSE),"") ->  | AF10: =IF(ISNUMBER(SEARCH('2 Crop Water Requirement'!B$28,'Data Validation Sheet'!AG10)),MAX($AF$1:AF9)+1,0) -> 0 | AG10: ='Crop Information'!B15 -> Asparagus (Feb - Mediterranean) | AI10: =IFERROR(VLOOKUP(ROWS($AI$2:AI10),$AF$2:$AG$763,2,FALSE),"") ->  | AL10: =IF(ISNUMBER(SEARCH('2 Crop Water Requirement'!$B$30,'Data Validation Sheet'!AM10)),MAX($AL$1:AL9)+1,0) -> 0 | AM10: ='Crop Information'!B15 -> Asparagus (Feb - Mediterranean) | AO10: =IFERROR(VLOOKUP(ROWS($AO$2:AO10),$AL$2:$AM$763,2,FALSE),"") -> 
N11: =IF(ISNUMBER(SEARCH('2 Crop Water Requirement'!$B$22,'Data Validation Sheet'!O11)),MAX($N$1:N10)+1,0) -> 0 | O11: ='Crop Information'!B16 -> Avocado (Jan - Florida, USA) | Q11: =IFERROR(VLOOKUP(ROWS($Q$2:Q11),$N$2:$O$763,2,FALSE),"") ->  | T11: =IF(ISNUMBER(SEARCH('2 Crop Water Requirement'!$B$24,'Data Validation Sheet'!U11)),MAX($T$1:T10)+1,0) -> 0 | U11: ='Crop Information'!B16 -> Avocado (Jan - Florida, USA) | W11: =IFERROR(VLOOKUP(ROWS($W$2:W11),$T$2:$U$763,2,FALSE),"") ->  | Z11: =IF(ISNUMBER(SEARCH('2 Crop Water Requirement'!$B$26,'Data Validation Sheet'!AA11)),MAX($Z$1:Z10)+1,0) -> 0 | AA11: ='Crop Information'!B16 -> Avocado (Jan - Florida, USA) | AC11: =IFERROR(VLOOKUP(ROWS($AC$2:AC11),$Z$2:$AA$763,2,FALSE),"") ->  | AF11: =IF(ISNUMBER(SEARCH('2 Crop Water Requirement'!B$28,'Data Validation Sheet'!AG11)),MAX($AF$1:AF10)+1,0) -> 0 | AG11: ='Crop Information'!B16 -> Avocado (Jan - Florida, USA) | AI11: =IFERROR(VLOOKUP(ROWS($AI$2:AI11),$AF$2:$AG$763,2,FALSE),"") ->  | AL11: =IF(ISNUMBER(SEARCH('2 Crop Water Requirement'!$B$30,'Data Validation Sheet'!AM11)),MAX($AL$1:AL10)+1,0) -> 0 | AM11: ='Crop Information'!B16 -> Avocado (Jan - Florida, USA) | AO11: =IFERROR(VLOOKUP(ROWS($AO$2:AO11),$AL$2:$AM$763,2,FALSE),"") -> 
A12: Total Cultivated Area | B12: ='2 Crop Water Requirement'!$D$18 -> 5 | N12: =IF(ISNUMBER(SEARCH('2 Crop Water Requirement'!$B$22,'Data Validation Sheet'!O12)),MAX($N$1:N11)+1,0) -> 0 | O12: ='Crop Information'!B17 -> Banana (1st year - Mar - Mediterranean) | Q12: =IFERROR(VLOOKUP(ROWS($Q$2:Q12),$N$2:$O$763,2,FALSE),"") ->  | T12: =IF(ISNUMBER(SEARCH('2 Crop Water Requirement'!$B$24,'Data Validation Sheet'!U12)),MAX($T$1:T11)+1,0) -> 0 | U12: ='Crop Information'!B17 -> Banana (1st year - Mar - Mediterranean) | W12: =IFERROR(VLOOKUP(ROWS($W$2:W12),$T$2:$U$763,2,FALSE),"") ->  | Z12: =IF(ISNUMBER(SEARCH('2 Crop Water Requirement'!$B$26,'Data Validation Sheet'!AA12)),MAX($Z$1:Z11)+1,0) -> 0 | AA12: ='Crop Information'!B17 -> Banana (1st year - Mar - Mediterranean) | AC12: =IFERROR(VLOOKUP(ROWS($AC$2:AC12),$Z$2:$AA$763,2,FALSE),"") ->  | AF12: =IF(ISNUMBER(SEARCH('2 Crop Water Requirement'!B$28,'Data Validation Sheet'!AG12)),MAX($AF$1:AF11)+1,0) -> 0 | AG12: ='Crop Information'!B17 -> Banana (1st year - Mar - Mediterranean) | AI12: =IFERROR(VLOOKUP(ROWS($AI$2:AI12),$AF$2:$AG$763,2,FALSE),"") ->  | AL12: =IF(ISNUMBER(SEARCH('2 Crop Water Requirement'!$B$30,'Data Validation Sheet'!AM12)),MAX($AL$1:AL11)+1,0) -> 0 | AM12: ='Crop Information'!B17 -> Banana (1st year - Mar - Mediterranean) | AO12: =IFERROR(VLOOKUP(ROWS($AO$2:AO12),$AL$2:$AM$763,2,FALSE),"") -> 
C13: Crop | D13: Season | E13: Area | N13: =IF(ISNUMBER(SEARCH('2 Crop Water Requirement'!$B$22,'Data Validation Sheet'!O13)),MAX($N$1:N12)+1,0) -> 0 | O13: ='Crop Information'!B18 -> Banana (1st year - Mar - subtropical/humid/light to moderate wind) | Q13: =IFERROR(VLOOKUP(ROWS($Q$2:Q13),$N$2:$O$763,2,FALSE),"") ->  | T13: =IF(ISNUMBER(SEARCH('2 Crop Water Requirement'!$B$24,'Data Validation Sheet'!U13)),MAX($T$1:T12)+1,0) -> 0 | U13: ='Crop Information'!B18 -> Banana (1st year - Mar - subtropical/humid/light to moderate wind) | W13: =IFERROR(VLOOKUP(ROWS($W$2:W13),$T$2:$U$763,2,FALSE),"") ->  | Z13: =IF(ISNUMBER(SEARCH('2 Crop Water Requirement'!$B$26,'Data Validation Sheet'!AA13)),MAX($Z$1:Z12)+1,0) -> 0 | AA13: ='Crop Information'!B18 -> Banana (1st year - Mar - subtropical/humid/light to moderate wind) | AC13: =IFERROR(VLOOKUP(ROWS($AC$2:AC13),$Z$2:$AA$763,2,FALSE),"") ->  | AF13: =IF(ISNUMBER(SEARCH('2 Crop Water Requirement'!B$28,'Data Validation Sheet'!AG13)),MAX($AF$1:AF12)+1,0) -> 0 | AG13: ='Crop Information'!B18 -> Banana (1st year - Mar - subtropical/humid/light to moderate wind) | AI13: =IFERROR(VLOOKUP(ROWS($AI$2:AI13),$AF$2:$AG$763,2,FALSE),"") ->  | AL13: =IF(ISNUMBER(SEARCH('2 Crop Water Requirement'!$B$30,'Data Validation Sheet'!AM13)),MAX($AL$1:AL12)+1,0) -> 0 | AM13: ='Crop Information'!B18 -> Banana (1st year - Mar - subtropical/humid/light to moderate wind) | AO13: =IFERROR(VLOOKUP(ROWS($AO$2:AO13),$AL$2:$AM$763,2,FALSE),"") -> 
C14: Crop 1 | D14: ='2 Crop Water Requirement'!$F$22 -> Season 1 | E14: ='2 Crop Water Requirement'!$D$22 -> 2.5 | F14: =IF(OR('2 Crop Water Requirement'!$B$22="none",'2 Crop Water Requirement'!$H$22=""),0,'2 Crop Water Requirement'!$H$22) -> 2021-05-01 | N14: =IF(ISNUMBER(SEARCH('2 Crop Water Requirement'!$B$22,'Data Validation Sheet'!O14)),MAX($N$1:N13)+1,0) -> 0 | O14: ='Crop Information'!B19 -> Banana (1st year - Mar - subtropical/tropical) | Q14: =IFERROR(VLOOKUP(ROWS($Q$2:Q14),$N$2:$O$763,2,FALSE),"") ->  | T14: =IF(ISNUMBER(SEARCH('2 Crop Water Requirement'!$B$24,'Data Validation Sheet'!U14)),MAX($T$1:T13)+1,0) -> 0 | U14: ='Crop Information'!B19 -> Banana (1st year - Mar - subtropical/tropical) | W14: =IFERROR(VLOOKUP(ROWS($W$2:W14),$T$2:$U$763,2,FALSE),"") ->  | Z14: =IF(ISNUMBER(SEARCH('2 Crop Water Requirement'!$B$26,'Data Validation Sheet'!AA14)),MAX($Z$1:Z13)+1,0) -> 0 | AA14: ='Crop Information'!B19 -> Banana (1st year - Mar - subtropical/tropical) | AC14: =IFERROR(VLOOKUP(ROWS($AC$2:AC14),$Z$2:$AA$763,2,FALSE),"") ->  | AF14: =IF(ISNUMBER(SEARCH('2 Crop Water Requirement'!B$28,'Data Validation Sheet'!AG14)),MAX($AF$1:AF13)+1,0) -> 0 | AG14: ='Crop Information'!B19 -> Banana (1st year - Mar - subtropical/tropical) | AI14: =IFERROR(VLOOKUP(ROWS($AI$2:AI14),$AF$2:$AG$763,2,FALSE),"") ->  | AL14: =IF(ISNUMBER(SEARCH('2 Crop Water Requirement'!$B$30,'Data Validation Sheet'!AM14)),MAX($AL$1:AL13)+1,0) -> 0 | AM14: ='Crop Information'!B19 -> Banana (1st year - Mar - subtropical/tropical) | AO14: =IFERROR(VLOOKUP(ROWS($AO$2:AO14),$AL$2:$AM$763,2,FALSE),"") -> 
C15: Crop 2 | D15: ='2 Crop Water Requirement'!$F$24 -> Season 2 | E15: ='2 Crop Water Requirement'!$D$24 -> 2.5 | F15: =IF(OR('2 Crop Water Requirement'!$B$24="none",'2 Crop Water Requirement'!$H$24=""),0,'2 Crop Water Requirement'!$H$24) -> 2022-07-01 | G15: =IF(AND(F15=0,F14=0),0,IF(F15=0,F14,IF(F14=0,F15,IF(F15-F14<=0,F15,F14)))) -> 2021-05-01 | N15: =IF(ISNUMBER(SEARCH('2 Crop Water Requirement'!$B$22,'Data Validation Sheet'!O15)),MAX($N$1:N14)+1,0) -> 0 | O15: ='Crop Information'!B20 -> Banana (2nd year - Mar - Mediterranean) | Q15: =IFERROR(VLOOKUP(ROWS($Q$2:Q15),$N$2:$O$763,2,FALSE),"") ->  | T15: =IF(ISNUMBER(SEARCH('2 Crop Water Requirement'!$B$24,'Data Validation Sheet'!U15)),MAX($T$1:T14)+1,0) -> 0 | U15: ='Crop Information'!B20 -> Banana (2nd year - Mar - Mediterranean) | W15: =IFERROR(VLOOKUP(ROWS($W$2:W15),$T$2:$U$763,2,FALSE),"") ->  | Z15: =IF(ISNUMBER(SEARCH('2 Crop Water Requirement'!$B$26,'Data Validation Sheet'!AA15)),MAX($Z$1:Z14)+1,0) -> 0 | AA15: ='Crop Information'!B20 -> Banana (2nd year - Mar - Mediterranean) | AC15: =IFERROR(VLOOKUP(ROWS($AC$2:AC15),$Z$2:$AA$763,2,FALSE),"") ->  | AF15: =IF(ISNUMBER(SEARCH('2 Crop Water Requirement'!B$28,'Data Validation Sheet'!AG15)),MAX($AF$1:AF14)+1,0) -> 0 | AG15: ='Crop Information'!B20 -> Banana (2nd year - Mar - Mediterranean) | AI15: =IFERROR(VLOOKUP(ROWS($AI$2:AI15),$AF$2:$AG$763,2,FALSE),"") ->  | AL15: =IF(ISNUMBER(SEARCH('2 Crop Water Requirement'!$B$30,'Data Validation Sheet'!AM15)),MAX($AL$1:AL14)+1,0) -> 0 | AM15: ='Crop Information'!B20 -> Banana (2nd year - Mar - Mediterranean) | AO15: =IFERROR(VLOOKUP(ROWS($AO$2:AO15),$AL$2:$AM$763,2,FALSE),"") -> 
C16: Crop 3 | D16: ='2 Crop Water Requirement'!$F$26 -> Season 1 | E16: ='2 Crop Water Requirement'!$D$26 -> 0 | F16: =IF(OR('2 Crop Water Requirement'!$B$26="none",'2 Crop Water Requirement'!$H$26=""),0,'2 Crop Water Requirement'!$H$26) -> 00:00:00 | G16: =F16 -> 00:00:00 | H16: =IF(AND(G16=0,G15=0),0,IF(G16=0,G15,IF(G15=0,G16,IF(G16-G15<=0,G16,G15)))) -> 2021-05-01 | N16: =IF(ISNUMBER(SEARCH('2 Crop Water Requirement'!$B$22,'Data Validation Sheet'!O16)),MAX($N$1:N15)+1,0) -> 0 | O16: ='Crop Information'!B21 -> Banana (2nd year - Feb - subtropical/tropical) | Q16: =IFERROR(VLOOKUP(ROWS($Q$2:Q16),$N$2:$O$763,2,FALSE),"") ->  | T16: =IF(ISNUMBER(SEARCH('2 Crop Water Requirement'!$B$24,'Data Validation Sheet'!U16)),MAX($T$1:T15)+1,0) -> 0 | U16: ='Crop Information'!B21 -> Banana (2nd year - Feb - subtropical/tropical) | W16: =IFERROR(VLOOKUP(ROWS($W$2:W16),$T$2:$U$763,2,FALSE),"") ->  | Z16: =IF(ISNUMBER(SEARCH('2 Crop Water Requirement'!$B$26,'Data Validation Sheet'!AA16)),MAX($Z$1:Z15)+1,0) -> 0 | AA16: ='Crop Information'!B21 -> Banana (2nd year - Feb - subtropical/tropical) | AC16: =IFERROR(VLOOKUP(ROWS($AC$2:AC16),$Z$2:$AA$763,2,FALSE),"") ->  | AF16: =IF(ISNUMBER(SEARCH('2 Crop Water Requirement'!B$28,'Data Validation Sheet'!AG16)),MAX($AF$1:AF15)+1,0) -> 0 | AG16: ='Crop Information'!B21 -> Banana (2nd year - Feb - subtropical/tropical) | AI16: =IFERROR(VLOOKUP(ROWS($AI$2:AI16),$AF$2:$AG$763,2,FALSE),"") ->  | AL16: =IF(ISNUMBER(SEARCH('2 Crop Water Requirement'!$B$30,'Data Validation Sheet'!AM16)),MAX($AL$1:AL15)+1,0) -> 0 | AM16: ='Crop Information'!B21 -> Banana (2nd year - Feb - subtropical/tropical) | AO16: =IFERROR(VLOOKUP(ROWS($AO$2:AO16),$AL$2:$AM$763,2,FALSE),"") -> 
C17: Crop 4 | D17: ='2 Crop Water Requirement'!$F$28 -> Season 1 | E17: ='2 Crop Water Requirement'!$D$28 -> 0 | F17: =IF(OR('2 Crop Water Requirement'!$B$28="none",'2 Crop Water Requirement'!$H$28=""),0,'2 Crop Water Requirement'!$H$28) -> 00:00:00 | G17: =F17 -> 00:00:00 | H17: =G17 -> 00:00:00 | I17: =IF(AND(H17=0,H16=0),0,IF(H17=0,H16,IF(H16=0,H17,IF(H17-H16<=0,H17,H16)))) -> 2021-05-01 | N17: =IF(ISNUMBER(SEARCH('2 Crop Water Requirement'!$B$22,'Data Validation Sheet'!O17)),MAX($N$1:N16)+1,0) -> 0 | O17: ='Crop Information'!B22 -> Barley/Oats/Wheat (Nov - central India) | Q17: =IFERROR(VLOOKUP(ROWS($Q$2:Q17),$N$2:$O$763,2,FALSE),"") ->  | T17: =IF(ISNUMBER(SEARCH('2 Crop Water Requirement'!$B$24,'Data Validation Sheet'!U17)),MAX($T$1:T16)+1,0) -> 0 | U17: ='Crop Information'!B22 -> Barley/Oats/Wheat (Nov - central India) | W17: =IFERROR(VLOOKUP(ROWS($W$2:W17),$T$2:$U$763,2,FALSE),"") ->  | Z17: =IF(ISNUMBER(SEARCH('2 Crop Water Requirement'!$B$26,'Data Validation Sheet'!AA17)),MAX($Z$1:Z16)+1,0) -> 0 | AA17: ='Crop Information'!B22 -> Barley/Oats/Wheat (Nov - central India) | AC17: =IFERROR(VLOOKUP(ROWS($AC$2:AC17),$Z$2:$AA$763,2,FALSE),"") ->  | AF17: =IF(ISNUMBER(SEARCH('2 Crop Water Requirement'!B$28,'Data Validation Sheet'!AG17)),MAX($AF$1:AF16)+1,0) -> 0 | AG17: ='Crop Information'!B22 -> Barley/Oats/Wheat (Nov - central India) | AI17: =IFERROR(VLOOKUP(ROWS($AI$2:AI17),$AF$2:$AG$763,2,FALSE),"") ->  | AL17: =IF(ISNUMBER(SEARCH('2 Crop Water Requirement'!$B$30,'Data Validation Sheet'!AM17)),MAX($AL$1:AL16)+1,0) -> 0 | AM17: ='Crop Information'!B22 -> Barley/Oats/Wheat (Nov - central India) | AO17: =IFERROR(VLOOKUP(ROWS($AO$2:AO17),$AL$2:$AM$763,2,FALSE),"") -> 
C18: Crop 5 | D18: ='2 Crop Water Requirement'!$F$30 -> Season 1 | E18: ='2 Crop Water Requirement'!$D$30 -> 0 | F18: =IF(OR('2 Crop Water Requirement'!$B$30="none",'2 Crop Water Requirement'!$H$30=""),0,'2 Crop Water Requirement'!$H$30) -> 00:00:00 | G18: =F18 -> 00:00:00 | H18: =G18 -> 00:00:00 | I18: =H18 -> 00:00:00 | J18: =IF(AND(I18=0,I17=0),0,IF(I18=0,I17,IF(I17=0,I18,IF(I18-I17<=0,I18,I17)))) -> 2021-05-01 | N18: =IF(ISNUMBER(SEARCH('2 Crop Water Requirement'!$B$22,'Data Validation Sheet'!O18)),MAX($N$1:N17)+1,0) -> 0 | O18: ='Crop Information'!B23 -> Barley/Oats/Wheat (Mar/Apr - 35/45 °L)) | Q18: =IFERROR(VLOOKUP(ROWS($Q$2:Q18),$N$2:$O$763,2,FALSE),"") ->  | T18: =IF(ISNUMBER(SEARCH('2 Crop Water Requirement'!$B$24,'Data Validation Sheet'!U18)),MAX($T$1:T17)+1,0) -> 0 | U18: ='Crop Information'!B23 -> Barley/Oats/Wheat (Mar/Apr - 35/45 °L)) | W18: =IFERROR(VLOOKUP(ROWS($W$2:W18),$T$2:$U$763,2,FALSE),"") ->  | Z18: =IF(ISNUMBER(SEARCH('2 Crop Water Requirement'!$B$26,'Data Validation Sheet'!AA18)),MAX($Z$1:Z17)+1,0) -> 0 | AA18: ='Crop Information'!B23 -> Barley/Oats/Wheat (Mar/Apr - 35/45 °L)) | AC18: =IFERROR(VLOOKUP(ROWS($AC$2:AC18),$Z$2:$AA$763,2,FALSE),"") ->  | AF18: =IF(ISNUMBER(SEARCH('2 Crop Water Requirement'!B$28,'Data Validation Sheet'!AG18)),MAX($AF$1:AF17)+1,0) -> 0 | AG18: ='Crop Information'!B23 -> Barley/Oats/Wheat (Mar/Apr - 35/45 °L)) | AI18: =IFERROR(VLOOKUP(ROWS($AI$2:AI18),$AF$2:$AG$763,2,FALSE),"") ->  | AL18: =IF(ISNUMBER(SEARCH('2 Crop Water Requirement'!$B$30,'Data Validation Sheet'!AM18)),MAX($AL$1:AL17)+1,0) -> 0 | AM18: ='Crop Information'!B23 -> Barley/Oats/Wheat (Mar/Apr - 35/45 °L)) | AO18: =IFERROR(VLOOKUP(ROWS($AO$2:AO18),$AL$2:$AM$763,2,FALSE),"") -> 
B19: =$E$19<=$B$12 -> TRUE | C19: =Translate!$C$142 -> Season 1 | D19: Total area | E19: =SUMIF($D$14:D18, $C$19,$E$14:$E$18) -> 2.5 | I19: Earliest planting date | N19: =IF(ISNUMBER(SEARCH('2 Crop Water Requirement'!$B$22,'Data Validation Sheet'!O19)),MAX($N$1:N18)+1,0) -> 0 | O19: ='Crop Information'!B24 -> Barley/Oats/Wheat (Jul - East Africa) | Q19: =IFERROR(VLOOKUP(ROWS($Q$2:Q19),$N$2:$O$763,2,FALSE),"") ->  | T19: =IF(ISNUMBER(SEARCH('2 Crop Water Requirement'!$B$24,'Data Validation Sheet'!U19)),MAX($T$1:T18)+1,0) -> 0 | U19: ='Crop Information'!B24 -> Barley/Oats/Wheat (Jul - East Africa) | W19: =IFERROR(VLOOKUP(ROWS($W$2:W19),$T$2:$U$763,2,FALSE),"") ->  | Z19: =IF(ISNUMBER(SEARCH('2 Crop Water Requirement'!$B$26,'Data Validation Sheet'!AA19)),MAX($Z$1:Z18)+1,0) -> 0 | AA19: ='Crop Information'!B24 -> Barley/Oats/Wheat (Jul - East Africa) | AC19: =IFERROR(VLOOKUP(ROWS($AC$2:AC19),$Z$2:$AA$763,2,FALSE),"") ->  | AF19: =IF(ISNUMBER(SEARCH('2 Crop Water Requirement'!B$28,'Data Validation Sheet'!AG19)),MAX($AF$1:AF18)+1,0) -> 0 | AG19: ='Crop Information'!B24 -> Barley/Oats/Wheat (Jul - East Africa) | AI19: =IFERROR(VLOOKUP(ROWS($AI$2:AI19),$AF$2:$AG$763,2,FALSE),"") ->  | AL19: =IF(ISNUMBER(SEARCH('2 Crop Water Requirement'!$B$30,'Data Validation Sheet'!AM19)),MAX($AL$1:AL18)+1,0) -> 0 | AM19: ='Crop Information'!B24 -> Barley/Oats/Wheat (Jul - East Africa) | AO19: =IFERROR(VLOOKUP(ROWS($AO$2:AO19),$AL$2:$AM$763,2,FALSE),"") -> 
B20: =$E$20<=$B$12 -> TRUE | C20: =Translate!$C$143 -> Season 2 | D20: Total area | E20: =SUMIF($D$14:D18, $C$20,$E$14:$E$18) -> 2.5 | N20: =IF(ISNUMBER(SEARCH('2 Crop Water Requirement'!$B$22,'Data Validation Sheet'!O20)),MAX($N$1:N19)+1,0) -> 0 | O20: ='Crop Information'!B25 -> Barley/Oats/Wheat (Nov) | Q20: =IFERROR(VLOOKUP(ROWS($Q$2:Q20),$N$2:$O$763,2,FALSE),"") ->  | T20: =IF(ISNUMBER(SEARCH('2 Crop Water Requirement'!$B$24,'Data Validation Sheet'!U20)),MAX($T$1:T19)+1,0) -> 0 | U20: ='Crop Information'!B25 -> Barley/Oats/Wheat (Nov) | W20: =IFERROR(VLOOKUP(ROWS($W$2:W20),$T$2:$U$763,2,FALSE),"") ->  | Z20: =IF(ISNUMBER(SEARCH('2 Crop Water Requirement'!$B$26,'Data Validation Sheet'!AA20)),MAX($Z$1:Z19)+1,0) -> 0 | AA20: ='Crop Information'!B25 -> Barley/Oats/Wheat (Nov) | AC20: =IFERROR(VLOOKUP(ROWS($AC$2:AC20),$Z$2:$AA$763,2,FALSE),"") ->  | AF20: =IF(ISNUMBER(SEARCH('2 Crop Water Requirement'!B$28,'Data Validation Sheet'!AG20)),MAX($AF$1:AF19)+1,0) -> 0 | AG20: ='Crop Information'!B25 -> Barley/Oats/Wheat (Nov) | AI20: =IFERROR(VLOOKUP(ROWS($AI$2:AI20),$AF$2:$AG$763,2,FALSE),"") ->  | AL20: =IF(ISNUMBER(SEARCH('2 Crop Water Requirement'!$B$30,'Data Validation Sheet'!AM20)),MAX($AL$1:AL19)+1,0) -> 0 | AM20: ='Crop Information'!B25 -> Barley/Oats/Wheat (Nov) | AO20: =IFERROR(VLOOKUP(ROWS($AO$2:AO20),$AL$2:$AM$763,2,FALSE),"") -> 
N21: =IF(ISNUMBER(SEARCH('2 Crop Water Requirement'!$B$22,'Data Validation Sheet'!O21)),MAX($N$1:N20)+1,0) -> 0 | O21: ='Crop Information'!B26 -> Barley/Oats/Wheat (Dec - California desert) | Q21: =IFERROR(VLOOKUP(ROWS($Q$2:Q21),$N$2:$O$763,2,FALSE),"") ->  | T21: =IF(ISNUMBER(SEARCH('2 Crop Water Requirement'!$B$24,'Data Validation Sheet'!U21)),MAX($T$1:T20)+1,0) -> 0 | U21: ='Crop Information'!B26 -> Barley/Oats/Wheat (Dec - California desert) | W21: =IFERROR(VLOOKUP(ROWS($W$2:W21),$T$2:$U$763,2,FALSE),"") ->  | Z21: =IF(ISNUMBER(SEARCH('2 Crop Water Requirement'!$B$26,'Data Validation Sheet'!AA21)),MAX($Z$1:Z20)+1,0) -> 0 | AA21: ='Crop Information'!B26 -> Barley/Oats/Wheat (Dec - California desert) | AC21: =IFERROR(VLOOKUP(ROWS($AC$2:AC21),$Z$2:$AA$763,2,FALSE),"") ->  | AF21: =IF(ISNUMBER(SEARCH('2 Crop Water Requirement'!B$28,'Data Validation Sheet'!AG21)),MAX($AF$1:AF20)+1,0) -> 0 | AG21: ='Crop Information'!B26 -> Barley/Oats/Wheat (Dec - California desert) | AI21: =IFERROR(VLOOKUP(ROWS($AI$2:AI21),$AF$2:$AG$763,2,FALSE),"") ->  | AL21: =IF(ISNUMBER(SEARCH('2 Crop Water Requirement'!$B$30,'Data Validation Sheet'!AM21)),MAX($AL$1:AL20)+1,0) -> 0 | AM21: ='Crop Information'!B26 -> Barley/Oats/Wheat (Dec - California desert) | AO21: =IFERROR(VLOOKUP(ROWS($AO$2:AO21),$AL$2:$AM$763,2,FALSE),"") -> 
N22: =IF(ISNUMBER(SEARCH('2 Crop Water Requirement'!$B$22,'Data Validation Sheet'!O22)),MAX($N$1:N21)+1,0) -> 0 | O22: ='Crop Information'!B27 -> Beans (dry - May/Jun - central climates) | Q22: =IFERROR(VLOOKUP(ROWS($Q$2:Q22),$N$2:$O$763,2,FALSE),"") ->  | T22: =IF(ISNUMBER(SEARCH('2 Crop Water Requirement'!$B$24,'Data Validation Sheet'!U22)),MAX($T$1:T21)+1,0) -> 0 | U22: ='Crop Information'!B27 -> Beans (dry - May/Jun - central climates) | W22: =IFERROR(VLOOKUP(ROWS($W$2:W22),$T$2:$U$763,2,FALSE),"") ->  | Z22: =IF(ISNUMBER(SEARCH('2 Crop Water Requirement'!$B$26,'Data Validation Sheet'!AA22)),MAX($Z$1:Z21)+1,0) -> 0 | AA22: ='Crop Information'!B27 -> Beans (dry - May/Jun - central climates) | AC22: =IFERROR(VLOOKUP(ROWS($AC$2:AC22),$Z$2:$AA$763,2,FALSE),"") ->  | AF22: =IF(ISNUMBER(SEARCH('2 Crop Water Requirement'!B$28,'Data Validation Sheet'!AG22)),MAX($AF$1:AF21)+1,0) -> 0 | AG22: ='Crop Information'!B27 -> Beans (dry - May/Jun - central climates) | AI22: =IFERROR(VLOOKUP(ROWS($AI$2:AI22),$AF$2:$AG$763,2,FALSE),"") ->  | AL22: =IF(ISNUMBER(SEARCH('2 Crop Water Requirement'!$B$30,'Data Validation Sheet'!AM22)),MAX($AL$1:AL21)+1,0) -> 0 | AM22: ='Crop Information'!B27 -> Beans (dry - May/Jun - central climates) | AO22: =IFERROR(VLOOKUP(ROWS($AO$2:AO22),$AL$2:$AM$763,2,FALSE),"") -> 
N23: =IF(ISNUMBER(SEARCH('2 Crop Water Requirement'!$B$22,'Data Validation Sheet'!O23)),MAX($N$1:N22)+1,0) -> 0 | O23: ='Crop Information'!B28 -> Beans (dry - Jun - Pakistan/California) | Q23: =IFERROR(VLOOKUP(ROWS($Q$2:Q23),$N$2:$O$763,2,FALSE),"") ->  | T23: =IF(ISNUMBER(SEARCH('2 Crop Water Requirement'!$B$24,'Data Validation Sheet'!U23)),MAX($T$1:T22)+1,0) -> 0 | U23: ='Crop Information'!B28 -> Beans (dry - Jun - Pakistan/California) | W23: =IFERROR(VLOOKUP(ROWS($W$2:W23),$T$2:$U$763,2,FALSE),"") ->  | Z23: =IF(ISNUMBER(SEARCH('2 Crop Water Requirement'!$B$26,'Data Validation Sheet'!AA23)),MAX($Z$1:Z22)+1,0) -> 0 | AA23: ='Crop Information'!B28 -> Beans (dry - Jun - Pakistan/California) | AC23: =IFERROR(VLOOKUP(ROWS($AC$2:AC23),$Z$2:$AA$763,2,FALSE),"") ->  | AF23: =IF(ISNUMBER(SEARCH('2 Crop Water Requirement'!B$28,'Data Validation Sheet'!AG23)),MAX($AF$1:AF22)+1,0) -> 0 | AG23: ='Crop Information'!B28 -> Beans (dry - Jun - Pakistan/California) | AI23: =IFERROR(VLOOKUP(ROWS($AI$2:AI23),$AF$2:$AG$763,2,FALSE),"") ->  | AL23: =IF(ISNUMBER(SEARCH('2 Crop Water Requirement'!$B$30,'Data Validation Sheet'!AM23)),MAX($AL$1:AL22)+1,0) -> 0 | AM23: ='Crop Information'!B28 -> Beans (dry - Jun - Pakistan/California) | AO23: =IFERROR(VLOOKUP(ROWS($AO$2:AO23),$AL$2:$AM$763,2,FALSE),"") -> 
A24: Crop Validation | B24: ='2 Crop Water Requirement'!$B$20 -> Crop to be irrigated | C24: ='2 Crop Water Requirement'!$D$20 -> Area | D24: ='2 Crop Water Requirement'!$G$20 -> Planting Date | E24: ='2 Crop Water Requirement'!$J$20 -> Irrigation method | F24: Available Crop | N24: =IF(ISNUMBER(SEARCH('2 Crop Water Requirement'!$B$22,'Data Validation Sheet'!O24)),MAX($N$1:N23)+1,0) -> 0 | O24: ='Crop Information'!B29 -> Beans (dry - Jun - Idaho) | Q24: =IFERROR(VLOOKUP(ROWS($Q$2:Q24),$N$2:$O$763,2,FALSE),"") ->  | T24: =IF(ISNUMBER(SEARCH('2 Crop Water Requirement'!$B$24,'Data Validation Sheet'!U24)),MAX($T$1:T23)+1,0) -> 0 | U24: ='Crop Information'!B29 -> Beans (dry - Jun - Idaho) | W24: =IFERROR(VLOOKUP(ROWS($W$2:W24),$T$2:$U$763,2,FALSE),"") ->  | Z24: =IF(ISNUMBER(SEARCH('2 Crop Water Requirement'!$B$26,'Data Validation Sheet'!AA24)),MAX($Z$1:Z23)+1,0) -> 0 | AA24: ='Crop Information'!B29 -> Beans (dry - Jun - Idaho) | AC24: =IFERROR(VLOOKUP(ROWS($AC$2:AC24),$Z$2:$AA$763,2,FALSE),"") ->  | AF24: =IF(ISNUMBER(SEARCH('2 Crop Water Requirement'!B$28,'Data Validation Sheet'!AG24)),MAX($AF$1:AF23)+1,0) -> 0 | AG24: ='Crop Information'!B29 -> Beans (dry - Jun - Idaho) | AI24: =IFERROR(VLOOKUP(ROWS($AI$2:AI24),$AF$2:$AG$763,2,FALSE),"") ->  | AL24: =IF(ISNUMBER(SEARCH('2 Crop Water Requirement'!$B$30,'Data Validation Sheet'!AM24)),MAX($AL$1:AL23)+1,0) -> 0 | AM24: ='Crop Information'!B29 -> Beans (dry - Jun - Idaho) | AO24: =IFERROR(VLOOKUP(ROWS($AO$2:AO24),$AL$2:$AM$763,2,FALSE),"") -> 
